{"text_format":"1","workbook":"xlsx","n_sheets":11,"sheets":["Cloning","request","response","debug","validList","NOTES","session","param","Sheet1","Sheet2","Sheet3"],"not_rendered":{"charts":0,"images":6,"macros":1,"external_links":0,"defined_names":11,"comments":0,"pivot_tables":0},"unopened":[],"bounds":{"document_bytes":16777216,"sheet_cells":100000,"rows_first":2000,"rows_last":500,"rows_between":2000,"halvings":0,"cell_chars":16384,"cell_head_chars":4096},"cells_cut":0,"cells_raw":0,"read":"whole","date_system":"1900"}

{"sheet":"Cloning","index":0,"n_rows":21,"n_cols":57,"rows_kept":21,"cut":false,"hidden":false,"merged":[]}
["Cloning.pkey","Cloning.sample_id","Cloning.plate_pkey","Cloning.well","Cloning.batch_well","Variant.0.id","Variant.1.id","Template.0.id","Template.0.location","Construct.0.id","Construct.0.aa_start","Construct.0.aa_end","Construct.0.aa_seq",null,"Construct.0.dna_seq",null,"Construct.0.match_template_seq","Cloning.cloned_aa_seq","Cloning.cut_aa_seq","Cloning.vector_pkey","ClonePrimer.0.forward_primer","ClonePrimer.0.reverse_primer","ClonePrimer.1.forward_primer","ClonePrimer.1.reverse_primer","Cloning.hostcell_pkey","Cloning.cloned_by","Cloning.method_pkey","Cloning.cloning_status",null,"Cloning.completed_at","Cloning.cloner_sample_id","Cloning.delivered_at","Cloning.eln_exp_id","Cloning.comments",null,null,null,null,null,"Cloning.vector_pkey"]
["Cloning PKEY","Cloning Sample ID","Batch ID","Plate Location (e.g. B07)","BatchWell (e.g. SDC209A05)","Variant 0 id","Variant 1 id","Template 0 id","Template 0 location","Construct 0 ID","Construct 0 Start","Construct 0 End","Construct 0 AASeq","Construct     AA length","Construct 0 DNA Seq","Construct   DNA length","Construct 0 100% match Template DNA Sequence (yes or no)","Cloned AA Seq","Cut AA Seq","Vector","Forward Primer 0","Reverse Primer 0","Forward Primer 1","Reverse Primer 1","Host Cell","Cloner (login ID)","Cloning Method","Cloning Status (Y/N)","Storage Location","Date Completed (yyyy-mm-dd)","Cloner Sample ID","Date Delivered","ELN Experiment","Comments","expected","size","result","size",null,"Vector"]
[243617,"USP05:TOC023-A01:C243617","TOC023","A01",{"$f":"(C3&D3)","v":"TOC023A01"},"USP05",null,null,"AU25-C3","USP05_1-835_bio",1,835,"MAELSEEALLSVLPTIRVPKAGDRVHKDECAFSFDTPESEGGLYICMNTFLGFGKQYVERHFNKTGQRVYLHLRRTRRPKEEDPATGTGDPPRKKPTRLAIGVEGGFDLSEEKFELDEDVKIVILPDYLEIARDGLGGLPDIVRDRVTSAVEALLSADSASRKQEVQAWDGEVRQVSKHAFSLKQLDNPARIPPCGWKCSKCDMRENLWLNLTDGSILCGRRYFDGSGGNNHAVEHYRETGYPLAVKLGTITPDGADVYSYDEDDMVLDPSLAEHLSHFGIDMLKMQKTDKTMTELEIDMNQRIGEWELIQESGVPLKPLFGPGYTGIRNLGNSCYLNSVVQVLFSIPDFQRKYVDKLEKIFQNAPTDPTQDFSTQVAKLGHGLLSGEYSKPVPESGDGERVPEQKEVQDGIAPRMFKALIGKGHPEFSTNRQQDAQEFFLHLINMVERNCRSSENPNEVFRFLVEEKIKCLATEKVKYTQRVDYIMQLPVPMDAALNKEELLEYEEKKRQAEEEKMALPELVRAQVPFSSCLEAYGAPEQVDDFWSTALQAKSVAVKTTRFASFPDYLVIQIKKFTFGLDWVPKKLDVSIEMPEELDISQLRGTGLQPGEEELPDIAPPLVTPDEPKAPMLDESVIIQLVEMGFPMDACRKAVYYTGNSGAEAAMNWVMSHMDDPDFANPLILPGSSGPGSTSAAADPPPEDCVTTIVSMGFSRDQALKALRATNNSLERAVDWIFSHIDDLDAEAAMDISEGRSAADSISESVPVGPKVRDGPGKYQLFAFISHMGTSTMCGHYVCHIKKEGRWVIYNDQKVCASEKPPKDLGYIYFYQRVAS",{"$f":"LEN(M3)","v":835},"ATGGCGGAGCTGAGTGAGGAGGCGCTGCTGTCAGTATTACCGACGATCCGGGTCCCTAAGGCTGGAGACCGGGTCCACAAAGACGAGTGCGCCTTCTCCTTCGACACGCCGGAGTCTGAGGGGGGCCTCTACATCTGTATGAACACGTTTCTGGGCTTTGGGAAACAGTATGTGGAGAGACATTTCAATAAGACCGGCCAGCGAGTCTACTTGCACCTCCGGCGGACCCGGCGCCCGAAAGAGGAGGACCCTGCTACAGGCACTGGAGACCCACCCCGGAAGAAGCCCACGCGGCTGGCTATTGGTGTTGAAGGCGGATTTGACCTTAGCGAGGAGAAGTTTGAATTAGACGAGGATGTGAAGATTGTCATTTTGCCAGATTACCTGGAGATTGCCCGGGATGGACTGGGGGGACTGCCTGACATTGTCAGAGATCGGGTGACCAGTGCAGTGGAGGCCCTACTGTCGGCCGACTCAGCCTCCCGCAAGCAGGAGGTGCAGGCATGGGATGGGGAAGTACGGCAGGTGTCTAAGCATGCCTTCAGCCTCAAGCAGTTGGACAACCCTGCTCGAATCCCTCCCTGTGGCTGGAAGTGCTCCAAGTGTGACATGAGAGAGAACCTGTGGCTCAACCTGACTGATGGCTCCATCCTCTGTGGGCGACGCTACTTCGATGGCAGTGGGGGCAACAACCACGCTGTGGAGCACTACCGAGAGACAGGCTACCCGTTAGCTGTCAAGCTGGGCACCATCACCCCTGATGGAGCTGACGTGTACTCATATGATGAGGATGACATGGTCCTGGACCCCAGCCTGGCTGAGCACCTGTCCCACTTCGGCATCGACATGCTGAAGATGCAGAAGACAGACAAGACGATGACTGAGTTGGAGATAGACATGAACCAGCGGATTGGTGAATGGGAGCTGATCCAGGAGTCAGGTGTGCCACTCAAGCCCCTGTTTGGGCCTGGCTACACAGGCATCCGGAACCTGGGTAACAGCTGCTACCTCAACTCTGTGGTCCAGGTGCTCTTCAGCATCCCTGACTTCCAGAGGAAGTATGTGGATAAGCTGGAGAAGATCTTCCAGAATGCCCCGACGGACCCTACCCAGGATTTCAGCACCCAGGTGGCCAAGCTGGGCCATGGCCTTCTCTCCGGGGAGTATTCCAAGCCAGTACCGGAGTCGGGCGATGGGGAGCGGGTGCCAGAACAGAAGGAAGTTCAAGATGGCATTGCCCCTCGGATGTTCAAGGCCCTCATCGGCAAGGGCCACCCTGAATTCTCCACCAACCGGCAGCAGGATGCCCAGGAGTTCTTCCTTCACCTTATCAACATGGTGGAGAGGAATTGCCGGAGCTCTGAAAATCCTAATGAAGTGTTCCGCTTCTTGGTGGAGGAAAAGATCAAGTGCCTGGCCACAGAGAAGGTGAAGTACACCCAGCGAGTTGACTACATCATGCAGCTGCCTGTGCCCATGGATGCAGCCCTTAACAAAGAGGAGCTTCTGGAGTACGAGGAGAAGAAGCGGCAAGCCGAAGAGGAGAAGATGGCACTGCCAGAACTGGTTCGGGCCCAGGTGCCCTTCAGCTCTTGCCTGGAGGCCTACGGGGCCCCTGAGCAGGTCGATGACTTCTGGAGCACGGCCCTGCAGGCCAAGTCAGTAGCTGTCAAGACCACACGATTTGCCTCATTCCCTGACTACCTGGTCATCCAGATCAAGAAGTTCACCTTCGGCTTAGACTGGGTGCCCAAGAAACTGGATGTGTCCATCGAGATGCCAGAGGAGCTCGACATCTCCCAGTTGAGGGGCACAGGGCTGCAGCCCGGAGAGGAGGAGCTGCCAGACATTGCCCCACCCCTGGTCACTCCGGATGAGCCCAAAGCGCCCATGCTGGATGAATCAGTCATCATCCAGCTGGTGGAGATGGGATTCCCTATGGACGCCTGCCGCAAAGCTGTCTACTACACGGGCAACAGCGGGGCTGAGGCCGCCATGAACTGGGTCATGTCACACATGGATGATCCAGATTTTGCAAACCCCCTCATCCTGCCTGGCTCTAGTGGGCCGGGCTCCACAAGCGCAGCAGCCGACCCCCCTCCTGAGGACTGTGTGACCACCATTGTCTCCATGGGCTTCTCCCGGGACCAGGCCTTGAAAGCGCTGCGGGCCACGAACAATAGTTTAGAACGGGCTGTGGACTGGATCTTCAGTCACATTGACGACCTGGATGCTGAAGCTGCCATGGACATCTCAGAGGGCCGCTCAGCTGCCGACTCCATCTCTGAGTCTGTGCCAGTGGGACCTAAAGTCCGGGATGGTCCTGGAAAGTATCAGCTCTTTGCCTTCATTAGTCACATGGGCACCTCTACCATGTGTGGTCACTACGTCTGCCACATCAAGAAAGAAGGCAGATGGGTGATCTACAATGACCAGAAAGTGTGTGCCTCCGAGAAGCCGCCCAAGGACCTGGGCTACATCTACTTCTACCAGAGAGTGGCCAGC",{"$f":"LEN(O3)","v":2505},"yes","msglndifeaqkiewhegsaggsgMAELSEEALLSVLPTIRVPKAGDRVHKDECAFSFDTPESEGGLYICMNTFLGFGKQYVERHFNKTGQRVYLHLRRTRRPKEEDPATGTGDPPRKKPTRLAIGVEGGFDLSEEKFELDEDVKIVILPDYLEIARDGLGGLPDIVRDRVTSAVEALLSADSASRKQEVQAWDGEVRQVSKHAFSLKQLDNPARIPPCGWKCSKCDMRENLWLNLTDGSILCGRRYFDGSGGNNHAVEHYRETGYPLAVKLGTITPDGADVYSYDEDDMVLDPSLAEHLSHFGIDMLKMQKTDKTMTELEIDMNQRIGEWELIQESGVPLKPLFGPGYTGIRNLGNSCYLNSVVQVLFSIPDFQRKYVDKLEKIFQNAPTDPTQDFSTQVAKLGHGLLSGEYSKPVPESGDGERVPEQKEVQDGIAPRMFKALIGKGHPEFSTNRQQDAQEFFLHLINMVERNCRSSENPNEVFRFLVEEKIKCLATEKVKYTQRVDYIMQLPVPMDAALNKEELLEYEEKKRQAEEEKMALPELVRAQVPFSSCLEAYGAPEQVDDFWSTALQAKSVAVKTTRFASFPDYLVIQIKKFTFGLDWVPKKLDVSIEMPEELDISQLRGTGLQPGEEELPDIAPPLVTPDEPKAPMLDESVIIQLVEMGFPMDACRKAVYYTGNSGAEAAMNWVMSHMDDPDFANPLILPGSSGPGSTSAAADPPPEDCVTTIVSMGFSRDQALKALRATNNSLERAVDWIFSHIDDLDAEAAMDISEGRSAADSISESVPVGPKVRDGPGKYQLFAFISHMGTSTMCGHYVCHIKKEGRWVIYNDQKVCASEKPPKDLGYIYFYQRVASgggshhhhhh",null,"p28BIOH-LIC","gctggaggttcaggtATGGCGGAGCTGAGTGAGGAG","atgaccacttccaccGCTGGCCACTCTCTGGTAGAAG",null,null,"DH5-Alpha","ploppnau","LIC-Infusion","Y",null,"2019-03-06",null,null,"PAGE19-00043","A01 is 100%","acaattcccctctagaaataattttgtttaactttaagaaggagatataccatgagcggcctgaacgatatttttgaagcgcagaaaattgaatggcatgaaggcagcgctggaggttcaggtATGGCGGAGCTGAGTGAGGAGGCGCTGCTGTCAGTATTACCGACGATCCGGGTCCCTAAGGCTGGAGACCGGGTCCACAAAGACGAGTGCGCCTTCTCCTTCGACACGCCGGAGTCTGAGGGGGGCCTCTACATCTGTATGAACACGTTTCTGGGCTTTGGGAAACAGTATGTGGAGAGACATTTCAATAAGACCGGCCAGCGAGTCTACTTGCACCTCCGGCGGACCCGGCGCCCGAAAGAGGAGGACCCTGCTACAGGCACTGGAGACCCACCCCGGAAGAAGCCCACGCGGCTGGCTATTGGTGTTGAAGGCGGATTTGACCTTAGCGAGGAGAAGTTTGAATTAGACGAGGATGTGAAGATTGTCATTTTGCCAGATTACCTGGAGATTGCCCGGGATGGACTGGGGGGACTGCCTGACATTGTCAGAGATCGGGTGACCAGTGCAGTGGAGGCCCTACTGTCGGCCGACTCAGCCTCCCGCAAGCAGGAGGTGCAGGCATGGGATGGGGAAGTACGGCAGGTGTCTAAGCATGCCTTCAGCCTCAAGCAGTTGGACAACCCTGCTCGAATCCCTCCCTGTGGCTGGAAGTGCTCCAAGTGTGACATGAGAGAGAACCTGTGGCTCAACCTGACTGATGGCTCCATCCTCTGTGGGCGACGCTACTTCGATGGCAGTGGGGGCAACAACCACGCTGTGGAGCACTACCGAGAGACAGGCTACCCGTTAGCTGTCAAGCTGGGCACCATCACCCCTGATGGAGCTGACGTGTACTCATATGATGAGGATGACATGGTCCTGGACCCCAGCCTGGCTGAGCACCTGTCCCACTTCGGCATCGACATGCTGAAGATGCAGAAGACAGACAAGACGATGACTGAGTTGGAGATAGACATGAACCAGCGGATTGGTGAATGGGAGCTGATCCAGGAGTCAGGTGTGCCACTCAAGCCCCTGTTTGGGCCTGGCTACACAGGCATCCGGAACCTGGGTAACAGCTGCTACCTCAACTCTGTGGTCCAGGTGCTCTTCAGCATCCCTGACTTCCAGAGGAAGTATGTGGATAAGCTGGAGAAGATCTTCCAGAATGCCCCGACGGACCCTACCCAGGATTTCAGCACCCAGGTGGCCAAGCTGGGCCATGGCCTTCTCTCCGGGGAGTATTCCAAGCCAGTACCGGAGTCGGGCGATGGGGAGCGGGTGCCAGAACAGAAGGAAGTTCAAGATGGCATTGCCCCTCGGATGTTCAAGGCCCTCATCGGCAAGGGCCACCCTGAATTCTCCACCAACCGGCAGCAGGATGCCCAGGAGTTCTTCCTTCACCTTATCAACATGGTGGAGAGGAATTGCCGGAGCTCTGAAAATCCTAATGAAGTGTTCCGCTTCTTGGTGGAGGAAAAGATCAAGTGCCTGGCCACAGAGAAGGTGAAGTACACCCAGCGAGTTGACTACATCATGCAGCTGCCTGTGCCCATGGATGCAGCCCTTAACAAAGAGGAGCTTCTGGAGTACGAGGAGAAGAAGCGGCAAGCCGAAGAGGAGAAGATGGCACTGCCAGAACTGGTTCGGGCCCAGGTGCCCTTCAGCTCTTGCCTGGAGGCCTACGGGGCCCCTGAGCAGGTCGATGACTTCTGGAGCACGGCCCTGCAGGCCAAGTCAGTAGCTGTCAAGACCACACGATTTGCCTCATTCCCTGACTACCTGGTCATCCAGATCAAGAAGTTCACCTTCGGCTTAGACTGGGTGCCCAAGAAACTGGATGTGTCCATCGAGATGCCAGAGGAGCTCGACATCTCCCAGTTGAGGGGCACAGGGCTGCAGCCCGGAGAGGAGGAGCTGCCAGACATTGCCCCACCCCTGGTCACTCCGGATGAGCCCAAAGCGCCCATGCTGGATGAATCAGTCATCATCCAGCTGGTGGAGATGGGATTCCCTATGGACGCCTGCCGCAAAGCTGTCTACTACACGGGCAACAGCGGGGCTGAGGCCGCCATGAACTGGGTCATGTCACACATGGATGATCCAGATTTTGCAAACCCCCTCATCCTGCCTGGCTCTAGTGGGCCGGGCTCCACAAGCGCAGCAGCCGACCCCCCTCCTGAGGACTGTGTGACCACCATTGTCTCCATGGGCTTCTCCCGGGACCAGGCCTTGAAAGCGCTGCGGGCCACGAACAATAGTTTAGAACGGGCTGTGGACTGGATCTTCAGTCACATTGACGACCTGGATGCTGAAGCTGCCATGGACATCTCAGAGGGCCGCTCAGCTGCCGACTCCATCTCTGAGTCTGTGCCAGTGGGACCTAAAGTCCGGGATGGTCCTGGAAAGTATCAGCTCTTTGCCTTCATTAGTCACATGGGCACCTCTACCATGTGTGGTCACTACGTCTGCCACATCAAGAAAGAAGGCAGATGGGTGATCTACAATGACCAGAAAGTGTGTGCCTCCGAGAAGCCGCCCAAGGACCTGGGCTACATCTACTTCTACCAGAGAGTGGCCAGCggtggaagtggtcatcaccaccatcatcactgatgacgaagcttgcggccgcactcgagcaccaccaccaccaccactgagatccggctgctaacaaagcccgaa",2733,"GKWTGGRCGGCWACATTCCCTCTAGAATAATTTTGTTTAACTTTAAGAAGGAGATATACCATGAGCGGCCTGAACGATATTTTTGAAGCGCAGAAAATTGAATGGCATGAAGGCAGCGCTGGAGGTTCAGGTATGGCGGAGCTGAGTGAGGAGGCGCTGCTGTCAGTATTACCGACGATCCGGGTCCCTAAGGCTGGAGACCGGGTCCACAAAGACGAGTGCGCCTTCTCCTTCGACACGCCGGAGTCTGAGGGGGGCCTCTACATCTGTATGAACACGTTTCTGGGCTTTGGGAAACAGTATGTGGAGAGACATTTCAATAAGACCGGCCAGCGAGTCTACTTGCACCTCCGGCGGACCCGGCGCCCGAAAGAGGAGGACCCTGCTACAGGCACTGGAGACCCACCCCGGAAGAAGCCCACGCGGCTGGCTATTGGTGTTGAAGGCGGATTTGACCTTAGCGAGGAGAAGTTTGAATTAGACGAGGATGTGAAGATTGTCATTTTGCCAGATTACCTGGAGATTGCCCGGGATGGACTGGGGGGACTGCCTGACATTGTCAGAGATCGGGTGACCAGTGCAGTGGAGGCCCTACTGTCGGCCGACTCAGCCTCCCGCAAGCAGGAGGTGCAGGCATGGGATGGGGAAGTACGGCAGGTGTCTAAGCATGCCTTCAGCCTCAAGCAGTTGGACAACCCTGCTCGAATCCCTCCCTGTGGCTGGAAGTGCTCCAAGTGTGACATGAGAGAGAACCTGTGGCTCAACCTGACTGATGGCTCCATCCTCTGTGGGCGACGCTACTTCGATGGCAGTGGGGGCAACAACCACGCTGTGGAGCACTACCGAGAGACAGGCTACCCGTTAGCTGTCAAGCTGGGCACCATCACCCCTGATGGAGCTGACGTGTACTCATATGATGAGGATGACATGGTCCTGGACCCCAGCCTGGCTGAGCACCTGTCCCACTTCGGCATCGACATGCTGAAGATGCAGAAGACAGACAAGACGATGACTGAGTTGGAGATAGACATGAACCAGCGGATTGGTGAATGGGAGCTGATCCAGGAGTCAGGTGTGCCACTCAAGCCCCTGTTTGGGCCTGGCTACACAGGCATCCGGAACCTGGGTAACAGCTGCTACCTCAACTCTGTGGTCCAGGTGCTCTTCAGCATCCCTGACTTCCAGAGGAAGTATGTGGATAAGCTGGAGAAGATCTTCCAGAATGCCCCGACGGACCCTACCCAGGATTTCAGCACCCAGGTGGCCAAGCTGGGCCATGGCCTTCTCTCCGGGGAGTATTCCAAGCCAGTACCGGAGTCGGGCGATGGGGAGCGGGTGCCAGAACAGAAGGAAGTTCAAGATGGCATTGCCCCTCGGATGTTCAAGGCCCTCATCGGCAAGGGCCACCCTGAATTCTCCACCAACCGGCAGCAGGATGCCCAGGAGTTCTTCCTTCACCTTATCAACATGGTGGAGAGGAATTGCCGGAGCTCTGAAAATCCTAATGAAGTGTTCCGCTTCTTGGTGGAGGAAAAGATCAAGTGCCTGGCCACAGAGAAGGTGAAGTACACCCAGCGAGTTGACTACATCATGCAGCTGCCTGTGCCCATGGATGCAGCCCTTAACAAAGAGGAGCTTCTGGAGTACGAGGAGAAGAAGCGGCAAGCCGAAGAGGAGAAGATGGCACTGCCAGAACTGGTTCGGGCCCAGGTGCCCTTCAGCTCTTGCCTGGAGGCCTACGGGGCCCCTGAGCAGGTCGATGACTTCTGGAGCACGGCCCTGCAGGCCAAGTCAGTAGCTGTCAAGACCACACGATTTGCCTCATTCCCTGACTACCTGGTCATCCAGATCAAGAAGTTCACCTTCGGCTTAGACTGGGTGCCCAAGAAACTGGATGTGTCCATCGAGATGCCAGAGGAGCTCGACATCTCCCAGTTGAGGGGCACAGGGCTGCAGCCCGGAGAGGAGGAGCTGCCAGACATTGCCCCACCCCTGGTCACTCCGGATGAGCCCAAAGCGCCCATGCTGGATGAATCAGTCATCATCCAGCTGGTGGAGATGGGATTCCCTATGGACGCCTGCCGCAAAGCTGTCTACTACACGGGCAACAGCGGGGCTGAGGCCGCCATGAACTGGGTCATGTCACACATGGATGATCCAGATTTTGCAAACCCCCTCATCCTGCCTGGCTCTAGTGGGCCGGGCTCCACAAGCGCAGCAGCCGACCCCCCTCCTGAGGACTGTGTGACCACCATTGTCTCCATGGGCTTCTCCCGGGACCAGGCCTTGAAAGCGCTGCGGGCCACGAACAATAGTTTAGAACGGGCTGTGGACTGGATCTTCAGTCACATTGACGACCTGGATGCTGAAGCTGCCATGGACATCTCAGAGGGCCGCTCAGCTGCCGACTCCATCTCTGAGTCTGTGCCAGTGGGACCTAAAGTCCGGGATGGTCCTGGAAAGTATCAGCTCTTTGCCTTCATTAGTCACATGGGCACCTCTACCATGTGTGGTCACTACGTCTGCCACATCAAGAAAGAAGGCAGATGGGTGATCTACAATGACCAGAAAGTGTGTGCCTCCGAGAAGCCGCCCAAGGACCTGGGCTACATCTACTTCTACCAGAGAGTGGCCAGCGGTGGAAGTGGTCATCACCACCATCATCACTGATGACGAAGCTTGCGGCCGCACTCGAGCACCACCACCACCACCACTGAGATCCGGCTGCTAACAAAGCCCGAAAGAAGCKAGTGTYYCC",{"$f":"LEN(AK3)","v":2758},null,"p28BIOH-LIC","acaattcccctctagaaataattttgtttaactttaagaaggagatataccatgagcggcctgaacgatatttttgaagcgcagaaaattgaatggcatgaaggcagcgctggaggttcaggt","ggtggaagtggtcatcaccaccatcatcactgatgacgaagcttgcggccgcactcgagcaccaccaccaccaccactgagatccggctgctaacaaagcccgaa",null,null,null,null,null,null,null,null,null,null,null,null,null,null,"AU25-C3"]
[243618,"USP05:TOC023-A02:C243618","TOC023","A02",{"$f":"(C4&D4)","v":"TOC023A02"},"USP05",null,null,"AU25-C3","USP05_1-835_bio_C335A",1,835,"MAELSEEALLSVLPTIRVPKAGDRVHKDECAFSFDTPESEGGLYICMNTFLGFGKQYVERHFNKTGQRVYLHLRRTRRPKEEDPATGTGDPPRKKPTRLAIGVEGGFDLSEEKFELDEDVKIVILPDYLEIARDGLGGLPDIVRDRVTSAVEALLSADSASRKQEVQAWDGEVRQVSKHAFSLKQLDNPARIPPCGWKCSKCDMRENLWLNLTDGSILCGRRYFDGSGGNNHAVEHYRETGYPLAVKLGTITPDGADVYSYDEDDMVLDPSLAEHLSHFGIDMLKMQKTDKTMTELEIDMNQRIGEWELIQESGVPLKPLFGPGYTGIRNLGNSaYLNSVVQVLFSIPDFQRKYVDKLEKIFQNAPTDPTQDFSTQVAKLGHGLLSGEYSKPVPESGDGERVPEQKEVQDGIAPRMFKALIGKGHPEFSTNRQQDAQEFFLHLINMVERNCRSSENPNEVFRFLVEEKIKCLATEKVKYTQRVDYIMQLPVPMDAALNKEELLEYEEKKRQAEEEKMALPELVRAQVPFSSCLEAYGAPEQVDDFWSTALQAKSVAVKTTRFASFPDYLVIQIKKFTFGLDWVPKKLDVSIEMPEELDISQLRGTGLQPGEEELPDIAPPLVTPDEPKAPMLDESVIIQLVEMGFPMDACRKAVYYTGNSGAEAAMNWVMSHMDDPDFANPLILPGSSGPGSTSAAADPPPEDCVTTIVSMGFSRDQALKALRATNNSLERAVDWIFSHIDDLDAEAAMDISEGRSAADSISESVPVGPKVRDGPGKYQLFAFISHMGTSTMCGHYVCHIKKEGRWVIYNDQKVCASEKPPKDLGYIYFYQRVAS",{"$f":"LEN(M4)","v":835},"ATGGCGGAGCTGAGTGAGGAGGCGCTGCTGTCAGTATTACCGACGATCCGGGTCCCTAAGGCTGGAGACCGGGTCCACAAAGACGAGTGCGCCTTCTCCTTCGACACGCCGGAGTCTGAGGGGGGCCTCTACATCTGTATGAACACGTTTCTGGGCTTTGGGAAACAGTATGTGGAGAGACATTTCAATAAGACCGGCCAGCGAGTCTACTTGCACCTCCGGCGGACCCGGCGCCCGAAAGAGGAGGACCCTGCTACAGGCACTGGAGACCCACCCCGGAAGAAGCCCACGCGGCTGGCTATTGGTGTTGAAGGCGGATTTGACCTTAGCGAGGAGAAGTTTGAATTAGACGAGGATGTGAAGATTGTCATTTTGCCAGATTACCTGGAGATTGCCCGGGATGGACTGGGGGGACTGCCTGACATTGTCAGAGATCGGGTGACCAGTGCAGTGGAGGCCCTACTGTCGGCCGACTCAGCCTCCCGCAAGCAGGAGGTGCAGGCATGGGATGGGGAAGTACGGCAGGTGTCTAAGCATGCCTTCAGCCTCAAGCAGTTGGACAACCCTGCTCGAATCCCTCCCTGTGGCTGGAAGTGCTCCAAGTGTGACATGAGAGAGAACCTGTGGCTCAACCTGACTGATGGCTCCATCCTCTGTGGGCGACGCTACTTCGATGGCAGTGGGGGCAACAACCACGCTGTGGAGCACTACCGAGAGACAGGCTACCCGTTAGCTGTCAAGCTGGGCACCATCACCCCTGATGGAGCTGACGTGTACTCATATGATGAGGATGACATGGTCCTGGACCCCAGCCTGGCTGAGCACCTGTCCCACTTCGGCATCGACATGCTGAAGATGCAGAAGACAGACAAGACGATGACTGAGTTGGAGATAGACATGAACCAGCGGATTGGTGAATGGGAGCTGATCCAGGAGTCAGGTGTGCCACTCAAGCCCCTGTTTGGGCCTGGCTACACAGGCATCCGGAACCTGGGTAACAGCgcgTACCTCAACTCTGTGGTCCAGGTGCTCTTCAGCATCCCTGACTTCCAGAGGAAGTATGTGGATAAGCTGGAGAAGATCTTCCAGAATGCCCCGACGGACCCTACCCAGGATTTCAGCACCCAGGTGGCCAAGCTGGGCCATGGCCTTCTCTCCGGGGAGTATTCCAAGCCAGTACCGGAGTCGGGCGATGGGGAGCGGGTGCCAGAACAGAAGGAAGTTCAAGATGGCATTGCCCCTCGGATGTTCAAGGCCCTCATCGGCAAGGGCCACCCTGAATTCTCCACCAACCGGCAGCAGGATGCCCAGGAGTTCTTCCTTCACCTTATCAACATGGTGGAGAGGAATTGCCGGAGCTCTGAAAATCCTAATGAAGTGTTCCGCTTCTTGGTGGAGGAAAAGATCAAGTGCCTGGCCACAGAGAAGGTGAAGTACACCCAGCGAGTTGACTACATCATGCAGCTGCCTGTGCCCATGGATGCAGCCCTTAACAAAGAGGAGCTTCTGGAGTACGAGGAGAAGAAGCGGCAAGCCGAAGAGGAGAAGATGGCACTGCCAGAACTGGTTCGGGCCCAGGTGCCCTTCAGCTCTTGCCTGGAGGCCTACGGGGCCCCTGAGCAGGTCGATGACTTCTGGAGCACGGCCCTGCAGGCCAAGTCAGTAGCTGTCAAGACCACACGATTTGCCTCATTCCCTGACTACCTGGTCATCCAGATCAAGAAGTTCACCTTCGGCTTAGACTGGGTGCCCAAGAAACTGGATGTGTCCATCGAGATGCCAGAGGAGCTCGACATCTCCCAGTTGAGGGGCACAGGGCTGCAGCCCGGAGAGGAGGAGCTGCCAGACATTGCCCCACCCCTGGTCACTCCGGATGAGCCCAAAGCGCCCATGCTGGATGAATCAGTCATCATCCAGCTGGTGGAGATGGGATTCCCTATGGACGCCTGCCGCAAAGCTGTCTACTACACGGGCAACAGCGGGGCTGAGGCCGCCATGAACTGGGTCATGTCACACATGGATGATCCAGATTTTGCAAACCCCCTCATCCTGCCTGGCTCTAGTGGGCCGGGCTCCACAAGCGCAGCAGCCGACCCCCCTCCTGAGGACTGTGTGACCACCATTGTCTCCATGGGCTTCTCCCGGGACCAGGCCTTGAAAGCGCTGCGGGCCACGAACAATAGTTTAGAACGGGCTGTGGACTGGATCTTCAGTCACATTGACGACCTGGATGCTGAAGCTGCCATGGACATCTCAGAGGGCCGCTCAGCTGCCGACTCCATCTCTGAGTCTGTGCCAGTGGGACCTAAAGTCCGGGATGGTCCTGGAAAGTATCAGCTCTTTGCCTTCATTAGTCACATGGGCACCTCTACCATGTGTGGTCACTACGTCTGCCACATCAAGAAAGAAGGCAGATGGGTGATCTACAATGACCAGAAAGTGTGTGCCTCCGAGAAGCCGCCCAAGGACCTGGGCTACATCTACTTCTACCAGAGAGTGGCCAGC",{"$f":"LEN(O4)","v":2505},"no","msglndifeaqkiewhegsaggsgMAELSEEALLSVLPTIRVPKAGDRVHKDECAFSFDTPESEGGLYICMNTFLGFGKQYVERHFNKTGQRVYLHLRRTRRPKEEDPATGTGDPPRKKPTRLAIGVEGGFDLSEEKFELDEDVKIVILPDYLEIARDGLGGLPDIVRDRVTSAVEALLSADSASRKQEVQAWDGEVRQVSKHAFSLKQLDNPARIPPCGWKCSKCDMRENLWLNLTDGSILCGRRYFDGSGGNNHAVEHYRETGYPLAVKLGTITPDGADVYSYDEDDMVLDPSLAEHLSHFGIDMLKMQKTDKTMTELEIDMNQRIGEWELIQESGVPLKPLFGPGYTGIRNLGNSaYLNSVVQVLFSIPDFQRKYVDKLEKIFQNAPTDPTQDFSTQVAKLGHGLLSGEYSKPVPESGDGERVPEQKEVQDGIAPRMFKALIGKGHPEFSTNRQQDAQEFFLHLINMVERNCRSSENPNEVFRFLVEEKIKCLATEKVKYTQRVDYIMQLPVPMDAALNKEELLEYEEKKRQAEEEKMALPELVRAQVPFSSCLEAYGAPEQVDDFWSTALQAKSVAVKTTRFASFPDYLVIQIKKFTFGLDWVPKKLDVSIEMPEELDISQLRGTGLQPGEEELPDIAPPLVTPDEPKAPMLDESVIIQLVEMGFPMDACRKAVYYTGNSGAEAAMNWVMSHMDDPDFANPLILPGSSGPGSTSAAADPPPEDCVTTIVSMGFSRDQALKALRATNNSLERAVDWIFSHIDDLDAEAAMDISEGRSAADSISESVPVGPKVRDGPGKYQLFAFISHMGTSTMCGHYVCHIKKEGRWVIYNDQKVCASEKPPKDLGYIYFYQRVASgggshhhhhh",null,"p28BIOH-LIC","gctggaggttcaggtATGGCGGAGCTGAGTGAGGAG","TGAGGTAcgcGCTGTTACCCAGGTTCCGG","TAACAGCgcgTACCTCAACTCTGTGGTCC","atgaccacttccaccGCTGGCCACTCTCTGGTAGAAG","DH5-Alpha","ploppnau","LIC-Infusion","Y",null,"2019-03-06",null,null,"PAGE19-00043","A02 is 100%","acaattcccctctagaaataattttgtttaactttaagaaggagatataccatgagcggcctgaacgatatttttgaagcgcagaaaattgaatggcatgaaggcagcgctggaggttcaggtATGGCGGAGCTGAGTGAGGAGGCGCTGCTGTCAGTATTACCGACGATCCGGGTCCCTAAGGCTGGAGACCGGGTCCACAAAGACGAGTGCGCCTTCTCCTTCGACACGCCGGAGTCTGAGGGGGGCCTCTACATCTGTATGAACACGTTTCTGGGCTTTGGGAAACAGTATGTGGAGAGACATTTCAATAAGACCGGCCAGCGAGTCTACTTGCACCTCCGGCGGACCCGGCGCCCGAAAGAGGAGGACCCTGCTACAGGCACTGGAGACCCACCCCGGAAGAAGCCCACGCGGCTGGCTATTGGTGTTGAAGGCGGATTTGACCTTAGCGAGGAGAAGTTTGAATTAGACGAGGATGTGAAGATTGTCATTTTGCCAGATTACCTGGAGATTGCCCGGGATGGACTGGGGGGACTGCCTGACATTGTCAGAGATCGGGTGACCAGTGCAGTGGAGGCCCTACTGTCGGCCGACTCAGCCTCCCGCAAGCAGGAGGTGCAGGCATGGGATGGGGAAGTACGGCAGGTGTCTAAGCATGCCTTCAGCCTCAAGCAGTTGGACAACCCTGCTCGAATCCCTCCCTGTGGCTGGAAGTGCTCCAAGTGTGACATGAGAGAGAACCTGTGGCTCAACCTGACTGATGGCTCCATCCTCTGTGGGCGACGCTACTTCGATGGCAGTGGGGGCAACAACCACGCTGTGGAGCACTACCGAGAGACAGGCTACCCGTTAGCTGTCAAGCTGGGCACCATCACCCCTGATGGAGCTGACGTGTACTCATATGATGAGGATGACATGGTCCTGGACCCCAGCCTGGCTGAGCACCTGTCCCACTTCGGCATCGACATGCTGAAGATGCAGAAGACAGACAAGACGATGACTGAGTTGGAGATAGACATGAACCAGCGGATTGGTGAATGGGAGCTGATCCAGGAGTCAGGTGTGCCACTCAAGCCCCTGTTTGGGCCTGGCTACACAGGCATCCGGAACCTGGGTAACAGCgcgTACCTCAACTCTGTGGTCCAGGTGCTCTTCAGCATCCCTGACTTCCAGAGGAAGTATGTGGATAAGCTGGAGAAGATCTTCCAGAATGCCCCGACGGACCCTACCCAGGATTTCAGCACCCAGGTGGCCAAGCTGGGCCATGGCCTTCTCTCCGGGGAGTATTCCAAGCCAGTACCGGAGTCGGGCGATGGGGAGCGGGTGCCAGAACAGAAGGAAGTTCAAGATGGCATTGCCCCTCGGATGTTCAAGGCCCTCATCGGCAAGGGCCACCCTGAATTCTCCACCAACCGGCAGCAGGATGCCCAGGAGTTCTTCCTTCACCTTATCAACATGGTGGAGAGGAATTGCCGGAGCTCTGAAAATCCTAATGAAGTGTTCCGCTTCTTGGTGGAGGAAAAGATCAAGTGCCTGGCCACAGAGAAGGTGAAGTACACCCAGCGAGTTGACTACATCATGCAGCTGCCTGTGCCCATGGATGCAGCCCTTAACAAAGAGGAGCTTCTGGAGTACGAGGAGAAGAAGCGGCAAGCCGAAGAGGAGAAGATGGCACTGCCAGAACTGGTTCGGGCCCAGGTGCCCTTCAGCTCTTGCCTGGAGGCCTACGGGGCCCCTGAGCAGGTCGATGACTTCTGGAGCACGGCCCTGCAGGCCAAGTCAGTAGCTGTCAAGACCACACGATTTGCCTCATTCCCTGACTACCTGGTCATCCAGATCAAGAAGTTCACCTTCGGCTTAGACTGGGTGCCCAAGAAACTGGATGTGTCCATCGAGATGCCAGAGGAGCTCGACATCTCCCAGTTGAGGGGCACAGGGCTGCAGCCCGGAGAGGAGGAGCTGCCAGACATTGCCCCACCCCTGGTCACTCCGGATGAGCCCAAAGCGCCCATGCTGGATGAATCAGTCATCATCCAGCTGGTGGAGATGGGATTCCCTATGGACGCCTGCCGCAAAGCTGTCTACTACACGGGCAACAGCGGGGCTGAGGCCGCCATGAACTGGGTCATGTCACACATGGATGATCCAGATTTTGCAAACCCCCTCATCCTGCCTGGCTCTAGTGGGCCGGGCTCCACAAGCGCAGCAGCCGACCCCCCTCCTGAGGACTGTGTGACCACCATTGTCTCCATGGGCTTCTCCCGGGACCAGGCCTTGAAAGCGCTGCGGGCCACGAACAATAGTTTAGAACGGGCTGTGGACTGGATCTTCAGTCACATTGACGACCTGGATGCTGAAGCTGCCATGGACATCTCAGAGGGCCGCTCAGCTGCCGACTCCATCTCTGAGTCTGTGCCAGTGGGACCTAAAGTCCGGGATGGTCCTGGAAAGTATCAGCTCTTTGCCTTCATTAGTCACATGGGCACCTCTACCATGTGTGGTCACTACGTCTGCCACATCAAGAAAGAAGGCAGATGGGTGATCTACAATGACCAGAAAGTGTGTGCCTCCGAGAAGCCGCCCAAGGACCTGGGCTACATCTACTTCTACCAGAGAGTGGCCAGCggtggaagtggtcatcaccaccatcatcactgatgacgaagcttgcggccgcactcgagcaccaccaccaccaccactgagatccggctgctaacaaagcccgaa",2733,"GGGKGGRCGGGTACATTCCCCTCTAGAATAATTTTGTTTAACTTTAAGAAGGAGATATACCATGAGCGGCCTGAACGATATTTTTGAAGCGCAGAAAATTGAATGGCATGAAGGCAGCGCTGGAGGTTCAGGTATGGCGGAGCTGAGTGAGGAGGCGCTGCTGTCAGTATTACCGACGATCCGGGTCCCTAAGGCTGGAGACCGGGTCCACAAAGACGAGTGCGCCTTCTCCTTCGACACGCCGGAGTCTGAGGGGGGCCTCTACATCTGTATGAACACGTTTCTGGGCTTTGGGAAACAGTATGTGGAGAGACATTTCAATAAGACCGGCCAGCGAGTCTACTTGCACCTCCGGCGGACCCGGCGCCCGAAAGAGGAGGACCCTGCTACAGGCACTGGAGACCCACCCCGGAAGAAGCCCACGCGGCTGGCTATTGGTGTTGAAGGCGGATTTGACCTTAGCGAGGAGAAGTTTGAATTAGACGAGGATGTGAAGATTGTCATTTTGCCAGATTACCTGGAGATTGCCCGGGATGGACTGGGGGGACTGCCTGACATTGTCAGAGATCGGGTGACCAGTGCAGTGGAGGCCCTACTGTCGGCCGACTCAGCCTCCCGCAAGCAGGAGGTGCAGGCATGGGATGGGGAAGTACGGCAGGTGTCTAAGCATGCCTTCAGCCTCAAGCAGTTGGACAACCCTGCTCGAATCCCTCCCTGTGGCTGGAAGTGCTCCAAGTGTGACATGAGAGAGAACCTGTGGCTCAACCTGACTGATGGCTCCATCCTCTGTGGGCGACGCTACTTCGATGGCAGTGGGGGCAACAACCACGCTGTGGAGCACTACCGAGAGACAGGCTACCCGTTAGCTGTCAAGCTGGGCACCATCACCCCTGATGGAGCTGACGTGTACTCATATGATGAGGATGACATGGTCCTGGACCCCAGCCTGGCTGAGCACCTGTCCCACTTCGGCATCGACATGCTGAAGATGCAGAAGACAGACAAGACGATGACTGAGTTGGAGATAGACATGAACCAGCGGATTGGTGAATGGGAGCTGATCCAGGAGTCAGGTGTGCCACTCAAGCCCCTGTTTGGGCCTGGCTACACAGGCATCCGGAACCTGGGTAACAGCGCGTACCTCAACTCTGTGGTCCAGGTGCTCTTCAGCATCCCTGACTTCCAGAGGAAGTATGTGGATAAGCTGGAGAAGATCTTCCAGAATGCCCCGACGGACCCTACCCAGGATTTCAGCACCCAGGTGGCCAAGCTGGGCCATGGCCTTCTCTCCGGGGAGTATTCCAAGCCAGTACCGGAGTCGGGCGATGGGGAGCGGGTGCCAGAACAGAAGGAAGTTCAAGATGGCATTGCCCCTCGGATGTTCAAGGCCCTCATCGGCAAGGGCCACCCTGAATTCTCCACCAACCGGCAGCAGGATGCCCAGGAGTTCTTCCTTCACCTTATCAACATGGTGGAGAGGAATTGCCGGAGCTCTGAAAATCCTAATGAAGTGTTCCGCTTCTTGGTGGAGGAAAAGATCAAGTGCCTGGCCACAGAGAAGGTGAAGTACACCCAGCGAGTTGACTACATCATGCAGCTGCCTGTGCCCATGGATGCAGCCCTTAACAAAGAGGAGCTTCTGGAGTACGAGGAGAAGAAGCGGCAAGCCGAAGAGGAGAAGATGGCACTGCCAGAACTGGTTCGGGCCCAGGTGCCCTTCAGCTCTTGCCTGGAGGCCTACGGGGCCCCTGAGCAGGTCGATGACTTCTGGAGCACGGCCCTGCAGGCCAAGTCAGTAGCTGTCAAGACCACACGATTTGCCTCATTCCCTGACTACCTGGTCATCCAGATCAAGAAGTTCACCTTCGGCTTAGACTGGGTGCCCAAGAAACTGGATGTGTCCATCGAGATGCCAGAGGAGCTCGACATCTCCCAGTTGAGGGGCACAGGGCTGCAGCCCGGAGAGGAGGAGCTGCCAGACATTGCCCCACCCCTGGTCACTCCGGATGAGCCCAAAGCGCCCATGCTGGATGAATCAGTCATCATCCAGCTGGTGGAGATGGGATTCCCTATGGACGCCTGCCGCAAAGCTGTCTACTACACGGGCAACAGCGGGGCTGAGGCCGCCATGAACTGGGTCATGTCACACATGGATGATCCAGATTTTGCAAACCCCCTCATCCTGCCTGGCTCTAGTGGGCCGGGCTCCACAAGCGCAGCAGCCGACCCCCCTCCTGAGGACTGTGTGACCACCATTGTCTCCATGGGCTTCTCCCGGGACCAGGCCTTGAAAGCGCTGCGGGCCACGAACAATAGTTTAGAACGGGCTGTGGACTGGATCTTCAGTCACATTGACGACCTGGATGCTGAAGCTGCCATGGACATCTCAGAGGGCCGCTCAGCTGCCGACTCCATCTCTGAGTCTGTGCCAGTGGGACCTAAAGTCCGGGATGGTCCTGGAAAGTATCAGCTCTTTGCCTTCATTAGTCACATGGGCACCTCTACCATGTGTGGTCACTACGTCTGCCACATCAAGAAAGAAGGCAGATGGGTGATCTACAATGACCAGAAAGTGTGTGCCTCCGAGAAGCCGCCCAAGGACCTGGGCTACATCTACTTCTACCAGAGAGTGGCCAGCGGTGGAAGTGGTCATCACCACCATCATCACTGATGACGAAGCTTGCGGCCGCACTCGAGCACCACCACCACCACCACTGAGATCCGGCTGCTAACAAAGCCCGAAAGAAGCKAGTGGYCCC",{"$f":"LEN(AK4)","v":2759},null,"p28BIOH-LIC","acaattcccctctagaaataattttgtttaactttaagaaggagatataccatgagcggcctgaacgatatttttgaagcgcagaaaattgaatggcatgaaggcagcgctggaggttcaggt","ggtggaagtggtcatcaccaccatcatcactgatgacgaagcttgcggccgcactcgagcaccaccaccaccaccactgagatccggctgctaacaaagcccgaa",null,null,null,null,null,null,null,null,null,null,null,null,null,null,"AU25-C3"]
[243619,"USP05:TOC023-A03:C243619","TOC023","A03","TOC023A03","USP05",null,null,"AU25-C3","USP05_1-835_bio_C335A_R221A",1,835,"MAELSEEALLSVLPTIRVPKAGDRVHKDECAFSFDTPESEGGLYICMNTFLGFGKQYVERHFNKTGQRVYLHLRRTRRPKEEDPATGTGDPPRKKPTRLAIGVEGGFDLSEEKFELDEDVKIVILPDYLEIARDGLGGLPDIVRDRVTSAVEALLSADSASRKQEVQAWDGEVRQVSKHAFSLKQLDNPARIPPCGWKCSKCDMRENLWLNLTDGSILCGaRYFDGSGGNNHAVEHYRETGYPLAVKLGTITPDGADVYSYDEDDMVLDPSLAEHLSHFGIDMLKMQKTDKTMTELEIDMNQRIGEWELIQESGVPLKPLFGPGYTGIRNLGNSaYLNSVVQVLFSIPDFQRKYVDKLEKIFQNAPTDPTQDFSTQVAKLGHGLLSGEYSKPVPESGDGERVPEQKEVQDGIAPRMFKALIGKGHPEFSTNRQQDAQEFFLHLINMVERNCRSSENPNEVFRFLVEEKIKCLATEKVKYTQRVDYIMQLPVPMDAALNKEELLEYEEKKRQAEEEKMALPELVRAQVPFSSCLEAYGAPEQVDDFWSTALQAKSVAVKTTRFASFPDYLVIQIKKFTFGLDWVPKKLDVSIEMPEELDISQLRGTGLQPGEEELPDIAPPLVTPDEPKAPMLDESVIIQLVEMGFPMDACRKAVYYTGNSGAEAAMNWVMSHMDDPDFANPLILPGSSGPGSTSAAADPPPEDCVTTIVSMGFSRDQALKALRATNNSLERAVDWIFSHIDDLDAEAAMDISEGRSAADSISESVPVGPKVRDGPGKYQLFAFISHMGTSTMCGHYVCHIKKEGRWVIYNDQKVCASEKPPKDLGYIYFYQRVAS",835,"ATGGCGGAGCTGAGTGAGGAGGCGCTGCTGTCAGTATTACCGACGATCCGGGTCCCTAAGGCTGGAGACCGGGTCCACAAAGACGAGTGCGCCTTCTCCTTCGACACGCCGGAGTCTGAGGGGGGCCTCTACATCTGTATGAACACGTTTCTGGGCTTTGGGAAACAGTATGTGGAGAGACATTTCAATAAGACCGGCCAGCGAGTCTACTTGCACCTCCGGCGGACCCGGCGCCCGAAAGAGGAGGACCCTGCTACAGGCACTGGAGACCCACCCCGGAAGAAGCCCACGCGGCTGGCTATTGGTGTTGAAGGCGGATTTGACCTTAGCGAGGAGAAGTTTGAATTAGACGAGGATGTGAAGATTGTCATTTTGCCAGATTACCTGGAGATTGCCCGGGATGGACTGGGGGGACTGCCTGACATTGTCAGAGATCGGGTGACCAGTGCAGTGGAGGCCCTACTGTCGGCCGACTCAGCCTCCCGCAAGCAGGAGGTGCAGGCATGGGATGGGGAAGTACGGCAGGTGTCTAAGCATGCCTTCAGCCTCAAGCAGTTGGACAACCCTGCTCGAATCCCTCCCTGTGGCTGGAAGTGCTCCAAGTGTGACATGAGAGAGAACCTGTGGCTCAACCTGACTGATGGCTCCATCCTCTGTGGGgcgCGCTACTTCGATGGCAGTGGGGGCAACAACCACGCTGTGGAGCACTACCGAGAGACAGGCTACCCGTTAGCTGTCAAGCTGGGCACCATCACCCCTGATGGAGCTGACGTGTACTCATATGATGAGGATGACATGGTCCTGGACCCCAGCCTGGCTGAGCACCTGTCCCACTTCGGCATCGACATGCTGAAGATGCAGAAGACAGACAAGACGATGACTGAGTTGGAGATAGACATGAACCAGCGGATTGGTGAATGGGAGCTGATCCAGGAGTCAGGTGTGCCACTCAAGCCCCTGTTTGGGCCTGGCTACACAGGCATCCGGAACCTGGGTAACAGCgcgTACCTCAACTCTGTGGTCCAGGTGCTCTTCAGCATCCCTGACTTCCAGAGGAAGTATGTGGATAAGCTGGAGAAGATCTTCCAGAATGCCCCGACGGACCCTACCCAGGATTTCAGCACCCAGGTGGCCAAGCTGGGCCATGGCCTTCTCTCCGGGGAGTATTCCAAGCCAGTACCGGAGTCGGGCGATGGGGAGCGGGTGCCAGAACAGAAGGAAGTTCAAGATGGCATTGCCCCTCGGATGTTCAAGGCCCTCATCGGCAAGGGCCACCCTGAATTCTCCACCAACCGGCAGCAGGATGCCCAGGAGTTCTTCCTTCACCTTATCAACATGGTGGAGAGGAATTGCCGGAGCTCTGAAAATCCTAATGAAGTGTTCCGCTTCTTGGTGGAGGAAAAGATCAAGTGCCTGGCCACAGAGAAGGTGAAGTACACCCAGCGAGTTGACTACATCATGCAGCTGCCTGTGCCCATGGATGCAGCCCTTAACAAAGAGGAGCTTCTGGAGTACGAGGAGAAGAAGCGGCAAGCCGAAGAGGAGAAGATGGCACTGCCAGAACTGGTTCGGGCCCAGGTGCCCTTCAGCTCTTGCCTGGAGGCCTACGGGGCCCCTGAGCAGGTCGATGACTTCTGGAGCACGGCCCTGCAGGCCAAGTCAGTAGCTGTCAAGACCACACGATTTGCCTCATTCCCTGACTACCTGGTCATCCAGATCAAGAAGTTCACCTTCGGCTTAGACTGGGTGCCCAAGAAACTGGATGTGTCCATCGAGATGCCAGAGGAGCTCGACATCTCCCAGTTGAGGGGCACAGGGCTGCAGCCCGGAGAGGAGGAGCTGCCAGACATTGCCCCACCCCTGGTCACTCCGGATGAGCCCAAAGCGCCCATGCTGGATGAATCAGTCATCATCCAGCTGGTGGAGATGGGATTCCCTATGGACGCCTGCCGCAAAGCTGTCTACTACACGGGCAACAGCGGGGCTGAGGCCGCCATGAACTGGGTCATGTCACACATGGATGATCCAGATTTTGCAAACCCCCTCATCCTGCCTGGCTCTAGTGGGCCGGGCTCCACAAGCGCAGCAGCCGACCCCCCTCCTGAGGACTGTGTGACCACCATTGTCTCCATGGGCTTCTCCCGGGACCAGGCCTTGAAAGCGCTGCGGGCCACGAACAATAGTTTAGAACGGGCTGTGGACTGGATCTTCAGTCACATTGACGACCTGGATGCTGAAGCTGCCATGGACATCTCAGAGGGCCGCTCAGCTGCCGACTCCATCTCTGAGTCTGTGCCAGTGGGACCTAAAGTCCGGGATGGTCCTGGAAAGTATCAGCTCTTTGCCTTCATTAGTCACATGGGCACCTCTACCATGTGTGGTCACTACGTCTGCCACATCAAGAAAGAAGGCAGATGGGTGATCTACAATGACCAGAAAGTGTGTGCCTCCGAGAAGCCGCCCAAGGACCTGGGCTACATCTACTTCTACCAGAGAGTGGCCAGC",2505,"no","msglndifeaqkiewhegsaggsgMAELSEEALLSVLPTIRVPKAGDRVHKDECAFSFDTPESEGGLYICMNTFLGFGKQYVERHFNKTGQRVYLHLRRTRRPKEEDPATGTGDPPRKKPTRLAIGVEGGFDLSEEKFELDEDVKIVILPDYLEIARDGLGGLPDIVRDRVTSAVEALLSADSASRKQEVQAWDGEVRQVSKHAFSLKQLDNPARIPPCGWKCSKCDMRENLWLNLTDGSILCGaRYFDGSGGNNHAVEHYRETGYPLAVKLGTITPDGADVYSYDEDDMVLDPSLAEHLSHFGIDMLKMQKTDKTMTELEIDMNQRIGEWELIQESGVPLKPLFGPGYTGIRNLGNSaYLNSVVQVLFSIPDFQRKYVDKLEKIFQNAPTDPTQDFSTQVAKLGHGLLSGEYSKPVPESGDGERVPEQKEVQDGIAPRMFKALIGKGHPEFSTNRQQDAQEFFLHLINMVERNCRSSENPNEVFRFLVEEKIKCLATEKVKYTQRVDYIMQLPVPMDAALNKEELLEYEEKKRQAEEEKMALPELVRAQVPFSSCLEAYGAPEQVDDFWSTALQAKSVAVKTTRFASFPDYLVIQIKKFTFGLDWVPKKLDVSIEMPEELDISQLRGTGLQPGEEELPDIAPPLVTPDEPKAPMLDESVIIQLVEMGFPMDACRKAVYYTGNSGAEAAMNWVMSHMDDPDFANPLILPGSSGPGSTSAAADPPPEDCVTTIVSMGFSRDQALKALRATNNSLERAVDWIFSHIDDLDAEAAMDISEGRSAADSISESVPVGPKVRDGPGKYQLFAFISHMGTSTMCGHYVCHIKKEGRWVIYNDQKVCASEKPPKDLGYIYFYQRVASgggshhhhhh",null,"p28BIOH-LIC","gctggaggttcaggtATGGCGGAGCTGAGTGAGGAG","AGTAGCGcgcCCCACAGAGGATGGAGCCAT","CTGTGGGgcgCGCTACTTCGATGGCAGTG","atgaccacttccaccGCTGGCCACTCTCTGGTAGAAG","DH5-Alpha","ploppnau","LIC-Infusion","Y",null,"2019-03-06",null,null,"PAGE19-00043","A03 is 100%","acaattcccctctagaaataattttgtttaactttaagaaggagatataccatgagcggcctgaacgatatttttgaagcgcagaaaattgaatggcatgaaggcagcgctggaggttcaggtATGGCGGAGCTGAGTGAGGAGGCGCTGCTGTCAGTATTACCGACGATCCGGGTCCCTAAGGCTGGAGACCGGGTCCACAAAGACGAGTGCGCCTTCTCCTTCGACACGCCGGAGTCTGAGGGGGGCCTCTACATCTGTATGAACACGTTTCTGGGCTTTGGGAAACAGTATGTGGAGAGACATTTCAATAAGACCGGCCAGCGAGTCTACTTGCACCTCCGGCGGACCCGGCGCCCGAAAGAGGAGGACCCTGCTACAGGCACTGGAGACCCACCCCGGAAGAAGCCCACGCGGCTGGCTATTGGTGTTGAAGGCGGATTTGACCTTAGCGAGGAGAAGTTTGAATTAGACGAGGATGTGAAGATTGTCATTTTGCCAGATTACCTGGAGATTGCCCGGGATGGACTGGGGGGACTGCCTGACATTGTCAGAGATCGGGTGACCAGTGCAGTGGAGGCCCTACTGTCGGCCGACTCAGCCTCCCGCAAGCAGGAGGTGCAGGCATGGGATGGGGAAGTACGGCAGGTGTCTAAGCATGCCTTCAGCCTCAAGCAGTTGGACAACCCTGCTCGAATCCCTCCCTGTGGCTGGAAGTGCTCCAAGTGTGACATGAGAGAGAACCTGTGGCTCAACCTGACTGATGGCTCCATCCTCTGTGGGgcgCGCTACTTCGATGGCAGTGGGGGCAACAACCACGCTGTGGAGCACTACCGAGAGACAGGCTACCCGTTAGCTGTCAAGCTGGGCACCATCACCCCTGATGGAGCTGACGTGTACTCATATGATGAGGATGACATGGTCCTGGACCCCAGCCTGGCTGAGCACCTGTCCCACTTCGGCATCGACATGCTGAAGATGCAGAAGACAGACAAGACGATGACTGAGTTGGAGATAGACATGAACCAGCGGATTGGTGAATGGGAGCTGATCCAGGAGTCAGGTGTGCCACTCAAGCCCCTGTTTGGGCCTGGCTACACAGGCATCCGGAACCTGGGTAACAGCgcgTACCTCAACTCTGTGGTCCAGGTGCTCTTCAGCATCCCTGACTTCCAGAGGAAGTATGTGGATAAGCTGGAGAAGATCTTCCAGAATGCCCCGACGGACCCTACCCAGGATTTCAGCACCCAGGTGGCCAAGCTGGGCCATGGCCTTCTCTCCGGGGAGTATTCCAAGCCAGTACCGGAGTCGGGCGATGGGGAGCGGGTGCCAGAACAGAAGGAAGTTCAAGATGGCATTGCCCCTCGGATGTTCAAGGCCCTCATCGGCAAGGGCCACCCTGAATTCTCCACCAACCGGCAGCAGGATGCCCAGGAGTTCTTCCTTCACCTTATCAACATGGTGGAGAGGAATTGCCGGAGCTCTGAAAATCCTAATGAAGTGTTCCGCTTCTTGGTGGAGGAAAAGATCAAGTGCCTGGCCACAGAGAAGGTGAAGTACACCCAGCGAGTTGACTACATCATGCAGCTGCCTGTGCCCATGGATGCAGCCCTTAACAAAGAGGAGCTTCTGGAGTACGAGGAGAAGAAGCGGCAAGCCGAAGAGGAGAAGATGGCACTGCCAGAACTGGTTCGGGCCCAGGTGCCCTTCAGCTCTTGCCTGGAGGCCTACGGGGCCCCTGAGCAGGTCGATGACTTCTGGAGCACGGCCCTGCAGGCCAAGTCAGTAGCTGTCAAGACCACACGATTTGCCTCATTCCCTGACTACCTGGTCATCCAGATCAAGAAGTTCACCTTCGGCTTAGACTGGGTGCCCAAGAAACTGGATGTGTCCATCGAGATGCCAGAGGAGCTCGACATCTCCCAGTTGAGGGGCACAGGGCTGCAGCCCGGAGAGGAGGAGCTGCCAGACATTGCCCCACCCCTGGTCACTCCGGATGAGCCCAAAGCGCCCATGCTGGATGAATCAGTCATCATCCAGCTGGTGGAGATGGGATTCCCTATGGACGCCTGCCGCAAAGCTGTCTACTACACGGGCAACAGCGGGGCTGAGGCCGCCATGAACTGGGTCATGTCACACATGGATGATCCAGATTTTGCAAACCCCCTCATCCTGCCTGGCTCTAGTGGGCCGGGCTCCACAAGCGCAGCAGCCGACCCCCCTCCTGAGGACTGTGTGACCACCATTGTCTCCATGGGCTTCTCCCGGGACCAGGCCTTGAAAGCGCTGCGGGCCACGAACAATAGTTTAGAACGGGCTGTGGACTGGATCTTCAGTCACATTGACGACCTGGATGCTGAAGCTGCCATGGACATCTCAGAGGGCCGCTCAGCTGCCGACTCCATCTCTGAGTCTGTGCCAGTGGGACCTAAAGTCCGGGATGGTCCTGGAAAGTATCAGCTCTTTGCCTTCATTAGTCACATGGGCACCTCTACCATGTGTGGTCACTACGTCTGCCACATCAAGAAAGAAGGCAGATGGGTGATCTACAATGACCAGAAAGTGTGTGCCTCCGAGAAGCCGCCCAAGGACCTGGGCTACATCTACTTCTACCAGAGAGTGGCCAGCggtggaagtggtcatcaccaccatcatcactgatgacgaagcttgcggccgcactcgagcaccaccaccaccaccactgagatccggctgctaacaaagcccgaa",2733,"TWKWKKYGRSCGYWAMATTCCCTCTAGAAATAATTTTGTTTAACTTTAAGAAGGAGATATACCATGAGCGGCCTGAACGATATTTTTGAAGCGCAGAAAATTGAATGGCATGAAGGCAGCGCTGGAGGTTCAGGTATGGCGGAGCTGAGTGAGGAGGCGCTGCTGTCAGTATTACCGACGATCCGGGTCCCTAAGGCTGGAGACCGGGTCCACAAAGACGAGTGCGCCTTCTCCTTCGACACGCCGGAGTCTGAGGGGGGCCTCTACATCTGTATGAACACGTTTCTGGGCTTTGGGAAACAGTATGTGGAGAGACATTTCAATAAGACCGGCCAGCGAGTCTACTTGCACCTCCGGCGGACCCGGCGCCCGAAAGAGGAGGACCCTGCTACAGGCACTGGAGACCCACCCCGGAAGAAGCCCACGCGGCTGGCTATTGGTGTTGAAGGCGGATTTGACCTTAGCGAGGAGAAGTTTGAATTAGACGAGGATGTGAAGATTGTCATTTTGCCAGATTACCTGGAGATTGCCCGGGATGGACTGGGGGGACTGCCTGACATTGTCAGAGATCGGGTGACCAGTGCAGTGGAGGCCCTACTGTCGGCCGACTCAGCCTCCCGCAAGCAGGAGGTGCAGGCATGGGATGGGGAAGTACGGCAGGTGTCTAAGCATGCCTTCAGCCTCAAGCAGTTGGACAACCCTGCTCGAATCCCTCCCTGTGGCTGGAAGTGCTCCAAGTGTGACATGAGAGAGAACCTGTGGCTCAACCTGACTGATGGCTCCATCCTCTGTGGGGCGCGCTACTTCGATGGCAGTGGGGGCAACAACCACGCTGTGGAGCACTACCGAGAGACAGGCTACCCGTTAGCTGTCAAGCTGGGCACCATCACCCCTGATGGAGCTGACGTGTACTCATATGATGAGGATGACATGGTCCTGGACCCCAGCCTGGCTGAGCACCTGTCCCACTTCGGCATCGACATGCTGAAGATGCAGAAGACAGACAAGACGATGACTGAGTTGGAGATAGACATGAACCAGCGGATTGGTGAATGGGAGCTGATCCAGGAGTCAGGTGTGCCACTCAAGCCCCTGTTTGGGCCTGGCTACACAGGCATCCGGAACCTGGGTAACAGCGCGTACCTCAACTCTGTGGTCCAGGTGCTCTTCAGCATCCCTGACTTCCAGAGGAAGTATGTGGATAAGCTGGAGAAGATCTTCCAGAATGCCCCGACGGACCCTACCCAGGATTTCAGCACCCAGGTGGCCAAGCTGGGCCATGGCCTTCTCTCCGGGGAGTATTCCAAGCCAGTACCGGAGTCGGGCGATGGGGAGCGGGTGCCAGAACAGAAGGAAGTTCAAGATGGCATTGCCCCTCGGATGTTCAAGGCCCTCATCGGCAAGGGCCACCCTGAATTCTCCACCAACCGGCAGCAGGATGCCCAGGAGTTCTTCCTTCACCTTATCAACATGGTGGAGAGGAATTGCCGGAGCTCTGAAAATCCTAATGAAGTGTTCCGCTTCTTGGTGGAGGAAAAGATCAAGTGCCTGGCCACAGAGAAGGTGAAGTACACCCAGCGAGTTGACTACATCATGCAGCTGCCTGTGCCCATGGATGCAGCCCTTAACAAAGAGGAGCTTCTGGAGTACGAGGAGAAGAAGCGGCAAGCCGAAGAGGAGAAGATGGCACTGCCAGAACTGGTTCGGGCCCAGGTGCCCTTCAGCTCTTGCCTGGAGGCCTACGGGGCCCCTGAGCAGGTCGATGACTTCTGGAGCACGGCCCTGCAGGCCAAGTCAGTAGCTGTCAAGACCACACGATTTGCCTCATTCCCTGACTACCTGGTCATCCAGATCAAGAAGTTCACCTTCGGCTTAGACTGGGTGCCCAAGAAACTGGATGTGTCCATCGAGATGCCAGAGGAGCTCGACATCTCCCAGTTGAGGGGCACAGGGCTGCAGCCCGGAGAGGAGGAGCTGCCAGACATTGCCCCACCCCTGGTCACTCCGGATGAGCCCAAAGCGCCCATGCTGGATGAATCAGTCATCATCCAGCTGGTGGAGATGGGATTCCCTATGGACGCCTGCCGCAAAGCTGTCTACTACACGGGCAACAGCGGGGCTGAGGCCGCCATGAACTGGGTCATGTCACACATGGATGATCCAGATTTTGCAAACCCCCTCATCCTGCCTGGCTCTAGTGGGCCGGGCTCCACAAGCGCAGCAGCCGACCCCCCTCCTGAGGACTGTGTGACCACCATTGTCTCCATGGGCTTCTCCCGGGACCAGGCCTTGAAAGCGCTGCGGGCCACGAACAATAGTTTAGAACGGGCTGTGGACTGGATCTTCAGTCACATTGACGACCTGGATGCTGAAGCTGCCATGGACATCTCAGAGGGCCGCTCAGCTGCCGACTCCATCTCTGAGTCTGTGCCAGTGGGACCTAAAGTCCGGGATGGTCCTGGAAAGTATCAGCTCTTTGCCTTCATTAGTCACATGGGCACCTCTACCATGTGTGGTCACTACGTCTGCCACATCAAGAAAGAAGGCAGATGGGTGATCTACAATGACCAGAAAGTGTGTGCCTCCGAGAAGCCGCCCAAGGACCTGGGCTACATCTACTTCTACCAGAGAGTGGCCAGCGGTGGAAGTGGTCATCACCACCATCATCACTGATGACGAAGCTTGCGGCCGCACTCGAGCACCACCACCACCACCACTGAGATCCGGCTGCTAACAAAGCCCGAAAGAGCKAGTGGKKCCC",{"$f":"LEN(AK9)","v":2759},null,"p28BIOH-LIC","acaattcccctctagaaataattttgtttaactttaagaaggagatataccatgagcggcctgaacgatatttttgaagcgcagaaaattgaatggcatgaaggcagcgctggaggttcaggt","ggtggaagtggtcatcaccaccatcatcactgatgacgaagcttgcggccgcactcgagcaccaccaccaccaccactgagatccggctgctaacaaagcccgaa",null,null,null,null,null,null,null,null,null,null,null,null,null,null,"A02"]
[243620,"USP05:TOC023-A04:C243620","TOC023","A04","TOC023A04","USP05",null,null,"AU25-C3","USP05_1-835_bio_M643E_M711E",1,835,"MAELSEEALLSVLPTIRVPKAGDRVHKDECAFSFDTPESEGGLYICMNTFLGFGKQYVERHFNKTGQRVYLHLRRTRRPKEEDPATGTGDPPRKKPTRLAIGVEGGFDLSEEKFELDEDVKIVILPDYLEIARDGLGGLPDIVRDRVTSAVEALLSADSASRKQEVQAWDGEVRQVSKHAFSLKQLDNPARIPPCGWKCSKCDMRENLWLNLTDGSILCGRRYFDGSGGNNHAVEHYRETGYPLAVKLGTITPDGADVYSYDEDDMVLDPSLAEHLSHFGIDMLKMQKTDKTMTELEIDMNQRIGEWELIQESGVPLKPLFGPGYTGIRNLGNSCYLNSVVQVLFSIPDFQRKYVDKLEKIFQNAPTDPTQDFSTQVAKLGHGLLSGEYSKPVPESGDGERVPEQKEVQDGIAPRMFKALIGKGHPEFSTNRQQDAQEFFLHLINMVERNCRSSENPNEVFRFLVEEKIKCLATEKVKYTQRVDYIMQLPVPMDAALNKEELLEYEEKKRQAEEEKMALPELVRAQVPFSSCLEAYGAPEQVDDFWSTALQAKSVAVKTTRFASFPDYLVIQIKKFTFGLDWVPKKLDVSIEMPEELDISQLRGTGLQPGEEELPDIAPPLVTPDEPKAPMLDESVIIQLVEeGFPMDACRKAVYYTGNSGAEAAMNWVMSHMDDPDFANPLILPGSSGPGSTSAAADPPPEDCVTTIVSeGFSRDQALKALRATNNSLERAVDWIFSHIDDLDAEAAMDISEGRSAADSISESVPVGPKVRDGPGKYQLFAFISHMGTSTMCGHYVCHIKKEGRWVIYNDQKVCASEKPPKDLGYIYFYQRVAS",835,"ATGGCGGAGCTGAGTGAGGAGGCGCTGCTGTCAGTATTACCGACGATCCGGGTCCCTAAGGCTGGAGACCGGGTCCACAAAGACGAGTGCGCCTTCTCCTTCGACACGCCGGAGTCTGAGGGGGGCCTCTACATCTGTATGAACACGTTTCTGGGCTTTGGGAAACAGTATGTGGAGAGACATTTCAATAAGACCGGCCAGCGAGTCTACTTGCACCTCCGGCGGACCCGGCGCCCGAAAGAGGAGGACCCTGCTACAGGCACTGGAGACCCACCCCGGAAGAAGCCCACGCGGCTGGCTATTGGTGTTGAAGGCGGATTTGACCTTAGCGAGGAGAAGTTTGAATTAGACGAGGATGTGAAGATTGTCATTTTGCCAGATTACCTGGAGATTGCCCGGGATGGACTGGGGGGACTGCCTGACATTGTCAGAGATCGGGTGACCAGTGCAGTGGAGGCCCTACTGTCGGCCGACTCAGCCTCCCGCAAGCAGGAGGTGCAGGCATGGGATGGGGAAGTACGGCAGGTGTCTAAGCATGCCTTCAGCCTCAAGCAGTTGGACAACCCTGCTCGAATCCCTCCCTGTGGCTGGAAGTGCTCCAAGTGTGACATGAGAGAGAACCTGTGGCTCAACCTGACTGATGGCTCCATCCTCTGTGGGCGACGCTACTTCGATGGCAGTGGGGGCAACAACCACGCTGTGGAGCACTACCGAGAGACAGGCTACCCGTTAGCTGTCAAGCTGGGCACCATCACCCCTGATGGAGCTGACGTGTACTCATATGATGAGGATGACATGGTCCTGGACCCCAGCCTGGCTGAGCACCTGTCCCACTTCGGCATCGACATGCTGAAGATGCAGAAGACAGACAAGACGATGACTGAGTTGGAGATAGACATGAACCAGCGGATTGGTGAATGGGAGCTGATCCAGGAGTCAGGTGTGCCACTCAAGCCCCTGTTTGGGCCTGGCTACACAGGCATCCGGAACCTGGGTAACAGCTGCTACCTCAACTCTGTGGTCCAGGTGCTCTTCAGCATCCCTGACTTCCAGAGGAAGTATGTGGATAAGCTGGAGAAGATCTTCCAGAATGCCCCGACGGACCCTACCCAGGATTTCAGCACCCAGGTGGCCAAGCTGGGCCATGGCCTTCTCTCCGGGGAGTATTCCAAGCCAGTACCGGAGTCGGGCGATGGGGAGCGGGTGCCAGAACAGAAGGAAGTTCAAGATGGCATTGCCCCTCGGATGTTCAAGGCCCTCATCGGCAAGGGCCACCCTGAATTCTCCACCAACCGGCAGCAGGATGCCCAGGAGTTCTTCCTTCACCTTATCAACATGGTGGAGAGGAATTGCCGGAGCTCTGAAAATCCTAATGAAGTGTTCCGCTTCTTGGTGGAGGAAAAGATCAAGTGCCTGGCCACAGAGAAGGTGAAGTACACCCAGCGAGTTGACTACATCATGCAGCTGCCTGTGCCCATGGATGCAGCCCTTAACAAAGAGGAGCTTCTGGAGTACGAGGAGAAGAAGCGGCAAGCCGAAGAGGAGAAGATGGCACTGCCAGAACTGGTTCGGGCCCAGGTGCCCTTCAGCTCTTGCCTGGAGGCCTACGGGGCCCCTGAGCAGGTCGATGACTTCTGGAGCACGGCCCTGCAGGCCAAGTCAGTAGCTGTCAAGACCACACGATTTGCCTCATTCCCTGACTACCTGGTCATCCAGATCAAGAAGTTCACCTTCGGCTTAGACTGGGTGCCCAAGAAACTGGATGTGTCCATCGAGATGCCAGAGGAGCTCGACATCTCCCAGTTGAGGGGCACAGGGCTGCAGCCCGGAGAGGAGGAGCTGCCAGACATTGCCCCACCCCTGGTCACTCCGGATGAGCCCAAAGCGCCCATGCTGGATGAATCAGTCATCATCCAGCTGGTGGAGgaaGGATTCCCTATGGACGCCTGCCGCAAAGCTGTCTACTACACGGGCAACAGCGGGGCTGAGGCCGCCATGAACTGGGTCATGTCACACATGGATGATCCAGATTTTGCAAACCCCCTCATCCTGCCTGGCTCTAGTGGGCCGGGCTCCACAAGCGCAGCAGCCGACCCCCCTCCTGAGGACTGTGTGACCACCATTGTCTCCgaaGGCTTCTCCCGGGACCAGGCCTTGAAAGCGCTGCGGGCCACGAACAATAGTTTAGAACGGGCTGTGGACTGGATCTTCAGTCACATTGACGACCTGGATGCTGAAGCTGCCATGGACATCTCAGAGGGCCGCTCAGCTGCCGACTCCATCTCTGAGTCTGTGCCAGTGGGACCTAAAGTCCGGGATGGTCCTGGAAAGTATCAGCTCTTTGCCTTCATTAGTCACATGGGCACCTCTACCATGTGTGGTCACTACGTCTGCCACATCAAGAAAGAAGGCAGATGGGTGATCTACAATGACCAGAAAGTGTGTGCCTCCGAGAAGCCGCCCAAGGACCTGGGCTACATCTACTTCTACCAGAGAGTGGCCAGC",2505,"no","msglndifeaqkiewhegsaggsgMAELSEEALLSVLPTIRVPKAGDRVHKDECAFSFDTPESEGGLYICMNTFLGFGKQYVERHFNKTGQRVYLHLRRTRRPKEEDPATGTGDPPRKKPTRLAIGVEGGFDLSEEKFELDEDVKIVILPDYLEIARDGLGGLPDIVRDRVTSAVEALLSADSASRKQEVQAWDGEVRQVSKHAFSLKQLDNPARIPPCGWKCSKCDMRENLWLNLTDGSILCGRRYFDGSGGNNHAVEHYRETGYPLAVKLGTITPDGADVYSYDEDDMVLDPSLAEHLSHFGIDMLKMQKTDKTMTELEIDMNQRIGEWELIQESGVPLKPLFGPGYTGIRNLGNSCYLNSVVQVLFSIPDFQRKYVDKLEKIFQNAPTDPTQDFSTQVAKLGHGLLSGEYSKPVPESGDGERVPEQKEVQDGIAPRMFKALIGKGHPEFSTNRQQDAQEFFLHLINMVERNCRSSENPNEVFRFLVEEKIKCLATEKVKYTQRVDYIMQLPVPMDAALNKEELLEYEEKKRQAEEEKMALPELVRAQVPFSSCLEAYGAPEQVDDFWSTALQAKSVAVKTTRFASFPDYLVIQIKKFTFGLDWVPKKLDVSIEMPEELDISQLRGTGLQPGEEELPDIAPPLVTPDEPKAPMLDESVIIQLVEeGFPMDACRKAVYYTGNSGAEAAMNWVMSHMDDPDFANPLILPGSSGPGSTSAAADPPPEDCVTTIVSeGFSRDQALKALRATNNSLERAVDWIFSHIDDLDAEAAMDISEGRSAADSISESVPVGPKVRDGPGKYQLFAFISHMGTSTMCGHYVCHIKKEGRWVIYNDQKVCASEKPPKDLGYIYFYQRVASgggshhhhhh",null,"p28BIOH-LIC","gctggaggttcaggtATGGCGGAGCTGAGTGAGGAG","GGAATCCttcCTCCACCAGCTGGATGATG","GGTGGAGgaaGGATTCCCTATGGACGCCTG","atgaccacttccaccGCTGGCCACTCTCTGGTAGAAG","DH5-Alpha","ploppnau","LIC-Infusion","Y",null,"2019-03-06",null,null,"PAGE19-00043","A04 is 100%","acaattcccctctagaaataattttgtttaactttaagaaggagatataccatgagcggcctgaacgatatttttgaagcgcagaaaattgaatggcatgaaggcagcgctggaggttcaggtATGGCGGAGCTGAGTGAGGAGGCGCTGCTGTCAGTATTACCGACGATCCGGGTCCCTAAGGCTGGAGACCGGGTCCACAAAGACGAGTGCGCCTTCTCCTTCGACACGCCGGAGTCTGAGGGGGGCCTCTACATCTGTATGAACACGTTTCTGGGCTTTGGGAAACAGTATGTGGAGAGACATTTCAATAAGACCGGCCAGCGAGTCTACTTGCACCTCCGGCGGACCCGGCGCCCGAAAGAGGAGGACCCTGCTACAGGCACTGGAGACCCACCCCGGAAGAAGCCCACGCGGCTGGCTATTGGTGTTGAAGGCGGATTTGACCTTAGCGAGGAGAAGTTTGAATTAGACGAGGATGTGAAGATTGTCATTTTGCCAGATTACCTGGAGATTGCCCGGGATGGACTGGGGGGACTGCCTGACATTGTCAGAGATCGGGTGACCAGTGCAGTGGAGGCCCTACTGTCGGCCGACTCAGCCTCCCGCAAGCAGGAGGTGCAGGCATGGGATGGGGAAGTACGGCAGGTGTCTAAGCATGCCTTCAGCCTCAAGCAGTTGGACAACCCTGCTCGAATCCCTCCCTGTGGCTGGAAGTGCTCCAAGTGTGACATGAGAGAGAACCTGTGGCTCAACCTGACTGATGGCTCCATCCTCTGTGGGCGACGCTACTTCGATGGCAGTGGGGGCAACAACCACGCTGTGGAGCACTACCGAGAGACAGGCTACCCGTTAGCTGTCAAGCTGGGCACCATCACCCCTGATGGAGCTGACGTGTACTCATATGATGAGGATGACATGGTCCTGGACCCCAGCCTGGCTGAGCACCTGTCCCACTTCGGCATCGACATGCTGAAGATGCAGAAGACAGACAAGACGATGACTGAGTTGGAGATAGACATGAACCAGCGGATTGGTGAATGGGAGCTGATCCAGGAGTCAGGTGTGCCACTCAAGCCCCTGTTTGGGCCTGGCTACACAGGCATCCGGAACCTGGGTAACAGCTGCTACCTCAACTCTGTGGTCCAGGTGCTCTTCAGCATCCCTGACTTCCAGAGGAAGTATGTGGATAAGCTGGAGAAGATCTTCCAGAATGCCCCGACGGACCCTACCCAGGATTTCAGCACCCAGGTGGCCAAGCTGGGCCATGGCCTTCTCTCCGGGGAGTATTCCAAGCCAGTACCGGAGTCGGGCGATGGGGAGCGGGTGCCAGAACAGAAGGAAGTTCAAGATGGCATTGCCCCTCGGATGTTCAAGGCCCTCATCGGCAAGGGCCACCCTGAATTCTCCACCAACCGGCAGCAGGATGCCCAGGAGTTCTTCCTTCACCTTATCAACATGGTGGAGAGGAATTGCCGGAGCTCTGAAAATCCTAATGAAGTGTTCCGCTTCTTGGTGGAGGAAAAGATCAAGTGCCTGGCCACAGAGAAGGTGAAGTACACCCAGCGAGTTGACTACATCATGCAGCTGCCTGTGCCCATGGATGCAGCCCTTAACAAAGAGGAGCTTCTGGAGTACGAGGAGAAGAAGCGGCAAGCCGAAGAGGAGAAGATGGCACTGCCAGAACTGGTTCGGGCCCAGGTGCCCTTCAGCTCTTGCCTGGAGGCCTACGGGGCCCCTGAGCAGGTCGATGACTTCTGGAGCACGGCCCTGCAGGCCAAGTCAGTAGCTGTCAAGACCACACGATTTGCCTCATTCCCTGACTACCTGGTCATCCAGATCAAGAAGTTCACCTTCGGCTTAGACTGGGTGCCCAAGAAACTGGATGTGTCCATCGAGATGCCAGAGGAGCTCGACATCTCCCAGTTGAGGGGCACAGGGCTGCAGCCCGGAGAGGAGGAGCTGCCAGACATTGCCCCACCCCTGGTCACTCCGGATGAGCCCAAAGCGCCCATGCTGGATGAATCAGTCATCATCCAGCTGGTGGAGgaaGGATTCCCTATGGACGCCTGCCGCAAAGCTGTCTACTACACGGGCAACAGCGGGGCTGAGGCCGCCATGAACTGGGTCATGTCACACATGGATGATCCAGATTTTGCAAACCCCCTCATCCTGCCTGGCTCTAGTGGGCCGGGCTCCACAAGCGCAGCAGCCGACCCCCCTCCTGAGGACTGTGTGACCACCATTGTCTCCgaaGGCTTCTCCCGGGACCAGGCCTTGAAAGCGCTGCGGGCCACGAACAATAGTTTAGAACGGGCTGTGGACTGGATCTTCAGTCACATTGACGACCTGGATGCTGAAGCTGCCATGGACATCTCAGAGGGCCGCTCAGCTGCCGACTCCATCTCTGAGTCTGTGCCAGTGGGACCTAAAGTCCGGGATGGTCCTGGAAAGTATCAGCTCTTTGCCTTCATTAGTCACATGGGCACCTCTACCATGTGTGGTCACTACGTCTGCCACATCAAGAAAGAAGGCAGATGGGTGATCTACAATGACCAGAAAGTGTGTGCCTCCGAGAAGCCGCCCAAGGACCTGGGCTACATCTACTTCTACCAGAGAGTGGCCAGCggtggaagtggtcatcaccaccatcatcactgatgacgaagcttgcggccgcactcgagcaccaccaccaccaccactgagatccggctgctaacaaagcccgaa",2733,"TGKKKGRRCGGTWACATTCCCTCTAGAATAATTTTGTTTAACTTTAAGAAGGAGATATACCATGAGCGGCCTGAACGATATTTTTGAAGCGCAGAAAATTGAATGGCATGAAGGCAGCGCTGGAGGTTCAGGTATGGCGGAGCTGAGTGAGGAGGCGCTGCTGTCAGTATTACCGACGATCCGGGTCCCTAAGGCTGGAGACCGGGTCCACAAAGACGAGTGCGCCTTCTCCTTCGACACGCCGGAGTCTGAGGGGGGCCTCTACATCTGTATGAACACGTTTCTGGGCTTTGGGAAACAGTATGTGGAGAGACATTTCAATAAGACCGGCCAGCGAGTCTACTTGCACCTCCGGCGGACCCGGCGCCCGAAAGAGGAGGACCCTGCTACAGGCACTGGAGACCCACCCCGGAAGAAGCCCACGCGGCTGGCTATTGGTGTTGAAGGCGGATTTGACCTTAGCGAGGAGAAGTTTGAATTAGACGAGGATGTGAAGATTGTCATTTTGCCAGATTACCTGGAGATTGCCCGGGATGGACTGGGGGGACTGCCTGACATTGTCAGAGATCGGGTGACCAGTGCAGTGGAGGCCCTACTGTCGGCCGACTCAGCCTCCCGCAAGCAGGAGGTGCAGGCATGGGATGGGGAAGTACGGCAGGTGTCTAAGCATGCCTTCAGCCTCAAGCAGTTGGACAACCCTGCTCGAATCCCTCCCTGTGGCTGGAAGTGCTCCAAGTGTGACATGAGAGAGAACCTGTGGCTCAACCTGACTGATGGCTCCATCCTCTGTGGGCGACGCTACTTCGATGGCAGTGGGGGCAACAACCACGCTGTGGAGCACTACCGAGAGACAGGCTACCCGTTAGCTGTCAAGCTGGGCACCATCACCCCTGATGGAGCTGACGTGTACTCATATGATGAGGATGACATGGTCCTGGACCCCAGCCTGGCTGAGCACCTGTCCCACTTCGGCATCGACATGCTGAAGATGCAGAAGACAGACAAGACGATGACTGAGTTGGAGATAGACATGAACCAGCGGATTGGTGAATGGGAGCTGATCCAGGAGTCAGGTGTGCCACTCAAGCCCCTGTTTGGGCCTGGCTACACAGGCATCCGGAACCTGGGTAACAGCTGCTACCTCAACTCTGTGGTCCAGGTGCTCTTCAGCATCCCTGACTTCCAGAGGAAGTATGTGGATAAGCTGGAGAAGATCTTCCAGAATGCCCCGACGGACCCTACCCAGGATTTCAGCACCCAGGTGGCCAAGCTGGGCCATGGCCTTCTCTCCGGGGAGTATTCCAAGCCAGTACCGGAGTCGGGCGATGGGGAGCGGGTGCCAGAACAGAAGGAAGTTCAAGATGGCATTGCCCCTCGGATGTTCAAGGCCCTCATCGGCAAGGGCCACCCTGAATTCTCCACCAACCGGCAGCAGGATGCCCAGGAGTTCTTCCTTCACCTTATCAACATGGTGGAGAGGAATTGCCGGAGCTCTGAAAATCCTAATGAAGTGTTCCGCTTCTTGGTGGAGGAAAAGATCAAGTGCCTGGCCACAGAGAAGGTGAAGTACACCCAGCGAGTTGACTACATCATGCAGCTGCCTGTGCCCATGGATGCAGCCCTTAACAAAGAGGAGCTTCTGGAGTACGAGGAGAAGAAGCGGCAAGCCGAAGAGGAGAAGATGGCACTGCCAGAACTGGTTCGGGCCCAGGTGCCCTTCAGCTCTTGCCTGGAGGCCTACGGGGCCCCTGAGCAGGTCGATGACTTCTGGAGCACGGCCCTGCAGGCCAAGTCAGTAGCTGTCAAGACCACACGATTTGCCTCATTCCCTGACTACCTGGTCATCCAGATCAAGAAGTTCACCTTCGGCTTAGACTGGGTGCCCAAGAAACTGGATGTGTCCATCGAGATGCCAGAGGAGCTCGACATCTCCCAGTTGAGGGGCACAGGGCTGCAGCCCGGAGAGGAGGAGCTGCCAGACATTGCCCCACCCCTGGTCACTCCGGATGAGCCCAAAGCGCCCATGCTGGATGAATCAGTCATCATCCAGCTGGTGGAGGAAGGATTCCCTATGGACGCCTGCCGCAAAGCTGTCTACTACACGGGCAACAGCGGGGCTGAGGCCGCCATGAACTGGGTCATGTCACACATGGATGATCCAGATTTTGCAAACCCCCTCATCCTGCCTGGCTCTAGTGGGCCGGGCTCCACAAGCGCAGCAGCCGACCCCCCTCCTGAGGACTGTGTGACCACCATTGTCTCCGAAGGCTTCTCCCGGGACCAGGCCTTGAAAGCGCTGCGGGCCACGAACAATAGTTTAGAACGGGCTGTGGACTGGATCTTCAGTCACATTGACGACCTGGATGCTGAAGCTGCCATGGACATCTCAGAGGGCCGCTCAGCTGCCGACTCCATCTCTGAGTCTGTGCCAGTGGGACCTAAAGTCCGGGATGGTCCTGGAAAGTATCAGCTCTTTGCCTTCATTAGTCACATGGGCACCTCTACCATGTGTGGTCACTACGTCTGCCACATCAAGAAAGAAGGCAGATGGGTGATCTACAATGACCAGAAAGTGTGTGCCTCCGAGAAGCCGCCCAAGGACCTGGGCTACATCTACTTCTACCAGAGAGTGGCCAGCGGTGGAAGTGGTCATCACCACCATCATCACTGATGACGAAGCTTGCGGCCGCACTCGAGCACCACCACCACCACCACTGAGATCCGGCTGCTAACAAAGCCCGAAAGAAGCKAKKGSSCC",{"$f":"LEN(AK6)","v":2758},null,"p28BIOH-LIC","acaattcccctctagaaataattttgtttaactttaagaaggagatataccatgagcggcctgaacgatatttttgaagcgcagaaaattgaatggcatgaaggcagcgctggaggttcaggt","ggtggaagtggtcatcaccaccatcatcactgatgacgaagcttgcggccgcactcgagcaccaccaccaccaccactgagatccggctgctaacaaagcccgaa",null,null,null,null,null,null,null,null,null,null,null,null,null,"do 643","C01"]
[243621,"USP05:TOC023-A05:C243621","TOC023","A05","TOC023A05","USP05",null,null,"AU25-C3","USP05_1-835_bio_M643E_M711E_C335A",1,835,"MAELSEEALLSVLPTIRVPKAGDRVHKDECAFSFDTPESEGGLYICMNTFLGFGKQYVERHFNKTGQRVYLHLRRTRRPKEEDPATGTGDPPRKKPTRLAIGVEGGFDLSEEKFELDEDVKIVILPDYLEIARDGLGGLPDIVRDRVTSAVEALLSADSASRKQEVQAWDGEVRQVSKHAFSLKQLDNPARIPPCGWKCSKCDMRENLWLNLTDGSILCGRRYFDGSGGNNHAVEHYRETGYPLAVKLGTITPDGADVYSYDEDDMVLDPSLAEHLSHFGIDMLKMQKTDKTMTELEIDMNQRIGEWELIQESGVPLKPLFGPGYTGIRNLGNSaYLNSVVQVLFSIPDFQRKYVDKLEKIFQNAPTDPTQDFSTQVAKLGHGLLSGEYSKPVPESGDGERVPEQKEVQDGIAPRMFKALIGKGHPEFSTNRQQDAQEFFLHLINMVERNCRSSENPNEVFRFLVEEKIKCLATEKVKYTQRVDYIMQLPVPMDAALNKEELLEYEEKKRQAEEEKMALPELVRAQVPFSSCLEAYGAPEQVDDFWSTALQAKSVAVKTTRFASFPDYLVIQIKKFTFGLDWVPKKLDVSIEMPEELDISQLRGTGLQPGEEELPDIAPPLVTPDEPKAPMLDESVIIQLVEeGFPMDACRKAVYYTGNSGAEAAMNWVMSHMDDPDFANPLILPGSSGPGSTSAAADPPPEDCVTTIVSeGFSRDQALKALRATNNSLERAVDWIFSHIDDLDAEAAMDISEGRSAADSISESVPVGPKVRDGPGKYQLFAFISHMGTSTMCGHYVCHIKKEGRWVIYNDQKVCASEKPPKDLGYIYFYQRVAS",835,"ATGGCGGAGCTGAGTGAGGAGGCGCTGCTGTCAGTATTACCGACGATCCGGGTCCCTAAGGCTGGAGACCGGGTCCACAAAGACGAGTGCGCCTTCTCCTTCGACACGCCGGAGTCTGAGGGGGGCCTCTACATCTGTATGAACACGTTTCTGGGCTTTGGGAAACAGTATGTGGAGAGACATTTCAATAAGACCGGCCAGCGAGTCTACTTGCACCTCCGGCGGACCCGGCGCCCGAAAGAGGAGGACCCTGCTACAGGCACTGGAGACCCACCCCGGAAGAAGCCCACGCGGCTGGCTATTGGTGTTGAAGGCGGATTTGACCTTAGCGAGGAGAAGTTTGAATTAGACGAGGATGTGAAGATTGTCATTTTGCCAGATTACCTGGAGATTGCCCGGGATGGACTGGGGGGACTGCCTGACATTGTCAGAGATCGGGTGACCAGTGCAGTGGAGGCCCTACTGTCGGCCGACTCAGCCTCCCGCAAGCAGGAGGTGCAGGCATGGGATGGGGAAGTACGGCAGGTGTCTAAGCATGCCTTCAGCCTCAAGCAGTTGGACAACCCTGCTCGAATCCCTCCCTGTGGCTGGAAGTGCTCCAAGTGTGACATGAGAGAGAACCTGTGGCTCAACCTGACTGATGGCTCCATCCTCTGTGGGCGACGCTACTTCGATGGCAGTGGGGGCAACAACCACGCTGTGGAGCACTACCGAGAGACAGGCTACCCGTTAGCTGTCAAGCTGGGCACCATCACCCCTGATGGAGCTGACGTGTACTCATATGATGAGGATGACATGGTCCTGGACCCCAGCCTGGCTGAGCACCTGTCCCACTTCGGCATCGACATGCTGAAGATGCAGAAGACAGACAAGACGATGACTGAGTTGGAGATAGACATGAACCAGCGGATTGGTGAATGGGAGCTGATCCAGGAGTCAGGTGTGCCACTCAAGCCCCTGTTTGGGCCTGGCTACACAGGCATCCGGAACCTGGGTAACAGCgcgTACCTCAACTCTGTGGTCCAGGTGCTCTTCAGCATCCCTGACTTCCAGAGGAAGTATGTGGATAAGCTGGAGAAGATCTTCCAGAATGCCCCGACGGACCCTACCCAGGATTTCAGCACCCAGGTGGCCAAGCTGGGCCATGGCCTTCTCTCCGGGGAGTATTCCAAGCCAGTACCGGAGTCGGGCGATGGGGAGCGGGTGCCAGAACAGAAGGAAGTTCAAGATGGCATTGCCCCTCGGATGTTCAAGGCCCTCATCGGCAAGGGCCACCCTGAATTCTCCACCAACCGGCAGCAGGATGCCCAGGAGTTCTTCCTTCACCTTATCAACATGGTGGAGAGGAATTGCCGGAGCTCTGAAAATCCTAATGAAGTGTTCCGCTTCTTGGTGGAGGAAAAGATCAAGTGCCTGGCCACAGAGAAGGTGAAGTACACCCAGCGAGTTGACTACATCATGCAGCTGCCTGTGCCCATGGATGCAGCCCTTAACAAAGAGGAGCTTCTGGAGTACGAGGAGAAGAAGCGGCAAGCCGAAGAGGAGAAGATGGCACTGCCAGAACTGGTTCGGGCCCAGGTGCCCTTCAGCTCTTGCCTGGAGGCCTACGGGGCCCCTGAGCAGGTCGATGACTTCTGGAGCACGGCCCTGCAGGCCAAGTCAGTAGCTGTCAAGACCACACGATTTGCCTCATTCCCTGACTACCTGGTCATCCAGATCAAGAAGTTCACCTTCGGCTTAGACTGGGTGCCCAAGAAACTGGATGTGTCCATCGAGATGCCAGAGGAGCTCGACATCTCCCAGTTGAGGGGCACAGGGCTGCAGCCCGGAGAGGAGGAGCTGCCAGACATTGCCCCACCCCTGGTCACTCCGGATGAGCCCAAAGCGCCCATGCTGGATGAATCAGTCATCATCCAGCTGGTGGAGgaaGGATTCCCTATGGACGCCTGCCGCAAAGCTGTCTACTACACGGGCAACAGCGGGGCTGAGGCCGCCATGAACTGGGTCATGTCACACATGGATGATCCAGATTTTGCAAACCCCCTCATCCTGCCTGGCTCTAGTGGGCCGGGCTCCACAAGCGCAGCAGCCGACCCCCCTCCTGAGGACTGTGTGACCACCATTGTCTCCgaaGGCTTCTCCCGGGACCAGGCCTTGAAAGCGCTGCGGGCCACGAACAATAGTTTAGAACGGGCTGTGGACTGGATCTTCAGTCACATTGACGACCTGGATGCTGAAGCTGCCATGGACATCTCAGAGGGCCGCTCAGCTGCCGACTCCATCTCTGAGTCTGTGCCAGTGGGACCTAAAGTCCGGGATGGTCCTGGAAAGTATCAGCTCTTTGCCTTCATTAGTCACATGGGCACCTCTACCATGTGTGGTCACTACGTCTGCCACATCAAGAAAGAAGGCAGATGGGTGATCTACAATGACCAGAAAGTGTGTGCCTCCGAGAAGCCGCCCAAGGACCTGGGCTACATCTACTTCTACCAGAGAGTGGCCAGC",2505,"no","msglndifeaqkiewhegsaggsgMAELSEEALLSVLPTIRVPKAGDRVHKDECAFSFDTPESEGGLYICMNTFLGFGKQYVERHFNKTGQRVYLHLRRTRRPKEEDPATGTGDPPRKKPTRLAIGVEGGFDLSEEKFELDEDVKIVILPDYLEIARDGLGGLPDIVRDRVTSAVEALLSADSASRKQEVQAWDGEVRQVSKHAFSLKQLDNPARIPPCGWKCSKCDMRENLWLNLTDGSILCGRRYFDGSGGNNHAVEHYRETGYPLAVKLGTITPDGADVYSYDEDDMVLDPSLAEHLSHFGIDMLKMQKTDKTMTELEIDMNQRIGEWELIQESGVPLKPLFGPGYTGIRNLGNSaYLNSVVQVLFSIPDFQRKYVDKLEKIFQNAPTDPTQDFSTQVAKLGHGLLSGEYSKPVPESGDGERVPEQKEVQDGIAPRMFKALIGKGHPEFSTNRQQDAQEFFLHLINMVERNCRSSENPNEVFRFLVEEKIKCLATEKVKYTQRVDYIMQLPVPMDAALNKEELLEYEEKKRQAEEEKMALPELVRAQVPFSSCLEAYGAPEQVDDFWSTALQAKSVAVKTTRFASFPDYLVIQIKKFTFGLDWVPKKLDVSIEMPEELDISQLRGTGLQPGEEELPDIAPPLVTPDEPKAPMLDESVIIQLVEeGFPMDACRKAVYYTGNSGAEAAMNWVMSHMDDPDFANPLILPGSSGPGSTSAAADPPPEDCVTTIVSeGFSRDQALKALRATNNSLERAVDWIFSHIDDLDAEAAMDISEGRSAADSISESVPVGPKVRDGPGKYQLFAFISHMGTSTMCGHYVCHIKKEGRWVIYNDQKVCASEKPPKDLGYIYFYQRVASgggshhhhhh",null,"p28BIOH-LIC","gctggaggttcaggtATGGCGGAGCTGAGTGAGGAG","GGAATCCttcCTCCACCAGCTGGATGATG","GGTGGAGgaaGGATTCCCTATGGACGCCTG","atgaccacttccaccGCTGGCCACTCTCTGGTAGAAG","DH5-Alpha","ploppnau","LIC-Infusion","Y",null,"2019-03-06",null,null,"PAGE19-00043","A5 replacment is OK.  1 mixed base G or A,  but would not change amino acid","acaattcccctctagaaataattttgtttaactttaagaaggagatataccatgagcggcctgaacgatatttttgaagcgcagaaaattgaatggcatgaaggcagcgctggaggttcaggtATGGCGGAGCTGAGTGAGGAGGCGCTGCTGTCAGTATTACCGACGATCCGGGTCCCTAAGGCTGGAGACCGGGTCCACAAAGACGAGTGCGCCTTCTCCTTCGACACGCCGGAGTCTGAGGGGGGCCTCTACATCTGTATGAACACGTTTCTGGGCTTTGGGAAACAGTATGTGGAGAGACATTTCAATAAGACCGGCCAGCGAGTCTACTTGCACCTCCGGCGGACCCGGCGCCCGAAAGAGGAGGACCCTGCTACAGGCACTGGAGACCCACCCCGGAAGAAGCCCACGCGGCTGGCTATTGGTGTTGAAGGCGGATTTGACCTTAGCGAGGAGAAGTTTGAATTAGACGAGGATGTGAAGATTGTCATTTTGCCAGATTACCTGGAGATTGCCCGGGATGGACTGGGGGGACTGCCTGACATTGTCAGAGATCGGGTGACCAGTGCAGTGGAGGCCCTACTGTCGGCCGACTCAGCCTCCCGCAAGCAGGAGGTGCAGGCATGGGATGGGGAAGTACGGCAGGTGTCTAAGCATGCCTTCAGCCTCAAGCAGTTGGACAACCCTGCTCGAATCCCTCCCTGTGGCTGGAAGTGCTCCAAGTGTGACATGAGAGAGAACCTGTGGCTCAACCTGACTGATGGCTCCATCCTCTGTGGGCGACGCTACTTCGATGGCAGTGGGGGCAACAACCACGCTGTGGAGCACTACCGAGAGACAGGCTACCCGTTAGCTGTCAAGCTGGGCACCATCACCCCTGATGGAGCTGACGTGTACTCATATGATGAGGATGACATGGTCCTGGACCCCAGCCTGGCTGAGCACCTGTCCCACTTCGGCATCGACATGCTGAAGATGCAGAAGACAGACAAGACGATGACTGAGTTGGAGATAGACATGAACCAGCGGATTGGTGAATGGGAGCTGATCCAGGAGTCAGGTGTGCCACTCAAGCCCCTGTTTGGGCCTGGCTACACAGGCATCCGGAACCTGGGTAACAGCgcgTACCTCAACTCTGTGGTCCAGGTGCTCTTCAGCATCCCTGACTTCCAGAGGAAGTATGTGGATAAGCTGGAGAAGATCTTCCAGAATGCCCCGACGGACCCTACCCAGGATTTCAGCACCCAGGTGGCCAAGCTGGGCCATGGCCTTCTCTCCGGGGAGTATTCCAAGCCAGTACCGGAGTCGGGCGATGGGGAGCGGGTGCCAGAACAGAAGGAAGTTCAAGATGGCATTGCCCCTCGGATGTTCAAGGCCCTCATCGGCAAGGGCCACCCTGAATTCTCCACCAACCGGCAGCAGGATGCCCAGGAGTTCTTCCTTCACCTTATCAACATGGTGGAGAGGAATTGCCGGAGCTCTGAAAATCCTAATGAAGTGTTCCGCTTCTTGGTGGAGGAAAAGATCAAGTGCCTGGCCACAGAGAAGGTGAAGTACACCCAGCGAGTTGACTACATCATGCAGCTGCCTGTGCCCATGGATGCAGCCCTTAACAAAGAGGAGCTTCTGGAGTACGAGGAGAAGAAGCGGCAAGCCGAAGAGGAGAAGATGGCACTGCCAGAACTGGTTCGGGCCCAGGTGCCCTTCAGCTCTTGCCTGGAGGCCTACGGGGCCCCTGAGCAGGTCGATGACTTCTGGAGCACGGCCCTGCAGGCCAAGTCAGTAGCTGTCAAGACCACACGATTTGCCTCATTCCCTGACTACCTGGTCATCCAGATCAAGAAGTTCACCTTCGGCTTAGACTGGGTGCCCAAGAAACTGGATGTGTCCATCGAGATGCCAGAGGAGCTCGACATCTCCCAGTTGAGGGGCACAGGGCTGCAGCCCGGAGAGGAGGAGCTGCCAGACATTGCCCCACCCCTGGTCACTCCGGATGAGCCCAAAGCGCCCATGCTGGATGAATCAGTCATCATCCAGCTGGTGGAGgaaGGATTCCCTATGGACGCCTGCCGCAAAGCTGTCTACTACACGGGCAACAGCGGGGCTGAGGCCGCCATGAACTGGGTCATGTCACACATGGATGATCCAGATTTTGCAAACCCCCTCATCCTGCCTGGCTCTAGTGGGCCGGGCTCCACAAGCGCAGCAGCCGACCCCCCTCCTGAGGACTGTGTGACCACCATTGTCTCCgaaGGCTTCTCCCGGGACCAGGCCTTGAAAGCGCTGCGGGCCACGAACAATAGTTTAGAACGGGCTGTGGACTGGATCTTCAGTCACATTGACGACCTGGATGCTGAAGCTGCCATGGACATCTCAGAGGGCCGCTCAGCTGCCGACTCCATCTCTGAGTCTGTGCCAGTGGGACCTAAAGTCCGGGATGGTCCTGGAAAGTATCAGCTCTTTGCCTTCATTAGTCACATGGGCACCTCTACCATGTGTGGTCACTACGTCTGCCACATCAAGAAAGAAGGCAGATGGGTGATCTACAATGACCAGAAAGTGTGTGCCTCCGAGAAGCCGCCCAAGGACCTGGGCTACATCTACTTCTACCAGAGAGTGGCCAGCggtggaagtggtcatcaccaccatcatcactgatgacgaagcttgcggccgcactcgagcaccaccaccaccaccactgagatccggctgctaacaaagcccgaa",2733,"GKKWKWYYRRGGCTACATTCCCTCTAGAATAATTTTGTTTAACTTTAAGAAGGAGATATACCATGAGCGGCCTGAACGATATTTTTGAAGCGCAGAAAATTGAATGGCATGAAGGCAGCGCTGGAGGTTCAGGTATGGCGGAGCTGAGTGAGGAGGCGCTGCTGTCAGTATTACCGACGATCCGGGTCCCTAAGGCTGGAGACCGGGTCCACAAAGACGAGTGCGCCTTCTCCTTCGACACGCCGGAGTCTGAGGGGGGCCTCTACATCTGTATGAACACGTTTCTGGGCTTTGGGAAACAGTATGTGGAGAGACATTTCAATAAGACCGGCCAGCGAGTCTACTTGCACCTCCGGCGGACCCGGCGCCCGAAAGAGGAGGACCCTGCTACAGGCACTGGAGACCCACCCCGGAAGAAGCCCACGCGGCTGGCTATTGGTGTTGAAGGCGGATTTGACCTTAGCGAGGAGAAGTTTGAATTAGACGAGGATGTGAAGATTGTCATTTTGCCAGATTACCTGGAGATTGCCCGGGATGGACTGGGGGGACTGCCTGACATTGTCAGAGATCGGGTGACCAGTGCAGTGGAGGCCCTACTGTCGGCCGACTCAGCCTCCCGCAAGCAGGAGGTGCAGGCATGGGATGGGGAAGTACGGCAGGTGTCTAAGCATGCCTTCAGCCTCAAGCAGTTGGACAACCCTGCTCGAATCCCTCCCTGTGGCTGGAAGTGCTCCAAGTGTGACATGAGAGAGAACCTGTGGCTCAACCTGACTGATGGCTCCATCCTCTGTGGGCGACGCTACTTCGATGGCAGTGGGGGCAACAACCACGCTGTGGAGCACTACCGAGAGACAGGCTACCCGTTAGCTGTCAAGCTGGGCACCATCACCCCTGATGGAGCTGACGTGTACTCATATGATGAGGATGACATGGTCCTGGACCCCAGCCTGGCTGAGCACCTGTCCCACTTCGGCATCGACATGCTGAAGATGCAGAAGACAGACAAGACGATGACTGAGTTGGAGATAGACATGAACCAGCGGATTGGTGAATGGGAGCTGATCCAGGAGTCAGGTGTGCCACTCAAGCCCCTGTTTGGGCCTGGCTACACAGGCATCCGGAACCTGGGTAACAGCGCGTACCTCAACTCTGTGGTCCAGGTGCTCTTCAGCATCCCTGACTTCCAGAGGAAGTATGTGGATAAGCTGGAGAAGATCTTCCAGAATGCCCCGACgGACCCTACCCAGGATTTCAGCACCCAGGTGGCCAAGCTGGGCCATGGCCTTCTCTCCGGGGAGTATTCCAAGCCAGTACCGGAGTCGGGCGATGGGGAGCGGGTGCCAGAACAGAAGGAAGTTCAAGATGGCATTGCCCCTCGGATGTTCAAGGCCCTCATCGGCAAGGGCCACCCTGAATTCTCCACCAACCGGCAGCAGGATGCCCAGGAGTTCTTCCTTCACCTTATCAACATGGTGGAGAGGAATTGCCGGAGCTCTGAAAATCCTAATGAAGTGTTCCGCTTCTTGGTGGAGGAAAAGATCAAGTGCCTGGCCACAGAGAAGGTGAAGTACACCCAGCGAGTTGACTACATCATGCAGCTGCCTGTGCCCATGGATGCAGCCCTTAACAAAGAGGAGCTTCTGGAGTACGAGGAGAAGAAGCGGCAAGCCGAAGAGGAGAAGATGGCACTGCCAGAACTGGTTCGGGCCCAGGTGCCCTTCAGCTCTTGCCTGGAGGCCTACGGGGCCCCTGAGCAGGTCGATGACTTCTGGAGCACGGCCCTGCAGGCCAAGTCAGTAGCTGTCAAGACCACACGATTTGCCTCATTCCCTGACTACCTGGTCATCCAGATCAAGAAGTTCACCTTCGGCTTAGACTGGGTGCCCAAGAAACTGGATGTGTCCATCGAGATGCCAGAGGAGCTCGACATCTCCCAGTTGAGGGGCACAGGGCTGCAGCCCGGAGAGGAGGAGCTGCCAGACATTGCCCCACCCCTGGTCACTCCGGATGAGCCCAAAGCGCCCATGCTGGATGAATCAGTCATCATCCAGCTGGTGGAGGAAGGATTCCCTATGGACGCCTGCCGCAAAGCTGTCTACTACACGGGCAACAGCGGGGCTGAGGCCGCCATGAACTGGGTCATGTCACACATGGATGATCCAGATTTTGCAAACCCCCTCATCCTGCCTGGCTCTAGTGGGCCGGGCTCCACAAGCGCAGCAGCCGACCCCCCTCCTGAGGACTGTGTGACCACCATTGTCTCCGAAGGCTTCTCCCGGGACCAGGCCTTGAAAGCGCTGCGGGCCACGAACAATAGTTTAGAACGGGCTGTGGACTGGATCTTCAGTCACATTGACGACCTGGATGCTGAAGCTGCCATGGACATCTCAGAGGGCCGCTCAGCTGCCGACTCCATCTCTGAGTCTGTGCCAGTGGGACCTAAAGTCCGGGATGGTCCTGGAAAGTATCAGCTCTTTGCCTTCATTAGTCACATGGGCACCTCTACCATGTGTGGTCACTACGTCTGCCACATCAAGAAAGAAGGCAGATGGGTGATCTACAATGACCAGAAAGTGTGTGCCTCCGAGAAGCCGCCCAAGGACCTGGGCTACATCTACTTCTACCAGAGAGTGGCCAGCGGTGGAAGTGGTCATCACCACCATCATCACTGATGACGAAGCTTGCGGCCGCACTCGAGCACCACCACCACCACCACTGAGATCCGGCTGCTAACAAAGCCCGAAAGAAGCKAGTGYSKKKSSYCT",2765,null,"p28BIOH-LIC","acaattcccctctagaaataattttgtttaactttaagaaggagatataccatgagcggcctgaacgatatttttgaagcgcagaaaattgaatggcatgaaggcagcgctggaggttcaggt","ggtggaagtggtcatcaccaccatcatcactgatgacgaagcttgcggccgcactcgagcaccaccaccaccaccactgagatccggctgctaacaaagcccgaa",null,null,null,null,null,null,null,null,null,null,null,null,null,"do 643","A02 for A.  C01 for B "]
[243622,"USP05:TOC023-A06:C243622","TOC023","A06","TOC023A06","USP05",null,null,"AU25-C3","USP05_1-835_bio_R221A",1,835,"MAELSEEALLSVLPTIRVPKAGDRVHKDECAFSFDTPESEGGLYICMNTFLGFGKQYVERHFNKTGQRVYLHLRRTRRPKEEDPATGTGDPPRKKPTRLAIGVEGGFDLSEEKFELDEDVKIVILPDYLEIARDGLGGLPDIVRDRVTSAVEALLSADSASRKQEVQAWDGEVRQVSKHAFSLKQLDNPARIPPCGWKCSKCDMRENLWLNLTDGSILCGaRYFDGSGGNNHAVEHYRETGYPLAVKLGTITPDGADVYSYDEDDMVLDPSLAEHLSHFGIDMLKMQKTDKTMTELEIDMNQRIGEWELIQESGVPLKPLFGPGYTGIRNLGNSCYLNSVVQVLFSIPDFQRKYVDKLEKIFQNAPTDPTQDFSTQVAKLGHGLLSGEYSKPVPESGDGERVPEQKEVQDGIAPRMFKALIGKGHPEFSTNRQQDAQEFFLHLINMVERNCRSSENPNEVFRFLVEEKIKCLATEKVKYTQRVDYIMQLPVPMDAALNKEELLEYEEKKRQAEEEKMALPELVRAQVPFSSCLEAYGAPEQVDDFWSTALQAKSVAVKTTRFASFPDYLVIQIKKFTFGLDWVPKKLDVSIEMPEELDISQLRGTGLQPGEEELPDIAPPLVTPDEPKAPMLDESVIIQLVEMGFPMDACRKAVYYTGNSGAEAAMNWVMSHMDDPDFANPLILPGSSGPGSTSAAADPPPEDCVTTIVSMGFSRDQALKALRATNNSLERAVDWIFSHIDDLDAEAAMDISEGRSAADSISESVPVGPKVRDGPGKYQLFAFISHMGTSTMCGHYVCHIKKEGRWVIYNDQKVCASEKPPKDLGYIYFYQRVAS",835,"ATGGCGGAGCTGAGTGAGGAGGCGCTGCTGTCAGTATTACCGACGATCCGGGTCCCTAAGGCTGGAGACCGGGTCCACAAAGACGAGTGCGCCTTCTCCTTCGACACGCCGGAGTCTGAGGGGGGCCTCTACATCTGTATGAACACGTTTCTGGGCTTTGGGAAACAGTATGTGGAGAGACATTTCAATAAGACCGGCCAGCGAGTCTACTTGCACCTCCGGCGGACCCGGCGCCCGAAAGAGGAGGACCCTGCTACAGGCACTGGAGACCCACCCCGGAAGAAGCCCACGCGGCTGGCTATTGGTGTTGAAGGCGGATTTGACCTTAGCGAGGAGAAGTTTGAATTAGACGAGGATGTGAAGATTGTCATTTTGCCAGATTACCTGGAGATTGCCCGGGATGGACTGGGGGGACTGCCTGACATTGTCAGAGATCGGGTGACCAGTGCAGTGGAGGCCCTACTGTCGGCCGACTCAGCCTCCCGCAAGCAGGAGGTGCAGGCATGGGATGGGGAAGTACGGCAGGTGTCTAAGCATGCCTTCAGCCTCAAGCAGTTGGACAACCCTGCTCGAATCCCTCCCTGTGGCTGGAAGTGCTCCAAGTGTGACATGAGAGAGAACCTGTGGCTCAACCTGACTGATGGCTCCATCCTCTGTGGGgcgCGCTACTTCGATGGCAGTGGGGGCAACAACCACGCTGTGGAGCACTACCGAGAGACAGGCTACCCGTTAGCTGTCAAGCTGGGCACCATCACCCCTGATGGAGCTGACGTGTACTCATATGATGAGGATGACATGGTCCTGGACCCCAGCCTGGCTGAGCACCTGTCCCACTTCGGCATCGACATGCTGAAGATGCAGAAGACAGACAAGACGATGACTGAGTTGGAGATAGACATGAACCAGCGGATTGGTGAATGGGAGCTGATCCAGGAGTCAGGTGTGCCACTCAAGCCCCTGTTTGGGCCTGGCTACACAGGCATCCGGAACCTGGGTAACAGCTGCTACCTCAACTCTGTGGTCCAGGTGCTCTTCAGCATCCCTGACTTCCAGAGGAAGTATGTGGATAAGCTGGAGAAGATCTTCCAGAATGCCCCGACGGACCCTACCCAGGATTTCAGCACCCAGGTGGCCAAGCTGGGCCATGGCCTTCTCTCCGGGGAGTATTCCAAGCCAGTACCGGAGTCGGGCGATGGGGAGCGGGTGCCAGAACAGAAGGAAGTTCAAGATGGCATTGCCCCTCGGATGTTCAAGGCCCTCATCGGCAAGGGCCACCCTGAATTCTCCACCAACCGGCAGCAGGATGCCCAGGAGTTCTTCCTTCACCTTATCAACATGGTGGAGAGGAATTGCCGGAGCTCTGAAAATCCTAATGAAGTGTTCCGCTTCTTGGTGGAGGAAAAGATCAAGTGCCTGGCCACAGAGAAGGTGAAGTACACCCAGCGAGTTGACTACATCATGCAGCTGCCTGTGCCCATGGATGCAGCCCTTAACAAAGAGGAGCTTCTGGAGTACGAGGAGAAGAAGCGGCAAGCCGAAGAGGAGAAGATGGCACTGCCAGAACTGGTTCGGGCCCAGGTGCCCTTCAGCTCTTGCCTGGAGGCCTACGGGGCCCCTGAGCAGGTCGATGACTTCTGGAGCACGGCCCTGCAGGCCAAGTCAGTAGCTGTCAAGACCACACGATTTGCCTCATTCCCTGACTACCTGGTCATCCAGATCAAGAAGTTCACCTTCGGCTTAGACTGGGTGCCCAAGAAACTGGATGTGTCCATCGAGATGCCAGAGGAGCTCGACATCTCCCAGTTGAGGGGCACAGGGCTGCAGCCCGGAGAGGAGGAGCTGCCAGACATTGCCCCACCCCTGGTCACTCCGGATGAGCCCAAAGCGCCCATGCTGGATGAATCAGTCATCATCCAGCTGGTGGAGATGGGATTCCCTATGGACGCCTGCCGCAAAGCTGTCTACTACACGGGCAACAGCGGGGCTGAGGCCGCCATGAACTGGGTCATGTCACACATGGATGATCCAGATTTTGCAAACCCCCTCATCCTGCCTGGCTCTAGTGGGCCGGGCTCCACAAGCGCAGCAGCCGACCCCCCTCCTGAGGACTGTGTGACCACCATTGTCTCCATGGGCTTCTCCCGGGACCAGGCCTTGAAAGCGCTGCGGGCCACGAACAATAGTTTAGAACGGGCTGTGGACTGGATCTTCAGTCACATTGACGACCTGGATGCTGAAGCTGCCATGGACATCTCAGAGGGCCGCTCAGCTGCCGACTCCATCTCTGAGTCTGTGCCAGTGGGACCTAAAGTCCGGGATGGTCCTGGAAAGTATCAGCTCTTTGCCTTCATTAGTCACATGGGCACCTCTACCATGTGTGGTCACTACGTCTGCCACATCAAGAAAGAAGGCAGATGGGTGATCTACAATGACCAGAAAGTGTGTGCCTCCGAGAAGCCGCCCAAGGACCTGGGCTACATCTACTTCTACCAGAGAGTGGCCAGC",2505,"no","msglndifeaqkiewhegsaggsgMAELSEEALLSVLPTIRVPKAGDRVHKDECAFSFDTPESEGGLYICMNTFLGFGKQYVERHFNKTGQRVYLHLRRTRRPKEEDPATGTGDPPRKKPTRLAIGVEGGFDLSEEKFELDEDVKIVILPDYLEIARDGLGGLPDIVRDRVTSAVEALLSADSASRKQEVQAWDGEVRQVSKHAFSLKQLDNPARIPPCGWKCSKCDMRENLWLNLTDGSILCGaRYFDGSGGNNHAVEHYRETGYPLAVKLGTITPDGADVYSYDEDDMVLDPSLAEHLSHFGIDMLKMQKTDKTMTELEIDMNQRIGEWELIQESGVPLKPLFGPGYTGIRNLGNSCYLNSVVQVLFSIPDFQRKYVDKLEKIFQNAPTDPTQDFSTQVAKLGHGLLSGEYSKPVPESGDGERVPEQKEVQDGIAPRMFKALIGKGHPEFSTNRQQDAQEFFLHLINMVERNCRSSENPNEVFRFLVEEKIKCLATEKVKYTQRVDYIMQLPVPMDAALNKEELLEYEEKKRQAEEEKMALPELVRAQVPFSSCLEAYGAPEQVDDFWSTALQAKSVAVKTTRFASFPDYLVIQIKKFTFGLDWVPKKLDVSIEMPEELDISQLRGTGLQPGEEELPDIAPPLVTPDEPKAPMLDESVIIQLVEMGFPMDACRKAVYYTGNSGAEAAMNWVMSHMDDPDFANPLILPGSSGPGSTSAAADPPPEDCVTTIVSMGFSRDQALKALRATNNSLERAVDWIFSHIDDLDAEAAMDISEGRSAADSISESVPVGPKVRDGPGKYQLFAFISHMGTSTMCGHYVCHIKKEGRWVIYNDQKVCASEKPPKDLGYIYFYQRVASgggshhhhhh",null,"p28BIOH-LIC","gctggaggttcaggtATGGCGGAGCTGAGTGAGGAG","AGTAGCGcgcCCCACAGAGGATGGAGCCATC","TGTGGGgcgCGCTACTTCGATGGCAGTG","atgaccacttccaccGCTGGCCACTCTCTGGTAGAAG","DH5-Alpha","ploppnau","LIC-Infusion","Y",null,"2019-03-06",null,null,"PAGE19-00043","A6 -2 it is 100% so use as replacment","acaattcccctctagaaataattttgtttaactttaagaaggagatataccatgagcggcctgaacgatatttttgaagcgcagaaaattgaatggcatgaaggcagcgctggaggttcaggtATGGCGGAGCTGAGTGAGGAGGCGCTGCTGTCAGTATTACCGACGATCCGGGTCCCTAAGGCTGGAGACCGGGTCCACAAAGACGAGTGCGCCTTCTCCTTCGACACGCCGGAGTCTGAGGGGGGCCTCTACATCTGTATGAACACGTTTCTGGGCTTTGGGAAACAGTATGTGGAGAGACATTTCAATAAGACCGGCCAGCGAGTCTACTTGCACCTCCGGCGGACCCGGCGCCCGAAAGAGGAGGACCCTGCTACAGGCACTGGAGACCCACCCCGGAAGAAGCCCACGCGGCTGGCTATTGGTGTTGAAGGCGGATTTGACCTTAGCGAGGAGAAGTTTGAATTAGACGAGGATGTGAAGATTGTCATTTTGCCAGATTACCTGGAGATTGCCCGGGATGGACTGGGGGGACTGCCTGACATTGTCAGAGATCGGGTGACCAGTGCAGTGGAGGCCCTACTGTCGGCCGACTCAGCCTCCCGCAAGCAGGAGGTGCAGGCATGGGATGGGGAAGTACGGCAGGTGTCTAAGCATGCCTTCAGCCTCAAGCAGTTGGACAACCCTGCTCGAATCCCTCCCTGTGGCTGGAAGTGCTCCAAGTGTGACATGAGAGAGAACCTGTGGCTCAACCTGACTGATGGCTCCATCCTCTGTGGGgcgCGCTACTTCGATGGCAGTGGGGGCAACAACCACGCTGTGGAGCACTACCGAGAGACAGGCTACCCGTTAGCTGTCAAGCTGGGCACCATCACCCCTGATGGAGCTGACGTGTACTCATATGATGAGGATGACATGGTCCTGGACCCCAGCCTGGCTGAGCACCTGTCCCACTTCGGCATCGACATGCTGAAGATGCAGAAGACAGACAAGACGATGACTGAGTTGGAGATAGACATGAACCAGCGGATTGGTGAATGGGAGCTGATCCAGGAGTCAGGTGTGCCACTCAAGCCCCTGTTTGGGCCTGGCTACACAGGCATCCGGAACCTGGGTAACAGCTGCTACCTCAACTCTGTGGTCCAGGTGCTCTTCAGCATCCCTGACTTCCAGAGGAAGTATGTGGATAAGCTGGAGAAGATCTTCCAGAATGCCCCGACGGACCCTACCCAGGATTTCAGCACCCAGGTGGCCAAGCTGGGCCATGGCCTTCTCTCCGGGGAGTATTCCAAGCCAGTACCGGAGTCGGGCGATGGGGAGCGGGTGCCAGAACAGAAGGAAGTTCAAGATGGCATTGCCCCTCGGATGTTCAAGGCCCTCATCGGCAAGGGCCACCCTGAATTCTCCACCAACCGGCAGCAGGATGCCCAGGAGTTCTTCCTTCACCTTATCAACATGGTGGAGAGGAATTGCCGGAGCTCTGAAAATCCTAATGAAGTGTTCCGCTTCTTGGTGGAGGAAAAGATCAAGTGCCTGGCCACAGAGAAGGTGAAGTACACCCAGCGAGTTGACTACATCATGCAGCTGCCTGTGCCCATGGATGCAGCCCTTAACAAAGAGGAGCTTCTGGAGTACGAGGAGAAGAAGCGGCAAGCCGAAGAGGAGAAGATGGCACTGCCAGAACTGGTTCGGGCCCAGGTGCCCTTCAGCTCTTGCCTGGAGGCCTACGGGGCCCCTGAGCAGGTCGATGACTTCTGGAGCACGGCCCTGCAGGCCAAGTCAGTAGCTGTCAAGACCACACGATTTGCCTCATTCCCTGACTACCTGGTCATCCAGATCAAGAAGTTCACCTTCGGCTTAGACTGGGTGCCCAAGAAACTGGATGTGTCCATCGAGATGCCAGAGGAGCTCGACATCTCCCAGTTGAGGGGCACAGGGCTGCAGCCCGGAGAGGAGGAGCTGCCAGACATTGCCCCACCCCTGGTCACTCCGGATGAGCCCAAAGCGCCCATGCTGGATGAATCAGTCATCATCCAGCTGGTGGAGATGGGATTCCCTATGGACGCCTGCCGCAAAGCTGTCTACTACACGGGCAACAGCGGGGCTGAGGCCGCCATGAACTGGGTCATGTCACACATGGATGATCCAGATTTTGCAAACCCCCTCATCCTGCCTGGCTCTAGTGGGCCGGGCTCCACAAGCGCAGCAGCCGACCCCCCTCCTGAGGACTGTGTGACCACCATTGTCTCCATGGGCTTCTCCCGGGACCAGGCCTTGAAAGCGCTGCGGGCCACGAACAATAGTTTAGAACGGGCTGTGGACTGGATCTTCAGTCACATTGACGACCTGGATGCTGAAGCTGCCATGGACATCTCAGAGGGCCGCTCAGCTGCCGACTCCATCTCTGAGTCTGTGCCAGTGGGACCTAAAGTCCGGGATGGTCCTGGAAAGTATCAGCTCTTTGCCTTCATTAGTCACATGGGCACCTCTACCATGTGTGGTCACTACGTCTGCCACATCAAGAAAGAAGGCAGATGGGTGATCTACAATGACCAGAAAGTGTGTGCCTCCGAGAAGCCGCCCAAGGACCTGGGCTACATCTACTTCTACCAGAGAGTGGCCAGCggtggaagtggtcatcaccaccatcatcactgatgacgaagcttgcggccgcactcgagcaccaccaccaccaccactgagatccggctgctaacaaagcccgaa",2733,"GKKKKGRCGGWACATTCCCTCTAGAATAATTTTGTTTAACTTTAAGAAGGAGATATACCATGAGCGGCCTGAACGATATTTTTGAAGCGCAGAAAATTGAATGGCATGAAGGCAGCGCTGGAGGTTCAGGTATGGCGGAGCTGAGTGAGGAGGCGCTGCTGTCAGTATTACCGACGATCCGGGTCCCTAAGGCTGGAGACCGGGTCCACAAAGACGAGTGCGCCTTCTCCTTCGACACGCCGGAGTCTGAGGGGGGCCTCTACATCTGTATGAACACGTTTCTGGGCTTTGGGAAACAGTATGTGGAGAGACATTTCAATAAGACCGGCCAGCGAGTCTACTTGCACCTCCGGCGGACCCGGCGCCCGAAAGAGGAGGACCCTGCTACAGGCACTGGAGACCCACCCCGGAAGAAGCCCACGCGGCTGGCTATTGGTGTTGAAGGCGGATTTGACCTTAGCGAGGAGAAGTTTGAATTAGACGAGGATGTGAAGATTGTCATTTTGCCAGATTACCTGGAGATTGCCCGGGATGGACTGGGGGGACTGCCTGACATTGTCAGAGATCGGGTGACCAGTGCAGTGGAGGCCCTACTGTCGGCCGACTCAGCCTCCCGCAAGCAGGAGGTGCAGGCATGGGATGGGGAAGTACGGCAGGTGTCTAAGCATGCCTTCAGCCTCAAGCAGTTGGACAACCCTGCTCGAATCCCTCCCTGTGGCTGGAAGTGCTCCAAGTGTGACATGAGAGAGAACCTGTGGCTCAACCTGACTGATGGCTCCATCCTCTGTGGGGCGCGCTACTTCGATGGCAGTGGGGGCAACAACCACGCTGTGGAGCACTACCGAGAGACAGGCTACCCGTTAGCTGTCAAGCTGGGCACCATCACCCCTGATGGAGCTGACGTGTACTCATATGATGAGGATGACATGGTCCTGGACCCCAGCCTGGCTGAGCACCTGTCCCACTTCGGCATCGACATGCTGAAGATGCAGAAGACAGACAAGACGATGACTGAGTTGGAGATAGACATGAACCAGCGGATTGGTGAATGGGAGCTGATCCAGGAGTCAGGTGTGCCACTCAAGCCCCTGTTTGGGCCTGGCTACACAGGCATCCGGAACCTGGGTAACAGCTGCTACCTCAACTCTGTGGTCCAGGTGCTCTTCAGCATCCCTGACTTCCAGAGGAAGTATGTGGATAAGCTGGAGAAGATCTTCCAGAATGCCCCGACGGACCCTACCCAGGATTTCAGCACCCAGGTGGCCAAGCTGGGCCATGGCCTTCTCTCCGGGGAGTATTCCAAGCCAGTACCGGAGTCGGGCGATGGGGAGCGGGTGCCAGAACAGAAGGAAGTTCAAGATGGCATTGCCCCTCGGATGTTCAAGGCCCTCATCGGCAAGGGCCACCCTGAATTCTCCACCAACCGGCAGCAGGATGCCCAGGAGTTCTTCCTTCACCTTATCAACATGGTGGAGAGGAATTGCCGGAGCTCTGAAAATCCTAATGAAGTGTTCCGCTTCTTGGTGGAGGAAAAGATCAAGTGCCTGGCCACAGAGAAGGTGAAGTACACCCAGCGAGTTGACTACATCATGCAGCTGCCTGTGCCCATGGATGCAGCCCTTAACAAAGAGGAGCTTCTGGAGTACGAGGAGAAGAAGCGGCAAGCCGAAGAGGAGAAGATGGCACTGCCAGAACTGGTTCGGGCCCAGGTGCCCTTCAGCTCTTGCCTGGAGGCCTACGGGGCCCCTGAGCAGGTCGATGACTTCTGGAGCACGGCCCTGCAGGCCAAGTCAGTAGCTGTCAAGACCACACGATTTGCCTCATTCCCTGACTACCTGGTCATCCAGATCAAGAAGTTCACCTTCGGCTTAGACTGGGTGCCCAAGAAACTGGATGTGTCCATCGAGATGCCAGAGGAGCTCGACATCTCCCAGTTGAGGGGCACAGGGCTGCAGCCCGGAGAGGAGGAGCTGCCAGACATTGCCCCACCCCTGGTCACTCCGGATGAGCCCAAAGCGCCCATGCTGGATGAATCAGTCATCATCCAGCTGGTGGAGATGGGATTCCCTATGGACGCCTGCCGCAAAGCTGTCTACTACACGGGCAACAGCGGGGCTGAGGCCGCCATGAACTGGGTCATGTCACACATGGATGATCCAGATTTTGCAAACCCCCTCATCCTGCCTGGCTCTAGTGGGCCGGGCTCCACAAGCGCAGCAGCCGACCCCCCTCCTGAGGACTGTGTGACCACCATTGTCTCCATGGGCTTCTCCCGGGACCAGGCCTTGAAAGCGCTGCGGGCCACGAACAATAGTTTAGAACGGGCTGTGGACTGGATCTTCAGTCACATTGACGACCTGGATGCTGAAGCTGCCATGGACATCTCAGAGGGCCGCTCAGCTGCCGACTCCATCTCTGAGTCTGTGCCAGTGGGACCTAAAGTCCGGGATGGTCCTGGAAAGTATCAGCTCTTTGCCTTCATTAGTCACATGGGCACCTCTACCATGTGTGGTCACTACGTCTGCCACATCAAGAAAGAAGGCAGATGGGTGATCTACAATGACCAGAAAGTGTGTGCCTCCGAGAAGCCGCCCAAGGACCTGGGCTACATCTACTTCTACCAGAGAGTGGCCAGCGGTGGAAGTGGTCATCACCACCATCATCACTGATGACGAAGCTTGCGGCCGCACTCGAGCACCACCACCACCACCACTGAGATCCGGCTGCTAACAAAGCCCGAAAGAAGCKGAGKGYKYCCC",2759,null,"p28BIOH-LIC","acaattcccctctagaaataattttgtttaactttaagaaggagatataccatgagcggcctgaacgatatttttgaagcgcagaaaattgaatggcatgaaggcagcgctggaggttcaggt","ggtggaagtggtcatcaccaccatcatcactgatgacgaagcttgcggccgcactcgagcaccaccaccaccaccactgagatccggctgctaacaaagcccgaa",null,null,null,null,null,null,null,null,null,null,null,null,null,null,"AU25-C3"]
[243623,"USP05:TOC023-A07:C243623","TOC023","A07","TOC023A07","USP05",null,null,"AU25-C3","USP05_1-835_bio_W209A",1,835,"MAELSEEALLSVLPTIRVPKAGDRVHKDECAFSFDTPESEGGLYICMNTFLGFGKQYVERHFNKTGQRVYLHLRRTRRPKEEDPATGTGDPPRKKPTRLAIGVEGGFDLSEEKFELDEDVKIVILPDYLEIARDGLGGLPDIVRDRVTSAVEALLSADSASRKQEVQAWDGEVRQVSKHAFSLKQLDNPARIPPCGWKCSKCDMRENLaLNLTDGSILCGRRYFDGSGGNNHAVEHYRETGYPLAVKLGTITPDGADVYSYDEDDMVLDPSLAEHLSHFGIDMLKMQKTDKTMTELEIDMNQRIGEWELIQESGVPLKPLFGPGYTGIRNLGNSCYLNSVVQVLFSIPDFQRKYVDKLEKIFQNAPTDPTQDFSTQVAKLGHGLLSGEYSKPVPESGDGERVPEQKEVQDGIAPRMFKALIGKGHPEFSTNRQQDAQEFFLHLINMVERNCRSSENPNEVFRFLVEEKIKCLATEKVKYTQRVDYIMQLPVPMDAALNKEELLEYEEKKRQAEEEKMALPELVRAQVPFSSCLEAYGAPEQVDDFWSTALQAKSVAVKTTRFASFPDYLVIQIKKFTFGLDWVPKKLDVSIEMPEELDISQLRGTGLQPGEEELPDIAPPLVTPDEPKAPMLDESVIIQLVEMGFPMDACRKAVYYTGNSGAEAAMNWVMSHMDDPDFANPLILPGSSGPGSTSAAADPPPEDCVTTIVSMGFSRDQALKALRATNNSLERAVDWIFSHIDDLDAEAAMDISEGRSAADSISESVPVGPKVRDGPGKYQLFAFISHMGTSTMCGHYVCHIKKEGRWVIYNDQKVCASEKPPKDLGYIYFYQRVAS",835,"ATGGCGGAGCTGAGTGAGGAGGCGCTGCTGTCAGTATTACCGACGATCCGGGTCCCTAAGGCTGGAGACCGGGTCCACAAAGACGAGTGCGCCTTCTCCTTCGACACGCCGGAGTCTGAGGGGGGCCTCTACATCTGTATGAACACGTTTCTGGGCTTTGGGAAACAGTATGTGGAGAGACATTTCAATAAGACCGGCCAGCGAGTCTACTTGCACCTCCGGCGGACCCGGCGCCCGAAAGAGGAGGACCCTGCTACAGGCACTGGAGACCCACCCCGGAAGAAGCCCACGCGGCTGGCTATTGGTGTTGAAGGCGGATTTGACCTTAGCGAGGAGAAGTTTGAATTAGACGAGGATGTGAAGATTGTCATTTTGCCAGATTACCTGGAGATTGCCCGGGATGGACTGGGGGGACTGCCTGACATTGTCAGAGATCGGGTGACCAGTGCAGTGGAGGCCCTACTGTCGGCCGACTCAGCCTCCCGCAAGCAGGAGGTGCAGGCATGGGATGGGGAAGTACGGCAGGTGTCTAAGCATGCCTTCAGCCTCAAGCAGTTGGACAACCCTGCTCGAATCCCTCCCTGTGGCTGGAAGTGCTCCAAGTGTGACATGAGAGAGAACCTGgcgCTCAACCTGACTGATGGCTCCATCCTCTGTGGGCGACGCTACTTCGATGGCAGTGGGGGCAACAACCACGCTGTGGAGCACTACCGAGAGACAGGCTACCCGTTAGCTGTCAAGCTGGGCACCATCACCCCTGATGGAGCTGACGTGTACTCATATGATGAGGATGACATGGTCCTGGACCCCAGCCTGGCTGAGCACCTGTCCCACTTCGGCATCGACATGCTGAAGATGCAGAAGACAGACAAGACGATGACTGAGTTGGAGATAGACATGAACCAGCGGATTGGTGAATGGGAGCTGATCCAGGAGTCAGGTGTGCCACTCAAGCCCCTGTTTGGGCCTGGCTACACAGGCATCCGGAACCTGGGTAACAGCTGCTACCTCAACTCTGTGGTCCAGGTGCTCTTCAGCATCCCTGACTTCCAGAGGAAGTATGTGGATAAGCTGGAGAAGATCTTCCAGAATGCCCCGACGGACCCTACCCAGGATTTCAGCACCCAGGTGGCCAAGCTGGGCCATGGCCTTCTCTCCGGGGAGTATTCCAAGCCAGTACCGGAGTCGGGCGATGGGGAGCGGGTGCCAGAACAGAAGGAAGTTCAAGATGGCATTGCCCCTCGGATGTTCAAGGCCCTCATCGGCAAGGGCCACCCTGAATTCTCCACCAACCGGCAGCAGGATGCCCAGGAGTTCTTCCTTCACCTTATCAACATGGTGGAGAGGAATTGCCGGAGCTCTGAAAATCCTAATGAAGTGTTCCGCTTCTTGGTGGAGGAAAAGATCAAGTGCCTGGCCACAGAGAAGGTGAAGTACACCCAGCGAGTTGACTACATCATGCAGCTGCCTGTGCCCATGGATGCAGCCCTTAACAAAGAGGAGCTTCTGGAGTACGAGGAGAAGAAGCGGCAAGCCGAAGAGGAGAAGATGGCACTGCCAGAACTGGTTCGGGCCCAGGTGCCCTTCAGCTCTTGCCTGGAGGCCTACGGGGCCCCTGAGCAGGTCGATGACTTCTGGAGCACGGCCCTGCAGGCCAAGTCAGTAGCTGTCAAGACCACACGATTTGCCTCATTCCCTGACTACCTGGTCATCCAGATCAAGAAGTTCACCTTCGGCTTAGACTGGGTGCCCAAGAAACTGGATGTGTCCATCGAGATGCCAGAGGAGCTCGACATCTCCCAGTTGAGGGGCACAGGGCTGCAGCCCGGAGAGGAGGAGCTGCCAGACATTGCCCCACCCCTGGTCACTCCGGATGAGCCCAAAGCGCCCATGCTGGATGAATCAGTCATCATCCAGCTGGTGGAGATGGGATTCCCTATGGACGCCTGCCGCAAAGCTGTCTACTACACGGGCAACAGCGGGGCTGAGGCCGCCATGAACTGGGTCATGTCACACATGGATGATCCAGATTTTGCAAACCCCCTCATCCTGCCTGGCTCTAGTGGGCCGGGCTCCACAAGCGCAGCAGCCGACCCCCCTCCTGAGGACTGTGTGACCACCATTGTCTCCATGGGCTTCTCCCGGGACCAGGCCTTGAAAGCGCTGCGGGCCACGAACAATAGTTTAGAACGGGCTGTGGACTGGATCTTCAGTCACATTGACGACCTGGATGCTGAAGCTGCCATGGACATCTCAGAGGGCCGCTCAGCTGCCGACTCCATCTCTGAGTCTGTGCCAGTGGGACCTAAAGTCCGGGATGGTCCTGGAAAGTATCAGCTCTTTGCCTTCATTAGTCACATGGGCACCTCTACCATGTGTGGTCACTACGTCTGCCACATCAAGAAAGAAGGCAGATGGGTGATCTACAATGACCAGAAAGTGTGTGCCTCCGAGAAGCCGCCCAAGGACCTGGGCTACATCTACTTCTACCAGAGAGTGGCCAGC",2505,"no","msglndifeaqkiewhegsaggsgMAELSEEALLSVLPTIRVPKAGDRVHKDECAFSFDTPESEGGLYICMNTFLGFGKQYVERHFNKTGQRVYLHLRRTRRPKEEDPATGTGDPPRKKPTRLAIGVEGGFDLSEEKFELDEDVKIVILPDYLEIARDGLGGLPDIVRDRVTSAVEALLSADSASRKQEVQAWDGEVRQVSKHAFSLKQLDNPARIPPCGWKCSKCDMRENLaLNLTDGSILCGRRYFDGSGGNNHAVEHYRETGYPLAVKLGTITPDGADVYSYDEDDMVLDPSLAEHLSHFGIDMLKMQKTDKTMTELEIDMNQRIGEWELIQESGVPLKPLFGPGYTGIRNLGNSCYLNSVVQVLFSIPDFQRKYVDKLEKIFQNAPTDPTQDFSTQVAKLGHGLLSGEYSKPVPESGDGERVPEQKEVQDGIAPRMFKALIGKGHPEFSTNRQQDAQEFFLHLINMVERNCRSSENPNEVFRFLVEEKIKCLATEKVKYTQRVDYIMQLPVPMDAALNKEELLEYEEKKRQAEEEKMALPELVRAQVPFSSCLEAYGAPEQVDDFWSTALQAKSVAVKTTRFASFPDYLVIQIKKFTFGLDWVPKKLDVSIEMPEELDISQLRGTGLQPGEEELPDIAPPLVTPDEPKAPMLDESVIIQLVEMGFPMDACRKAVYYTGNSGAEAAMNWVMSHMDDPDFANPLILPGSSGPGSTSAAADPPPEDCVTTIVSMGFSRDQALKALRATNNSLERAVDWIFSHIDDLDAEAAMDISEGRSAADSISESVPVGPKVRDGPGKYQLFAFISHMGTSTMCGHYVCHIKKEGRWVIYNDQKVCASEKPPKDLGYIYFYQRVASgggshhhhhh",null,"p28BIOH-LIC","gctggaggttcaggtATGGCGGAGCTGAGTGAGGAG","GGTTGAGcgcCAGGTTCTCTCTCATGTCAC","GAACCTGgcgCTCAACCTGACTGATGGCTC","atgaccacttccaccGCTGGCCACTCTCTGGTAGAAG","DH5-Alpha","ploppnau","LIC-Infusion","Y",null,"2019-03-06",null,null,"PAGE19-00043","A7-11 is 100%","acaattcccctctagaaataattttgtttaactttaagaaggagatataccatgagcggcctgaacgatatttttgaagcgcagaaaattgaatggcatgaaggcagcgctggaggttcaggtATGGCGGAGCTGAGTGAGGAGGCGCTGCTGTCAGTATTACCGACGATCCGGGTCCCTAAGGCTGGAGACCGGGTCCACAAAGACGAGTGCGCCTTCTCCTTCGACACGCCGGAGTCTGAGGGGGGCCTCTACATCTGTATGAACACGTTTCTGGGCTTTGGGAAACAGTATGTGGAGAGACATTTCAATAAGACCGGCCAGCGAGTCTACTTGCACCTCCGGCGGACCCGGCGCCCGAAAGAGGAGGACCCTGCTACAGGCACTGGAGACCCACCCCGGAAGAAGCCCACGCGGCTGGCTATTGGTGTTGAAGGCGGATTTGACCTTAGCGAGGAGAAGTTTGAATTAGACGAGGATGTGAAGATTGTCATTTTGCCAGATTACCTGGAGATTGCCCGGGATGGACTGGGGGGACTGCCTGACATTGTCAGAGATCGGGTGACCAGTGCAGTGGAGGCCCTACTGTCGGCCGACTCAGCCTCCCGCAAGCAGGAGGTGCAGGCATGGGATGGGGAAGTACGGCAGGTGTCTAAGCATGCCTTCAGCCTCAAGCAGTTGGACAACCCTGCTCGAATCCCTCCCTGTGGCTGGAAGTGCTCCAAGTGTGACATGAGAGAGAACCTGgcgCTCAACCTGACTGATGGCTCCATCCTCTGTGGGCGACGCTACTTCGATGGCAGTGGGGGCAACAACCACGCTGTGGAGCACTACCGAGAGACAGGCTACCCGTTAGCTGTCAAGCTGGGCACCATCACCCCTGATGGAGCTGACGTGTACTCATATGATGAGGATGACATGGTCCTGGACCCCAGCCTGGCTGAGCACCTGTCCCACTTCGGCATCGACATGCTGAAGATGCAGAAGACAGACAAGACGATGACTGAGTTGGAGATAGACATGAACCAGCGGATTGGTGAATGGGAGCTGATCCAGGAGTCAGGTGTGCCACTCAAGCCCCTGTTTGGGCCTGGCTACACAGGCATCCGGAACCTGGGTAACAGCTGCTACCTCAACTCTGTGGTCCAGGTGCTCTTCAGCATCCCTGACTTCCAGAGGAAGTATGTGGATAAGCTGGAGAAGATCTTCCAGAATGCCCCGACGGACCCTACCCAGGATTTCAGCACCCAGGTGGCCAAGCTGGGCCATGGCCTTCTCTCCGGGGAGTATTCCAAGCCAGTACCGGAGTCGGGCGATGGGGAGCGGGTGCCAGAACAGAAGGAAGTTCAAGATGGCATTGCCCCTCGGATGTTCAAGGCCCTCATCGGCAAGGGCCACCCTGAATTCTCCACCAACCGGCAGCAGGATGCCCAGGAGTTCTTCCTTCACCTTATCAACATGGTGGAGAGGAATTGCCGGAGCTCTGAAAATCCTAATGAAGTGTTCCGCTTCTTGGTGGAGGAAAAGATCAAGTGCCTGGCCACAGAGAAGGTGAAGTACACCCAGCGAGTTGACTACATCATGCAGCTGCCTGTGCCCATGGATGCAGCCCTTAACAAAGAGGAGCTTCTGGAGTACGAGGAGAAGAAGCGGCAAGCCGAAGAGGAGAAGATGGCACTGCCAGAACTGGTTCGGGCCCAGGTGCCCTTCAGCTCTTGCCTGGAGGCCTACGGGGCCCCTGAGCAGGTCGATGACTTCTGGAGCACGGCCCTGCAGGCCAAGTCAGTAGCTGTCAAGACCACACGATTTGCCTCATTCCCTGACTACCTGGTCATCCAGATCAAGAAGTTCACCTTCGGCTTAGACTGGGTGCCCAAGAAACTGGATGTGTCCATCGAGATGCCAGAGGAGCTCGACATCTCCCAGTTGAGGGGCACAGGGCTGCAGCCCGGAGAGGAGGAGCTGCCAGACATTGCCCCACCCCTGGTCACTCCGGATGAGCCCAAAGCGCCCATGCTGGATGAATCAGTCATCATCCAGCTGGTGGAGATGGGATTCCCTATGGACGCCTGCCGCAAAGCTGTCTACTACACGGGCAACAGCGGGGCTGAGGCCGCCATGAACTGGGTCATGTCACACATGGATGATCCAGATTTTGCAAACCCCCTCATCCTGCCTGGCTCTAGTGGGCCGGGCTCCACAAGCGCAGCAGCCGACCCCCCTCCTGAGGACTGTGTGACCACCATTGTCTCCATGGGCTTCTCCCGGGACCAGGCCTTGAAAGCGCTGCGGGCCACGAACAATAGTTTAGAACGGGCTGTGGACTGGATCTTCAGTCACATTGACGACCTGGATGCTGAAGCTGCCATGGACATCTCAGAGGGCCGCTCAGCTGCCGACTCCATCTCTGAGTCTGTGCCAGTGGGACCTAAAGTCCGGGATGGTCCTGGAAAGTATCAGCTCTTTGCCTTCATTAGTCACATGGGCACCTCTACCATGTGTGGTCACTACGTCTGCCACATCAAGAAAGAAGGCAGATGGGTGATCTACAATGACCAGAAAGTGTGTGCCTCCGAGAAGCCGCCCAAGGACCTGGGCTACATCTACTTCTACCAGAGAGTGGCCAGCggtggaagtggtcatcaccaccatcatcactgatgacgaagcttgcggccgcactcgagcaccaccaccaccaccactgagatccggctgctaacaaagcccgaa",2733,"AKWGGRSGGWACATTCCCCTCTAGAAATAATTTTGTTTAACTTTAAGAAGGAGATATACCATGAGCGGCCTGAACGATATTTTTGAAGCGCAGAAAATTGAATGGCATGAAGGCAGCGCTGGAGGTTCAGGTATGGCGGAGCTGAGTGAGGAGGCGCTGCTGTCAGTATTACCGACGATCCGGGTCCCTAAGGCTGGAGACCGGGTCCACAAAGACGAGTGCGCCTTCTCCTTCGACACGCCGGAGTCTGAGGGGGGCCTCTACATCTGTATGAACACGTTTCTGGGCTTTGGGAAACAGTATGTGGAGAGACATTTCAATAAGACCGGCCAGCGAGTCTACTTGCACCTCCGGCGGACCCGGCGCCCGAAAGAGGAGGACCCTGCTACAGGCACTGGAGACCCACCCCGGAAGAAGCCCACGCGGCTGGCTATTGGTGTTGAAGGCGGATTTGACCTTAGCGAGGAGAAGTTTGAATTAGACGAGGATGTGAAGATTGTCATTTTGCCAGATTACCTGGAGATTGCCCGGGATGGACTGGGGGGACTGCCTGACATTGTCAGAGATCGGGTGACCAGTGCAGTGGAGGCCCTACTGTCGGCCGACTCAGCCTCCCGCAAGCAGGAGGTGCAGGCATGGGATGGGGAAGTACGGCAGGTGTCTAAGCATGCCTTCAGCCTCAAGCAGTTGGACAACCCTGCTCGAATCCCTCCCTGTGGCTGGAAGTGCTCCAAGTGTGACATGAGAGAGAACCTGGCGCTCAACCTGACTGATGGCTCCATCCTCTGTGGGCGACGCTACTTCGATGGCAGTGGGGGCAACAACCACGCTGTGGAGCACTACCGAGAGACAGGCTACCCGTTAGCTGTCAAGCTGGGCACCATCACCCCTGATGGAGCTGACGTGTACTCATATGATGAGGATGACATGGTCCTGGACCCCAGCCTGGCTGAGCACCTGTCCCACTTCGGCATCGACATGCTGAAGATGCAGAAGACAGACAAGACGATGACTGAGTTGGAGATAGACATGAACCAGCGGATTGGTGAATGGGAGCTGATCCAGGAGTCAGGTGTGCCACTCAAGCCCCTGTTTGGGCCTGGCTACACAGGCATCCGGAACCTGGGTAACAGCTGCTACCTCAACTCTGTGGTCCAGGTGCTCTTCAGCATCCCTGACTTCCAGAGGAAGTATGTGGATAAGCTGGAGAAGATCTTCCAGAATGCCCCGACGGACCCTACCCAGGATTTCAGCACCCAGGTGGCCAAGCTGGGCCATGGCCTTCTCTCCGGGGAGTATTCCAAGCCAGTACCGGAGTCGGGCGATGGGGAGCGGGTGCCAGAACAGAAGGAAGTTCAAGATGGCATTGCCCCTCGGATGTTCAAGGCCCTCATCGGCAAGGGCCACCCTGAATTCTCCACCAACCGGCAGCAGGATGCCCAGGAGTTCTTCCTTCACCTTATCAACATGGTGGAGAGGAATTGCCGGAGCTCTGAAAATCCTAATGAAGTGTTCCGCTTCTTGGTGGAGGAAAAGATCAAGTGCCTGGCCACAGAGAAGGTGAAGTACACCCAGCGAGTTGACTACATCATGCAGCTGCCTGTGCCCATGGATGCAGCCCTTAACAAAGAGGAGCTTCTGGAGTACGAGGAGAAGAAGCGGCAAGCCGAAGAGGAGAAGATGGCACTGCCAGAACTGGTTCGGGCCCAGGTGCCCTTCAGCTCTTGCCTGGAGGCCTACGGGGCCCCTGAGCAGGTCGATGACTTCTGGAGCACGGCCCTGCAGGCCAAGTCAGTAGCTGTCAAGACCACACGATTTGCCTCATTCCCTGACTACCTGGTCATCCAGATCAAGAAGTTCACCTTCGGCTTAGACTGGGTGCCCAAGAAACTGGATGTGTCCATCGAGATGCCAGAGGAGCTCGACATCTCCCAGTTGAGGGGCACAGGGCTGCAGCCCGGAGAGGAGGAGCTGCCAGACATTGCCCCACCCCTGGTCACTCCGGATGAGCCCAAAGCGCCCATGCTGGATGAATCAGTCATCATCCAGCTGGTGGAGATGGGATTCCCTATGGACGCCTGCCGCAAAGCTGTCTACTACACGGGCAACAGCGGGGCTGAGGCCGCCATGAACTGGGTCATGTCACACATGGATGATCCAGATTTTGCAAACCCCCTCATCCTGCCTGGCTCTAGTGGGCCGGGCTCCACAAGCGCAGCAGCCGACCCCCCTCCTGAGGACTGTGTGACCACCATTGTCTCCATGGGCTTCTCCCGGGACCAGGCCTTGAAAGCGCTGCGGGCCACGAACAATAGTTTAGAACGGGCTGTGGACTGGATCTTCAGTCACATTGACGACCTGGATGCTGAAGCTGCCATGGACATCTCAGAGGGCCGCTCAGCTGCCGACTCCATCTCTGAGTCTGTGCCAGTGGGACCTAAAGTCCGGGATGGTCCTGGAAAGTATCAGCTCTTTGCCTTCATTAGTCACATGGGCACCTCTACCATGTGTGGTCACTACGTCTGCCACATCAAGAAAGAAGGCAGATGGGTGATCTACAATGACCAGAAAGTGTGTGCCTCCGAGAAGCCGCCCAAGGACCTGGGCTACATCTACTTCTACCAGAGAGTGGCCAGCGGTGGAAGTGGTCATCACCACCATCATCACTGATGACGAAGCTTGCGGCCGCACTCGAGCACCACCACCACCACCACTGAGATCCGGCTGCTAACAAAGCCCGAAAGAAGCKAGKKYYYSCG",2759,null,"p28BIOH-LIC","acaattcccctctagaaataattttgtttaactttaagaaggagatataccatgagcggcctgaacgatatttttgaagcgcagaaaattgaatggcatgaaggcagcgctggaggttcaggt","ggtggaagtggtcatcaccaccatcatcactgatgacgaagcttgcggccgcactcgagcaccaccaccaccaccactgagatccggctgctaacaaagcccgaa",null,null,null,null,null,null,null,null,null,null,null,null,null,null,"AU25-C3"]
[243624,"USP05:TOC023-A08:C243624","TOC023","A08","TOC023A08","USP05",null,null,"AU25-C3","USP05_1-835_bio_Y259A",1,835,"MAELSEEALLSVLPTIRVPKAGDRVHKDECAFSFDTPESEGGLYICMNTFLGFGKQYVERHFNKTGQRVYLHLRRTRRPKEEDPATGTGDPPRKKPTRLAIGVEGGFDLSEEKFELDEDVKIVILPDYLEIARDGLGGLPDIVRDRVTSAVEALLSADSASRKQEVQAWDGEVRQVSKHAFSLKQLDNPARIPPCGWKCSKCDMRENLWLNLTDGSILCGRRYFDGSGGNNHAVEHYRETGYPLAVKLGTITPDGADVaSYDEDDMVLDPSLAEHLSHFGIDMLKMQKTDKTMTELEIDMNQRIGEWELIQESGVPLKPLFGPGYTGIRNLGNSCYLNSVVQVLFSIPDFQRKYVDKLEKIFQNAPTDPTQDFSTQVAKLGHGLLSGEYSKPVPESGDGERVPEQKEVQDGIAPRMFKALIGKGHPEFSTNRQQDAQEFFLHLINMVERNCRSSENPNEVFRFLVEEKIKCLATEKVKYTQRVDYIMQLPVPMDAALNKEELLEYEEKKRQAEEEKMALPELVRAQVPFSSCLEAYGAPEQVDDFWSTALQAKSVAVKTTRFASFPDYLVIQIKKFTFGLDWVPKKLDVSIEMPEELDISQLRGTGLQPGEEELPDIAPPLVTPDEPKAPMLDESVIIQLVEMGFPMDACRKAVYYTGNSGAEAAMNWVMSHMDDPDFANPLILPGSSGPGSTSAAADPPPEDCVTTIVSMGFSRDQALKALRATNNSLERAVDWIFSHIDDLDAEAAMDISEGRSAADSISESVPVGPKVRDGPGKYQLFAFISHMGTSTMCGHYVCHIKKEGRWVIYNDQKVCASEKPPKDLGYIYFYQRVAS",835,"ATGGCGGAGCTGAGTGAGGAGGCGCTGCTGTCAGTATTACCGACGATCCGGGTCCCTAAGGCTGGAGACCGGGTCCACAAAGACGAGTGCGCCTTCTCCTTCGACACGCCGGAGTCTGAGGGGGGCCTCTACATCTGTATGAACACGTTTCTGGGCTTTGGGAAACAGTATGTGGAGAGACATTTCAATAAGACCGGCCAGCGAGTCTACTTGCACCTCCGGCGGACCCGGCGCCCGAAAGAGGAGGACCCTGCTACAGGCACTGGAGACCCACCCCGGAAGAAGCCCACGCGGCTGGCTATTGGTGTTGAAGGCGGATTTGACCTTAGCGAGGAGAAGTTTGAATTAGACGAGGATGTGAAGATTGTCATTTTGCCAGATTACCTGGAGATTGCCCGGGATGGACTGGGGGGACTGCCTGACATTGTCAGAGATCGGGTGACCAGTGCAGTGGAGGCCCTACTGTCGGCCGACTCAGCCTCCCGCAAGCAGGAGGTGCAGGCATGGGATGGGGAAGTACGGCAGGTGTCTAAGCATGCCTTCAGCCTCAAGCAGTTGGACAACCCTGCTCGAATCCCTCCCTGTGGCTGGAAGTGCTCCAAGTGTGACATGAGAGAGAACCTGTGGCTCAACCTGACTGATGGCTCCATCCTCTGTGGGCGACGCTACTTCGATGGCAGTGGGGGCAACAACCACGCTGTGGAGCACTACCGAGAGACAGGCTACCCGTTAGCTGTCAAGCTGGGCACCATCACCCCTGATGGAGCTGACGTGgcgTCATATGATGAGGATGACATGGTCCTGGACCCCAGCCTGGCTGAGCACCTGTCCCACTTCGGCATCGACATGCTGAAGATGCAGAAGACAGACAAGACGATGACTGAGTTGGAGATAGACATGAACCAGCGGATTGGTGAATGGGAGCTGATCCAGGAGTCAGGTGTGCCACTCAAGCCCCTGTTTGGGCCTGGCTACACAGGCATCCGGAACCTGGGTAACAGCTGCTACCTCAACTCTGTGGTCCAGGTGCTCTTCAGCATCCCTGACTTCCAGAGGAAGTATGTGGATAAGCTGGAGAAGATCTTCCAGAATGCCCCGACGGACCCTACCCAGGATTTCAGCACCCAGGTGGCCAAGCTGGGCCATGGCCTTCTCTCCGGGGAGTATTCCAAGCCAGTACCGGAGTCGGGCGATGGGGAGCGGGTGCCAGAACAGAAGGAAGTTCAAGATGGCATTGCCCCTCGGATGTTCAAGGCCCTCATCGGCAAGGGCCACCCTGAATTCTCCACCAACCGGCAGCAGGATGCCCAGGAGTTCTTCCTTCACCTTATCAACATGGTGGAGAGGAATTGCCGGAGCTCTGAAAATCCTAATGAAGTGTTCCGCTTCTTGGTGGAGGAAAAGATCAAGTGCCTGGCCACAGAGAAGGTGAAGTACACCCAGCGAGTTGACTACATCATGCAGCTGCCTGTGCCCATGGATGCAGCCCTTAACAAAGAGGAGCTTCTGGAGTACGAGGAGAAGAAGCGGCAAGCCGAAGAGGAGAAGATGGCACTGCCAGAACTGGTTCGGGCCCAGGTGCCCTTCAGCTCTTGCCTGGAGGCCTACGGGGCCCCTGAGCAGGTCGATGACTTCTGGAGCACGGCCCTGCAGGCCAAGTCAGTAGCTGTCAAGACCACACGATTTGCCTCATTCCCTGACTACCTGGTCATCCAGATCAAGAAGTTCACCTTCGGCTTAGACTGGGTGCCCAAGAAACTGGATGTGTCCATCGAGATGCCAGAGGAGCTCGACATCTCCCAGTTGAGGGGCACAGGGCTGCAGCCCGGAGAGGAGGAGCTGCCAGACATTGCCCCACCCCTGGTCACTCCGGATGAGCCCAAAGCGCCCATGCTGGATGAATCAGTCATCATCCAGCTGGTGGAGATGGGATTCCCTATGGACGCCTGCCGCAAAGCTGTCTACTACACGGGCAACAGCGGGGCTGAGGCCGCCATGAACTGGGTCATGTCACACATGGATGATCCAGATTTTGCAAACCCCCTCATCCTGCCTGGCTCTAGTGGGCCGGGCTCCACAAGCGCAGCAGCCGACCCCCCTCCTGAGGACTGTGTGACCACCATTGTCTCCATGGGCTTCTCCCGGGACCAGGCCTTGAAAGCGCTGCGGGCCACGAACAATAGTTTAGAACGGGCTGTGGACTGGATCTTCAGTCACATTGACGACCTGGATGCTGAAGCTGCCATGGACATCTCAGAGGGCCGCTCAGCTGCCGACTCCATCTCTGAGTCTGTGCCAGTGGGACCTAAAGTCCGGGATGGTCCTGGAAAGTATCAGCTCTTTGCCTTCATTAGTCACATGGGCACCTCTACCATGTGTGGTCACTACGTCTGCCACATCAAGAAAGAAGGCAGATGGGTGATCTACAATGACCAGAAAGTGTGTGCCTCCGAGAAGCCGCCCAAGGACCTGGGCTACATCTACTTCTACCAGAGAGTGGCCAGC",2505,"no","msglndifeaqkiewhegsaggsgMAELSEEALLSVLPTIRVPKAGDRVHKDECAFSFDTPESEGGLYICMNTFLGFGKQYVERHFNKTGQRVYLHLRRTRRPKEEDPATGTGDPPRKKPTRLAIGVEGGFDLSEEKFELDEDVKIVILPDYLEIARDGLGGLPDIVRDRVTSAVEALLSADSASRKQEVQAWDGEVRQVSKHAFSLKQLDNPARIPPCGWKCSKCDMRENLWLNLTDGSILCGRRYFDGSGGNNHAVEHYRETGYPLAVKLGTITPDGADVaSYDEDDMVLDPSLAEHLSHFGIDMLKMQKTDKTMTELEIDMNQRIGEWELIQESGVPLKPLFGPGYTGIRNLGNSCYLNSVVQVLFSIPDFQRKYVDKLEKIFQNAPTDPTQDFSTQVAKLGHGLLSGEYSKPVPESGDGERVPEQKEVQDGIAPRMFKALIGKGHPEFSTNRQQDAQEFFLHLINMVERNCRSSENPNEVFRFLVEEKIKCLATEKVKYTQRVDYIMQLPVPMDAALNKEELLEYEEKKRQAEEEKMALPELVRAQVPFSSCLEAYGAPEQVDDFWSTALQAKSVAVKTTRFASFPDYLVIQIKKFTFGLDWVPKKLDVSIEMPEELDISQLRGTGLQPGEEELPDIAPPLVTPDEPKAPMLDESVIIQLVEMGFPMDACRKAVYYTGNSGAEAAMNWVMSHMDDPDFANPLILPGSSGPGSTSAAADPPPEDCVTTIVSMGFSRDQALKALRATNNSLERAVDWIFSHIDDLDAEAAMDISEGRSAADSISESVPVGPKVRDGPGKYQLFAFISHMGTSTMCGHYVCHIKKEGRWVIYNDQKVCASEKPPKDLGYIYFYQRVASgggshhhhhh",null,"p28BIOH-LIC","gctggaggttcaggtATGGCGGAGCTGAGTGAGGAG","CATATGAcgcCACGTCAGCTCCATCAGGGGTG","TGACGTGgcgTCATATGATGAGGATGACATG","atgaccacttccaccGCTGGCCACTCTCTGGTAGAAG","DH5-Alpha","ploppnau","LIC-Infusion","Y",null,"2019-03-06",null,null,"PAGE19-00043","OK.  1 silent mutation.  And term result not clear","acaattcccctctagaaataattttgtttaactttaagaaggagatataccatgagcggcctgaacgatatttttgaagcgcagaaaattgaatggcatgaaggcagcgctggaggttcaggtATGGCGGAGCTGAGTGAGGAGGCGCTGCTGTCAGTATTACCGACGATCCGGGTCCCTAAGGCTGGAGACCGGGTCCACAAAGACGAGTGCGCCTTCTCCTTCGACACGCCGGAGTCTGAGGGGGGCCTCTACATCTGTATGAACACGTTTCTGGGCTTTGGGAAACAGTATGTGGAGAGACATTTCAATAAGACCGGCCAGCGAGTCTACTTGCACCTCCGGCGGACCCGGCGCCCGAAAGAGGAGGACCCTGCTACAGGCACTGGAGACCCACCCCGGAAGAAGCCCACGCGGCTGGCTATTGGTGTTGAAGGCGGATTTGACCTTAGCGAGGAGAAGTTTGAATTAGACGAGGATGTGAAGATTGTCATTTTGCCAGATTACCTGGAGATTGCCCGGGATGGACTGGGGGGACTGCCTGACATTGTCAGAGATCGGGTGACCAGTGCAGTGGAGGCCCTACTGTCGGCCGACTCAGCCTCCCGCAAGCAGGAGGTGCAGGCATGGGATGGGGAAGTACGGCAGGTGTCTAAGCATGCCTTCAGCCTCAAGCAGTTGGACAACCCTGCTCGAATCCCTCCCTGTGGCTGGAAGTGCTCCAAGTGTGACATGAGAGAGAACCTGTGGCTCAACCTGACTGATGGCTCCATCCTCTGTGGGCGACGCTACTTCGATGGCAGTGGGGGCAACAACCACGCTGTGGAGCACTACCGAGAGACAGGCTACCCGTTAGCTGTCAAGCTGGGCACCATCACCCCTGATGGAGCTGACGTGgcgTCATATGATGAGGATGACATGGTCCTGGACCCCAGCCTGGCTGAGCACCTGTCCCACTTCGGCATCGACATGCTGAAGATGCAGAAGACAGACAAGACGATGACTGAGTTGGAGATAGACATGAACCAGCGGATTGGTGAATGGGAGCTGATCCAGGAGTCAGGTGTGCCACTCAAGCCCCTGTTTGGGCCTGGCTACACAGGCATCCGGAACCTGGGTAACAGCTGCTACCTCAACTCTGTGGTCCAGGTGCTCTTCAGCATCCCTGACTTCCAGAGGAAGTATGTGGATAAGCTGGAGAAGATCTTCCAGAATGCCCCGACGGACCCTACCCAGGATTTCAGCACCCAGGTGGCCAAGCTGGGCCATGGCCTTCTCTCCGGGGAGTATTCCAAGCCAGTACCGGAGTCGGGCGATGGGGAGCGGGTGCCAGAACAGAAGGAAGTTCAAGATGGCATTGCCCCTCGGATGTTCAAGGCCCTCATCGGCAAGGGCCACCCTGAATTCTCCACCAACCGGCAGCAGGATGCCCAGGAGTTCTTCCTTCACCTTATCAACATGGTGGAGAGGAATTGCCGGAGCTCTGAAAATCCTAATGAAGTGTTCCGCTTCTTGGTGGAGGAAAAGATCAAGTGCCTGGCCACAGAGAAGGTGAAGTACACCCAGCGAGTTGACTACATCATGCAGCTGCCTGTGCCCATGGATGCAGCCCTTAACAAAGAGGAGCTTCTGGAGTACGAGGAGAAGAAGCGGCAAGCCGAAGAGGAGAAGATGGCACTGCCAGAACTGGTTCGGGCCCAGGTGCCCTTCAGCTCTTGCCTGGAGGCCTACGGGGCCCCTGAGCAGGTCGATGACTTCTGGAGCACGGCCCTGCAGGCCAAGTCAGTAGCTGTCAAGACCACACGATTTGCCTCATTCCCTGACTACCTGGTCATCCAGATCAAGAAGTTCACCTTCGGCTTAGACTGGGTGCCCAAGAAACTGGATGTGTCCATCGAGATGCCAGAGGAGCTCGACATCTCCCAGTTGAGGGGCACAGGGCTGCAGCCCGGAGAGGAGGAGCTGCCAGACATTGCCCCACCCCTGGTCACTCCGGATGAGCCCAAAGCGCCCATGCTGGATGAATCAGTCATCATCCAGCTGGTGGAGATGGGATTCCCTATGGACGCCTGCCGCAAAGCTGTCTACTACACGGGCAACAGCGGGGCTGAGGCCGCCATGAACTGGGTCATGTCACACATGGATGATCCAGATTTTGCAAACCCCCTCATCCTGCCTGGCTCTAGTGGGCCGGGCTCCACAAGCGCAGCAGCCGACCCCCCTCCTGAGGACTGTGTGACCACCATTGTCTCCATGGGCTTCTCCCGGGACCAGGCCTTGAAAGCGCTGCGGGCCACGAACAATAGTTTAGAACGGGCTGTGGACTGGATCTTCAGTCACATTGACGACCTGGATGCTGAAGCTGCCATGGACATCTCAGAGGGCCGCTCAGCTGCCGACTCCATCTCTGAGTCTGTGCCAGTGGGACCTAAAGTCCGGGATGGTCCTGGAAAGTATCAGCTCTTTGCCTTCATTAGTCACATGGGCACCTCTACCATGTGTGGTCACTACGTCTGCCACATCAAGAAAGAAGGCAGATGGGTGATCTACAATGACCAGAAAGTGTGTGCCTCCGAGAAGCCGCCCAAGGACCTGGGCTACATCTACTTCTACCAGAGAGTGGCCAGCggtggaagtggtcatcaccaccatcatcactgatgacgaagcttgcggccgcactcgagcaccaccaccaccaccactgagatccggctgctaacaaagcccgaa",2733,"CKKKGRMCGGWACATTCCCCTCTAGAATAATTTTGTTTAACTTTAAGAAGGAGATATACCATGAGCGGCCTGAACGATATTTTTGAAGCGCAGAAAATTGAATGGCATGAAGGCAGCGCTGGAGGTTCAGGTATGGCGGAGCTGAGTGAGGAGGCGCTGCTGTCAGTATTACCGACGATCCGGGTCCCTAAGGCTGGAGACCGGGTCCACAAAGACGAGTGCGCCTTCTCCTTCGACACGCCGGAGTCTGAGGGGGGCCTCTACATCTGTATGAACACGTTTCTGGGCTTTGGGAAACAGTATGTGGAGAGACATTTCAATAAGACCGGTCAGCGAGTCTACTTGCACCTCCGGCGGACCCGGCGCCCGAAAGAGGAGGACCCTGCTACAGGCACTGGAGACCCACCCCGGAAGAAGCCCACGCGGCTGGCTATTGGTGTTGAAGGCGGATTTGACCTTAGCGAGGAGAAGTTTGAATTAGACGAGGATGTGAAGATTGTCATTTTGCCAGATTACCTGGAGATTGCCCGGGATGGACTGGGGGGACTGCCTGACATTGTCAGAGATCGGGTGACCAGTGCAGTGGAGGCCCTACTGTCGGCCGACTCAGCCTCCCGCAAGCAGGAGGTGCAGGCATGGGATGGGGAAGTACGGCAGGTGTCTAAGCATGCCTTCAGCCTCAAGCAGTTGGACAACCCTGCTCGAATCCCTCCCTGTGGCTGGAAGTGCTCCAAGTGTGACATGAGAGAGAACCTGTGGCTCAACCTGACTGATGGCTCCATCCTCTGTGGGCGACGCTACTTCGATGGCAGTGGGGGCAACAACCACGCTGTGGAGCACTACCGAGAGACAGGCTACCCGTTAGCTGTCAAGCTGGGCACCATCACCCCTGATGGAGCTGACGTGGCGTCATATGATGAGGATGACATGGTCCTGGACCCCAGCCTGGCTGAGCACCTGTCCCACTTCGGCATCGACATGCTGAAGATGCAGAAGACAGACAAGACGATGACTGAGTTGGAGATAGACATGAACCAGCGGATTGGTGAATGGGAGCTGATCCAGGAGTCAGGTGTGCCACTCAAGCCCCTGTTTGGGCCTGGCTACACAGGCATCCGGAACCTGGGTAACAGCTGCTACCTCAACTCTGTGGTCCAGGTGCTCTTCAGCATCCCTGACTTCCAGAGGAAGTATGTGGATAAGCTGGAGAAGATCTTCCAGAATGCCCCGACGGACCCTACCCAGGATTTCAGCACCCAGGTGGCCAAGCTGGGCCATGGCCTTCTCTCCGGGGAGTATTCCAAGCCAGTACCGGAGTCGGGCGATGGGGAGCGGGTGCCAGAACAGAAGGAAGTTCAAGATGGCATTGCCCCTCGGATGTTCAAGGCCCTCATCGGCAAGGGCCACCCTGAATTCTCCACCAACCGGCAGCAGGATGCCCAGGAGTTCTTCCTTCACCTTATCAACATGGTGGAGAGGAATTGCCGGAGCTCTGAAAATCCTAATGAAGTGTTCCGCTTCTTGGTGGAGGAAAAGATCAAGTGCCTGGCCACAGAGAAGGTGAAGTACACCCAGCGAGTTGACTACATCATGCAGCTGCCTGTGCCCATGGATGCAGCCCTTAACAAAGAGGAGCTTCTGGAGTACGAGGAGAAGAAGCGGCAAGCCGAAGAGGAGAAGATGGCACTGCCAGAACTGGTTCGGGCCCAGGTGCCCTTCAGCTCTTGCCTGGAGGCCTACGGGGCCCCTGAGCAGGTCGATGACTTCTGGAGCACGGCCCTGCAGGCCAAGTCAGTAGCTGTCAAGACCACACGATTTGCCTCATTCCCTGACTACCTGGTCATCCAGATCAAGAAGTTCACCTTCGGCTTAGACTGGGTGCCCAAGAAACTGGATGTGTCCATCGAGATGCCAGAGGAGCTCGACATCTCCCAGTTGAGGGGCACAGGGCTGCAGCCCGGAGAGGAGGAGCTGCCAGACATTGCCCCACCCCTGGTCACTCCGGATGAGCCCAAAGCGCCCATGCTGGATGAATCAGTCATCATCCAGCTGGTGGAGATGGGATTCCCTATGGACGCCTGCCGCAAAGCTGTCTACTACACGGGCAACAGCGGGGCTGAGGCCGCCATGAACTGGGTCATGTCACACATGGATGATCCAGATTTTGCAAACCCCCTCATCCTGCCTGGCTCTAGTGGGCCGGGCTCCACAAGCGCAGCAGCCGACCCCCCTCCTGAGGACTGTGTGACCACCATTGTCTCCATGGGCTTCTCCCGGGACCAGGCCTTGAAAGCGCTGCGGGCCACGAACAATAGTTTAGAACGGGCTGTGGACTGGATCTTCAGTCACATTGACGACCTGGATGCTGAAGCTGCCATGGACATcTCAGAGGGCCGCTCAGCTGCCGACTCCATCTCTGAGTCTGTGCCAGTGGGACCTAAAGTCCGGGATGGTCCTGGAAAGTATCAGCTCTTTGCCTTCATTAGTCACATGGGCACCTCTACCATGTGTGGTCACTACGTCTGCCACATCAAGAAAGAAGGCAGATGGGTGATCTACAATGACCAGAAAGTGTGTGCCTCCGAGAAGCCGCCCAAGGACCTGGGCTACATCTACTTcTacCAgAGAgTGgcCAGCGGTGGAAGTGGTCATCACCaCCaTCATCaCTGATGACGAAGCTTGCGgCCGCACTCGAGCACCACCACCACCACCACTGAGATCCGGCTGCTAACAAAGCCMGAAAGAAGCKAGTGWSCCAC",2759,null,"p28BIOH-LIC","acaattcccctctagaaataattttgtttaactttaagaaggagatataccatgagcggcctgaacgatatttttgaagcgcagaaaattgaatggcatgaaggcagcgctggaggttcaggt","ggtggaagtggtcatcaccaccatcatcactgatgacgaagcttgcggccgcactcgagcaccaccaccaccaccactgagatccggctgctaacaaagcccgaa",null,null,null,null,null,null,null,null,null,null,null,null,null,null,"AU25-C3"]
[243625,"USP05:TOC023-A09:C243625","TOC023","A09","TOC023A09","USP05",null,null,"AU25-C3","USP05_1-835__bio_D264A",1,835,"MAELSEEALLSVLPTIRVPKAGDRVHKDECAFSFDTPESEGGLYICMNTFLGFGKQYVERHFNKTGQRVYLHLRRTRRPKEEDPATGTGDPPRKKPTRLAIGVEGGFDLSEEKFELDEDVKIVILPDYLEIARDGLGGLPDIVRDRVTSAVEALLSADSASRKQEVQAWDGEVRQVSKHAFSLKQLDNPARIPPCGWKCSKCDMRENLWLNLTDGSILCGRRYFDGSGGNNHAVEHYRETGYPLAVKLGTITPDGADVYSYDEaDMVLDPSLAEHLSHFGIDMLKMQKTDKTMTELEIDMNQRIGEWELIQESGVPLKPLFGPGYTGIRNLGNSCYLNSVVQVLFSIPDFQRKYVDKLEKIFQNAPTDPTQDFSTQVAKLGHGLLSGEYSKPVPESGDGERVPEQKEVQDGIAPRMFKALIGKGHPEFSTNRQQDAQEFFLHLINMVERNCRSSENPNEVFRFLVEEKIKCLATEKVKYTQRVDYIMQLPVPMDAALNKEELLEYEEKKRQAEEEKMALPELVRAQVPFSSCLEAYGAPEQVDDFWSTALQAKSVAVKTTRFASFPDYLVIQIKKFTFGLDWVPKKLDVSIEMPEELDISQLRGTGLQPGEEELPDIAPPLVTPDEPKAPMLDESVIIQLVEMGFPMDACRKAVYYTGNSGAEAAMNWVMSHMDDPDFANPLILPGSSGPGSTSAAADPPPEDCVTTIVSMGFSRDQALKALRATNNSLERAVDWIFSHIDDLDAEAAMDISEGRSAADSISESVPVGPKVRDGPGKYQLFAFISHMGTSTMCGHYVCHIKKEGRWVIYNDQKVCASEKPPKDLGYIYFYQRVAS",835,"ATGGCGGAGCTGAGTGAGGAGGCGCTGCTGTCAGTATTACCGACGATCCGGGTCCCTAAGGCTGGAGACCGGGTCCACAAAGACGAGTGCGCCTTCTCCTTCGACACGCCGGAGTCTGAGGGGGGCCTCTACATCTGTATGAACACGTTTCTGGGCTTTGGGAAACAGTATGTGGAGAGACATTTCAATAAGACCGGCCAGCGAGTCTACTTGCACCTCCGGCGGACCCGGCGCCCGAAAGAGGAGGACCCTGCTACAGGCACTGGAGACCCACCCCGGAAGAAGCCCACGCGGCTGGCTATTGGTGTTGAAGGCGGATTTGACCTTAGCGAGGAGAAGTTTGAATTAGACGAGGATGTGAAGATTGTCATTTTGCCAGATTACCTGGAGATTGCCCGGGATGGACTGGGGGGACTGCCTGACATTGTCAGAGATCGGGTGACCAGTGCAGTGGAGGCCCTACTGTCGGCCGACTCAGCCTCCCGCAAGCAGGAGGTGCAGGCATGGGATGGGGAAGTACGGCAGGTGTCTAAGCATGCCTTCAGCCTCAAGCAGTTGGACAACCCTGCTCGAATCCCTCCCTGTGGCTGGAAGTGCTCCAAGTGTGACATGAGAGAGAACCTGTGGCTCAACCTGACTGATGGCTCCATCCTCTGTGGGCGACGCTACTTCGATGGCAGTGGGGGCAACAACCACGCTGTGGAGCACTACCGAGAGACAGGCTACCCGTTAGCTGTCAAGCTGGGCACCATCACCCCTGATGGAGCTGACGTGTACTCATATGATGAGgcgGACATGGTCCTGGACCCCAGCCTGGCTGAGCACCTGTCCCACTTCGGCATCGACATGCTGAAGATGCAGAAGACAGACAAGACGATGACTGAGTTGGAGATAGACATGAACCAGCGGATTGGTGAATGGGAGCTGATCCAGGAGTCAGGTGTGCCACTCAAGCCCCTGTTTGGGCCTGGCTACACAGGCATCCGGAACCTGGGTAACAGCTGCTACCTCAACTCTGTGGTCCAGGTGCTCTTCAGCATCCCTGACTTCCAGAGGAAGTATGTGGATAAGCTGGAGAAGATCTTCCAGAATGCCCCGACGGACCCTACCCAGGATTTCAGCACCCAGGTGGCCAAGCTGGGCCATGGCCTTCTCTCCGGGGAGTATTCCAAGCCAGTACCGGAGTCGGGCGATGGGGAGCGGGTGCCAGAACAGAAGGAAGTTCAAGATGGCATTGCCCCTCGGATGTTCAAGGCCCTCATCGGCAAGGGCCACCCTGAATTCTCCACCAACCGGCAGCAGGATGCCCAGGAGTTCTTCCTTCACCTTATCAACATGGTGGAGAGGAATTGCCGGAGCTCTGAAAATCCTAATGAAGTGTTCCGCTTCTTGGTGGAGGAAAAGATCAAGTGCCTGGCCACAGAGAAGGTGAAGTACACCCAGCGAGTTGACTACATCATGCAGCTGCCTGTGCCCATGGATGCAGCCCTTAACAAAGAGGAGCTTCTGGAGTACGAGGAGAAGAAGCGGCAAGCCGAAGAGGAGAAGATGGCACTGCCAGAACTGGTTCGGGCCCAGGTGCCCTTCAGCTCTTGCCTGGAGGCCTACGGGGCCCCTGAGCAGGTCGATGACTTCTGGAGCACGGCCCTGCAGGCCAAGTCAGTAGCTGTCAAGACCACACGATTTGCCTCATTCCCTGACTACCTGGTCATCCAGATCAAGAAGTTCACCTTCGGCTTAGACTGGGTGCCCAAGAAACTGGATGTGTCCATCGAGATGCCAGAGGAGCTCGACATCTCCCAGTTGAGGGGCACAGGGCTGCAGCCCGGAGAGGAGGAGCTGCCAGACATTGCCCCACCCCTGGTCACTCCGGATGAGCCCAAAGCGCCCATGCTGGATGAATCAGTCATCATCCAGCTGGTGGAGATGGGATTCCCTATGGACGCCTGCCGCAAAGCTGTCTACTACACGGGCAACAGCGGGGCTGAGGCCGCCATGAACTGGGTCATGTCACACATGGATGATCCAGATTTTGCAAACCCCCTCATCCTGCCTGGCTCTAGTGGGCCGGGCTCCACAAGCGCAGCAGCCGACCCCCCTCCTGAGGACTGTGTGACCACCATTGTCTCCATGGGCTTCTCCCGGGACCAGGCCTTGAAAGCGCTGCGGGCCACGAACAATAGTTTAGAACGGGCTGTGGACTGGATCTTCAGTCACATTGACGACCTGGATGCTGAAGCTGCCATGGACATCTCAGAGGGCCGCTCAGCTGCCGACTCCATCTCTGAGTCTGTGCCAGTGGGACCTAAAGTCCGGGATGGTCCTGGAAAGTATCAGCTCTTTGCCTTCATTAGTCACATGGGCACCTCTACCATGTGTGGTCACTACGTCTGCCACATCAAGAAAGAAGGCAGATGGGTGATCTACAATGACCAGAAAGTGTGTGCCTCCGAGAAGCCGCCCAAGGACCTGGGCTACATCTACTTCTACCAGAGAGTGGCCAGC",2505,"no","msglndifeaqkiewhegsaggsgMAELSEEALLSVLPTIRVPKAGDRVHKDECAFSFDTPESEGGLYICMNTFLGFGKQYVERHFNKTGQRVYLHLRRTRRPKEEDPATGTGDPPRKKPTRLAIGVEGGFDLSEEKFELDEDVKIVILPDYLEIARDGLGGLPDIVRDRVTSAVEALLSADSASRKQEVQAWDGEVRQVSKHAFSLKQLDNPARIPPCGWKCSKCDMRENLWLNLTDGSILCGRRYFDGSGGNNHAVEHYRETGYPLAVKLGTITPDGADVYSYDEaDMVLDPSLAEHLSHFGIDMLKMQKTDKTMTELEIDMNQRIGEWELIQESGVPLKPLFGPGYTGIRNLGNSCYLNSVVQVLFSIPDFQRKYVDKLEKIFQNAPTDPTQDFSTQVAKLGHGLLSGEYSKPVPESGDGERVPEQKEVQDGIAPRMFKALIGKGHPEFSTNRQQDAQEFFLHLINMVERNCRSSENPNEVFRFLVEEKIKCLATEKVKYTQRVDYIMQLPVPMDAALNKEELLEYEEKKRQAEEEKMALPELVRAQVPFSSCLEAYGAPEQVDDFWSTALQAKSVAVKTTRFASFPDYLVIQIKKFTFGLDWVPKKLDVSIEMPEELDISQLRGTGLQPGEEELPDIAPPLVTPDEPKAPMLDESVIIQLVEMGFPMDACRKAVYYTGNSGAEAAMNWVMSHMDDPDFANPLILPGSSGPGSTSAAADPPPEDCVTTIVSMGFSRDQALKALRATNNSLERAVDWIFSHIDDLDAEAAMDISEGRSAADSISESVPVGPKVRDGPGKYQLFAFISHMGTSTMCGHYVCHIKKEGRWVIYNDQKVCASEKPPKDLGYIYFYQRVASgggshhhhhh",null,"p28BIOH-LIC","gctggaggttcaggtATGGCGGAGCTGAGTGAGGAG","CCATGTCcgcCTCATCATATGAGTACACG","TGATGAGgcgGACATGGTCCTGGACCCCAG","atgaccacttccaccGCTGGCCACTCTCTGGTAGAAG","DH5-Alpha","ploppnau","LIC-Infusion","Y",null,"2019-03-06",null,null,"PAGE19-00043","A09 is 100%","acaattcccctctagaaataattttgtttaactttaagaaggagatataccatgagcggcctgaacgatatttttgaagcgcagaaaattgaatggcatgaaggcagcgctggaggttcaggtATGGCGGAGCTGAGTGAGGAGGCGCTGCTGTCAGTATTACCGACGATCCGGGTCCCTAAGGCTGGAGACCGGGTCCACAAAGACGAGTGCGCCTTCTCCTTCGACACGCCGGAGTCTGAGGGGGGCCTCTACATCTGTATGAACACGTTTCTGGGCTTTGGGAAACAGTATGTGGAGAGACATTTCAATAAGACCGGCCAGCGAGTCTACTTGCACCTCCGGCGGACCCGGCGCCCGAAAGAGGAGGACCCTGCTACAGGCACTGGAGACCCACCCCGGAAGAAGCCCACGCGGCTGGCTATTGGTGTTGAAGGCGGATTTGACCTTAGCGAGGAGAAGTTTGAATTAGACGAGGATGTGAAGATTGTCATTTTGCCAGATTACCTGGAGATTGCCCGGGATGGACTGGGGGGACTGCCTGACATTGTCAGAGATCGGGTGACCAGTGCAGTGGAGGCCCTACTGTCGGCCGACTCAGCCTCCCGCAAGCAGGAGGTGCAGGCATGGGATGGGGAAGTACGGCAGGTGTCTAAGCATGCCTTCAGCCTCAAGCAGTTGGACAACCCTGCTCGAATCCCTCCCTGTGGCTGGAAGTGCTCCAAGTGTGACATGAGAGAGAACCTGTGGCTCAACCTGACTGATGGCTCCATCCTCTGTGGGCGACGCTACTTCGATGGCAGTGGGGGCAACAACCACGCTGTGGAGCACTACCGAGAGACAGGCTACCCGTTAGCTGTCAAGCTGGGCACCATCACCCCTGATGGAGCTGACGTGTACTCATATGATGAGgcgGACATGGTCCTGGACCCCAGCCTGGCTGAGCACCTGTCCCACTTCGGCATCGACATGCTGAAGATGCAGAAGACAGACAAGACGATGACTGAGTTGGAGATAGACATGAACCAGCGGATTGGTGAATGGGAGCTGATCCAGGAGTCAGGTGTGCCACTCAAGCCCCTGTTTGGGCCTGGCTACACAGGCATCCGGAACCTGGGTAACAGCTGCTACCTCAACTCTGTGGTCCAGGTGCTCTTCAGCATCCCTGACTTCCAGAGGAAGTATGTGGATAAGCTGGAGAAGATCTTCCAGAATGCCCCGACGGACCCTACCCAGGATTTCAGCACCCAGGTGGCCAAGCTGGGCCATGGCCTTCTCTCCGGGGAGTATTCCAAGCCAGTACCGGAGTCGGGCGATGGGGAGCGGGTGCCAGAACAGAAGGAAGTTCAAGATGGCATTGCCCCTCGGATGTTCAAGGCCCTCATCGGCAAGGGCCACCCTGAATTCTCCACCAACCGGCAGCAGGATGCCCAGGAGTTCTTCCTTCACCTTATCAACATGGTGGAGAGGAATTGCCGGAGCTCTGAAAATCCTAATGAAGTGTTCCGCTTCTTGGTGGAGGAAAAGATCAAGTGCCTGGCCACAGAGAAGGTGAAGTACACCCAGCGAGTTGACTACATCATGCAGCTGCCTGTGCCCATGGATGCAGCCCTTAACAAAGAGGAGCTTCTGGAGTACGAGGAGAAGAAGCGGCAAGCCGAAGAGGAGAAGATGGCACTGCCAGAACTGGTTCGGGCCCAGGTGCCCTTCAGCTCTTGCCTGGAGGCCTACGGGGCCCCTGAGCAGGTCGATGACTTCTGGAGCACGGCCCTGCAGGCCAAGTCAGTAGCTGTCAAGACCACACGATTTGCCTCATTCCCTGACTACCTGGTCATCCAGATCAAGAAGTTCACCTTCGGCTTAGACTGGGTGCCCAAGAAACTGGATGTGTCCATCGAGATGCCAGAGGAGCTCGACATCTCCCAGTTGAGGGGCACAGGGCTGCAGCCCGGAGAGGAGGAGCTGCCAGACATTGCCCCACCCCTGGTCACTCCGGATGAGCCCAAAGCGCCCATGCTGGATGAATCAGTCATCATCCAGCTGGTGGAGATGGGATTCCCTATGGACGCCTGCCGCAAAGCTGTCTACTACACGGGCAACAGCGGGGCTGAGGCCGCCATGAACTGGGTCATGTCACACATGGATGATCCAGATTTTGCAAACCCCCTCATCCTGCCTGGCTCTAGTGGGCCGGGCTCCACAAGCGCAGCAGCCGACCCCCCTCCTGAGGACTGTGTGACCACCATTGTCTCCATGGGCTTCTCCCGGGACCAGGCCTTGAAAGCGCTGCGGGCCACGAACAATAGTTTAGAACGGGCTGTGGACTGGATCTTCAGTCACATTGACGACCTGGATGCTGAAGCTGCCATGGACATCTCAGAGGGCCGCTCAGCTGCCGACTCCATCTCTGAGTCTGTGCCAGTGGGACCTAAAGTCCGGGATGGTCCTGGAAAGTATCAGCTCTTTGCCTTCATTAGTCACATGGGCACCTCTACCATGTGTGGTCACTACGTCTGCCACATCAAGAAAGAAGGCAGATGGGTGATCTACAATGACCAGAAAGTGTGTGCCTCCGAGAAGCCGCCCAAGGACCTGGGCTACATCTACTTCTACCAGAGAGTGGCCAGCggtggaagtggtcatcaccaccatcatcactgatgacgaagcttgcggccgcactcgagcaccaccaccaccaccactgagatccggctgctaacaaagcccgaa",2733,"GAGGGGRCGGWACATTCCCTCTAGAATAATTTTGTTTAACTTTAAGAAGGAGATATACCATGAGCGGCCTGAACGATATTTTTGAAGCGCAGAAAATTGAATGGCATGAAGGCAGCGCTGGAGGTTCAGGTATGGCGGAGCTGAGTGAGGAGGCGCTGCTGTCAGTATTACCGACGATCCGGGTCCCTAAGGCTGGAGACCGGGTCCACAAAGACGAGTGCGCCTTCTCCTTCGACACGCCGGAGTCTGAGGGGGGCCTCTACATCTGTATGAACACGTTTCTGGGCTTTGGGAAACAGTATGTGGAGAGACATTTCAATAAGACCGGCCAGCGAGTCTACTTGCACCTCCGGCGGACCCGGCGCCCGAAAGAGGAGGACCCTGCTACAGGCACTGGAGACCCACCCCGGAAGAAGCCCACGCGGCTGGCTATTGGTGTTGAAGGCGGATTTGACCTTAGCGAGGAGAAGTTTGAATTAGACGAGGATGTGAAGATTGTCATTTTGCCAGATTACCTGGAGATTGCCCGGGATGGACTGGGGGGACTGCCTGACATTGTCAGAGATCGGGTGACCAGTGCAGTGGAGGCCCTACTGTCGGCCGACTCAGCCTCCCGCAAGCAGGAGGTGCAGGCATGGGATGGGGAAGTACGGCAGGTGTCTAAGCATGCCTTCAGCCTCAAGCAGTTGGACAACCCTGCTCGAATCCCTCCCTGTGGCTGGAAGTGCTCCAAGTGTGACATGAGAGAGAACCTGTGGCTCAACCTGACTGATGGCTCCATCCTCTGTGGGCGACGCTACTTCGATGGCAGTGGGGGCAACAACCACGCTGTGGAGCACTACCGAGAGACAGGCTACCCGTTAGCTGTCAAGCTGGGCACCATCACCCCTGATGGAGCTGACGTGTACTCATATGATGAGGCGGACATGGTCCTGGACCCCAGCCTGGCTGAGCACCTGTCCCACTTCGGCATCGACATGCTGAAGATGCAGAAGACAGACAAGACGATGACTGAGTTGGAGATAGACATGAACCAGCGGATTGGTGAATGGGAGCTGATCCAGGAGTCAGGTGTGCCACTCAAGCCCCTGTTTGGGCCTGGCTACACAGGCATCCGGAACCTGGGTAACAGCTGCTACCTCAACTCTGTGGTCCAGGTGCTCTTCAGCATCCCTGACTTCCAGAGGAAGTATGTGGATAAGCTGGAGAAGATCTTCCAGAATGCCCCGACGGACCCTACCCAGGATTTCAGCACCCAGGTGGCCAAGCTGGGCCATGGCCTTCTCTCCGGGGAGTATTCCAAGCCAGTACCGGAGTCGGGCGATGGGGAGCGGGTGCCAGAACAGAAGGAAGTTCAAGATGGCATTGCCCCTCGGATGTTCAAGGCCCTCATCGGCAAGGGCCACCCTGAATTCTCCACCAACCGGCAGCAGGATGCCCAGGAGTTCTTCCTTCACCTTATCAACATGGTGGAGAGGAATTGCCGGAGCTCTGAAAATCCTAATGAAGTGTTCCGCTTCTTGGTGGAGGAAAAGATCAAGTGCCTGGCCACAGAGAAGGTGAAGTACACCCAGCGAGTTGACTACATCATGCAGCTGCCTGTGCCCATGGATGCAGCCCTTAACAAAGAGGAGCTTCTGGAGTACGAGGAGAAGAAGCGGCAAGCCGAAGAGGAGAAGATGGCACTGCCAGAACTGGTTCGGGCCCAGGTGCCCTTCAGCTCTTGCCTGGAGGCCTACGGGGCCCCTGAGCAGGTCGATGACTTCTGGAGCACGGCCCTGCAGGCCAAGTCAGTAGCTGTCAAGACCACACGATTTGCCTCATTCCCTGACTACCTGGTCATCCAGATCAAGAAGTTCACCTTCGGCTTAGACTGGGTGCCCAAGAAACTGGATGTGTCCATCGAGATGCCAGAGGAGCTCGACATCTCCCAGTTGAGGGGCACAGGGCTGCAGCCCGGAGAGGAGGAGCTGCCAGACATTGCCCCACCCCTGGTCACTCCGGATGAGCCCAAAGCGCCCATGCTGGATGAATCAGTCATCATCCAGCTGGTGGAGATGGGATTCCCTATGGACGCCTGCCGCAAAGCTGTCTACTACACGGGCAACAGCGGGGCTGAGGCCGCCATGAACTGGGTCATGTCACACATGGATGATCCAGATTTTGCAAACCCCCTCATCCTGCCTGGCTCTAGTGGGCCGGGCTCCACAAGCGCAGCAGCCGACCCCCCTCCTGAGGACTGTGTGACCACCATTGTCTCCATGGGCTTCTCCCGGGACCAGGCCTTGAAAGCGCTGCGGGCCACGAACAATAGTTTAGAACGGGCTGTGGACTGGATCTTCAGTCACATTGACGACCTGGATGCTGAAGCTGCCATGGACATCTCAGAGGGCCGCTCAGCTGCCGACTCCATCTCTGAGTCTGTGCCAGTGGGACCTAAAGTCCGGGATGGTCCTGGAAAGTATCAGCTCTTTGCCTTCATTAGTCACATGGGCACCTCTACCATGTGTGGTCACTACGTCTGCCACATCAAGAAAGAAGGCAGATGGGTGATCTACAATGACCAGAAAGTGTGTGCCTCCGAGAAGCCGCCCAAGGACCTGGGCTACATCTACTTCTACCAGAGAGTGGCCAGCGGTGGAAGTGGTCATCACCACCATCATCACTGATGACGAAGCTTGCGGCCGCACTCGAGCACCACCACCACCACCACTGAGATCCGGCTGCTAACAAAGCCCGAAAGAAGCKAGTGGKKCC",2757,null,"p28BIOH-LIC","acaattcccctctagaaataattttgtttaactttaagaaggagatataccatgagcggcctgaacgatatttttgaagcgcagaaaattgaatggcatgaaggcagcgctggaggttcaggt","ggtggaagtggtcatcaccaccatcatcactgatgacgaagcttgcggccgcactcgagcaccaccaccaccaccactgagatccggctgctaacaaagcccgaa",null,null,null,null,null,null,null,null,null,null,null,null,null,null,"AU25-C3"]
[243626,"USP05:TOC023-A10:C243626","TOC023","A10","TOC023A10","USP05",null,null,"AU25-C3","USP05_1-835_bio_Y261F",1,835,"MAELSEEALLSVLPTIRVPKAGDRVHKDECAFSFDTPESEGGLYICMNTFLGFGKQYVERHFNKTGQRVYLHLRRTRRPKEEDPATGTGDPPRKKPTRLAIGVEGGFDLSEEKFELDEDVKIVILPDYLEIARDGLGGLPDIVRDRVTSAVEALLSADSASRKQEVQAWDGEVRQVSKHAFSLKQLDNPARIPPCGWKCSKCDMRENLWLNLTDGSILCGRRYFDGSGGNNHAVEHYRETGYPLAVKLGTITPDGADVYSfDEDDMVLDPSLAEHLSHFGIDMLKMQKTDKTMTELEIDMNQRIGEWELIQESGVPLKPLFGPGYTGIRNLGNSCYLNSVVQVLFSIPDFQRKYVDKLEKIFQNAPTDPTQDFSTQVAKLGHGLLSGEYSKPVPESGDGERVPEQKEVQDGIAPRMFKALIGKGHPEFSTNRQQDAQEFFLHLINMVERNCRSSENPNEVFRFLVEEKIKCLATEKVKYTQRVDYIMQLPVPMDAALNKEELLEYEEKKRQAEEEKMALPELVRAQVPFSSCLEAYGAPEQVDDFWSTALQAKSVAVKTTRFASFPDYLVIQIKKFTFGLDWVPKKLDVSIEMPEELDISQLRGTGLQPGEEELPDIAPPLVTPDEPKAPMLDESVIIQLVEMGFPMDACRKAVYYTGNSGAEAAMNWVMSHMDDPDFANPLILPGSSGPGSTSAAADPPPEDCVTTIVSMGFSRDQALKALRATNNSLERAVDWIFSHIDDLDAEAAMDISEGRSAADSISESVPVGPKVRDGPGKYQLFAFISHMGTSTMCGHYVCHIKKEGRWVIYNDQKVCASEKPPKDLGYIYFYQRVAS",835,"ATGGCGGAGCTGAGTGAGGAGGCGCTGCTGTCAGTATTACCGACGATCCGGGTCCCTAAGGCTGGAGACCGGGTCCACAAAGACGAGTGCGCCTTCTCCTTCGACACGCCGGAGTCTGAGGGGGGCCTCTACATCTGTATGAACACGTTTCTGGGCTTTGGGAAACAGTATGTGGAGAGACATTTCAATAAGACCGGCCAGCGAGTCTACTTGCACCTCCGGCGGACCCGGCGCCCGAAAGAGGAGGACCCTGCTACAGGCACTGGAGACCCACCCCGGAAGAAGCCCACGCGGCTGGCTATTGGTGTTGAAGGCGGATTTGACCTTAGCGAGGAGAAGTTTGAATTAGACGAGGATGTGAAGATTGTCATTTTGCCAGATTACCTGGAGATTGCCCGGGATGGACTGGGGGGACTGCCTGACATTGTCAGAGATCGGGTGACCAGTGCAGTGGAGGCCCTACTGTCGGCCGACTCAGCCTCCCGCAAGCAGGAGGTGCAGGCATGGGATGGGGAAGTACGGCAGGTGTCTAAGCATGCCTTCAGCCTCAAGCAGTTGGACAACCCTGCTCGAATCCCTCCCTGTGGCTGGAAGTGCTCCAAGTGTGACATGAGAGAGAACCTGTGGCTCAACCTGACTGATGGCTCCATCCTCTGTGGGCGACGCTACTTCGATGGCAGTGGGGGCAACAACCACGCTGTGGAGCACTACCGAGAGACAGGCTACCCGTTAGCTGTCAAGCTGGGCACCATCACCCCTGATGGAGCTGACGTGTACTCAtttGATGAGGATGACATGGTCCTGGACCCCAGCCTGGCTGAGCACCTGTCCCACTTCGGCATCGACATGCTGAAGATGCAGAAGACAGACAAGACGATGACTGAGTTGGAGATAGACATGAACCAGCGGATTGGTGAATGGGAGCTGATCCAGGAGTCAGGTGTGCCACTCAAGCCCCTGTTTGGGCCTGGCTACACAGGCATCCGGAACCTGGGTAACAGCTGCTACCTCAACTCTGTGGTCCAGGTGCTCTTCAGCATCCCTGACTTCCAGAGGAAGTATGTGGATAAGCTGGAGAAGATCTTCCAGAATGCCCCGACGGACCCTACCCAGGATTTCAGCACCCAGGTGGCCAAGCTGGGCCATGGCCTTCTCTCCGGGGAGTATTCCAAGCCAGTACCGGAGTCGGGCGATGGGGAGCGGGTGCCAGAACAGAAGGAAGTTCAAGATGGCATTGCCCCTCGGATGTTCAAGGCCCTCATCGGCAAGGGCCACCCTGAATTCTCCACCAACCGGCAGCAGGATGCCCAGGAGTTCTTCCTTCACCTTATCAACATGGTGGAGAGGAATTGCCGGAGCTCTGAAAATCCTAATGAAGTGTTCCGCTTCTTGGTGGAGGAAAAGATCAAGTGCCTGGCCACAGAGAAGGTGAAGTACACCCAGCGAGTTGACTACATCATGCAGCTGCCTGTGCCCATGGATGCAGCCCTTAACAAAGAGGAGCTTCTGGAGTACGAGGAGAAGAAGCGGCAAGCCGAAGAGGAGAAGATGGCACTGCCAGAACTGGTTCGGGCCCAGGTGCCCTTCAGCTCTTGCCTGGAGGCCTACGGGGCCCCTGAGCAGGTCGATGACTTCTGGAGCACGGCCCTGCAGGCCAAGTCAGTAGCTGTCAAGACCACACGATTTGCCTCATTCCCTGACTACCTGGTCATCCAGATCAAGAAGTTCACCTTCGGCTTAGACTGGGTGCCCAAGAAACTGGATGTGTCCATCGAGATGCCAGAGGAGCTCGACATCTCCCAGTTGAGGGGCACAGGGCTGCAGCCCGGAGAGGAGGAGCTGCCAGACATTGCCCCACCCCTGGTCACTCCGGATGAGCCCAAAGCGCCCATGCTGGATGAATCAGTCATCATCCAGCTGGTGGAGATGGGATTCCCTATGGACGCCTGCCGCAAAGCTGTCTACTACACGGGCAACAGCGGGGCTGAGGCCGCCATGAACTGGGTCATGTCACACATGGATGATCCAGATTTTGCAAACCCCCTCATCCTGCCTGGCTCTAGTGGGCCGGGCTCCACAAGCGCAGCAGCCGACCCCCCTCCTGAGGACTGTGTGACCACCATTGTCTCCATGGGCTTCTCCCGGGACCAGGCCTTGAAAGCGCTGCGGGCCACGAACAATAGTTTAGAACGGGCTGTGGACTGGATCTTCAGTCACATTGACGACCTGGATGCTGAAGCTGCCATGGACATCTCAGAGGGCCGCTCAGCTGCCGACTCCATCTCTGAGTCTGTGCCAGTGGGACCTAAAGTCCGGGATGGTCCTGGAAAGTATCAGCTCTTTGCCTTCATTAGTCACATGGGCACCTCTACCATGTGTGGTCACTACGTCTGCCACATCAAGAAAGAAGGCAGATGGGTGATCTACAATGACCAGAAAGTGTGTGCCTCCGAGAAGCCGCCCAAGGACCTGGGCTACATCTACTTCTACCAGAGAGTGGCCAGC",2505,"no","msglndifeaqkiewhegsaggsgMAELSEEALLSVLPTIRVPKAGDRVHKDECAFSFDTPESEGGLYICMNTFLGFGKQYVERHFNKTGQRVYLHLRRTRRPKEEDPATGTGDPPRKKPTRLAIGVEGGFDLSEEKFELDEDVKIVILPDYLEIARDGLGGLPDIVRDRVTSAVEALLSADSASRKQEVQAWDGEVRQVSKHAFSLKQLDNPARIPPCGWKCSKCDMRENLWLNLTDGSILCGRRYFDGSGGNNHAVEHYRETGYPLAVKLGTITPDGADVYSfDEDDMVLDPSLAEHLSHFGIDMLKMQKTDKTMTELEIDMNQRIGEWELIQESGVPLKPLFGPGYTGIRNLGNSCYLNSVVQVLFSIPDFQRKYVDKLEKIFQNAPTDPTQDFSTQVAKLGHGLLSGEYSKPVPESGDGERVPEQKEVQDGIAPRMFKALIGKGHPEFSTNRQQDAQEFFLHLINMVERNCRSSENPNEVFRFLVEEKIKCLATEKVKYTQRVDYIMQLPVPMDAALNKEELLEYEEKKRQAEEEKMALPELVRAQVPFSSCLEAYGAPEQVDDFWSTALQAKSVAVKTTRFASFPDYLVIQIKKFTFGLDWVPKKLDVSIEMPEELDISQLRGTGLQPGEEELPDIAPPLVTPDEPKAPMLDESVIIQLVEMGFPMDACRKAVYYTGNSGAEAAMNWVMSHMDDPDFANPLILPGSSGPGSTSAAADPPPEDCVTTIVSMGFSRDQALKALRATNNSLERAVDWIFSHIDDLDAEAAMDISEGRSAADSISESVPVGPKVRDGPGKYQLFAFISHMGTSTMCGHYVCHIKKEGRWVIYNDQKVCASEKPPKDLGYIYFYQRVASgggshhhhhh",null,"p28BIOH-LIC","gctggaggttcaggtATGGCGGAGCTGAGTGAGGAG","TCCTCATCaaaTGAGTACACGTCAGCTCCATC","GTACTCAtttGATGAGGATGACATGGTCCT","atgaccacttccaccGCTGGCCACTCTCTGGTAGAAG","DH5-Alpha","ploppnau","LIC-Infusion","Y",null,"2019-03-06",null,null,"PAGE19-00043","A10 is 100%","acaattcccctctagaaataattttgtttaactttaagaaggagatataccatgagcggcctgaacgatatttttgaagcgcagaaaattgaatggcatgaaggcagcgctggaggttcaggtATGGCGGAGCTGAGTGAGGAGGCGCTGCTGTCAGTATTACCGACGATCCGGGTCCCTAAGGCTGGAGACCGGGTCCACAAAGACGAGTGCGCCTTCTCCTTCGACACGCCGGAGTCTGAGGGGGGCCTCTACATCTGTATGAACACGTTTCTGGGCTTTGGGAAACAGTATGTGGAGAGACATTTCAATAAGACCGGCCAGCGAGTCTACTTGCACCTCCGGCGGACCCGGCGCCCGAAAGAGGAGGACCCTGCTACAGGCACTGGAGACCCACCCCGGAAGAAGCCCACGCGGCTGGCTATTGGTGTTGAAGGCGGATTTGACCTTAGCGAGGAGAAGTTTGAATTAGACGAGGATGTGAAGATTGTCATTTTGCCAGATTACCTGGAGATTGCCCGGGATGGACTGGGGGGACTGCCTGACATTGTCAGAGATCGGGTGACCAGTGCAGTGGAGGCCCTACTGTCGGCCGACTCAGCCTCCCGCAAGCAGGAGGTGCAGGCATGGGATGGGGAAGTACGGCAGGTGTCTAAGCATGCCTTCAGCCTCAAGCAGTTGGACAACCCTGCTCGAATCCCTCCCTGTGGCTGGAAGTGCTCCAAGTGTGACATGAGAGAGAACCTGTGGCTCAACCTGACTGATGGCTCCATCCTCTGTGGGCGACGCTACTTCGATGGCAGTGGGGGCAACAACCACGCTGTGGAGCACTACCGAGAGACAGGCTACCCGTTAGCTGTCAAGCTGGGCACCATCACCCCTGATGGAGCTGACGTGTACTCAtttGATGAGGATGACATGGTCCTGGACCCCAGCCTGGCTGAGCACCTGTCCCACTTCGGCATCGACATGCTGAAGATGCAGAAGACAGACAAGACGATGACTGAGTTGGAGATAGACATGAACCAGCGGATTGGTGAATGGGAGCTGATCCAGGAGTCAGGTGTGCCACTCAAGCCCCTGTTTGGGCCTGGCTACACAGGCATCCGGAACCTGGGTAACAGCTGCTACCTCAACTCTGTGGTCCAGGTGCTCTTCAGCATCCCTGACTTCCAGAGGAAGTATGTGGATAAGCTGGAGAAGATCTTCCAGAATGCCCCGACGGACCCTACCCAGGATTTCAGCACCCAGGTGGCCAAGCTGGGCCATGGCCTTCTCTCCGGGGAGTATTCCAAGCCAGTACCGGAGTCGGGCGATGGGGAGCGGGTGCCAGAACAGAAGGAAGTTCAAGATGGCATTGCCCCTCGGATGTTCAAGGCCCTCATCGGCAAGGGCCACCCTGAATTCTCCACCAACCGGCAGCAGGATGCCCAGGAGTTCTTCCTTCACCTTATCAACATGGTGGAGAGGAATTGCCGGAGCTCTGAAAATCCTAATGAAGTGTTCCGCTTCTTGGTGGAGGAAAAGATCAAGTGCCTGGCCACAGAGAAGGTGAAGTACACCCAGCGAGTTGACTACATCATGCAGCTGCCTGTGCCCATGGATGCAGCCCTTAACAAAGAGGAGCTTCTGGAGTACGAGGAGAAGAAGCGGCAAGCCGAAGAGGAGAAGATGGCACTGCCAGAACTGGTTCGGGCCCAGGTGCCCTTCAGCTCTTGCCTGGAGGCCTACGGGGCCCCTGAGCAGGTCGATGACTTCTGGAGCACGGCCCTGCAGGCCAAGTCAGTAGCTGTCAAGACCACACGATTTGCCTCATTCCCTGACTACCTGGTCATCCAGATCAAGAAGTTCACCTTCGGCTTAGACTGGGTGCCCAAGAAACTGGATGTGTCCATCGAGATGCCAGAGGAGCTCGACATCTCCCAGTTGAGGGGCACAGGGCTGCAGCCCGGAGAGGAGGAGCTGCCAGACATTGCCCCACCCCTGGTCACTCCGGATGAGCCCAAAGCGCCCATGCTGGATGAATCAGTCATCATCCAGCTGGTGGAGATGGGATTCCCTATGGACGCCTGCCGCAAAGCTGTCTACTACACGGGCAACAGCGGGGCTGAGGCCGCCATGAACTGGGTCATGTCACACATGGATGATCCAGATTTTGCAAACCCCCTCATCCTGCCTGGCTCTAGTGGGCCGGGCTCCACAAGCGCAGCAGCCGACCCCCCTCCTGAGGACTGTGTGACCACCATTGTCTCCATGGGCTTCTCCCGGGACCAGGCCTTGAAAGCGCTGCGGGCCACGAACAATAGTTTAGAACGGGCTGTGGACTGGATCTTCAGTCACATTGACGACCTGGATGCTGAAGCTGCCATGGACATCTCAGAGGGCCGCTCAGCTGCCGACTCCATCTCTGAGTCTGTGCCAGTGGGACCTAAAGTCCGGGATGGTCCTGGAAAGTATCAGCTCTTTGCCTTCATTAGTCACATGGGCACCTCTACCATGTGTGGTCACTACGTCTGCCACATCAAGAAAGAAGGCAGATGGGTGATCTACAATGACCAGAAAGTGTGTGCCTCCGAGAAGCCGCCCAAGGACCTGGGCTACATCTACTTCTACCAGAGAGTGGCCAGCggtggaagtggtcatcaccaccatcatcactgatgacgaagcttgcggccgcactcgagcaccaccaccaccaccactgagatccggctgctaacaaagcccgaa",2733,"ATKWKGRRCGGWACATTCCCTCTAGAATAATTTTGTTTAACTTTAAGAAGGAGATATACCATGAGCGGCCTGAACGATATTTTTGAAGCGCAGAAAATTGAATGGCATGAAGGCAGCGCTGGAGGTTCAGGTATGGCGGAGCTGAGTGAGGAGGCGCTGCTGTCAGTATTACCGACGATCCGGGTCCCTAAGGCTGGAGACCGGGTCCACAAAGACGAGTGCGCCTTCTCCTTCGACACGCCGGAGTCTGAGGGGGGCCTCTACATCTGTATGAACACGTTTCTGGGCTTTGGGAAACAGTATGTGGAGAGACATTTCAATAAGACCGGCCAGCGAGTCTACTTGCACCTCCGGCGGACCCGGCGCCCGAAAGAGGAGGACCCTGCTACAGGCACTGGAGACCCACCCCGGAAGAAGCCCACGCGGCTGGCTATTGGTGTTGAAGGCGGATTTGACCTTAGCGAGGAGAAGTTTGAATTAGACGAGGATGTGAAGATTGTCATTTTGCCAGATTACCTGGAGATTGCCCGGGATGGACTGGGGGGACTGCCTGACATTGTCAGAGATCGGGTGACCAGTGCAGTGGAGGCCCTACTGTCGGCCGACTCAGCCTCCCGCAAGCAGGAGGTGCAGGCATGGGATGGGGAAGTACGGCAGGTGTCTAAGCATGCCTTCAGCCTCAAGCAGTTGGACAACCCTGCTCGAATCCCTCCCTGTGGCTGGAAGTGCTCCAAGTGTGACATGAGAGAGAACCTGTGGCTCAACCTGACTGATGGCTCCATCCTCTGTGGGCGACGCTACTTCGATGGCAGTGGGGGCAACAACCACGCTGTGGAGCACTACCGAGAGACAGGCTACCCGTTAGCTGTCAAGCTGGGCACCATCACCCCTGATGGAGCTGACGTGTACTCATTTGATGAGGATGACATGGTCCTGGACCCCAGCCTGGCTGAGCACCTGTCCCACTTCGGCATCGACATGCTGAAGATGCAGAAGACAGACAAGACGATGACTGAGTTGGAGATAGACATGAACCAGCGGATTGGTGAATGGGAGCTGATCCAGGAGTCAGGTGTGCCACTCAAGCCCCTGTTTGGGCCTGGCTACACAGGCATCCGGAACCTGGGTAACAGCTGCTACCTCAACTCTGTGGTCCAGGTGCTCTTCAGCATCCCTGACTTCCAGAGGAAGTATGTGGATAAGCTGGAGAAGATCTTCCAGAATGCCCCGACGGACCCTACCCAGGATTTCAGCACCCAGGTGGCCAAGCTGGGCCATGGCCTTCTCTCCGGGGAGTATTCCAAGCCAGTACCGGAGTCGGGCGATGGGGAGCGGGTGCCAGAACAGAAGGAAGTTCAAGATGGCATTGCCCCTCGGATGTTCAAGGCCCTCATCGGCAAGGGCCACCCTGAATTCTCCACCAACCGGCAGCAGGATGCCCAGGAGTTCTTCCTTCACCTTATCAACATGGTGGAGAGGAATTGCCGGAGCTCTGAAAATCCTAATGAAGTGTTCCGCTTCTTGGTGGAGGAAAAGATCAAGTGCCTGGCCACAGAGAAGGTGAAGTACACCCAGCGAGTTGACTACATCATGCAGCTGCCTGTGCCCATGGATGCAGCCCTTAACAAAGAGGAGCTTCTGGAGTACGAGGAGAAGAAGCGGCAAGCCGAAGAGGAGAAGATGGCACTGCCAGAACTGGTTCGGGCCCAGGTGCCCTTCAGCTCTTGCCTGGAGGCCTACGGGGCCCCTGAGCAGGTCGATGACTTCTGGAGCACGGCCCTGCAGGCCAAGTCAGTAGCTGTCAAGACCACACGATTTGCCTCATTCCCTGACTACCTGGTCATCCAGATCAAGAAGTTCACCTTCGGCTTAGACTGGGTGCCCAAGAAACTGGATGTGTCCATCGAGATGCCAGAGGAGCTCGACATCTCCCAGTTGAGGGGCACAGGGCTGCAGCCCGGAGAGGAGGAGCTGCCAGACATTGCCCCACCCCTGGTCACTCCGGATGAGCCCAAAGCGCCCATGCTGGATGAATCAGTCATCATCCAGCTGGTGGAGATGGGATTCCCTATGGACGCCTGCCGCAAAGCTGTCTACTACACGGGCAACAGCGGGGCTGAGGCCGCCATGAACTGGGTCATGTCACACATGGATGATCCAGATTTTGCAAACCCCCTCATCCTGCCTGGCTCTAGTGGGCCGGGCTCCACAAGCGCAGCAGCCGACCCCCCTCCTGAGGACTGTGTGACCACCATTGTCTCCATGGGCTTCTCCCGGGACCAGGCCTTGAAAGCGCTGCGGGCCACGAACAATAGTTTAGAACGGGCTGTGGACTGGATCTTCAGTCACATTGACGACCTGGATGCTGAAGCTGCCATGGACATCTCAGAGGGCCGCTCAGCTGCCGACTCCATCTCTGAGTCTGTGCCAGTGGGACCTAAAGTCCGGGATGGTCCTGGAAAGTATCAGCTCTTTGCCTTCATTAGTCACATGGGCACCTCTACCATGTGTGGTCACTACGTCTGCCACATCAAGAAAGAAGGCAGATGGGTGATCTACAATGACCAGAAAGTGTGTGCCTCCGAGAAGCCGCCCAAGGACCTGGGCTACATCTACTTCTACCAGAGAGTGGCCAGCGGTGGAAGTGGTCATCACCACCATCATCACTGATGACGAAGCTTGCGGCCGCACTCGAGCACCACCACCACCACCACTGAGATCCGGCTGCTAACAAAGCCCGAAAGAAGCKAGTGYKKCCC",2759,null,"p28BIOH-LIC","acaattcccctctagaaataattttgtttaactttaagaaggagatataccatgagcggcctgaacgatatttttgaagcgcagaaaattgaatggcatgaaggcagcgctggaggttcaggt","ggtggaagtggtcatcaccaccatcatcactgatgacgaagcttgcggccgcactcgagcaccaccaccaccaccactgagatccggctgctaacaaagcccgaa",null,null,null,null,null,null,null,null,null,null,null,null,null,null,"AU25-C3"]
[243627,"USP05:TOC023-A11:C243627","TOC023","A11","TOC023A11","USP05",null,null,"AU25-C3","USP05_1-835_bio_R221A_Y261F_W209A",1,835,"MAELSEEALLSVLPTIRVPKAGDRVHKDECAFSFDTPESEGGLYICMNTFLGFGKQYVERHFNKTGQRVYLHLRRTRRPKEEDPATGTGDPPRKKPTRLAIGVEGGFDLSEEKFELDEDVKIVILPDYLEIARDGLGGLPDIVRDRVTSAVEALLSADSASRKQEVQAWDGEVRQVSKHAFSLKQLDNPARIPPCGWKCSKCDMRENLaLNLTDGSILCGaRYFDGSGGNNHAVEHYRETGYPLAVKLGTITPDGADVYSfDEDDMVLDPSLAEHLSHFGIDMLKMQKTDKTMTELEIDMNQRIGEWELIQESGVPLKPLFGPGYTGIRNLGNSCYLNSVVQVLFSIPDFQRKYVDKLEKIFQNAPTDPTQDFSTQVAKLGHGLLSGEYSKPVPESGDGERVPEQKEVQDGIAPRMFKALIGKGHPEFSTNRQQDAQEFFLHLINMVERNCRSSENPNEVFRFLVEEKIKCLATEKVKYTQRVDYIMQLPVPMDAALNKEELLEYEEKKRQAEEEKMALPELVRAQVPFSSCLEAYGAPEQVDDFWSTALQAKSVAVKTTRFASFPDYLVIQIKKFTFGLDWVPKKLDVSIEMPEELDISQLRGTGLQPGEEELPDIAPPLVTPDEPKAPMLDESVIIQLVEMGFPMDACRKAVYYTGNSGAEAAMNWVMSHMDDPDFANPLILPGSSGPGSTSAAADPPPEDCVTTIVSMGFSRDQALKALRATNNSLERAVDWIFSHIDDLDAEAAMDISEGRSAADSISESVPVGPKVRDGPGKYQLFAFISHMGTSTMCGHYVCHIKKEGRWVIYNDQKVCASEKPPKDLGYIYFYQRVAS",835,"ATGGCGGAGCTGAGTGAGGAGGCGCTGCTGTCAGTATTACCGACGATCCGGGTCCCTAAGGCTGGAGACCGGGTCCACAAAGACGAGTGCGCCTTCTCCTTCGACACGCCGGAGTCTGAGGGGGGCCTCTACATCTGTATGAACACGTTTCTGGGCTTTGGGAAACAGTATGTGGAGAGACATTTCAATAAGACCGGCCAGCGAGTCTACTTGCACCTCCGGCGGACCCGGCGCCCGAAAGAGGAGGACCCTGCTACAGGCACTGGAGACCCACCCCGGAAGAAGCCCACGCGGCTGGCTATTGGTGTTGAAGGCGGATTTGACCTTAGCGAGGAGAAGTTTGAATTAGACGAGGATGTGAAGATTGTCATTTTGCCAGATTACCTGGAGATTGCCCGGGATGGACTGGGGGGACTGCCTGACATTGTCAGAGATCGGGTGACCAGTGCAGTGGAGGCCCTACTGTCGGCCGACTCAGCCTCCCGCAAGCAGGAGGTGCAGGCATGGGATGGGGAAGTACGGCAGGTGTCTAAGCATGCCTTCAGCCTCAAGCAGTTGGACAACCCTGCTCGAATCCCTCCCTGTGGCTGGAAGTGCTCCAAGTGTGACATGAGAGAGAACCTGgcgCTCAACCTGACTGATGGCTCCATCCTCTGTGGGgcgCGCTACTTCGATGGCAGTGGGGGCAACAACCACGCTGTGGAGCACTACCGAGAGACAGGCTACCCGTTAGCTGTCAAGCTGGGCACCATCACCCCTGATGGAGCTGACGTGTACTCAtttGATGAGGATGACATGGTCCTGGACCCCAGCCTGGCTGAGCACCTGTCCCACTTCGGCATCGACATGCTGAAGATGCAGAAGACAGACAAGACGATGACTGAGTTGGAGATAGACATGAACCAGCGGATTGGTGAATGGGAGCTGATCCAGGAGTCAGGTGTGCCACTCAAGCCCCTGTTTGGGCCTGGCTACACAGGCATCCGGAACCTGGGTAACAGCTGCTACCTCAACTCTGTGGTCCAGGTGCTCTTCAGCATCCCTGACTTCCAGAGGAAGTATGTGGATAAGCTGGAGAAGATCTTCCAGAATGCCCCGACGGACCCTACCCAGGATTTCAGCACCCAGGTGGCCAAGCTGGGCCATGGCCTTCTCTCCGGGGAGTATTCCAAGCCAGTACCGGAGTCGGGCGATGGGGAGCGGGTGCCAGAACAGAAGGAAGTTCAAGATGGCATTGCCCCTCGGATGTTCAAGGCCCTCATCGGCAAGGGCCACCCTGAATTCTCCACCAACCGGCAGCAGGATGCCCAGGAGTTCTTCCTTCACCTTATCAACATGGTGGAGAGGAATTGCCGGAGCTCTGAAAATCCTAATGAAGTGTTCCGCTTCTTGGTGGAGGAAAAGATCAAGTGCCTGGCCACAGAGAAGGTGAAGTACACCCAGCGAGTTGACTACATCATGCAGCTGCCTGTGCCCATGGATGCAGCCCTTAACAAAGAGGAGCTTCTGGAGTACGAGGAGAAGAAGCGGCAAGCCGAAGAGGAGAAGATGGCACTGCCAGAACTGGTTCGGGCCCAGGTGCCCTTCAGCTCTTGCCTGGAGGCCTACGGGGCCCCTGAGCAGGTCGATGACTTCTGGAGCACGGCCCTGCAGGCCAAGTCAGTAGCTGTCAAGACCACACGATTTGCCTCATTCCCTGACTACCTGGTCATCCAGATCAAGAAGTTCACCTTCGGCTTAGACTGGGTGCCCAAGAAACTGGATGTGTCCATCGAGATGCCAGAGGAGCTCGACATCTCCCAGTTGAGGGGCACAGGGCTGCAGCCCGGAGAGGAGGAGCTGCCAGACATTGCCCCACCCCTGGTCACTCCGGATGAGCCCAAAGCGCCCATGCTGGATGAATCAGTCATCATCCAGCTGGTGGAGATGGGATTCCCTATGGACGCCTGCCGCAAAGCTGTCTACTACACGGGCAACAGCGGGGCTGAGGCCGCCATGAACTGGGTCATGTCACACATGGATGATCCAGATTTTGCAAACCCCCTCATCCTGCCTGGCTCTAGTGGGCCGGGCTCCACAAGCGCAGCAGCCGACCCCCCTCCTGAGGACTGTGTGACCACCATTGTCTCCATGGGCTTCTCCCGGGACCAGGCCTTGAAAGCGCTGCGGGCCACGAACAATAGTTTAGAACGGGCTGTGGACTGGATCTTCAGTCACATTGACGACCTGGATGCTGAAGCTGCCATGGACATCTCAGAGGGCCGCTCAGCTGCCGACTCCATCTCTGAGTCTGTGCCAGTGGGACCTAAAGTCCGGGATGGTCCTGGAAAGTATCAGCTCTTTGCCTTCATTAGTCACATGGGCACCTCTACCATGTGTGGTCACTACGTCTGCCACATCAAGAAAGAAGGCAGATGGGTGATCTACAATGACCAGAAAGTGTGTGCCTCCGAGAAGCCGCCCAAGGACCTGGGCTACATCTACTTCTACCAGAGAGTGGCCAGC",2505,"no","msglndifeaqkiewhegsaggsgMAELSEEALLSVLPTIRVPKAGDRVHKDECAFSFDTPESEGGLYICMNTFLGFGKQYVERHFNKTGQRVYLHLRRTRRPKEEDPATGTGDPPRKKPTRLAIGVEGGFDLSEEKFELDEDVKIVILPDYLEIARDGLGGLPDIVRDRVTSAVEALLSADSASRKQEVQAWDGEVRQVSKHAFSLKQLDNPARIPPCGWKCSKCDMRENLaLNLTDGSILCGaRYFDGSGGNNHAVEHYRETGYPLAVKLGTITPDGADVYSfDEDDMVLDPSLAEHLSHFGIDMLKMQKTDKTMTELEIDMNQRIGEWELIQESGVPLKPLFGPGYTGIRNLGNSCYLNSVVQVLFSIPDFQRKYVDKLEKIFQNAPTDPTQDFSTQVAKLGHGLLSGEYSKPVPESGDGERVPEQKEVQDGIAPRMFKALIGKGHPEFSTNRQQDAQEFFLHLINMVERNCRSSENPNEVFRFLVEEKIKCLATEKVKYTQRVDYIMQLPVPMDAALNKEELLEYEEKKRQAEEEKMALPELVRAQVPFSSCLEAYGAPEQVDDFWSTALQAKSVAVKTTRFASFPDYLVIQIKKFTFGLDWVPKKLDVSIEMPEELDISQLRGTGLQPGEEELPDIAPPLVTPDEPKAPMLDESVIIQLVEMGFPMDACRKAVYYTGNSGAEAAMNWVMSHMDDPDFANPLILPGSSGPGSTSAAADPPPEDCVTTIVSMGFSRDQALKALRATNNSLERAVDWIFSHIDDLDAEAAMDISEGRSAADSISESVPVGPKVRDGPGKYQLFAFISHMGTSTMCGHYVCHIKKEGRWVIYNDQKVCASEKPPKDLGYIYFYQRVASgggshhhhhh",null,"p28BIOH-LIC","gctggaggttcaggtATGGCGGAGCTGAGTGAGGAG","AGTAGCGcgcCCCACAGAGGATGGAGCCATC","TGTGGGgcgCGCTACTTCGATGGCAGTG","atgaccacttccaccGCTGGCCACTCTCTGGTAGAAG","DH5-Alpha","ploppnau","LIC-Infusion","Y",null,"2019-03-06",null,null,"PAGE19-00043","A11 is 100%","acaattcccctctagaaataattttgtttaactttaagaaggagatataccatgagcggcctgaacgatatttttgaagcgcagaaaattgaatggcatgaaggcagcgctggaggttcaggtATGGCGGAGCTGAGTGAGGAGGCGCTGCTGTCAGTATTACCGACGATCCGGGTCCCTAAGGCTGGAGACCGGGTCCACAAAGACGAGTGCGCCTTCTCCTTCGACACGCCGGAGTCTGAGGGGGGCCTCTACATCTGTATGAACACGTTTCTGGGCTTTGGGAAACAGTATGTGGAGAGACATTTCAATAAGACCGGCCAGCGAGTCTACTTGCACCTCCGGCGGACCCGGCGCCCGAAAGAGGAGGACCCTGCTACAGGCACTGGAGACCCACCCCGGAAGAAGCCCACGCGGCTGGCTATTGGTGTTGAAGGCGGATTTGACCTTAGCGAGGAGAAGTTTGAATTAGACGAGGATGTGAAGATTGTCATTTTGCCAGATTACCTGGAGATTGCCCGGGATGGACTGGGGGGACTGCCTGACATTGTCAGAGATCGGGTGACCAGTGCAGTGGAGGCCCTACTGTCGGCCGACTCAGCCTCCCGCAAGCAGGAGGTGCAGGCATGGGATGGGGAAGTACGGCAGGTGTCTAAGCATGCCTTCAGCCTCAAGCAGTTGGACAACCCTGCTCGAATCCCTCCCTGTGGCTGGAAGTGCTCCAAGTGTGACATGAGAGAGAACCTGgcgCTCAACCTGACTGATGGCTCCATCCTCTGTGGGgcgCGCTACTTCGATGGCAGTGGGGGCAACAACCACGCTGTGGAGCACTACCGAGAGACAGGCTACCCGTTAGCTGTCAAGCTGGGCACCATCACCCCTGATGGAGCTGACGTGTACTCAtttGATGAGGATGACATGGTCCTGGACCCCAGCCTGGCTGAGCACCTGTCCCACTTCGGCATCGACATGCTGAAGATGCAGAAGACAGACAAGACGATGACTGAGTTGGAGATAGACATGAACCAGCGGATTGGTGAATGGGAGCTGATCCAGGAGTCAGGTGTGCCACTCAAGCCCCTGTTTGGGCCTGGCTACACAGGCATCCGGAACCTGGGTAACAGCTGCTACCTCAACTCTGTGGTCCAGGTGCTCTTCAGCATCCCTGACTTCCAGAGGAAGTATGTGGATAAGCTGGAGAAGATCTTCCAGAATGCCCCGACGGACCCTACCCAGGATTTCAGCACCCAGGTGGCCAAGCTGGGCCATGGCCTTCTCTCCGGGGAGTATTCCAAGCCAGTACCGGAGTCGGGCGATGGGGAGCGGGTGCCAGAACAGAAGGAAGTTCAAGATGGCATTGCCCCTCGGATGTTCAAGGCCCTCATCGGCAAGGGCCACCCTGAATTCTCCACCAACCGGCAGCAGGATGCCCAGGAGTTCTTCCTTCACCTTATCAACATGGTGGAGAGGAATTGCCGGAGCTCTGAAAATCCTAATGAAGTGTTCCGCTTCTTGGTGGAGGAAAAGATCAAGTGCCTGGCCACAGAGAAGGTGAAGTACACCCAGCGAGTTGACTACATCATGCAGCTGCCTGTGCCCATGGATGCAGCCCTTAACAAAGAGGAGCTTCTGGAGTACGAGGAGAAGAAGCGGCAAGCCGAAGAGGAGAAGATGGCACTGCCAGAACTGGTTCGGGCCCAGGTGCCCTTCAGCTCTTGCCTGGAGGCCTACGGGGCCCCTGAGCAGGTCGATGACTTCTGGAGCACGGCCCTGCAGGCCAAGTCAGTAGCTGTCAAGACCACACGATTTGCCTCATTCCCTGACTACCTGGTCATCCAGATCAAGAAGTTCACCTTCGGCTTAGACTGGGTGCCCAAGAAACTGGATGTGTCCATCGAGATGCCAGAGGAGCTCGACATCTCCCAGTTGAGGGGCACAGGGCTGCAGCCCGGAGAGGAGGAGCTGCCAGACATTGCCCCACCCCTGGTCACTCCGGATGAGCCCAAAGCGCCCATGCTGGATGAATCAGTCATCATCCAGCTGGTGGAGATGGGATTCCCTATGGACGCCTGCCGCAAAGCTGTCTACTACACGGGCAACAGCGGGGCTGAGGCCGCCATGAACTGGGTCATGTCACACATGGATGATCCAGATTTTGCAAACCCCCTCATCCTGCCTGGCTCTAGTGGGCCGGGCTCCACAAGCGCAGCAGCCGACCCCCCTCCTGAGGACTGTGTGACCACCATTGTCTCCATGGGCTTCTCCCGGGACCAGGCCTTGAAAGCGCTGCGGGCCACGAACAATAGTTTAGAACGGGCTGTGGACTGGATCTTCAGTCACATTGACGACCTGGATGCTGAAGCTGCCATGGACATCTCAGAGGGCCGCTCAGCTGCCGACTCCATCTCTGAGTCTGTGCCAGTGGGACCTAAAGTCCGGGATGGTCCTGGAAAGTATCAGCTCTTTGCCTTCATTAGTCACATGGGCACCTCTACCATGTGTGGTCACTACGTCTGCCACATCAAGAAAGAAGGCAGATGGGTGATCTACAATGACCAGAAAGTGTGTGCCTCCGAGAAGCCGCCCAAGGACCTGGGCTACATCTACTTCTACCAGAGAGTGGCCAGCggtggaagtggtcatcaccaccatcatcactgatgacgaagcttgcggccgcactcgagcaccaccaccaccaccactgagatccggctgctaacaaagcccgaa",2733,"GGRRRMSRGKKGRCGGWACAATTCCCTCTAGAATAATTTTGTTTAACTTTAAGAAGGAGATATACCATGAGCGGCCTGAACGATATTTTTGAAGCGCAGAAAATTGAATGGCATGAAGGCAGCGCTGGAGGTTCAGGTATGGCGGAGCTGAGTGAGGAGGCGCTGCTGTCAGTATTACCGACGATCCGGGTCCCTAAGGCTGGAGACCGGGTCCACAAAGACGAGTGCGCCTTCTCCTTCGACACGCCGGAGTCTGAGGGGGGCCTCTACATCTGTATGAACACGTTTCTGGGCTTTGGGAAACAGTATGTGGAGAGACATTTCAATAAGACCGGCCAGCGAGTCTACTTGCACCTCCGGCGGACCCGGCGCCCGAAAGAGGAGGACCCTGCTACAGGCACTGGAGACCCACCCCGGAAGAAGCCCACGCGGCTGGCTATTGGTGTTGAAGGCGGATTTGACCTTAGCGAGGAGAAGTTTGAATTAGACGAGGATGTGAAGATTGTCATTTTGCCAGATTACCTGGAGATTGCCCGGGATGGACTGGGGGGACTGCCTGACATTGTCAGAGATCGGGTGACCAGTGCAGTGGAGGCCCTACTGTCGGCCGACTCAgCCTCCCGCAAGCAGGAGGTGCAGGCATGGGATGGGGAAGTACGGCAGGTGTCTAAGCATGCCTTCAGCCTCAAGCAGTTGGACAACCCTGCTCGAATCCCTCCCTGTGGCTGGAAGTGCTCCAAGTGTGACATGAGAGAGAACCTGGCGCTcAaCCTGACTGATGGCTCCATCCTCTGTGGGGCGCGCTACTTCGATGGCAgTGGGGGCAaCAACCACGCTGTGGAGCACTACCGAGAGACAGGCTACCCGTTAGCTGTCAAGCTGGGCACCATCACCCCTGATGGAGCTGACGTGTACTCATTTGATGAGGATGACATGGTCCTGGACCCCAGCCTGGCTGAGCACCTGTCCCACTTCGGCATCGACATGCTGAAGATGCAGAAGACAGACAAGACGATGACTGAGTTGGAGATAGACATGAACCAGCGGATTGGTGAATGGGAGCTGATCCAGGAGTCAGGTGTGCCACTCAAGCCCCTGTTTGGGCCTGGCTACACAGGCATCCGGAACCTGGGTAACAGCTGCTACCTCAACTCTGTGGTCCAGGTGCTCTTCAGCATCCCTGACTTCCAGAGGAAGTATGTGGATAAGCTGGAGAAGATCTTCCAGAATGCCCCGACGGACCCTACCCAGGATTTCAGCACCCAGGTGGCCAAGCTGGGCCATGGCCTTCTCTCCGGGGAGTATTCCAAGCCAGTACCGGAGTCGGGCGATGGGGAGCGGGTGCCAGAACAGAAGGAAGTTCAAGATGGCATTGCCCCTCGGATGTTCAAGGCCCTCATCGGCAAGGGCCACCCTGAATTCTCCACCAACCGGCAGCAGGATGCCCAGGAGTTCTTCCTTCACCTTATCAACATGGTGGAGAGGAATTGCCGGAGCTCTGAAAATCCTAATGAAGTGTTCCGCTTCTTGGTGGAGGAAAAGATCAAGTGCCTGGCCACAGAGAAGGTGAAGTACACCCAGCGAGTTGACTACATCATGCAGCTGCCTGTGCCCATGGATGCAGCCCTTAACAAAGAGGAGCTTCTGGAGTACGAGGAGAAGAAGCGGCAAGCCGAAGAGGAGAAGATGGCACTGCCAGAACTGGTTCGGGCCCAGGTGCCCTTCAGCTCTTGCCTGGAGGCCTACGGGGCCCCTGAGCAGGTCGATGACTTCTGGAGCACGGCCCTGCAGGCCAAGTCAGTAGCTGTCAAGACCACACGATTTGCCTCATTCCCTGACTACCTGGTCATCCAGATCAAGAAGTTCACCTTCGGCTTAGACTGGGTGCCCAAGAAACTGGATGTGTCCATCGAGATGCCAGAGGAGCTCGACATCTCCCAGTTGAGGGGCACAGGGCTGCAGCCCGGAGAGGAGGAGCTGCCAGACATTGCCCCACCCCTGGTCACTCCGGATGAGCCCAAAGCGCCCATGCTGGATGAATCAGTCATCATCCAGCTGGTGGAGATGGGATTCCCTATGGACGCCTGCCGCAAAGCTGTCTACTACACGGGCAACAGCGGGGCTGAGGCCGCCATGAACTGGGTCATGTCACACATGGATGATCCAGATTTTGCAAACCCCCTCATCCTGCCTGGCTCTAGTGGGCCGGGCTCCACAAGCGCAGCAGCCGACCCCCCTCCTGAGGACTGTGTGACCACCATTGTCTCCATGGGCTTCTCCCGGGACCAGGCCTTGAAAGCGCTGCGGGCCACGAACAATAGTTTAGAACGGGCTGTGGACTGGATCTTCAGTCACATTGACGACCTGGATGCTGAAGCTGCCATGGACATCTCAGAGGGCCGCTCAGCTGCCGACTCCATCTCTGAGTCTGTGCCAGTGGGACCTAAAGTCCGGGATGGTCCTGGAAAGTATCAGCTCTTTGCCTTCATTAGTCACATGGGCACCTCTACCATGTGTGGTCACTACGTCTGCCACATCAAGAAAGAAGGCAGATGGGTGATCTACAATGACCAGAAAGTGTGTGCCTCCGAGAAGCCGCCCAAGGACCTGGGCTACATCTACTTCTACCAGAGAGTGGCCAGCGGTGGAAGTGGTCATCACCACCATCATCACTGATGACGAAGCTTGCGGCCGCACTCGAGCACCACCACCACCACCACTGAGATCCGGCTGCTAACAAAGCCCGAAAGAAGCKAGKGCYSKCC",2765,null,"p28BIOH-LIC","acaattcccctctagaaataattttgtttaactttaagaaggagatataccatgagcggcctgaacgatatttttgaagcgcagaaaattgaatggcatgaaggcagcgctggaggttcaggt","ggtggaagtggtcatcaccaccatcatcactgatgacgaagcttgcggccgcactcgagcaccaccaccaccaccactgagatccggctgctaacaaagcccgaa",null,null,null,null,null,null,null,null,null,null,null,null,null,"do 221","A7 for A.  A10 for B"]
[243628,"USP05:TOC023-A12:C243628","TOC023","A12","TOC023A12","USP05",null,null,"AU25-C3","USP05_171-290_bio_C195S",171,290,"GEVRQVSKHAFSLKQLDNPARIPPSGWKCSKCDMRENLWLNLTDGSILCGRRYFDGSGGNNHAVEHYRETGYPLAVKLGTITPDGADVYSYDEDDMVLDPSLAEHLSHFGIDMLKMQKTD",120,"GGGGAAGTACGGCAGGTGTCTAAGCATGCCTTCAGCCTCAAGCAGTTGGACAACCCTGCTCGAATCCCTCCCtctGGCTGGAAGTGCTCCAAGTGTGACATGAGAGAGAACCTGTGGCTCAACCTGACTGATGGCTCCATCCTCTGTGGGCGACGCTACTTCGATGGCAGTGGGGGCAACAACCACGCTGTGGAGCACTACCGAGAGACAGGCTACCCGTTAGCTGTCAAGCTGGGCACCATCACCCCTGATGGAGCTGACGTGTACTCATATGATGAGGATGACATGGTCCTGGACCCCAGCCTGGCTGAGCACCTGTCCCACTTCGGCATCGACATGCTGAAGATGCAGAAGACAGAC",360,"no","msglndifeaqkiewhegsaggsgGEVRQVSKHAFSLKQLDNPARIPPSGWKCSKCDMRENLWLNLTDGSILCGRRYFDGSGGNNHAVEHYRETGYPLAVKLGTITPDGADVYSYDEDDMVLDPSLAEHLSHFGIDMLKMQKTDgggshhhhhh",null,"p28BIOH-LIC","gctggaggttcaggtGGGGAAGTACGGCAGGTGTC","TCCAGCCagaGGGAGGGATTCGAGCAGGG","CCCTCCCtctGGCTGGAAGTGCTCCAAGTG","atgaccacttccaccGTCTGTCTTCTGCATCTTCAG","DH5-Alpha","ploppnau","LIC-Infusion","Y",null,"2019-03-06",null,null,"PAGE19-00043","A12 is 100%","acaattcccctctagaaataattttgtttaactttaagaaggagatataccatgagcggcctgaacgatatttttgaagcgcagaaaattgaatggcatgaaggcagcgctggaggttcaggtGGGGAAGTACGGCAGGTGTCTAAGCATGCCTTCAGCCTCAAGCAGTTGGACAACCCTGCTCGAATCCCTCCCtctGGCTGGAAGTGCTCCAAGTGTGACATGAGAGAGAACCTGTGGCTCAACCTGACTGATGGCTCCATCCTCTGTGGGCGACGCTACTTCGATGGCAGTGGGGGCAACAACCACGCTGTGGAGCACTACCGAGAGACAGGCTACCCGTTAGCTGTCAAGCTGGGCACCATCACCCCTGATGGAGCTGACGTGTACTCATATGATGAGGATGACATGGTCCTGGACCCCAGCCTGGCTGAGCACCTGTCCCACTTCGGCATCGACATGCTGAAGATGCAGAAGACAGACggtggaagtggtcatcaccaccatcatcactgatgacgaagcttgcggccgcactcgagcaccaccaccaccaccactgagatccggctgctaacaaagcccgaa",588,"GWWGWGRSCGGWACATTCCCCTCTAGAATAATTTTGTTTAACTTTAAGAAGGAGATATACCATGAGCGGCCTGAACGATATTTTTGAAGCGCAGAAAATTGAATGGCATGAAGGCAGCGCTGGAGGTTCAGGTGGGGAAGTACGGCAGGTGTCTAAGCATGCCTTCAGCCTCAAGCAGTTGGACAACCCTGCTCGAATCCCTCCCTCTGGCTGGAAGTGCTCCAAGTGTGACATGAGAGAGAACCTGTGGCTCAACCTGACTGATGGCTCCATCCTCTGTGGGCGACGCTACTTCGATGGCAGTGGGGGCAACAACCACGCTGTGGAGCACTACCGAGAGACAGGCTACCCGTTAGCTGTCAAGCTGGGCACCATCACCCCTGATGGAGCTGACGTGTACTCATATGATGAGGATGACATGGTCCTGGACCCCAGCCTGGCTGAGCACCTGTCCCACTTCGGCATCGACATGCTGAAGATGCAGAAGACAGACGGTGGAAGTGGTCATCACCACCATCATCACTGATGACGAAGCTTGCGGCCGCACTCGAGCACCACCACCACCACCACTGAGATCCGGCTGCTAACAAAGCCCGAAAGGAAGCTGAGTTGGCTGCTGCCACCGCTGAGCAATAACTAGCATAACCCCTTGGGGCCTCTAAACGGGTCTTGAGGGGTTTTTTGCTGAAAGGAGGAACTATATCCGGATTGGCGAATGGGACGCGCCCTGTAGCGGCGCATTAAGCGCGGCGGGTGTGGTGGTTACGCGCAGCGTGACCGCTACACTTGCCAGCGCCCTAGCGCCCGCTCCTTTCGCTTTCTTCCCTTCCTTTCTCGCCACGTTCGCCGGCTTTCCCCGTCAAGCTCTAAATCGGGGGCTCCCTTTAGGGTTCCGATTTAGTGCTTTACGGCACCTCGACCCCAAAAACTTGATTAGGGTGATGGTTCACGTAGTGGCCATCGCCCTGATAGACGGTTTTCGCCCTTTGACGTTGGAGTCACGTTCTTTATAGTGACTCTGTTCAAACTGACACMCTCACCCTATCTCGTCTATCTTTGATTATAGGGATTTGCGATTCGCTATGTAAAATGARCTGATACAAAGTACGCGAATTACMAATTASCTTACAGTAGTTGACTGCGGCATTGCCGACGATGGTTATTGCCGATACGTTCAG",1178,null,"p28BIOH-LIC","acaattcccctctagaaataattttgtttaactttaagaaggagatataccatgagcggcctgaacgatatttttgaagcgcagaaaattgaatggcatgaaggcagcgctggaggttcaggt","ggtggaagtggtcatcaccaccatcatcactgatgacgaagcttgcggccgcactcgagcaccaccaccaccaccactgagatccggctgctaacaaagcccgaa",null,null,null,null,null,null,null,null,null,null,null,null,null,null,"AU25-C3"]
[243629,"USP05:TOC023-B01:C243629","TOC023","B01","TOC023B01","USP05",null,null,"AU25-C3","USP05_171-290_bio_R221A",171,290,"GEVRQVSKHAFSLKQLDNPARIPPCGWKCSKCDMRENLWLNLTDGSILCGARYFDGSGGNNHAVEHYRETGYPLAVKLGTITPDGADVYSYDEDDMVLDPSLAEHLSHFGIDMLKMQKTD",120,"GGGGAAGTACGGCAGGTGTCTAAGCATGCCTTCAGCCTCAAGCAGTTGGACAACCCTGCTCGAATCCCTCCCTGTGGCTGGAAGTGCTCCAAGTGTGACATGAGAGAGAACCTGTGGCTCAACCTGACTGATGGCTCCATCCTCTGTGGGgcgCGCTACTTCGATGGCAGTGGGGGCAACAACCACGCTGTGGAGCACTACCGAGAGACAGGCTACCCGTTAGCTGTCAAGCTGGGCACCATCACCCCTGATGGAGCTGACGTGTACTCATATGATGAGGATGACATGGTCCTGGACCCCAGCCTGGCTGAGCACCTGTCCCACTTCGGCATCGACATGCTGAAGATGCAGAAGACAGAC",360,"no","msglndifeaqkiewhegsaggsgGEVRQVSKHAFSLKQLDNPARIPPCGWKCSKCDMRENLWLNLTDGSILCGARYFDGSGGNNHAVEHYRETGYPLAVKLGTITPDGADVYSYDEDDMVLDPSLAEHLSHFGIDMLKMQKTDgggshhhhhh",null,"p28BIOH-LIC","gctggaggttcaggtGGGGAAGTACGGCAGGTGTC","atgaccacttccaccGTCTGTCTTCTGCATCTTCAG",null,null,"DH5-Alpha","ploppnau","LIC-Infusion","Y",null,"2019-03-06",null,null,"PAGE19-00043","B1 is 100%","acaattcccctctagaaataattttgtttaactttaagaaggagatataccatgagcggcctgaacgatatttttgaagcgcagaaaattgaatggcatgaaggcagcgctggaggttcaggtGGGGAAGTACGGCAGGTGTCTAAGCATGCCTTCAGCCTCAAGCAGTTGGACAACCCTGCTCGAATCCCTCCCTGTGGCTGGAAGTGCTCCAAGTGTGACATGAGAGAGAACCTGTGGCTCAACCTGACTGATGGCTCCATCCTCTGTGGGgcgCGCTACTTCGATGGCAGTGGGGGCAACAACCACGCTGTGGAGCACTACCGAGAGACAGGCTACCCGTTAGCTGTCAAGCTGGGCACCATCACCCCTGATGGAGCTGACGTGTACTCATATGATGAGGATGACATGGTCCTGGACCCCAGCCTGGCTGAGCACCTGTCCCACTTCGGCATCGACATGCTGAAGATGCAGAAGACAGACggtggaagtggtcatcaccaccatcatcactgatgacgaagcttgcggccgcactcgagcaccaccaccaccaccactgagatccggctgctaacaaagcccgaa",588,"CCKKKGGRCGGWACATTCCCTCTAGAAATAATTTTGTTTAACTTTAAGAAGGAGATATACCATGAGCGGCCTGAACGATATTTTTGAAGCGCAGAAAATTGAATGGCATGAAGGCAGCGCTGGAGGTTCAGGTGGGGAAGTACGGCAGGTGTCTAAGCATGCCTTCAGCCTCAAGCAGTTGGACAACCCTGCTCGAATCCCTCCCTGTGGCTGGAAGTGCTCCAAGTGTGACATGAGAGAGAACCTGTGGCTCAACCTGACTGATGGCTCCATCCTCTGTGGGGCGCGCTACTTCGATGGCAGTGGGGGCAACAACCACGCTGTGGAGCACTACCGAGAGACAGGCTACCCGTTAGCTGTCAAGCTGGGCACCATCACCCCTGATGGAGCTGACGTGTACTCATATGATGAGGATGACATGGTCCTGGACCCCAGCCTGGCTGAGCACCTGTCCCACTTCGGCATCGACATGCTGAAGATGCAGAAGACAGACGGTGGAAGTGGTCATCACCACCATCATCACTGATGACGAAGCTTGCGGCCGCACTCGAGCACCACCACCACCACCACTGAGATCCGGCTGCTAACAAAGCCCGAAAGGAAGCTGAGTTGGCTGCTGCCACCGCTGAGCAATAACTAGCATAACCCCTTGGGGCCTCTAAACGGGTCTTGAGGGGTTTTTTGCTGAAAGGAGGAACTATATCCGGATTGGCGAATGGGACGCGCCCTGTAGCGGCGCATTAAGCGCGGCGGGTGTGGTGGTTACGCGCAGCGTGACCGCTACACTTGCCAGCGCCCTAGCGCCCGCTCCTTTCGCTTTCTTCCCTTCCTTTCTCGCCACGTTCGCCGGCTTTCCCCGTCAAGCTCTAAATCGGGGGCTCCCTTTAGGGTTCCGATTTAGTGCTTTACGGCACCTCGACCCCAAAAAACTTGATTAGGGTGATGGTTCACGTAGTGGCCATCGCCCTGATAGACGGTTTTCGCCCTTTGACGTTGAGTCCACGTTCTTTATAGTGACTCTTGTCAACTGCACACACTCACCTATCTCGTCTATTCTTGATTATAGGATTTGCGATTCGCTATATAAAATGACTGATTACAATTACGCGATTACATATTASSTACATAGTGACTTCGTATGCCGACGATGGTATTCATACTACAWTGTATCGCCTCATGGA",1181,null,"p28BIOH-LIC","acaattcccctctagaaataattttgtttaactttaagaaggagatataccatgagcggcctgaacgatatttttgaagcgcagaaaattgaatggcatgaaggcagcgctggaggttcaggt","ggtggaagtggtcatcaccaccatcatcactgatgacgaagcttgcggccgcactcgagcaccaccaccaccaccactgagatccggctgctaacaaagcccgaa",null,null,null,null,null,null,null,null,null,null,null,null,null,null,"A06"]
[243630,"USP05:TOC023-B02:C243630","TOC023","B02","TOC023B02","USP05",null,null,"AU25-C3","USP05_171-290_bio_W209A",171,290,"GEVRQVSKHAFSLKQLDNPARIPPCGWKCSKCDMRENLALNLTDGSILCGRRYFDGSGGNNHAVEHYRETGYPLAVKLGTITPDGADVYSYDEDDMVLDPSLAEHLSHFGIDMLKMQKTD",120,"GGGGAAGTACGGCAGGTGTCTAAGCATGCCTTCAGCCTCAAGCAGTTGGACAACCCTGCTCGAATCCCTCCCTGTGGCTGGAAGTGCTCCAAGTGTGACATGAGAGAGAACCTGgcgCTCAACCTGACTGATGGCTCCATCCTCTGTGGGCGACGCTACTTCGATGGCAGTGGGGGCAACAACCACGCTGTGGAGCACTACCGAGAGACAGGCTACCCGTTAGCTGTCAAGCTGGGCACCATCACCCCTGATGGAGCTGACGTGTACTCATATGATGAGGATGACATGGTCCTGGACCCCAGCCTGGCTGAGCACCTGTCCCACTTCGGCATCGACATGCTGAAGATGCAGAAGACAGAC",360,"no","msglndifeaqkiewhegsaggsgGEVRQVSKHAFSLKQLDNPARIPPCGWKCSKCDMRENLALNLTDGSILCGRRYFDGSGGNNHAVEHYRETGYPLAVKLGTITPDGADVYSYDEDDMVLDPSLAEHLSHFGIDMLKMQKTDgggshhhhhh",null,"p28BIOH-LIC","gctggaggttcaggtGGGGAAGTACGGCAGGTGTC","atgaccacttccaccGTCTGTCTTCTGCATCTTCAG",null,null,"DH5-Alpha","ploppnau","LIC-Infusion","Y",null,"2019-03-06",null,null,"PAGE19-00043","B2 is 100%","acaattcccctctagaaataattttgtttaactttaagaaggagatataccatgagcggcctgaacgatatttttgaagcgcagaaaattgaatggcatgaaggcagcgctggaggttcaggtGGGGAAGTACGGCAGGTGTCTAAGCATGCCTTCAGCCTCAAGCAGTTGGACAACCCTGCTCGAATCCCTCCCTGTGGCTGGAAGTGCTCCAAGTGTGACATGAGAGAGAACCTGgcgCTCAACCTGACTGATGGCTCCATCCTCTGTGGGCGACGCTACTTCGATGGCAGTGGGGGCAACAACCACGCTGTGGAGCACTACCGAGAGACAGGCTACCCGTTAGCTGTCAAGCTGGGCACCATCACCCCTGATGGAGCTGACGTGTACTCATATGATGAGGATGACATGGTCCTGGACCCCAGCCTGGCTGAGCACCTGTCCCACTTCGGCATCGACATGCTGAAGATGCAGAAGACAGACggtggaagtggtcatcaccaccatcatcactgatgacgaagcttgcggccgcactcgagcaccaccaccaccaccactgagatccggctgctaacaaagcccgaa",588,"AKWGWKGRRCGGWACATTCCCTCTAGAATAATTTTGTTTAACTTTAAGAAGGAGATATACCATGAGCGGCCTGAACGATATTTTTGAAGCGCAGAAAATTGAATGGCATGAAGGCAGCGCTGGAGGTTCAGGTGGGGAAGTACGGCAGGTGTCTAAGCATGCCTTCAGCCTCAAGCAGTTGGACAACCCTGCTCGAATCCCTCCCTGTGGCTGGAAGTGCTCCAAGTGTGACATGAGAGAGAACCTGGCGCTCAACCTGACTGATGGCTCCATCCTCTGTGGGCGACGCTACTTCGATGGCAGTGGGGGCAACAACCACGCTGTGGAGCACTACCGAGAGACAGGCTACCCGTTAGCTGTCAAGCTGGGCACCATCACCCCTGATGGAGCTGACGTGTACTCATATGATGAGGATGACATGGTCCTGGACCCCAGCCTGGCTGAGCACCTGTCCCACTTCGGCATCGACATGCTGAAGATGCAGAAGACAGACGGTGGAAGTGGTCATCACCACCATCATCACTGATGACGAAGCTTGCGGCCGCACTCGAGCACCACCACCACCACCACTGAGATCCGGCTGCTAACAAAGCCCGAAAGGAAGCTGAGTTGGCTGCTGCCACCGCTGAGCAATAACTAGCATAACCCCTTGGGGCCTCTAAACGGGTCTTGAGGGGTTTTTTGCTGAAAGGAGGAACTATATCCGGATTGGCGAATGGGACGCGCCCTGTAGCGGCGCATTAAGCGCGGCGGGTGTGGTGGTTACGCGCAGCGTGACCGCTACACTTGCCAGCGCCCTAGCGCCCGCTCCTTTCGCTTTCTTCCCTTCCTTTCTCGCCACGTTCGCCGGCTTTCCCCGTCAAGCTCTAAATCGGGGGCTCCCTTTAGGGTTCCGATTTAGTGCTTTACGGCACCTCGACCCCAAAAAACTTGATTAGGGTGATGGTTCACGTAGTGGCCATCGCCCTGATAGACGGTTTTCGCCCTTTGACGTTGGAGTCCACGTTCTTATAGTGACTCTTGTCAACTGCACACACTCACCTATCTCGGTCTATTCTTTGATTATAGGGATTTGCGATTCGCTATGTAAAAATGACTGATTACAAAACTACGCGATTACAAWTAACGCTACAGTAGTGGCMCTTCGGAGTGCCGACGATGCTATTCATMCTCAAAATGKATCCSCCTCWGGAT",1194,null,"p28BIOH-LIC","acaattcccctctagaaataattttgtttaactttaagaaggagatataccatgagcggcctgaacgatatttttgaagcgcagaaaattgaatggcatgaaggcagcgctggaggttcaggt","ggtggaagtggtcatcaccaccatcatcactgatgacgaagcttgcggccgcactcgagcaccaccaccaccaccactgagatccggctgctaacaaagcccgaa",null,null,null,null,null,null,null,null,null,null,null,null,null,null,"A07"]
[243631,"USP05:TOC023-B03:C243631","TOC023","B03","TOC023B03","USP05",null,null,"AU25-C3","USP05_171-290_bio_Y259A",171,290,"GEVRQVSKHAFSLKQLDNPARIPPCGWKCSKCDMRENLWLNLTDGSILCGRRYFDGSGGNNHAVEHYRETGYPLAVKLGTITPDGADVASYDEDDMVLDPSLAEHLSHFGIDMLKMQKTD",120,"GGGGAAGTACGGCAGGTGTCTAAGCATGCCTTCAGCCTCAAGCAGTTGGACAACCCTGCTCGAATCCCTCCCTGTGGCTGGAAGTGCTCCAAGTGTGACATGAGAGAGAACCTGTGGCTCAACCTGACTGATGGCTCCATCCTCTGTGGGCGACGCTACTTCGATGGCAGTGGGGGCAACAACCACGCTGTGGAGCACTACCGAGAGACAGGCTACCCGTTAGCTGTCAAGCTGGGCACCATCACCCCTGATGGAGCTGACGTGgcgTCATATGATGAGGATGACATGGTCCTGGACCCCAGCCTGGCTGAGCACCTGTCCCACTTCGGCATCGACATGCTGAAGATGCAGAAGACAGAC",360,"no","msglndifeaqkiewhegsaggsgGEVRQVSKHAFSLKQLDNPARIPPCGWKCSKCDMRENLWLNLTDGSILCGRRYFDGSGGNNHAVEHYRETGYPLAVKLGTITPDGADVASYDEDDMVLDPSLAEHLSHFGIDMLKMQKTDgggshhhhhh",null,"p28BIOH-LIC","gctggaggttcaggtGGGGAAGTACGGCAGGTGTC","atgaccacttccaccGTCTGTCTTCTGCATCTTCAG",null,null,"DH5-Alpha","ploppnau","LIC-Infusion","Y",null,"2019-03-06",null,null,"PAGE19-00043","B3 is 100%","acaattcccctctagaaataattttgtttaactttaagaaggagatataccatgagcggcctgaacgatatttttgaagcgcagaaaattgaatggcatgaaggcagcgctggaggttcaggtGGGGAAGTACGGCAGGTGTCTAAGCATGCCTTCAGCCTCAAGCAGTTGGACAACCCTGCTCGAATCCCTCCCTGTGGCTGGAAGTGCTCCAAGTGTGACATGAGAGAGAACCTGTGGCTCAACCTGACTGATGGCTCCATCCTCTGTGGGCGACGCTACTTCGATGGCAGTGGGGGCAACAACCACGCTGTGGAGCACTACCGAGAGACAGGCTACCCGTTAGCTGTCAAGCTGGGCACCATCACCCCTGATGGAGCTGACGTGgcgTCATATGATGAGGATGACATGGTCCTGGACCCCAGCCTGGCTGAGCACCTGTCCCACTTCGGCATCGACATGCTGAAGATGCAGAAGACAGACggtggaagtggtcatcaccaccatcatcactgatgacgaagcttgcggccgcactcgagcaccaccaccaccaccactgagatccggctgctaacaaagcccgaa",588,"GGKKKGRRCGGTACATTCCCTCTAGAATAATTTTGTTTAACTTTAAGAAGGAGATATACCATGAGCGGCCTGAACGATATTTTTGAAGCGCAGAAAATTGAATGGCATGAAGGCAGCGCTGGAGGTTCAGGTGGGGAAGTACGGCAGGTGTCTAAGCATGCCTTCAGCCTCAAGCAGTTGGACAACCCTGCTCGAATCCCTCCCTGTGGCTGGAAGTGCTCCAAGTGTGACATGAGAGAGAACCTGTGGCTCAACCTGACTGATGGCTCCATCCTCTGTGGGCGACGCTACTTCGATGGCAGTGGGGGCAACAACCACGCTGTGGAGCACTACCGAGAGACAGGCTACCCGTTAGCTGTCAAGCTGGGCACCATCACCCCTGATGGAGCTGACGTGGCGTCATATGATGAGGATGACATGGTCCTGGACCCCAGCCTGGCTGAGCACCTGTCCCACTTCGGCATCGACATGCTGAAGATGCAGAAGACAGACGGTGGAAGTGGTCATCACCACCATCATCACTGATGACGAAGCTTGCGGCCGCACTCGAGCACCACCACCACCACCACTGAGATCCGGCTGCTAACAAAGCCCGAAAGGAAGCTGAGTTGGCTGCTGCCACCGCTGAGCAATAACTAGCATAACCCCTTGGGGCCTCTAAACGGGTCTTGAGGGGTTTTTTGCTGAAAGGAGGAACTATATCCGGATTGGCGAATGGGACGCGCCCTGTAGCGGCGCATTAAGCGCGGCGGGTGTGGTGGTTACGCGCAGCGTGACCGCTACACTTGCCAGCGCCCTAGCGCCCGCTCCTTTCGCTTTCTTCCCTTCCTTTCTCGCCACGTTCGCCGGCTTTCCCCGTCAAGCTCTAAATCGGGGGCTCCCTTTAGGGTTCCGATTTAGTGCTTTACGGCACCTCGACCCCAAAAACTTGATTAGGGTGATGGTTCACGTAGTGGGCCATCGCCCTGATAGACGGTTTTCGCCCTTTGACGTTGAGTCACGTTCTTATAGTGACTCTTGTTCCAAACTGACACACTCACCCTATCTCGTCTATTCTTTGATTATAGGATTTGCGATTCGCTATGCTAAAATGACTGATACAAATTTACGCGAATTACCAWTACGCTMAGTTAGTGCCGTTCGGATTCCGCACCATCTATTCGATMGTCAATGATCGCTCAKGATTA",1187,null,"p28BIOH-LIC","acaattcccctctagaaataattttgtttaactttaagaaggagatataccatgagcggcctgaacgatatttttgaagcgcagaaaattgaatggcatgaaggcagcgctggaggttcaggt","ggtggaagtggtcatcaccaccatcatcactgatgacgaagcttgcggccgcactcgagcaccaccaccaccaccactgagatccggctgctaacaaagcccgaa",null,null,null,null,null,null,null,null,null,null,null,null,null,null,"A08"]
[243632,"USP05:TOC023-B04:C243632","TOC023","B04","TOC023B04","USP05",null,null,"AU25-C3","USP05_171-290_bio_D264A",171,290,"GEVRQVSKHAFSLKQLDNPARIPPCGWKCSKCDMRENLWLNLTDGSILCGRRYFDGSGGNNHAVEHYRETGYPLAVKLGTITPDGADVYSYDEADMVLDPSLAEHLSHFGIDMLKMQKTD",120,"GGGGAAGTACGGCAGGTGTCTAAGCATGCCTTCAGCCTCAAGCAGTTGGACAACCCTGCTCGAATCCCTCCCTGTGGCTGGAAGTGCTCCAAGTGTGACATGAGAGAGAACCTGTGGCTCAACCTGACTGATGGCTCCATCCTCTGTGGGCGACGCTACTTCGATGGCAGTGGGGGCAACAACCACGCTGTGGAGCACTACCGAGAGACAGGCTACCCGTTAGCTGTCAAGCTGGGCACCATCACCCCTGATGGAGCTGACGTGTACTCATATGATGAGgcgGACATGGTCCTGGACCCCAGCCTGGCTGAGCACCTGTCCCACTTCGGCATCGACATGCTGAAGATGCAGAAGACAGAC",360,"no","msglndifeaqkiewhegsaggsgGEVRQVSKHAFSLKQLDNPARIPPCGWKCSKCDMRENLWLNLTDGSILCGRRYFDGSGGNNHAVEHYRETGYPLAVKLGTITPDGADVYSYDEADMVLDPSLAEHLSHFGIDMLKMQKTDgggshhhhhh",null,"p28BIOH-LIC","gctggaggttcaggtGGGGAAGTACGGCAGGTGTC","atgaccacttccaccGTCTGTCTTCTGCATCTTCAG",null,null,"DH5-Alpha","ploppnau","LIC-Infusion","Y",null,"2019-03-06",null,null,"PAGE19-00043","B4 is 100%","acaattcccctctagaaataattttgtttaactttaagaaggagatataccatgagcggcctgaacgatatttttgaagcgcagaaaattgaatggcatgaaggcagcgctggaggttcaggtGGGGAAGTACGGCAGGTGTCTAAGCATGCCTTCAGCCTCAAGCAGTTGGACAACCCTGCTCGAATCCCTCCCTGTGGCTGGAAGTGCTCCAAGTGTGACATGAGAGAGAACCTGTGGCTCAACCTGACTGATGGCTCCATCCTCTGTGGGCGACGCTACTTCGATGGCAGTGGGGGCAACAACCACGCTGTGGAGCACTACCGAGAGACAGGCTACCCGTTAGCTGTCAAGCTGGGCACCATCACCCCTGATGGAGCTGACGTGTACTCATATGATGAGgcgGACATGGTCCTGGACCCCAGCCTGGCTGAGCACCTGTCCCACTTCGGCATCGACATGCTGAAGATGCAGAAGACAGACggtggaagtggtcatcaccaccatcatcactgatgacgaagcttgcggccgcactcgagcaccaccaccaccaccactgagatccggctgctaacaaagcccgaa",588,"GKKKGWGRCGGTACAATTCCCTCTAGAATAATTTTGTTTAACTTTAAGAAGGAGATATACCATGAGCGGCCTGAACGATATTTTTGAAGCGCAGAAAATTGAATGGCATGAAGGCAGCGCTGGAGGTTCAGGTGGGGAAGTACGGCAGGTGTCTAAGCATGCCTTCAGCCTCAAGCAGTTGGACAACCCTGCTCGAATCCCTCCCTGTGGCTGGAAGTGCTCCAAGTGTGACATGAGAGAGAACCTGTGGCTCAACCTGACTGATGGCTCCATCCTCTGTGGGCGACGCTACTTCGATGGCAGTGGGGGCAACAACCACGCTGTGGAGCACTACCGAGAGACAGGCTACCCGTTAGCTGTCAAGCTGGGCACCATCACCCCTGATGGAGCTGACGTGTACTCATATGATGAGGCGGACATGGTCCTGGACCCCAGCCTGGCTGAGCACCTGTCCCACTTCGGCATCGACATGCTGAAGATGCAGAAGACAGACGGTGGAAGTGGTCATCACCACCATCATCACTGATGACGAAGCTTGCGGCCGCACTCGAGCACCACCACCACCACCACTGAGATCCGGCTGCTAACAAAGCCCGAAAGGAAGCTGAGTTGGCTGCTGCCACCGCTGAGCAATAACTAGCATAACCCCTTGGGGCCTCTAAACGGGTCTTGAGGGGTTTTTTGCTGAAAGGAGGAACTATATCCGGATTGGCGAATGGGACGCGCCCTGTAGCGGCGCATTAAGCGCGGCGGGTGTGGTGGTTACGCGCAGCGTGACCGCTACACTTGCCAGCGCCCTAGCGCCCGCTCCTTTCGCTTTCTTCCCTTCCTTTCTCGCCACGTTCGCCGGCTTTCCCCGTCAAGCTCTAAATCGGGGGCTCCCTTTAGGGTTCCGATTTAGTGCTTTACGGCACCTCGACCCCAAAAACTTGATTAGGTGATGGTTCACGTAGTGGCCATCGCCCTGATAGACGGTTTTCGCCTTTGACGTTGAGTCACGTTCTTTATAGKGACTCTTGTCCAACTGACACACTCACCCTATCTCGTCTATTCTTGATTATACATTTGCGATTCGCTATGGTAAAATGACTGATACAATTACGCGAATTACAGWTAACGCTMCAGTAGTGCCGTTCGGGATTCCGCACCATGTATTCGATACTCGAATGATCGCCTCATGAAATAGC",1187,null,"p28BIOH-LIC","acaattcccctctagaaataattttgtttaactttaagaaggagatataccatgagcggcctgaacgatatttttgaagcgcagaaaattgaatggcatgaaggcagcgctggaggttcaggt","ggtggaagtggtcatcaccaccatcatcactgatgacgaagcttgcggccgcactcgagcaccaccaccaccaccactgagatccggctgctaacaaagcccgaa",null,null,null,null,null,null,null,null,null,null,null,null,null,null,"A09"]
[243633,"USP05:TOC023-B05:C243633","TOC023","B05","TOC023B05","USP05",null,null,"AU25-C3","USP05_171-290_bio_Y261F",171,290,"GEVRQVSKHAFSLKQLDNPARIPPCGWKCSKCDMRENLWLNLTDGSILCGRRYFDGSGGNNHAVEHYRETGYPLAVKLGTITPDGADVYSFDEDDMVLDPSLAEHLSHFGIDMLKMQKTD",120,"GGGGAAGTACGGCAGGTGTCTAAGCATGCCTTCAGCCTCAAGCAGTTGGACAACCCTGCTCGAATCCCTCCCTGTGGCTGGAAGTGCTCCAAGTGTGACATGAGAGAGAACCTGTGGCTCAACCTGACTGATGGCTCCATCCTCTGTGGGCGACGCTACTTCGATGGCAGTGGGGGCAACAACCACGCTGTGGAGCACTACCGAGAGACAGGCTACCCGTTAGCTGTCAAGCTGGGCACCATCACCCCTGATGGAGCTGACGTGTACTCAtttGATGAGGATGACATGGTCCTGGACCCCAGCCTGGCTGAGCACCTGTCCCACTTCGGCATCGACATGCTGAAGATGCAGAAGACAGAC",360,"no","msglndifeaqkiewhegsaggsgGEVRQVSKHAFSLKQLDNPARIPPCGWKCSKCDMRENLWLNLTDGSILCGRRYFDGSGGNNHAVEHYRETGYPLAVKLGTITPDGADVYSFDEDDMVLDPSLAEHLSHFGIDMLKMQKTDgggshhhhhh",null,"p28BIOH-LIC","gctggaggttcaggtGGGGAAGTACGGCAGGTGTC","atgaccacttccaccGTCTGTCTTCTGCATCTTCAG",null,null,"DH5-Alpha","ploppnau","LIC-Infusion","Y",null,"2019-03-06",null,null,"PAGE19-00043","B5 is 100%","acaattcccctctagaaataattttgtttaactttaagaaggagatataccatgagcggcctgaacgatatttttgaagcgcagaaaattgaatggcatgaaggcagcgctggaggttcaggtGGGGAAGTACGGCAGGTGTCTAAGCATGCCTTCAGCCTCAAGCAGTTGGACAACCCTGCTCGAATCCCTCCCTGTGGCTGGAAGTGCTCCAAGTGTGACATGAGAGAGAACCTGTGGCTCAACCTGACTGATGGCTCCATCCTCTGTGGGCGACGCTACTTCGATGGCAGTGGGGGCAACAACCACGCTGTGGAGCACTACCGAGAGACAGGCTACCCGTTAGCTGTCAAGCTGGGCACCATCACCCCTGATGGAGCTGACGTGTACTCAtttGATGAGGATGACATGGTCCTGGACCCCAGCCTGGCTGAGCACCTGTCCCACTTCGGCATCGACATGCTGAAGATGCAGAAGACAGACggtggaagtggtcatcaccaccatcatcactgatgacgaagcttgcggccgcactcgagcaccaccaccaccaccactgagatccggctgctaacaaagcccgaa",588,"TCGWAKGGRCGGAACATTCCCTCTAGAATAATTTTGTTTAACTTTAAGAAGGAGATATACCATGAGCGGCCTGAACGATATTTTTGAAGCGCAGAAAATTGAATGGCATGAAGGCAGCGCTGGAGGTTCAGGTGGGGAAGTACGGCAGGTGTCTAAGCATGCCTTCAGCCTCAAGCAGTTGGACAACCCTGCTCGAATCCCTCCCTGTGGCTGGAAGTGCTCCAAGTGTGACATGAGAGAGAACCTGTGGCTCAACCTGACTGATGGCTCCATCCTCTGTGGGCGACGCTACTTCGATGGCAGTGGGGGCAACAACCACGCTGTGGAGCACTACCGAGAGACAGGCTACCCGTTAGCTGTCAAGCTGGGCACCATCACCCCTGATGGAGCTGACGTGTACTCATTTGATGAGGATGACATGGTCCTGGACCCCAGCCTGGCTGAgCACCTGTCCCACTTCGGCATCGACATGCTGAAGATGCAGAAGACAGACGGTGGAAGTGGTCATCACCACCATCATCACTGATGACGAAGCTTGCGGCCGCACTCGAGCACCACCACCACCACCACTGAGATCCGGCTGCTAACAAAGCCCGAAAGGAAGCTGAGTTGGCTGCTGCCACCGCTGAGCAATAACTAGCATAACCCCTTGGGGCCTCTAAACGGGTCTTGAGGGGTTTTTTGCTGAAAGGAGGAACTATATCCGGATTGGCGAATGGGACGCGCCCTGTAGCGGCGCATTAAGCGCGGCGGGTGTGGTGGTTACGCGCAGCGTGACCGCTACACTTGCCAGCGCCCTAGCGCCCGCTCCTTTCGCTTTCTTCCCTTCCTTTCTCGCCACGTTCGCCGGCTTTCCCCGTCAAGCTCTAAATCGGGGGCTCCCTTTAGGGTTCCGATTTAGTGCTTTACGGCACCTCGACCCCAAAAACTTGATTAGGGTGATGGTTCACGTAGTGGGCCATCGCCTGATAGACGTTTTCGCCCTTGACGTGAGTCACGTTCTTTATAGTGACTCTGTCCAACTGGACACACTCACCTATCTCGTCTATTCTTTGATTWAGATTTGCGATTCGCTATGTTAAAATGACTGATACAAACTACGCGAATACAAWTACGCTTACATAGTGCMGTCGACTGASGACATGTATTTCAATACTCATGATCGCTWGAATATCTAA",1178,null,"p28BIOH-LIC","acaattcccctctagaaataattttgtttaactttaagaaggagatataccatgagcggcctgaacgatatttttgaagcgcagaaaattgaatggcatgaaggcagcgctggaggttcaggt","ggtggaagtggtcatcaccaccatcatcactgatgacgaagcttgcggccgcactcgagcaccaccaccaccaccactgagatccggctgctaacaaagcccgaa",null,null,null,null,null,null,null,null,null,null,null,null,null,null,"A10"]
[243634,"USP05:TOC023-B06:C243634","TOC023","B06","TOC023B06","USP05",null,null,"AU25-C3","USP05_171-290_bio_R221A_Y261F_W209A",171,290,"GEVRQVSKHAFSLKQLDNPARIPPCGWKCSKCDMRENLALNLTDGSILCGARYFDGSGGNNHAVEHYRETGYPLAVKLGTITPDGADVYSFDEDDMVLDPSLAEHLSHFGIDMLKMQKTD",120,"GGGGAAGTACGGCAGGTGTCTAAGCATGCCTTCAGCCTCAAGCAGTTGGACAACCCTGCTCGAATCCCTCCCTGTGGCTGGAAGTGCTCCAAGTGTGACATGAGAGAGAACCTGgcgCTCAACCTGACTGATGGCTCCATCCTCTGTGGGgcgCGCTACTTCGATGGCAGTGGGGGCAACAACCACGCTGTGGAGCACTACCGAGAGACAGGCTACCCGTTAGCTGTCAAGCTGGGCACCATCACCCCTGATGGAGCTGACGTGTACTCAtttGATGAGGATGACATGGTCCTGGACCCCAGCCTGGCTGAGCACCTGTCCCACTTCGGCATCGACATGCTGAAGATGCAGAAGACAGAC",360,"no","msglndifeaqkiewhegsaggsgGEVRQVSKHAFSLKQLDNPARIPPCGWKCSKCDMRENLALNLTDGSILCGARYFDGSGGNNHAVEHYRETGYPLAVKLGTITPDGADVYSFDEDDMVLDPSLAEHLSHFGIDMLKMQKTDgggshhhhhh",null,"p28BIOH-LIC","gctggaggttcaggtGGGGAAGTACGGCAGGTGTC","AGTAGCGcgcCCCACAGAGGATGGAGCCATC","TGTGGGgcgCGCTACTTCGATGGCAGTG","atgaccacttccaccGTCTGTCTTCTGCATCTTCAG","DH5-Alpha","ploppnau","LIC-Infusion","Y",null,"2019-03-06",null,null,"PAGE19-00043","B6 replacement is 100%","acaattcccctctagaaataattttgtttaactttaagaaggagatataccatgagcggcctgaacgatatttttgaagcgcagaaaattgaatggcatgaaggcagcgctggaggttcaggtGGGGAAGTACGGCAGGTGTCTAAGCATGCCTTCAGCCTCAAGCAGTTGGACAACCCTGCTCGAATCCCTCCCTGTGGCTGGAAGTGCTCCAAGTGTGACATGAGAGAGAACCTGgcgCTCAACCTGACTGATGGCTCCATCCTCTGTGGGgcgCGCTACTTCGATGGCAGTGGGGGCAACAACCACGCTGTGGAGCACTACCGAGAGACAGGCTACCCGTTAGCTGTCAAGCTGGGCACCATCACCCCTGATGGAGCTGACGTGTACTCAtttGATGAGGATGACATGGTCCTGGACCCCAGCCTGGCTGAGCACCTGTCCCACTTCGGCATCGACATGCTGAAGATGCAGAAGACAGACggtggaagtggtcatcaccaccatcatcactgatgacgaagcttgcggccgcactcgagcaccaccaccaccaccactgagatccggctgctaacaaagcccgaa",588,"GGRMYWWYGRCCGGTACAATTCCCTCTAGAAATAATTTTGTTTAACTTTAAGAAGGAGATATACCATGAGCGGCCTGAACGATATTTTTGAAGCGCAGAAAATTGAATGGCATGAAGGCAGCGCTGGAGGTTCAGGTGGGGAAGTACGGCAGGTGTCTAAGCATGCCTTCAGCCTCAAGCAGTTGGACAACCCTGCTCGAATCCCTCCCTGTGGCTGGAAGTGCTCCAAGTGTGACATGAGAGAGAACCTGGCGCTCAACCTGACTGATGGCTCCATCCTCTGTGGGGCGCGCTACTTCGATGGCAGTGGGGGCAACAACCACGCTGTGGAGCACTACCGAGAGACAGGCTACCCGTTAGCTGTCAAGCTGGGCACCATCACCCCTGATGGAGCTGACGTGTACTCATTTGATGAGGATGACATGGTCCTGGACCCCAGCCTGGCTGAGCACCTGTCCCACTTCGGCATCGACATGCTGAAGATGCAGAAGACAGACGGTGGAAGTGGTCATCACCACCATCATCACTGATGACGAAGCTTGCGGCCGCACTCGAGCACCACCACCACCACCACTGAGATCCGGCTGCTAACAAAGCCCGAAAGGAAGCTGAGTTGGCTGCTGCCACCGCTGAGCAATAACTAGCATAACCCCTTGGGGCCTCTAAACGGGTCTTGAGGGGTTTTTTGCTGAAAGGAGGAACTATATCCGGATTGGCGAATGGGACGCGCCCTGTAGCGGCGCATTAAGCGCGGCGGGTGTGGTGGTTACGCGCAGCGTGACCGCTACACTTGCCAGCGCCCTAGCGCCCGCTCCTTTCGCTTTCTTCCCTTCCTTTCTCGCCACGTTCGCCGGCTTTCCCCGTCAAGCTCTAAATCGGGGGCTCCCTTTAGGGTTCCGATTTAGTGCTTTACGGCACCTCGACCCCAAAAACTTGATTAGGGTGATGGTTCACGTAGTGGGCCATCGCCCTGATAGACGGTTTTCGCCCTTTGACGTGGAGTCCACGTTCTTTATAGTGGACTCTTGTCCAACTGACACACTCACCCTATCTCGGTCTATTCTTTGATTATAGGATTTGCGATTCGCTATGCTAAAATGAGCTGATTACAAAATTASCGAATTACGACWTACGCTACATAGTGCACTTCGGAAATGCCGATCGTATGATATTTCTATMATTCACATGTTATTTCGGCCCTCGTGAATA",1209,null,"p28BIOH-LIC","acaattcccctctagaaataattttgtttaactttaagaaggagatataccatgagcggcctgaacgatatttttgaagcgcagaaaattgaatggcatgaaggcagcgctggaggttcaggt","ggtggaagtggtcatcaccaccatcatcactgatgacgaagcttgcggccgcactcgagcaccaccaccaccaccactgagatccggctgctaacaaagcccgaa",null,null,null,null,null,null,null,null,null,null,null,null,null,"do 221","A7 for A.  A10 for B"]
[243641,"USP05:TOC023-C01:C243641","TOC023","C01","TOC023C01","USP05",null,null,"AU25-C3","USP05_1-835_bio_M711E",1,835,"MAELSEEALLSVLPTIRVPKAGDRVHKDECAFSFDTPESEGGLYICMNTFLGFGKQYVERHFNKTGQRVYLHLRRTRRPKEEDPATGTGDPPRKKPTRLAIGVEGGFDLSEEKFELDEDVKIVILPDYLEIARDGLGGLPDIVRDRVTSAVEALLSADSASRKQEVQAWDGEVRQVSKHAFSLKQLDNPARIPPCGWKCSKCDMRENLWLNLTDGSILCGRRYFDGSGGNNHAVEHYRETGYPLAVKLGTITPDGADVYSYDEDDMVLDPSLAEHLSHFGIDMLKMQKTDKTMTELEIDMNQRIGEWELIQESGVPLKPLFGPGYTGIRNLGNSCYLNSVVQVLFSIPDFQRKYVDKLEKIFQNAPTDPTQDFSTQVAKLGHGLLSGEYSKPVPESGDGERVPEQKEVQDGIAPRMFKALIGKGHPEFSTNRQQDAQEFFLHLINMVERNCRSSENPNEVFRFLVEEKIKCLATEKVKYTQRVDYIMQLPVPMDAALNKEELLEYEEKKRQAEEEKMALPELVRAQVPFSSCLEAYGAPEQVDDFWSTALQAKSVAVKTTRFASFPDYLVIQIKKFTFGLDWVPKKLDVSIEMPEELDISQLRGTGLQPGEEELPDIAPPLVTPDEPKAPMLDESVIIQLVEMGFPMDACRKAVYYTGNSGAEAAMNWVMSHMDDPDFANPLILPGSSGPGSTSAAADPPPEDCVTTIVSEGFSRDQALKALRATNNSLERAVDWIFSHIDDLDAEAAMDISEGRSAADSISESVPVGPKVRDGPGKYQLFAFISHMGTSTMCGHYVCHIKKEGRWVIYNDQKVCASEKPPKDLGYIYFYQRVAS",{"$f":"LEN(M21)","v":835},"ATGGCGGAGCTGAGTGAGGAGGCGCTGCTGTCAGTATTACCGACGATCCGGGTCCCTAAGGCTGGAGACCGGGTCCACAAAGACGAGTGCGCCTTCTCCTTCGACACGCCGGAGTCTGAGGGGGGCCTCTACATCTGTATGAACACGTTTCTGGGCTTTGGGAAACAGTATGTGGAGAGACATTTCAATAAGACCGGCCAGCGAGTCTACTTGCACCTCCGGCGGACCCGGCGCCCGAAAGAGGAGGACCCTGCTACAGGCACTGGAGACCCACCCCGGAAGAAGCCCACGCGGCTGGCTATTGGTGTTGAAGGCGGATTTGACCTTAGCGAGGAGAAGTTTGAATTAGACGAGGATGTGAAGATTGTCATTTTGCCAGATTACCTGGAGATTGCCCGGGATGGACTGGGGGGACTGCCTGACATTGTCAGAGATCGGGTGACCAGTGCAGTGGAGGCCCTACTGTCGGCCGACTCAGCCTCCCGCAAGCAGGAGGTGCAGGCATGGGATGGGGAAGTACGGCAGGTGTCTAAGCATGCCTTCAGCCTCAAGCAGTTGGACAACCCTGCTCGAATCCCTCCCTGTGGCTGGAAGTGCTCCAAGTGTGACATGAGAGAGAACCTGTGGCTCAACCTGACTGATGGCTCCATCCTCTGTGGGCGACGCTACTTCGATGGCAGTGGGGGCAACAACCACGCTGTGGAGCACTACCGAGAGACAGGCTACCCGTTAGCTGTCAAGCTGGGCACCATCACCCCTGATGGAGCTGACGTGTACTCATATGATGAGGATGACATGGTCCTGGACCCCAGCCTGGCTGAGCACCTGTCCCACTTCGGCATCGACATGCTGAAGATGCAGAAGACAGACAAGACGATGACTGAGTTGGAGATAGACATGAACCAGCGGATTGGTGAATGGGAGCTGATCCAGGAGTCAGGTGTGCCACTCAAGCCCCTGTTTGGGCCTGGCTACACAGGCATCCGGAACCTGGGTAACAGCTGCTACCTCAACTCTGTGGTCCAGGTGCTCTTCAGCATCCCTGACTTCCAGAGGAAGTATGTGGATAAGCTGGAGAAGATCTTCCAGAATGCCCCGACGGACCCTACCCAGGATTTCAGCACCCAGGTGGCCAAGCTGGGCCATGGCCTTCTCTCCGGGGAGTATTCCAAGCCAGTACCGGAGTCGGGCGATGGGGAGCGGGTGCCAGAACAGAAGGAAGTTCAAGATGGCATTGCCCCTCGGATGTTCAAGGCCCTCATCGGCAAGGGCCACCCTGAATTCTCCACCAACCGGCAGCAGGATGCCCAGGAGTTCTTCCTTCACCTTATCAACATGGTGGAGAGGAATTGCCGGAGCTCTGAAAATCCTAATGAAGTGTTCCGCTTCTTGGTGGAGGAAAAGATCAAGTGCCTGGCCACAGAGAAGGTGAAGTACACCCAGCGAGTTGACTACATCATGCAGCTGCCTGTGCCCATGGATGCAGCCCTTAACAAAGAGGAGCTTCTGGAGTACGAGGAGAAGAAGCGGCAAGCCGAAGAGGAGAAGATGGCACTGCCAGAACTGGTTCGGGCCCAGGTGCCCTTCAGCTCTTGCCTGGAGGCCTACGGGGCCCCTGAGCAGGTCGATGACTTCTGGAGCACGGCCCTGCAGGCCAAGTCAGTAGCTGTCAAGACCACACGATTTGCCTCATTCCCTGACTACCTGGTCATCCAGATCAAGAAGTTCACCTTCGGCTTAGACTGGGTGCCCAAGAAACTGGATGTGTCCATCGAGATGCCAGAGGAGCTCGACATCTCCCAGTTGAGGGGCACAGGGCTGCAGCCCGGAGAGGAGGAGCTGCCAGACATTGCCCCACCCCTGGTCACTCCGGATGAGCCCAAAGCGCCCATGCTGGATGAATCAGTCATCATCCAGCTGGTGGAGATGGGATTCCCTATGGACGCCTGCCGCAAAGCTGTCTACTACACGGGCAACAGCGGGGCTGAGGCCGCCATGAACTGGGTCATGTCACACATGGATGATCCAGATTTTGCAAACCCCCTCATCCTGCCTGGCTCTAGTGGGCCGGGCTCCACAAGCGCAGCAGCCGACCCCCCTCCTGAGGACTGTGTGACCACCATTGTCTCCgaaGGCTTCTCCCGGGACCAGGCCTTGAAAGCGCTGCGGGCCACGAACAATAGTTTAGAACGGGCTGTGGACTGGATCTTCAGTCACATTGACGACCTGGATGCTGAAGCTGCCATGGACATCTCAGAGGGCCGCTCAGCTGCCGACTCCATCTCTGAGTCTGTGCCAGTGGGACCTAAAGTCCGGGATGGTCCTGGAAAGTATCAGCTCTTTGCCTTCATTAGTCACATGGGCACCTCTACCATGTGTGGTCACTACGTCTGCCACATCAAGAAAGAAGGCAGATGGGTGATCTACAATGACCAGAAAGTGTGTGCCTCCGAGAAGCCGCCCAAGGACCTGGGCTACATCTACTTCTACCAGAGAGTGGCCAGC",{"$f":"LEN(O21)","v":2505},"no","msglndifeaqkiewhegsaggsgMAELSEEALLSVLPTIRVPKAGDRVHKDECAFSFDTPESEGGLYICMNTFLGFGKQYVERHFNKTGQRVYLHLRRTRRPKEEDPATGTGDPPRKKPTRLAIGVEGGFDLSEEKFELDEDVKIVILPDYLEIARDGLGGLPDIVRDRVTSAVEALLSADSASRKQEVQAWDGEVRQVSKHAFSLKQLDNPARIPPCGWKCSKCDMRENLWLNLTDGSILCGRRYFDGSGGNNHAVEHYRETGYPLAVKLGTITPDGADVYSYDEDDMVLDPSLAEHLSHFGIDMLKMQKTDKTMTELEIDMNQRIGEWELIQESGVPLKPLFGPGYTGIRNLGNSCYLNSVVQVLFSIPDFQRKYVDKLEKIFQNAPTDPTQDFSTQVAKLGHGLLSGEYSKPVPESGDGERVPEQKEVQDGIAPRMFKALIGKGHPEFSTNRQQDAQEFFLHLINMVERNCRSSENPNEVFRFLVEEKIKCLATEKVKYTQRVDYIMQLPVPMDAALNKEELLEYEEKKRQAEEEKMALPELVRAQVPFSSCLEAYGAPEQVDDFWSTALQAKSVAVKTTRFASFPDYLVIQIKKFTFGLDWVPKKLDVSIEMPEELDISQLRGTGLQPGEEELPDIAPPLVTPDEPKAPMLDESVIIQLVEMGFPMDACRKAVYYTGNSGAEAAMNWVMSHMDDPDFANPLILPGSSGPGSTSAAADPPPEDCVTTIVSEGFSRDQALKALRATNNSLERAVDWIFSHIDDLDAEAAMDISEGRSAADSISESVPVGPKVRDGPGKYQLFAFISHMGTSTMCGHYVCHIKKEGRWVIYNDQKVCASEKPPKDLGYIYFYQRVASgggshhhhhh",null,"p28BIOH-LIC","gctggaggttcaggtATGGCGGAGCTGAGTGAGGAG","AGAAGCCttcGGAGACAATGGTGGTCACAC","TGTCTCCgaaGGCTTCTCCCGGGACCAGG","atgaccacttccaccGCTGGCCACTCTCTGGTAGAAG","DH5-Alpha","ploppnau","LIC-Infusion","Y",null,"2019-03-06",null,null,"PAGE19-00043","C1 is 100% ","acaattcccctctagaaataattttgtttaactttaagaaggagatataccatgagcggcctgaacgatatttttgaagcgcagaaaattgaatggcatgaaggcagcgctggaggttcaggtATGGCGGAGCTGAGTGAGGAGGCGCTGCTGTCAGTATTACCGACGATCCGGGTCCCTAAGGCTGGAGACCGGGTCCACAAAGACGAGTGCGCCTTCTCCTTCGACACGCCGGAGTCTGAGGGGGGCCTCTACATCTGTATGAACACGTTTCTGGGCTTTGGGAAACAGTATGTGGAGAGACATTTCAATAAGACCGGCCAGCGAGTCTACTTGCACCTCCGGCGGACCCGGCGCCCGAAAGAGGAGGACCCTGCTACAGGCACTGGAGACCCACCCCGGAAGAAGCCCACGCGGCTGGCTATTGGTGTTGAAGGCGGATTTGACCTTAGCGAGGAGAAGTTTGAATTAGACGAGGATGTGAAGATTGTCATTTTGCCAGATTACCTGGAGATTGCCCGGGATGGACTGGGGGGACTGCCTGACATTGTCAGAGATCGGGTGACCAGTGCAGTGGAGGCCCTACTGTCGGCCGACTCAGCCTCCCGCAAGCAGGAGGTGCAGGCATGGGATGGGGAAGTACGGCAGGTGTCTAAGCATGCCTTCAGCCTCAAGCAGTTGGACAACCCTGCTCGAATCCCTCCCTGTGGCTGGAAGTGCTCCAAGTGTGACATGAGAGAGAACCTGTGGCTCAACCTGACTGATGGCTCCATCCTCTGTGGGCGACGCTACTTCGATGGCAGTGGGGGCAACAACCACGCTGTGGAGCACTACCGAGAGACAGGCTACCCGTTAGCTGTCAAGCTGGGCACCATCACCCCTGATGGAGCTGACGTGTACTCATATGATGAGGATGACATGGTCCTGGACCCCAGCCTGGCTGAGCACCTGTCCCACTTCGGCATCGACATGCTGAAGATGCAGAAGACAGACAAGACGATGACTGAGTTGGAGATAGACATGAACCAGCGGATTGGTGAATGGGAGCTGATCCAGGAGTCAGGTGTGCCACTCAAGCCCCTGTTTGGGCCTGGCTACACAGGCATCCGGAACCTGGGTAACAGCTGCTACCTCAACTCTGTGGTCCAGGTGCTCTTCAGCATCCCTGACTTCCAGAGGAAGTATGTGGATAAGCTGGAGAAGATCTTCCAGAATGCCCCGACGGACCCTACCCAGGATTTCAGCACCCAGGTGGCCAAGCTGGGCCATGGCCTTCTCTCCGGGGAGTATTCCAAGCCAGTACCGGAGTCGGGCGATGGGGAGCGGGTGCCAGAACAGAAGGAAGTTCAAGATGGCATTGCCCCTCGGATGTTCAAGGCCCTCATCGGCAAGGGCCACCCTGAATTCTCCACCAACCGGCAGCAGGATGCCCAGGAGTTCTTCCTTCACCTTATCAACATGGTGGAGAGGAATTGCCGGAGCTCTGAAAATCCTAATGAAGTGTTCCGCTTCTTGGTGGAGGAAAAGATCAAGTGCCTGGCCACAGAGAAGGTGAAGTACACCCAGCGAGTTGACTACATCATGCAGCTGCCTGTGCCCATGGATGCAGCCCTTAACAAAGAGGAGCTTCTGGAGTACGAGGAGAAGAAGCGGCAAGCCGAAGAGGAGAAGATGGCACTGCCAGAACTGGTTCGGGCCCAGGTGCCCTTCAGCTCTTGCCTGGAGGCCTACGGGGCCCCTGAGCAGGTCGATGACTTCTGGAGCACGGCCCTGCAGGCCAAGTCAGTAGCTGTCAAGACCACACGATTTGCCTCATTCCCTGACTACCTGGTCATCCAGATCAAGAAGTTCACCTTCGGCTTAGACTGGGTGCCCAAGAAACTGGATGTGTCCATCGAGATGCCAGAGGAGCTCGACATCTCCCAGTTGAGGGGCACAGGGCTGCAGCCCGGAGAGGAGGAGCTGCCAGACATTGCCCCACCCCTGGTCACTCCGGATGAGCCCAAAGCGCCCATGCTGGATGAATCAGTCATCATCCAGCTGGTGGAGATGGGATTCCCTATGGACGCCTGCCGCAAAGCTGTCTACTACACGGGCAACAGCGGGGCTGAGGCCGCCATGAACTGGGTCATGTCACACATGGATGATCCAGATTTTGCAAACCCCCTCATCCTGCCTGGCTCTAGTGGGCCGGGCTCCACAAGCGCAGCAGCCGACCCCCCTCCTGAGGACTGTGTGACCACCATTGTCTCCgaaGGCTTCTCCCGGGACCAGGCCTTGAAAGCGCTGCGGGCCACGAACAATAGTTTAGAACGGGCTGTGGACTGGATCTTCAGTCACATTGACGACCTGGATGCTGAAGCTGCCATGGACATCTCAGAGGGCCGCTCAGCTGCCGACTCCATCTCTGAGTCTGTGCCAGTGGGACCTAAAGTCCGGGATGGTCCTGGAAAGTATCAGCTCTTTGCCTTCATTAGTCACATGGGCACCTCTACCATGTGTGGTCACTACGTCTGCCACATCAAGAAAGAAGGCAGATGGGTGATCTACAATGACCAGAAAGTGTGTGCCTCCGAGAAGCCGCCCAAGGACCTGGGCTACATCTACTTCTACCAGAGAGTGGCCAGCggtggaagtggtcatcaccaccatcatcactgatgacgaagcttgcggccgcactcgagcaccaccaccaccaccactgagatccggctgctaacaaagcccgaa",2733,"AGWCGRGCGGTACATTCCCTCTAGAATAATTTTGTTTAACTTTAAGAAGGAGATATACCATGAGCGGCCTGAACGATATTTTTGAAGCGCAGAAAATTGAATGGCATGAAGGCAGCGCTGGAGGTTCAGGTATGGCGGAGCTGAGTGAGGAGGCGCTGCTGTCAGTATTACCGACGATCCGGGTCCCTAAGGCTGGAGACCGGGTCCACAAAGACGAGTGCGCCTTCTCCTTCGACACGCCGGAGTCTGAGGGGGGCCTCTACATCTGTATGAACACGTTTCTGGGCTTTGGGAAACAGTATGTGGAGAGACATTTCAATAAGACCGGCCAGCGAGTCTACTTGCACCTCCGGCGGACCCGGCGCCCGAAAGAGGAGGACCCTGCTACAGGCACTGGAGACCCACCCCGGAAGAAGCCCACGCGGCTGGCTATTGGTGTTGAAGGCGGATTTGACCTTAGCGAGGAGAAGTTTGAATTAGACGAGGATGTGAAGATTGTCATTTTGCCAGATTACCTGGAGATTGCCCGGGATGGACTGGGGGGACTGCCTGACATTGTCAGAGATCGGGTGACCAGTGCAGTGGAGGCCCTACTGTCGGCCGACTCAGCCTCCCGCAAGCAGGAGGTGCAGGCATGGGATGGGGAAGTACGGCAGGTGTCTAAGCATGCCTTCAGCCTCAAGCAGTTGGACAACCCTGCTCGAATCCCTCCCTGTGGCTGGAAGTGCTCCAAGTGTGACATGAGAGAGAACCTGTGGCTCAACCTGACTGATGGCTCCATCCTCTGTGGGCGACGCTACTTCGATGGCAGTGGGGGCAACAACCACGCTGTGGAGCACTACCGAGAGACAGGCTACCCGTTAGCTGTCAAGCTGGGCACCATCACCCCTGATGGAGCTGACGTGTACTCATATGATGAGGATGACATGGTCCTGGACCCCAGCCTGGCTGAGCACCTGTCCCACTTCGGCATCGACATGCTGAAGATGCAGAAGACAGACAAGACGATGACTGAGTTGGAGATAGACATGAACCAGCGGATTGGTGAATGGGAGCTGATCCAGGAGTCAGGTGTGCCACTCAAGCCCCTGTTTGGGCCTGGCTACACAGGCATCCGGAACCTGGGTAACAGCTGCTACCTCAACTCTGTGGTCCAGGTGCTCTTCAGCATCCCTGACTTCCAGAGGAAGTATGTGGATAAGCTGGAGAAGATCTTCCAGAATGCCCCGACGGACCCTACCCAGGATTTCAGCACCCAGGTGGCCAAGCTGGGCCATGGCCTTCTCTCCGGGGAGTATTCCAAGCCAGTACCGGAGTCGGGCGATGGGGAGCGGGTGCCAGAACAGAAGGAAGTTCAAGATGGCATTGCCCCTCGGATGTTCAAGGCCCTCATCGGCAAGGGCCACCCTGAATTCTCCACCAACCGGCAGCAGGATGCCCAGGAGTTCTTCCTTCACCTTATCAACATGGTGGAGAGGAATTGCCGGAGCTCTGAAAATCCTAATGAAGTGTTCCGCTTCTTGGTGGAGGAAAAGATCAAGTGCCTGGCCACAGAGAAGGTGAAGTACACCCAGCGAGTTGACTACATCATGCAGCTGCCTGTGCCCATGGATGCAGCCCTTAACAAAGAGGAGCTTCTGGAGTACGAGGAGAAGAAGCGGCAAGCCGAAGAGGAGAAGATGGCACTGCCAGAACTGGTTCGGGCCCAGGTGCCCTTCAGCTCTTGCCTGGAGGCCTACGGGGCCCCTGAGCAGGTCGATGACTTCTGGAGCACGGCCCTGCAGGCCAAGTCAGTAGCTGTCAAGACCACACGATTTGCCTCATTCCCTGACTACCTGGTCATCCAGATCAAGAAGTTCACCTTCGGCTTAGACTGGGTGCCCAAGAAACTGGATGTGTCCATCGAGATGCCAGAGGAGCTCGACATCTCCCAGTTGAGGGGCACAGGGCTGCAGCCCGGAGAGGAGGAGCTGCCAGACATTGCCCCACCCCTGGTCACTCCGGATGAGCCCAAAGCGCCCATGCTGGATGAATCAGTCATCATCCAGCTGGTGGAGATGGGATTCCCTATGGACGCCTGCCGCAAAGCTGTCTACTACACGGGCAACAGCGGGGCTGAGGCCGCCATGAACTGGGTCATGTCACACATGGATGATCCAGATTTTGCAAACCCCCTCATCCTGCCTGGCTCTAGTGGGCCGGGCTCCACAAGCGCAGCAGCCGACCCCCCTCCTGAGGACTGTGTGACCACCATTGTCTCCGAAGGCTTCTCCCGGGACCAGGCCTTGAAAGCGCTGCGGGCCACGAACAATAGTTTAGAACGGGCTGTGGACTGGATCTTCAGTCACATTGACGACCTGGATGCTGAAGCTGCCATGGACATCTCAGAGGGCCGCTCAGCTGCCGACTCCATCTCTGAGTCTGTGCCAGTGGGACCTAAAGTCCGGGATGGTCCTGGAAAGTATCAGCTCTTTGCCTTCATTAGTCACATGGGCACCTCTACCATGTGTGGTCACTACGTCTGCCACATCAAGAAAGAAGGCAGATGGGTGATCTACAATGACCAGAAAGTGTGTGCCTCCGAGAAGCCGCCCAAGGACCTGGGCTACATCTACTTCTACCAGAGAGTGGCCAGCGGTGGAAGTGGTCATCACCACCATCATCACTGATGACGAAGCTTGCGGCCGCACTCGAGCACCACCACCACCACCACTGAGATCCGGCTGCTAACAAAGCCCGAAAGAAGCKAGTGYTCCC",2757,null,"p28BIOH-LIC","acaattcccctctagaaataattttgtttaactttaagaaggagatataccatgagcggcctgaacgatatttttgaagcgcagaaaattgaatggcatgaaggcagcgctggaggttcaggt","ggtggaagtggtcatcaccaccatcatcactgatgacgaagcttgcggccgcactcgagcaccaccaccaccaccactgagatccggctgctaacaaagcccgaa",null,null,null,null,null,null,null,null,null,null,null,null,null,null,"AU25-C3"]

{"sheet":"request","index":1,"n_rows":26,"n_cols":33,"rows_kept":26,"cut":false,"hidden":false,"merged":[]}
["Cloning Sample ID","Batch ID","Plate Location (e.g. B07)","BatchWell (e.g. SDC209A05)","Variant 0 id","Variant 1 id","Template 0 id","Template 0 location","Construct 0 ID","Construct 0 Start","Construct 0 End","Construct 0 AASeq","Construct     AA length","Construct 0 DNA Seq","Construct   DNA length","Construct 0 100% match Template DNA Sequence (yes or no)","Cloned AA Seq","Cut AA Seq","Vector","Forward Primer 0","Reverse Primer 0","Forward Primer 1","Reverse Primer 1","Host Cell","Cloner (login ID)","Cloning Method","Cloning Status (Y/N)","Storage Location","Date Completed (yyyy-mm-dd)","Cloner Sample ID","Date Delivered","ELN Experiment","Comments"]
[null,"TOC023","A01",{"$f":"(B2&C2)","v":"TOC023A01"},"USP05",null,null,"AU25-C3","USP05_1-835_bio",1,835,"MAELSEEALLSVLPTIRVPKAGDRVHKDECAFSFDTPESEGGLYICMNTFLGFGKQYVERHFNKTGQRVYLHLRRTRRPKEEDPATGTGDPPRKKPTRLAIGVEGGFDLSEEKFELDEDVKIVILPDYLEIARDGLGGLPDIVRDRVTSAVEALLSADSASRKQEVQAWDGEVRQVSKHAFSLKQLDNPARIPPCGWKCSKCDMRENLWLNLTDGSILCGRRYFDGSGGNNHAVEHYRETGYPLAVKLGTITPDGADVYSYDEDDMVLDPSLAEHLSHFGIDMLKMQKTDKTMTELEIDMNQRIGEWELIQESGVPLKPLFGPGYTGIRNLGNSCYLNSVVQVLFSIPDFQRKYVDKLEKIFQNAPTDPTQDFSTQVAKLGHGLLSGEYSKPVPESGDGERVPEQKEVQDGIAPRMFKALIGKGHPEFSTNRQQDAQEFFLHLINMVERNCRSSENPNEVFRFLVEEKIKCLATEKVKYTQRVDYIMQLPVPMDAALNKEELLEYEEKKRQAEEEKMALPELVRAQVPFSSCLEAYGAPEQVDDFWSTALQAKSVAVKTTRFASFPDYLVIQIKKFTFGLDWVPKKLDVSIEMPEELDISQLRGTGLQPGEEELPDIAPPLVTPDEPKAPMLDESVIIQLVEMGFPMDACRKAVYYTGNSGAEAAMNWVMSHMDDPDFANPLILPGSSGPGSTSAAADPPPEDCVTTIVSMGFSRDQALKALRATNNSLERAVDWIFSHIDDLDAEAAMDISEGRSAADSISESVPVGPKVRDGPGKYQLFAFISHMGTSTMCGHYVCHIKKEGRWVIYNDQKVCASEKPPKDLGYIYFYQRVAS",{"$f":"LEN(L2)","v":835},"ATGGCGGAGCTGAGTGAGGAGGCGCTGCTGTCAGTATTACCGACGATCCGGGTCCCTAAGGCTGGAGACCGGGTCCACAAAGACGAGTGCGCCTTCTCCTTCGACACGCCGGAGTCTGAGGGGGGCCTCTACATCTGTATGAACACGTTTCTGGGCTTTGGGAAACAGTATGTGGAGAGACATTTCAATAAGACCGGCCAGCGAGTCTACTTGCACCTCCGGCGGACCCGGCGCCCGAAAGAGGAGGACCCTGCTACAGGCACTGGAGACCCACCCCGGAAGAAGCCCACGCGGCTGGCTATTGGTGTTGAAGGCGGATTTGACCTTAGCGAGGAGAAGTTTGAATTAGACGAGGATGTGAAGATTGTCATTTTGCCAGATTACCTGGAGATTGCCCGGGATGGACTGGGGGGACTGCCTGACATTGTCAGAGATCGGGTGACCAGTGCAGTGGAGGCCCTACTGTCGGCCGACTCAGCCTCCCGCAAGCAGGAGGTGCAGGCATGGGATGGGGAAGTACGGCAGGTGTCTAAGCATGCCTTCAGCCTCAAGCAGTTGGACAACCCTGCTCGAATCCCTCCCTGTGGCTGGAAGTGCTCCAAGTGTGACATGAGAGAGAACCTGTGGCTCAACCTGACTGATGGCTCCATCCTCTGTGGGCGACGCTACTTCGATGGCAGTGGGGGCAACAACCACGCTGTGGAGCACTACCGAGAGACAGGCTACCCGTTAGCTGTCAAGCTGGGCACCATCACCCCTGATGGAGCTGACGTGTACTCATATGATGAGGATGACATGGTCCTGGACCCCAGCCTGGCTGAGCACCTGTCCCACTTCGGCATCGACATGCTGAAGATGCAGAAGACAGACAAGACGATGACTGAGTTGGAGATAGACATGAACCAGCGGATTGGTGAATGGGAGCTGATCCAGGAGTCAGGTGTGCCACTCAAGCCCCTGTTTGGGCCTGGCTACACAGGCATCCGGAACCTGGGTAACAGCTGCTACCTCAACTCTGTGGTCCAGGTGCTCTTCAGCATCCCTGACTTCCAGAGGAAGTATGTGGATAAGCTGGAGAAGATCTTCCAGAATGCCCCGACGGACCCTACCCAGGATTTCAGCACCCAGGTGGCCAAGCTGGGCCATGGCCTTCTCTCCGGGGAGTATTCCAAGCCAGTACCGGAGTCGGGCGATGGGGAGCGGGTGCCAGAACAGAAGGAAGTTCAAGATGGCATTGCCCCTCGGATGTTCAAGGCCCTCATCGGCAAGGGCCACCCTGAATTCTCCACCAACCGGCAGCAGGATGCCCAGGAGTTCTTCCTTCACCTTATCAACATGGTGGAGAGGAATTGCCGGAGCTCTGAAAATCCTAATGAAGTGTTCCGCTTCTTGGTGGAGGAAAAGATCAAGTGCCTGGCCACAGAGAAGGTGAAGTACACCCAGCGAGTTGACTACATCATGCAGCTGCCTGTGCCCATGGATGCAGCCCTTAACAAAGAGGAGCTTCTGGAGTACGAGGAGAAGAAGCGGCAAGCCGAAGAGGAGAAGATGGCACTGCCAGAACTGGTTCGGGCCCAGGTGCCCTTCAGCTCTTGCCTGGAGGCCTACGGGGCCCCTGAGCAGGTCGATGACTTCTGGAGCACGGCCCTGCAGGCCAAGTCAGTAGCTGTCAAGACCACACGATTTGCCTCATTCCCTGACTACCTGGTCATCCAGATCAAGAAGTTCACCTTCGGCTTAGACTGGGTGCCCAAGAAACTGGATGTGTCCATCGAGATGCCAGAGGAGCTCGACATCTCCCAGTTGAGGGGCACAGGGCTGCAGCCCGGAGAGGAGGAGCTGCCAGACATTGCCCCACCCCTGGTCACTCCGGATGAGCCCAAAGCGCCCATGCTGGATGAATCAGTCATCATCCAGCTGGTGGAGATGGGATTCCCTATGGACGCCTGCCGCAAAGCTGTCTACTACACGGGCAACAGCGGGGCTGAGGCCGCCATGAACTGGGTCATGTCACACATGGATGATCCAGATTTTGCAAACCCCCTCATCCTGCCTGGCTCTAGTGGGCCGGGCTCCACAAGCGCAGCAGCCGACCCCCCTCCTGAGGACTGTGTGACCACCATTGTCTCCATGGGCTTCTCCCGGGACCAGGCCTTGAAAGCGCTGCGGGCCACGAACAATAGTTTAGAACGGGCTGTGGACTGGATCTTCAGTCACATTGACGACCTGGATGCTGAAGCTGCCATGGACATCTCAGAGGGCCGCTCAGCTGCCGACTCCATCTCTGAGTCTGTGCCAGTGGGACCTAAAGTCCGGGATGGTCCTGGAAAGTATCAGCTCTTTGCCTTCATTAGTCACATGGGCACCTCTACCATGTGTGGTCACTACGTCTGCCACATCAAGAAAGAAGGCAGATGGGTGATCTACAATGACCAGAAAGTGTGTGCCTCCGAGAAGCCGCCCAAGGACCTGGGCTACATCTACTTCTACCAGAGAGTGGCCAGC",{"$f":"LEN(N2)","v":2505},"yes","msglndifeaqkiewhegsaggsgMAELSEEALLSVLPTIRVPKAGDRVHKDECAFSFDTPESEGGLYICMNTFLGFGKQYVERHFNKTGQRVYLHLRRTRRPKEEDPATGTGDPPRKKPTRLAIGVEGGFDLSEEKFELDEDVKIVILPDYLEIARDGLGGLPDIVRDRVTSAVEALLSADSASRKQEVQAWDGEVRQVSKHAFSLKQLDNPARIPPCGWKCSKCDMRENLWLNLTDGSILCGRRYFDGSGGNNHAVEHYRETGYPLAVKLGTITPDGADVYSYDEDDMVLDPSLAEHLSHFGIDMLKMQKTDKTMTELEIDMNQRIGEWELIQESGVPLKPLFGPGYTGIRNLGNSCYLNSVVQVLFSIPDFQRKYVDKLEKIFQNAPTDPTQDFSTQVAKLGHGLLSGEYSKPVPESGDGERVPEQKEVQDGIAPRMFKALIGKGHPEFSTNRQQDAQEFFLHLINMVERNCRSSENPNEVFRFLVEEKIKCLATEKVKYTQRVDYIMQLPVPMDAALNKEELLEYEEKKRQAEEEKMALPELVRAQVPFSSCLEAYGAPEQVDDFWSTALQAKSVAVKTTRFASFPDYLVIQIKKFTFGLDWVPKKLDVSIEMPEELDISQLRGTGLQPGEEELPDIAPPLVTPDEPKAPMLDESVIIQLVEMGFPMDACRKAVYYTGNSGAEAAMNWVMSHMDDPDFANPLILPGSSGPGSTSAAADPPPEDCVTTIVSMGFSRDQALKALRATNNSLERAVDWIFSHIDDLDAEAAMDISEGRSAADSISESVPVGPKVRDGPGKYQLFAFISHMGTSTMCGHYVCHIKKEGRWVIYNDQKVCASEKPPKDLGYIYFYQRVASgggshhhhhh",null,"p28BIOH-LIC","gctggaggttcaggtATGGCGGAGCTGAGTGAGGAG","atgaccacttccaccGCTGGCCACTCTCTGGTAGAAG",null,null,"DH5-Alpha","ploppnau","LIC-Infusion","Y",null,"2019-03-06",null,null,"PAGE19-00043","A01 is 100%"]
[null,"TOC023","A02",{"$f":"(B3&C3)","v":"TOC023A02"},"USP05",null,null,"AU25-C3","USP05_1-835_bio_C335A",1,835,"MAELSEEALLSVLPTIRVPKAGDRVHKDECAFSFDTPESEGGLYICMNTFLGFGKQYVERHFNKTGQRVYLHLRRTRRPKEEDPATGTGDPPRKKPTRLAIGVEGGFDLSEEKFELDEDVKIVILPDYLEIARDGLGGLPDIVRDRVTSAVEALLSADSASRKQEVQAWDGEVRQVSKHAFSLKQLDNPARIPPCGWKCSKCDMRENLWLNLTDGSILCGRRYFDGSGGNNHAVEHYRETGYPLAVKLGTITPDGADVYSYDEDDMVLDPSLAEHLSHFGIDMLKMQKTDKTMTELEIDMNQRIGEWELIQESGVPLKPLFGPGYTGIRNLGNSaYLNSVVQVLFSIPDFQRKYVDKLEKIFQNAPTDPTQDFSTQVAKLGHGLLSGEYSKPVPESGDGERVPEQKEVQDGIAPRMFKALIGKGHPEFSTNRQQDAQEFFLHLINMVERNCRSSENPNEVFRFLVEEKIKCLATEKVKYTQRVDYIMQLPVPMDAALNKEELLEYEEKKRQAEEEKMALPELVRAQVPFSSCLEAYGAPEQVDDFWSTALQAKSVAVKTTRFASFPDYLVIQIKKFTFGLDWVPKKLDVSIEMPEELDISQLRGTGLQPGEEELPDIAPPLVTPDEPKAPMLDESVIIQLVEMGFPMDACRKAVYYTGNSGAEAAMNWVMSHMDDPDFANPLILPGSSGPGSTSAAADPPPEDCVTTIVSMGFSRDQALKALRATNNSLERAVDWIFSHIDDLDAEAAMDISEGRSAADSISESVPVGPKVRDGPGKYQLFAFISHMGTSTMCGHYVCHIKKEGRWVIYNDQKVCASEKPPKDLGYIYFYQRVAS",{"$f":"LEN(L3)","v":835},"ATGGCGGAGCTGAGTGAGGAGGCGCTGCTGTCAGTATTACCGACGATCCGGGTCCCTAAGGCTGGAGACCGGGTCCACAAAGACGAGTGCGCCTTCTCCTTCGACACGCCGGAGTCTGAGGGGGGCCTCTACATCTGTATGAACACGTTTCTGGGCTTTGGGAAACAGTATGTGGAGAGACATTTCAATAAGACCGGCCAGCGAGTCTACTTGCACCTCCGGCGGACCCGGCGCCCGAAAGAGGAGGACCCTGCTACAGGCACTGGAGACCCACCCCGGAAGAAGCCCACGCGGCTGGCTATTGGTGTTGAAGGCGGATTTGACCTTAGCGAGGAGAAGTTTGAATTAGACGAGGATGTGAAGATTGTCATTTTGCCAGATTACCTGGAGATTGCCCGGGATGGACTGGGGGGACTGCCTGACATTGTCAGAGATCGGGTGACCAGTGCAGTGGAGGCCCTACTGTCGGCCGACTCAGCCTCCCGCAAGCAGGAGGTGCAGGCATGGGATGGGGAAGTACGGCAGGTGTCTAAGCATGCCTTCAGCCTCAAGCAGTTGGACAACCCTGCTCGAATCCCTCCCTGTGGCTGGAAGTGCTCCAAGTGTGACATGAGAGAGAACCTGTGGCTCAACCTGACTGATGGCTCCATCCTCTGTGGGCGACGCTACTTCGATGGCAGTGGGGGCAACAACCACGCTGTGGAGCACTACCGAGAGACAGGCTACCCGTTAGCTGTCAAGCTGGGCACCATCACCCCTGATGGAGCTGACGTGTACTCATATGATGAGGATGACATGGTCCTGGACCCCAGCCTGGCTGAGCACCTGTCCCACTTCGGCATCGACATGCTGAAGATGCAGAAGACAGACAAGACGATGACTGAGTTGGAGATAGACATGAACCAGCGGATTGGTGAATGGGAGCTGATCCAGGAGTCAGGTGTGCCACTCAAGCCCCTGTTTGGGCCTGGCTACACAGGCATCCGGAACCTGGGTAACAGCgcgTACCTCAACTCTGTGGTCCAGGTGCTCTTCAGCATCCCTGACTTCCAGAGGAAGTATGTGGATAAGCTGGAGAAGATCTTCCAGAATGCCCCGACGGACCCTACCCAGGATTTCAGCACCCAGGTGGCCAAGCTGGGCCATGGCCTTCTCTCCGGGGAGTATTCCAAGCCAGTACCGGAGTCGGGCGATGGGGAGCGGGTGCCAGAACAGAAGGAAGTTCAAGATGGCATTGCCCCTCGGATGTTCAAGGCCCTCATCGGCAAGGGCCACCCTGAATTCTCCACCAACCGGCAGCAGGATGCCCAGGAGTTCTTCCTTCACCTTATCAACATGGTGGAGAGGAATTGCCGGAGCTCTGAAAATCCTAATGAAGTGTTCCGCTTCTTGGTGGAGGAAAAGATCAAGTGCCTGGCCACAGAGAAGGTGAAGTACACCCAGCGAGTTGACTACATCATGCAGCTGCCTGTGCCCATGGATGCAGCCCTTAACAAAGAGGAGCTTCTGGAGTACGAGGAGAAGAAGCGGCAAGCCGAAGAGGAGAAGATGGCACTGCCAGAACTGGTTCGGGCCCAGGTGCCCTTCAGCTCTTGCCTGGAGGCCTACGGGGCCCCTGAGCAGGTCGATGACTTCTGGAGCACGGCCCTGCAGGCCAAGTCAGTAGCTGTCAAGACCACACGATTTGCCTCATTCCCTGACTACCTGGTCATCCAGATCAAGAAGTTCACCTTCGGCTTAGACTGGGTGCCCAAGAAACTGGATGTGTCCATCGAGATGCCAGAGGAGCTCGACATCTCCCAGTTGAGGGGCACAGGGCTGCAGCCCGGAGAGGAGGAGCTGCCAGACATTGCCCCACCCCTGGTCACTCCGGATGAGCCCAAAGCGCCCATGCTGGATGAATCAGTCATCATCCAGCTGGTGGAGATGGGATTCCCTATGGACGCCTGCCGCAAAGCTGTCTACTACACGGGCAACAGCGGGGCTGAGGCCGCCATGAACTGGGTCATGTCACACATGGATGATCCAGATTTTGCAAACCCCCTCATCCTGCCTGGCTCTAGTGGGCCGGGCTCCACAAGCGCAGCAGCCGACCCCCCTCCTGAGGACTGTGTGACCACCATTGTCTCCATGGGCTTCTCCCGGGACCAGGCCTTGAAAGCGCTGCGGGCCACGAACAATAGTTTAGAACGGGCTGTGGACTGGATCTTCAGTCACATTGACGACCTGGATGCTGAAGCTGCCATGGACATCTCAGAGGGCCGCTCAGCTGCCGACTCCATCTCTGAGTCTGTGCCAGTGGGACCTAAAGTCCGGGATGGTCCTGGAAAGTATCAGCTCTTTGCCTTCATTAGTCACATGGGCACCTCTACCATGTGTGGTCACTACGTCTGCCACATCAAGAAAGAAGGCAGATGGGTGATCTACAATGACCAGAAAGTGTGTGCCTCCGAGAAGCCGCCCAAGGACCTGGGCTACATCTACTTCTACCAGAGAGTGGCCAGC",{"$f":"LEN(N3)","v":2505},"no","msglndifeaqkiewhegsaggsgMAELSEEALLSVLPTIRVPKAGDRVHKDECAFSFDTPESEGGLYICMNTFLGFGKQYVERHFNKTGQRVYLHLRRTRRPKEEDPATGTGDPPRKKPTRLAIGVEGGFDLSEEKFELDEDVKIVILPDYLEIARDGLGGLPDIVRDRVTSAVEALLSADSASRKQEVQAWDGEVRQVSKHAFSLKQLDNPARIPPCGWKCSKCDMRENLWLNLTDGSILCGRRYFDGSGGNNHAVEHYRETGYPLAVKLGTITPDGADVYSYDEDDMVLDPSLAEHLSHFGIDMLKMQKTDKTMTELEIDMNQRIGEWELIQESGVPLKPLFGPGYTGIRNLGNSaYLNSVVQVLFSIPDFQRKYVDKLEKIFQNAPTDPTQDFSTQVAKLGHGLLSGEYSKPVPESGDGERVPEQKEVQDGIAPRMFKALIGKGHPEFSTNRQQDAQEFFLHLINMVERNCRSSENPNEVFRFLVEEKIKCLATEKVKYTQRVDYIMQLPVPMDAALNKEELLEYEEKKRQAEEEKMALPELVRAQVPFSSCLEAYGAPEQVDDFWSTALQAKSVAVKTTRFASFPDYLVIQIKKFTFGLDWVPKKLDVSIEMPEELDISQLRGTGLQPGEEELPDIAPPLVTPDEPKAPMLDESVIIQLVEMGFPMDACRKAVYYTGNSGAEAAMNWVMSHMDDPDFANPLILPGSSGPGSTSAAADPPPEDCVTTIVSMGFSRDQALKALRATNNSLERAVDWIFSHIDDLDAEAAMDISEGRSAADSISESVPVGPKVRDGPGKYQLFAFISHMGTSTMCGHYVCHIKKEGRWVIYNDQKVCASEKPPKDLGYIYFYQRVASgggshhhhhh",null,"p28BIOH-LIC","gctggaggttcaggtATGGCGGAGCTGAGTGAGGAG","TGAGGTAcgcGCTGTTACCCAGGTTCCGG","TAACAGCgcgTACCTCAACTCTGTGGTCC","atgaccacttccaccGCTGGCCACTCTCTGGTAGAAG","DH5-Alpha","ploppnau","LIC-Infusion","Y",null,"2019-03-06",null,null,"PAGE19-00043","A02 is 100%"]
[null,"TOC023","A03","TOC023A03","USP05",null,null,"AU25-C3","USP05_1-835_bio_C335A_R221A",1,835,"MAELSEEALLSVLPTIRVPKAGDRVHKDECAFSFDTPESEGGLYICMNTFLGFGKQYVERHFNKTGQRVYLHLRRTRRPKEEDPATGTGDPPRKKPTRLAIGVEGGFDLSEEKFELDEDVKIVILPDYLEIARDGLGGLPDIVRDRVTSAVEALLSADSASRKQEVQAWDGEVRQVSKHAFSLKQLDNPARIPPCGWKCSKCDMRENLWLNLTDGSILCGaRYFDGSGGNNHAVEHYRETGYPLAVKLGTITPDGADVYSYDEDDMVLDPSLAEHLSHFGIDMLKMQKTDKTMTELEIDMNQRIGEWELIQESGVPLKPLFGPGYTGIRNLGNSaYLNSVVQVLFSIPDFQRKYVDKLEKIFQNAPTDPTQDFSTQVAKLGHGLLSGEYSKPVPESGDGERVPEQKEVQDGIAPRMFKALIGKGHPEFSTNRQQDAQEFFLHLINMVERNCRSSENPNEVFRFLVEEKIKCLATEKVKYTQRVDYIMQLPVPMDAALNKEELLEYEEKKRQAEEEKMALPELVRAQVPFSSCLEAYGAPEQVDDFWSTALQAKSVAVKTTRFASFPDYLVIQIKKFTFGLDWVPKKLDVSIEMPEELDISQLRGTGLQPGEEELPDIAPPLVTPDEPKAPMLDESVIIQLVEMGFPMDACRKAVYYTGNSGAEAAMNWVMSHMDDPDFANPLILPGSSGPGSTSAAADPPPEDCVTTIVSMGFSRDQALKALRATNNSLERAVDWIFSHIDDLDAEAAMDISEGRSAADSISESVPVGPKVRDGPGKYQLFAFISHMGTSTMCGHYVCHIKKEGRWVIYNDQKVCASEKPPKDLGYIYFYQRVAS",835,"ATGGCGGAGCTGAGTGAGGAGGCGCTGCTGTCAGTATTACCGACGATCCGGGTCCCTAAGGCTGGAGACCGGGTCCACAAAGACGAGTGCGCCTTCTCCTTCGACACGCCGGAGTCTGAGGGGGGCCTCTACATCTGTATGAACACGTTTCTGGGCTTTGGGAAACAGTATGTGGAGAGACATTTCAATAAGACCGGCCAGCGAGTCTACTTGCACCTCCGGCGGACCCGGCGCCCGAAAGAGGAGGACCCTGCTACAGGCACTGGAGACCCACCCCGGAAGAAGCCCACGCGGCTGGCTATTGGTGTTGAAGGCGGATTTGACCTTAGCGAGGAGAAGTTTGAATTAGACGAGGATGTGAAGATTGTCATTTTGCCAGATTACCTGGAGATTGCCCGGGATGGACTGGGGGGACTGCCTGACATTGTCAGAGATCGGGTGACCAGTGCAGTGGAGGCCCTACTGTCGGCCGACTCAGCCTCCCGCAAGCAGGAGGTGCAGGCATGGGATGGGGAAGTACGGCAGGTGTCTAAGCATGCCTTCAGCCTCAAGCAGTTGGACAACCCTGCTCGAATCCCTCCCTGTGGCTGGAAGTGCTCCAAGTGTGACATGAGAGAGAACCTGTGGCTCAACCTGACTGATGGCTCCATCCTCTGTGGGgcgCGCTACTTCGATGGCAGTGGGGGCAACAACCACGCTGTGGAGCACTACCGAGAGACAGGCTACCCGTTAGCTGTCAAGCTGGGCACCATCACCCCTGATGGAGCTGACGTGTACTCATATGATGAGGATGACATGGTCCTGGACCCCAGCCTGGCTGAGCACCTGTCCCACTTCGGCATCGACATGCTGAAGATGCAGAAGACAGACAAGACGATGACTGAGTTGGAGATAGACATGAACCAGCGGATTGGTGAATGGGAGCTGATCCAGGAGTCAGGTGTGCCACTCAAGCCCCTGTTTGGGCCTGGCTACACAGGCATCCGGAACCTGGGTAACAGCgcgTACCTCAACTCTGTGGTCCAGGTGCTCTTCAGCATCCCTGACTTCCAGAGGAAGTATGTGGATAAGCTGGAGAAGATCTTCCAGAATGCCCCGACGGACCCTACCCAGGATTTCAGCACCCAGGTGGCCAAGCTGGGCCATGGCCTTCTCTCCGGGGAGTATTCCAAGCCAGTACCGGAGTCGGGCGATGGGGAGCGGGTGCCAGAACAGAAGGAAGTTCAAGATGGCATTGCCCCTCGGATGTTCAAGGCCCTCATCGGCAAGGGCCACCCTGAATTCTCCACCAACCGGCAGCAGGATGCCCAGGAGTTCTTCCTTCACCTTATCAACATGGTGGAGAGGAATTGCCGGAGCTCTGAAAATCCTAATGAAGTGTTCCGCTTCTTGGTGGAGGAAAAGATCAAGTGCCTGGCCACAGAGAAGGTGAAGTACACCCAGCGAGTTGACTACATCATGCAGCTGCCTGTGCCCATGGATGCAGCCCTTAACAAAGAGGAGCTTCTGGAGTACGAGGAGAAGAAGCGGCAAGCCGAAGAGGAGAAGATGGCACTGCCAGAACTGGTTCGGGCCCAGGTGCCCTTCAGCTCTTGCCTGGAGGCCTACGGGGCCCCTGAGCAGGTCGATGACTTCTGGAGCACGGCCCTGCAGGCCAAGTCAGTAGCTGTCAAGACCACACGATTTGCCTCATTCCCTGACTACCTGGTCATCCAGATCAAGAAGTTCACCTTCGGCTTAGACTGGGTGCCCAAGAAACTGGATGTGTCCATCGAGATGCCAGAGGAGCTCGACATCTCCCAGTTGAGGGGCACAGGGCTGCAGCCCGGAGAGGAGGAGCTGCCAGACATTGCCCCACCCCTGGTCACTCCGGATGAGCCCAAAGCGCCCATGCTGGATGAATCAGTCATCATCCAGCTGGTGGAGATGGGATTCCCTATGGACGCCTGCCGCAAAGCTGTCTACTACACGGGCAACAGCGGGGCTGAGGCCGCCATGAACTGGGTCATGTCACACATGGATGATCCAGATTTTGCAAACCCCCTCATCCTGCCTGGCTCTAGTGGGCCGGGCTCCACAAGCGCAGCAGCCGACCCCCCTCCTGAGGACTGTGTGACCACCATTGTCTCCATGGGCTTCTCCCGGGACCAGGCCTTGAAAGCGCTGCGGGCCACGAACAATAGTTTAGAACGGGCTGTGGACTGGATCTTCAGTCACATTGACGACCTGGATGCTGAAGCTGCCATGGACATCTCAGAGGGCCGCTCAGCTGCCGACTCCATCTCTGAGTCTGTGCCAGTGGGACCTAAAGTCCGGGATGGTCCTGGAAAGTATCAGCTCTTTGCCTTCATTAGTCACATGGGCACCTCTACCATGTGTGGTCACTACGTCTGCCACATCAAGAAAGAAGGCAGATGGGTGATCTACAATGACCAGAAAGTGTGTGCCTCCGAGAAGCCGCCCAAGGACCTGGGCTACATCTACTTCTACCAGAGAGTGGCCAGC",2505,"no","msglndifeaqkiewhegsaggsgMAELSEEALLSVLPTIRVPKAGDRVHKDECAFSFDTPESEGGLYICMNTFLGFGKQYVERHFNKTGQRVYLHLRRTRRPKEEDPATGTGDPPRKKPTRLAIGVEGGFDLSEEKFELDEDVKIVILPDYLEIARDGLGGLPDIVRDRVTSAVEALLSADSASRKQEVQAWDGEVRQVSKHAFSLKQLDNPARIPPCGWKCSKCDMRENLWLNLTDGSILCGaRYFDGSGGNNHAVEHYRETGYPLAVKLGTITPDGADVYSYDEDDMVLDPSLAEHLSHFGIDMLKMQKTDKTMTELEIDMNQRIGEWELIQESGVPLKPLFGPGYTGIRNLGNSaYLNSVVQVLFSIPDFQRKYVDKLEKIFQNAPTDPTQDFSTQVAKLGHGLLSGEYSKPVPESGDGERVPEQKEVQDGIAPRMFKALIGKGHPEFSTNRQQDAQEFFLHLINMVERNCRSSENPNEVFRFLVEEKIKCLATEKVKYTQRVDYIMQLPVPMDAALNKEELLEYEEKKRQAEEEKMALPELVRAQVPFSSCLEAYGAPEQVDDFWSTALQAKSVAVKTTRFASFPDYLVIQIKKFTFGLDWVPKKLDVSIEMPEELDISQLRGTGLQPGEEELPDIAPPLVTPDEPKAPMLDESVIIQLVEMGFPMDACRKAVYYTGNSGAEAAMNWVMSHMDDPDFANPLILPGSSGPGSTSAAADPPPEDCVTTIVSMGFSRDQALKALRATNNSLERAVDWIFSHIDDLDAEAAMDISEGRSAADSISESVPVGPKVRDGPGKYQLFAFISHMGTSTMCGHYVCHIKKEGRWVIYNDQKVCASEKPPKDLGYIYFYQRVASgggshhhhhh",null,"p28BIOH-LIC","gctggaggttcaggtATGGCGGAGCTGAGTGAGGAG","AGTAGCGcgcCCCACAGAGGATGGAGCCAT","CTGTGGGgcgCGCTACTTCGATGGCAGTG","atgaccacttccaccGCTGGCCACTCTCTGGTAGAAG","DH5-Alpha","ploppnau","LIC-Infusion","Y",null,"2019-03-06",null,null,"PAGE19-00043","A03 is 100%"]
[null,"TOC023","A04","TOC023A04","USP05",null,null,"AU25-C3","USP05_1-835_bio_M643E_M711E",1,835,"MAELSEEALLSVLPTIRVPKAGDRVHKDECAFSFDTPESEGGLYICMNTFLGFGKQYVERHFNKTGQRVYLHLRRTRRPKEEDPATGTGDPPRKKPTRLAIGVEGGFDLSEEKFELDEDVKIVILPDYLEIARDGLGGLPDIVRDRVTSAVEALLSADSASRKQEVQAWDGEVRQVSKHAFSLKQLDNPARIPPCGWKCSKCDMRENLWLNLTDGSILCGRRYFDGSGGNNHAVEHYRETGYPLAVKLGTITPDGADVYSYDEDDMVLDPSLAEHLSHFGIDMLKMQKTDKTMTELEIDMNQRIGEWELIQESGVPLKPLFGPGYTGIRNLGNSCYLNSVVQVLFSIPDFQRKYVDKLEKIFQNAPTDPTQDFSTQVAKLGHGLLSGEYSKPVPESGDGERVPEQKEVQDGIAPRMFKALIGKGHPEFSTNRQQDAQEFFLHLINMVERNCRSSENPNEVFRFLVEEKIKCLATEKVKYTQRVDYIMQLPVPMDAALNKEELLEYEEKKRQAEEEKMALPELVRAQVPFSSCLEAYGAPEQVDDFWSTALQAKSVAVKTTRFASFPDYLVIQIKKFTFGLDWVPKKLDVSIEMPEELDISQLRGTGLQPGEEELPDIAPPLVTPDEPKAPMLDESVIIQLVEeGFPMDACRKAVYYTGNSGAEAAMNWVMSHMDDPDFANPLILPGSSGPGSTSAAADPPPEDCVTTIVSeGFSRDQALKALRATNNSLERAVDWIFSHIDDLDAEAAMDISEGRSAADSISESVPVGPKVRDGPGKYQLFAFISHMGTSTMCGHYVCHIKKEGRWVIYNDQKVCASEKPPKDLGYIYFYQRVAS",835,"ATGGCGGAGCTGAGTGAGGAGGCGCTGCTGTCAGTATTACCGACGATCCGGGTCCCTAAGGCTGGAGACCGGGTCCACAAAGACGAGTGCGCCTTCTCCTTCGACACGCCGGAGTCTGAGGGGGGCCTCTACATCTGTATGAACACGTTTCTGGGCTTTGGGAAACAGTATGTGGAGAGACATTTCAATAAGACCGGCCAGCGAGTCTACTTGCACCTCCGGCGGACCCGGCGCCCGAAAGAGGAGGACCCTGCTACAGGCACTGGAGACCCACCCCGGAAGAAGCCCACGCGGCTGGCTATTGGTGTTGAAGGCGGATTTGACCTTAGCGAGGAGAAGTTTGAATTAGACGAGGATGTGAAGATTGTCATTTTGCCAGATTACCTGGAGATTGCCCGGGATGGACTGGGGGGACTGCCTGACATTGTCAGAGATCGGGTGACCAGTGCAGTGGAGGCCCTACTGTCGGCCGACTCAGCCTCCCGCAAGCAGGAGGTGCAGGCATGGGATGGGGAAGTACGGCAGGTGTCTAAGCATGCCTTCAGCCTCAAGCAGTTGGACAACCCTGCTCGAATCCCTCCCTGTGGCTGGAAGTGCTCCAAGTGTGACATGAGAGAGAACCTGTGGCTCAACCTGACTGATGGCTCCATCCTCTGTGGGCGACGCTACTTCGATGGCAGTGGGGGCAACAACCACGCTGTGGAGCACTACCGAGAGACAGGCTACCCGTTAGCTGTCAAGCTGGGCACCATCACCCCTGATGGAGCTGACGTGTACTCATATGATGAGGATGACATGGTCCTGGACCCCAGCCTGGCTGAGCACCTGTCCCACTTCGGCATCGACATGCTGAAGATGCAGAAGACAGACAAGACGATGACTGAGTTGGAGATAGACATGAACCAGCGGATTGGTGAATGGGAGCTGATCCAGGAGTCAGGTGTGCCACTCAAGCCCCTGTTTGGGCCTGGCTACACAGGCATCCGGAACCTGGGTAACAGCTGCTACCTCAACTCTGTGGTCCAGGTGCTCTTCAGCATCCCTGACTTCCAGAGGAAGTATGTGGATAAGCTGGAGAAGATCTTCCAGAATGCCCCGACGGACCCTACCCAGGATTTCAGCACCCAGGTGGCCAAGCTGGGCCATGGCCTTCTCTCCGGGGAGTATTCCAAGCCAGTACCGGAGTCGGGCGATGGGGAGCGGGTGCCAGAACAGAAGGAAGTTCAAGATGGCATTGCCCCTCGGATGTTCAAGGCCCTCATCGGCAAGGGCCACCCTGAATTCTCCACCAACCGGCAGCAGGATGCCCAGGAGTTCTTCCTTCACCTTATCAACATGGTGGAGAGGAATTGCCGGAGCTCTGAAAATCCTAATGAAGTGTTCCGCTTCTTGGTGGAGGAAAAGATCAAGTGCCTGGCCACAGAGAAGGTGAAGTACACCCAGCGAGTTGACTACATCATGCAGCTGCCTGTGCCCATGGATGCAGCCCTTAACAAAGAGGAGCTTCTGGAGTACGAGGAGAAGAAGCGGCAAGCCGAAGAGGAGAAGATGGCACTGCCAGAACTGGTTCGGGCCCAGGTGCCCTTCAGCTCTTGCCTGGAGGCCTACGGGGCCCCTGAGCAGGTCGATGACTTCTGGAGCACGGCCCTGCAGGCCAAGTCAGTAGCTGTCAAGACCACACGATTTGCCTCATTCCCTGACTACCTGGTCATCCAGATCAAGAAGTTCACCTTCGGCTTAGACTGGGTGCCCAAGAAACTGGATGTGTCCATCGAGATGCCAGAGGAGCTCGACATCTCCCAGTTGAGGGGCACAGGGCTGCAGCCCGGAGAGGAGGAGCTGCCAGACATTGCCCCACCCCTGGTCACTCCGGATGAGCCCAAAGCGCCCATGCTGGATGAATCAGTCATCATCCAGCTGGTGGAGgaaGGATTCCCTATGGACGCCTGCCGCAAAGCTGTCTACTACACGGGCAACAGCGGGGCTGAGGCCGCCATGAACTGGGTCATGTCACACATGGATGATCCAGATTTTGCAAACCCCCTCATCCTGCCTGGCTCTAGTGGGCCGGGCTCCACAAGCGCAGCAGCCGACCCCCCTCCTGAGGACTGTGTGACCACCATTGTCTCCgaaGGCTTCTCCCGGGACCAGGCCTTGAAAGCGCTGCGGGCCACGAACAATAGTTTAGAACGGGCTGTGGACTGGATCTTCAGTCACATTGACGACCTGGATGCTGAAGCTGCCATGGACATCTCAGAGGGCCGCTCAGCTGCCGACTCCATCTCTGAGTCTGTGCCAGTGGGACCTAAAGTCCGGGATGGTCCTGGAAAGTATCAGCTCTTTGCCTTCATTAGTCACATGGGCACCTCTACCATGTGTGGTCACTACGTCTGCCACATCAAGAAAGAAGGCAGATGGGTGATCTACAATGACCAGAAAGTGTGTGCCTCCGAGAAGCCGCCCAAGGACCTGGGCTACATCTACTTCTACCAGAGAGTGGCCAGC",2505,"no","msglndifeaqkiewhegsaggsgMAELSEEALLSVLPTIRVPKAGDRVHKDECAFSFDTPESEGGLYICMNTFLGFGKQYVERHFNKTGQRVYLHLRRTRRPKEEDPATGTGDPPRKKPTRLAIGVEGGFDLSEEKFELDEDVKIVILPDYLEIARDGLGGLPDIVRDRVTSAVEALLSADSASRKQEVQAWDGEVRQVSKHAFSLKQLDNPARIPPCGWKCSKCDMRENLWLNLTDGSILCGRRYFDGSGGNNHAVEHYRETGYPLAVKLGTITPDGADVYSYDEDDMVLDPSLAEHLSHFGIDMLKMQKTDKTMTELEIDMNQRIGEWELIQESGVPLKPLFGPGYTGIRNLGNSCYLNSVVQVLFSIPDFQRKYVDKLEKIFQNAPTDPTQDFSTQVAKLGHGLLSGEYSKPVPESGDGERVPEQKEVQDGIAPRMFKALIGKGHPEFSTNRQQDAQEFFLHLINMVERNCRSSENPNEVFRFLVEEKIKCLATEKVKYTQRVDYIMQLPVPMDAALNKEELLEYEEKKRQAEEEKMALPELVRAQVPFSSCLEAYGAPEQVDDFWSTALQAKSVAVKTTRFASFPDYLVIQIKKFTFGLDWVPKKLDVSIEMPEELDISQLRGTGLQPGEEELPDIAPPLVTPDEPKAPMLDESVIIQLVEeGFPMDACRKAVYYTGNSGAEAAMNWVMSHMDDPDFANPLILPGSSGPGSTSAAADPPPEDCVTTIVSeGFSRDQALKALRATNNSLERAVDWIFSHIDDLDAEAAMDISEGRSAADSISESVPVGPKVRDGPGKYQLFAFISHMGTSTMCGHYVCHIKKEGRWVIYNDQKVCASEKPPKDLGYIYFYQRVASgggshhhhhh",null,"p28BIOH-LIC","gctggaggttcaggtATGGCGGAGCTGAGTGAGGAG","GGAATCCttcCTCCACCAGCTGGATGATG","GGTGGAGgaaGGATTCCCTATGGACGCCTG","atgaccacttccaccGCTGGCCACTCTCTGGTAGAAG","DH5-Alpha","ploppnau","LIC-Infusion","Y",null,"2019-03-06",null,null,"PAGE19-00043","A04 is 100%"]
[null,"TOC023","A05","TOC023A05","USP05",null,null,"AU25-C3","USP05_1-835_bio_M643E_M711E_C335A",1,835,"MAELSEEALLSVLPTIRVPKAGDRVHKDECAFSFDTPESEGGLYICMNTFLGFGKQYVERHFNKTGQRVYLHLRRTRRPKEEDPATGTGDPPRKKPTRLAIGVEGGFDLSEEKFELDEDVKIVILPDYLEIARDGLGGLPDIVRDRVTSAVEALLSADSASRKQEVQAWDGEVRQVSKHAFSLKQLDNPARIPPCGWKCSKCDMRENLWLNLTDGSILCGRRYFDGSGGNNHAVEHYRETGYPLAVKLGTITPDGADVYSYDEDDMVLDPSLAEHLSHFGIDMLKMQKTDKTMTELEIDMNQRIGEWELIQESGVPLKPLFGPGYTGIRNLGNSaYLNSVVQVLFSIPDFQRKYVDKLEKIFQNAPTDPTQDFSTQVAKLGHGLLSGEYSKPVPESGDGERVPEQKEVQDGIAPRMFKALIGKGHPEFSTNRQQDAQEFFLHLINMVERNCRSSENPNEVFRFLVEEKIKCLATEKVKYTQRVDYIMQLPVPMDAALNKEELLEYEEKKRQAEEEKMALPELVRAQVPFSSCLEAYGAPEQVDDFWSTALQAKSVAVKTTRFASFPDYLVIQIKKFTFGLDWVPKKLDVSIEMPEELDISQLRGTGLQPGEEELPDIAPPLVTPDEPKAPMLDESVIIQLVEeGFPMDACRKAVYYTGNSGAEAAMNWVMSHMDDPDFANPLILPGSSGPGSTSAAADPPPEDCVTTIVSeGFSRDQALKALRATNNSLERAVDWIFSHIDDLDAEAAMDISEGRSAADSISESVPVGPKVRDGPGKYQLFAFISHMGTSTMCGHYVCHIKKEGRWVIYNDQKVCASEKPPKDLGYIYFYQRVAS",835,"ATGGCGGAGCTGAGTGAGGAGGCGCTGCTGTCAGTATTACCGACGATCCGGGTCCCTAAGGCTGGAGACCGGGTCCACAAAGACGAGTGCGCCTTCTCCTTCGACACGCCGGAGTCTGAGGGGGGCCTCTACATCTGTATGAACACGTTTCTGGGCTTTGGGAAACAGTATGTGGAGAGACATTTCAATAAGACCGGCCAGCGAGTCTACTTGCACCTCCGGCGGACCCGGCGCCCGAAAGAGGAGGACCCTGCTACAGGCACTGGAGACCCACCCCGGAAGAAGCCCACGCGGCTGGCTATTGGTGTTGAAGGCGGATTTGACCTTAGCGAGGAGAAGTTTGAATTAGACGAGGATGTGAAGATTGTCATTTTGCCAGATTACCTGGAGATTGCCCGGGATGGACTGGGGGGACTGCCTGACATTGTCAGAGATCGGGTGACCAGTGCAGTGGAGGCCCTACTGTCGGCCGACTCAGCCTCCCGCAAGCAGGAGGTGCAGGCATGGGATGGGGAAGTACGGCAGGTGTCTAAGCATGCCTTCAGCCTCAAGCAGTTGGACAACCCTGCTCGAATCCCTCCCTGTGGCTGGAAGTGCTCCAAGTGTGACATGAGAGAGAACCTGTGGCTCAACCTGACTGATGGCTCCATCCTCTGTGGGCGACGCTACTTCGATGGCAGTGGGGGCAACAACCACGCTGTGGAGCACTACCGAGAGACAGGCTACCCGTTAGCTGTCAAGCTGGGCACCATCACCCCTGATGGAGCTGACGTGTACTCATATGATGAGGATGACATGGTCCTGGACCCCAGCCTGGCTGAGCACCTGTCCCACTTCGGCATCGACATGCTGAAGATGCAGAAGACAGACAAGACGATGACTGAGTTGGAGATAGACATGAACCAGCGGATTGGTGAATGGGAGCTGATCCAGGAGTCAGGTGTGCCACTCAAGCCCCTGTTTGGGCCTGGCTACACAGGCATCCGGAACCTGGGTAACAGCgcgTACCTCAACTCTGTGGTCCAGGTGCTCTTCAGCATCCCTGACTTCCAGAGGAAGTATGTGGATAAGCTGGAGAAGATCTTCCAGAATGCCCCGACGGACCCTACCCAGGATTTCAGCACCCAGGTGGCCAAGCTGGGCCATGGCCTTCTCTCCGGGGAGTATTCCAAGCCAGTACCGGAGTCGGGCGATGGGGAGCGGGTGCCAGAACAGAAGGAAGTTCAAGATGGCATTGCCCCTCGGATGTTCAAGGCCCTCATCGGCAAGGGCCACCCTGAATTCTCCACCAACCGGCAGCAGGATGCCCAGGAGTTCTTCCTTCACCTTATCAACATGGTGGAGAGGAATTGCCGGAGCTCTGAAAATCCTAATGAAGTGTTCCGCTTCTTGGTGGAGGAAAAGATCAAGTGCCTGGCCACAGAGAAGGTGAAGTACACCCAGCGAGTTGACTACATCATGCAGCTGCCTGTGCCCATGGATGCAGCCCTTAACAAAGAGGAGCTTCTGGAGTACGAGGAGAAGAAGCGGCAAGCCGAAGAGGAGAAGATGGCACTGCCAGAACTGGTTCGGGCCCAGGTGCCCTTCAGCTCTTGCCTGGAGGCCTACGGGGCCCCTGAGCAGGTCGATGACTTCTGGAGCACGGCCCTGCAGGCCAAGTCAGTAGCTGTCAAGACCACACGATTTGCCTCATTCCCTGACTACCTGGTCATCCAGATCAAGAAGTTCACCTTCGGCTTAGACTGGGTGCCCAAGAAACTGGATGTGTCCATCGAGATGCCAGAGGAGCTCGACATCTCCCAGTTGAGGGGCACAGGGCTGCAGCCCGGAGAGGAGGAGCTGCCAGACATTGCCCCACCCCTGGTCACTCCGGATGAGCCCAAAGCGCCCATGCTGGATGAATCAGTCATCATCCAGCTGGTGGAGgaaGGATTCCCTATGGACGCCTGCCGCAAAGCTGTCTACTACACGGGCAACAGCGGGGCTGAGGCCGCCATGAACTGGGTCATGTCACACATGGATGATCCAGATTTTGCAAACCCCCTCATCCTGCCTGGCTCTAGTGGGCCGGGCTCCACAAGCGCAGCAGCCGACCCCCCTCCTGAGGACTGTGTGACCACCATTGTCTCCgaaGGCTTCTCCCGGGACCAGGCCTTGAAAGCGCTGCGGGCCACGAACAATAGTTTAGAACGGGCTGTGGACTGGATCTTCAGTCACATTGACGACCTGGATGCTGAAGCTGCCATGGACATCTCAGAGGGCCGCTCAGCTGCCGACTCCATCTCTGAGTCTGTGCCAGTGGGACCTAAAGTCCGGGATGGTCCTGGAAAGTATCAGCTCTTTGCCTTCATTAGTCACATGGGCACCTCTACCATGTGTGGTCACTACGTCTGCCACATCAAGAAAGAAGGCAGATGGGTGATCTACAATGACCAGAAAGTGTGTGCCTCCGAGAAGCCGCCCAAGGACCTGGGCTACATCTACTTCTACCAGAGAGTGGCCAGC",2505,"no","msglndifeaqkiewhegsaggsgMAELSEEALLSVLPTIRVPKAGDRVHKDECAFSFDTPESEGGLYICMNTFLGFGKQYVERHFNKTGQRVYLHLRRTRRPKEEDPATGTGDPPRKKPTRLAIGVEGGFDLSEEKFELDEDVKIVILPDYLEIARDGLGGLPDIVRDRVTSAVEALLSADSASRKQEVQAWDGEVRQVSKHAFSLKQLDNPARIPPCGWKCSKCDMRENLWLNLTDGSILCGRRYFDGSGGNNHAVEHYRETGYPLAVKLGTITPDGADVYSYDEDDMVLDPSLAEHLSHFGIDMLKMQKTDKTMTELEIDMNQRIGEWELIQESGVPLKPLFGPGYTGIRNLGNSaYLNSVVQVLFSIPDFQRKYVDKLEKIFQNAPTDPTQDFSTQVAKLGHGLLSGEYSKPVPESGDGERVPEQKEVQDGIAPRMFKALIGKGHPEFSTNRQQDAQEFFLHLINMVERNCRSSENPNEVFRFLVEEKIKCLATEKVKYTQRVDYIMQLPVPMDAALNKEELLEYEEKKRQAEEEKMALPELVRAQVPFSSCLEAYGAPEQVDDFWSTALQAKSVAVKTTRFASFPDYLVIQIKKFTFGLDWVPKKLDVSIEMPEELDISQLRGTGLQPGEEELPDIAPPLVTPDEPKAPMLDESVIIQLVEeGFPMDACRKAVYYTGNSGAEAAMNWVMSHMDDPDFANPLILPGSSGPGSTSAAADPPPEDCVTTIVSeGFSRDQALKALRATNNSLERAVDWIFSHIDDLDAEAAMDISEGRSAADSISESVPVGPKVRDGPGKYQLFAFISHMGTSTMCGHYVCHIKKEGRWVIYNDQKVCASEKPPKDLGYIYFYQRVASgggshhhhhh",null,"p28BIOH-LIC","gctggaggttcaggtATGGCGGAGCTGAGTGAGGAG","GGAATCCttcCTCCACCAGCTGGATGATG","GGTGGAGgaaGGATTCCCTATGGACGCCTG","atgaccacttccaccGCTGGCCACTCTCTGGTAGAAG","DH5-Alpha","ploppnau","LIC-Infusion","Y",null,"2019-03-06",null,null,"PAGE19-00043","A5 replacment is OK.  1 mixed base G or A,  but would not change amino acid"]
[null,"TOC023","A06","TOC023A06","USP05",null,null,"AU25-C3","USP05_1-835_bio_R221A",1,835,"MAELSEEALLSVLPTIRVPKAGDRVHKDECAFSFDTPESEGGLYICMNTFLGFGKQYVERHFNKTGQRVYLHLRRTRRPKEEDPATGTGDPPRKKPTRLAIGVEGGFDLSEEKFELDEDVKIVILPDYLEIARDGLGGLPDIVRDRVTSAVEALLSADSASRKQEVQAWDGEVRQVSKHAFSLKQLDNPARIPPCGWKCSKCDMRENLWLNLTDGSILCGaRYFDGSGGNNHAVEHYRETGYPLAVKLGTITPDGADVYSYDEDDMVLDPSLAEHLSHFGIDMLKMQKTDKTMTELEIDMNQRIGEWELIQESGVPLKPLFGPGYTGIRNLGNSCYLNSVVQVLFSIPDFQRKYVDKLEKIFQNAPTDPTQDFSTQVAKLGHGLLSGEYSKPVPESGDGERVPEQKEVQDGIAPRMFKALIGKGHPEFSTNRQQDAQEFFLHLINMVERNCRSSENPNEVFRFLVEEKIKCLATEKVKYTQRVDYIMQLPVPMDAALNKEELLEYEEKKRQAEEEKMALPELVRAQVPFSSCLEAYGAPEQVDDFWSTALQAKSVAVKTTRFASFPDYLVIQIKKFTFGLDWVPKKLDVSIEMPEELDISQLRGTGLQPGEEELPDIAPPLVTPDEPKAPMLDESVIIQLVEMGFPMDACRKAVYYTGNSGAEAAMNWVMSHMDDPDFANPLILPGSSGPGSTSAAADPPPEDCVTTIVSMGFSRDQALKALRATNNSLERAVDWIFSHIDDLDAEAAMDISEGRSAADSISESVPVGPKVRDGPGKYQLFAFISHMGTSTMCGHYVCHIKKEGRWVIYNDQKVCASEKPPKDLGYIYFYQRVAS",835,"ATGGCGGAGCTGAGTGAGGAGGCGCTGCTGTCAGTATTACCGACGATCCGGGTCCCTAAGGCTGGAGACCGGGTCCACAAAGACGAGTGCGCCTTCTCCTTCGACACGCCGGAGTCTGAGGGGGGCCTCTACATCTGTATGAACACGTTTCTGGGCTTTGGGAAACAGTATGTGGAGAGACATTTCAATAAGACCGGCCAGCGAGTCTACTTGCACCTCCGGCGGACCCGGCGCCCGAAAGAGGAGGACCCTGCTACAGGCACTGGAGACCCACCCCGGAAGAAGCCCACGCGGCTGGCTATTGGTGTTGAAGGCGGATTTGACCTTAGCGAGGAGAAGTTTGAATTAGACGAGGATGTGAAGATTGTCATTTTGCCAGATTACCTGGAGATTGCCCGGGATGGACTGGGGGGACTGCCTGACATTGTCAGAGATCGGGTGACCAGTGCAGTGGAGGCCCTACTGTCGGCCGACTCAGCCTCCCGCAAGCAGGAGGTGCAGGCATGGGATGGGGAAGTACGGCAGGTGTCTAAGCATGCCTTCAGCCTCAAGCAGTTGGACAACCCTGCTCGAATCCCTCCCTGTGGCTGGAAGTGCTCCAAGTGTGACATGAGAGAGAACCTGTGGCTCAACCTGACTGATGGCTCCATCCTCTGTGGGgcgCGCTACTTCGATGGCAGTGGGGGCAACAACCACGCTGTGGAGCACTACCGAGAGACAGGCTACCCGTTAGCTGTCAAGCTGGGCACCATCACCCCTGATGGAGCTGACGTGTACTCATATGATGAGGATGACATGGTCCTGGACCCCAGCCTGGCTGAGCACCTGTCCCACTTCGGCATCGACATGCTGAAGATGCAGAAGACAGACAAGACGATGACTGAGTTGGAGATAGACATGAACCAGCGGATTGGTGAATGGGAGCTGATCCAGGAGTCAGGTGTGCCACTCAAGCCCCTGTTTGGGCCTGGCTACACAGGCATCCGGAACCTGGGTAACAGCTGCTACCTCAACTCTGTGGTCCAGGTGCTCTTCAGCATCCCTGACTTCCAGAGGAAGTATGTGGATAAGCTGGAGAAGATCTTCCAGAATGCCCCGACGGACCCTACCCAGGATTTCAGCACCCAGGTGGCCAAGCTGGGCCATGGCCTTCTCTCCGGGGAGTATTCCAAGCCAGTACCGGAGTCGGGCGATGGGGAGCGGGTGCCAGAACAGAAGGAAGTTCAAGATGGCATTGCCCCTCGGATGTTCAAGGCCCTCATCGGCAAGGGCCACCCTGAATTCTCCACCAACCGGCAGCAGGATGCCCAGGAGTTCTTCCTTCACCTTATCAACATGGTGGAGAGGAATTGCCGGAGCTCTGAAAATCCTAATGAAGTGTTCCGCTTCTTGGTGGAGGAAAAGATCAAGTGCCTGGCCACAGAGAAGGTGAAGTACACCCAGCGAGTTGACTACATCATGCAGCTGCCTGTGCCCATGGATGCAGCCCTTAACAAAGAGGAGCTTCTGGAGTACGAGGAGAAGAAGCGGCAAGCCGAAGAGGAGAAGATGGCACTGCCAGAACTGGTTCGGGCCCAGGTGCCCTTCAGCTCTTGCCTGGAGGCCTACGGGGCCCCTGAGCAGGTCGATGACTTCTGGAGCACGGCCCTGCAGGCCAAGTCAGTAGCTGTCAAGACCACACGATTTGCCTCATTCCCTGACTACCTGGTCATCCAGATCAAGAAGTTCACCTTCGGCTTAGACTGGGTGCCCAAGAAACTGGATGTGTCCATCGAGATGCCAGAGGAGCTCGACATCTCCCAGTTGAGGGGCACAGGGCTGCAGCCCGGAGAGGAGGAGCTGCCAGACATTGCCCCACCCCTGGTCACTCCGGATGAGCCCAAAGCGCCCATGCTGGATGAATCAGTCATCATCCAGCTGGTGGAGATGGGATTCCCTATGGACGCCTGCCGCAAAGCTGTCTACTACACGGGCAACAGCGGGGCTGAGGCCGCCATGAACTGGGTCATGTCACACATGGATGATCCAGATTTTGCAAACCCCCTCATCCTGCCTGGCTCTAGTGGGCCGGGCTCCACAAGCGCAGCAGCCGACCCCCCTCCTGAGGACTGTGTGACCACCATTGTCTCCATGGGCTTCTCCCGGGACCAGGCCTTGAAAGCGCTGCGGGCCACGAACAATAGTTTAGAACGGGCTGTGGACTGGATCTTCAGTCACATTGACGACCTGGATGCTGAAGCTGCCATGGACATCTCAGAGGGCCGCTCAGCTGCCGACTCCATCTCTGAGTCTGTGCCAGTGGGACCTAAAGTCCGGGATGGTCCTGGAAAGTATCAGCTCTTTGCCTTCATTAGTCACATGGGCACCTCTACCATGTGTGGTCACTACGTCTGCCACATCAAGAAAGAAGGCAGATGGGTGATCTACAATGACCAGAAAGTGTGTGCCTCCGAGAAGCCGCCCAAGGACCTGGGCTACATCTACTTCTACCAGAGAGTGGCCAGC",2505,"no","msglndifeaqkiewhegsaggsgMAELSEEALLSVLPTIRVPKAGDRVHKDECAFSFDTPESEGGLYICMNTFLGFGKQYVERHFNKTGQRVYLHLRRTRRPKEEDPATGTGDPPRKKPTRLAIGVEGGFDLSEEKFELDEDVKIVILPDYLEIARDGLGGLPDIVRDRVTSAVEALLSADSASRKQEVQAWDGEVRQVSKHAFSLKQLDNPARIPPCGWKCSKCDMRENLWLNLTDGSILCGaRYFDGSGGNNHAVEHYRETGYPLAVKLGTITPDGADVYSYDEDDMVLDPSLAEHLSHFGIDMLKMQKTDKTMTELEIDMNQRIGEWELIQESGVPLKPLFGPGYTGIRNLGNSCYLNSVVQVLFSIPDFQRKYVDKLEKIFQNAPTDPTQDFSTQVAKLGHGLLSGEYSKPVPESGDGERVPEQKEVQDGIAPRMFKALIGKGHPEFSTNRQQDAQEFFLHLINMVERNCRSSENPNEVFRFLVEEKIKCLATEKVKYTQRVDYIMQLPVPMDAALNKEELLEYEEKKRQAEEEKMALPELVRAQVPFSSCLEAYGAPEQVDDFWSTALQAKSVAVKTTRFASFPDYLVIQIKKFTFGLDWVPKKLDVSIEMPEELDISQLRGTGLQPGEEELPDIAPPLVTPDEPKAPMLDESVIIQLVEMGFPMDACRKAVYYTGNSGAEAAMNWVMSHMDDPDFANPLILPGSSGPGSTSAAADPPPEDCVTTIVSMGFSRDQALKALRATNNSLERAVDWIFSHIDDLDAEAAMDISEGRSAADSISESVPVGPKVRDGPGKYQLFAFISHMGTSTMCGHYVCHIKKEGRWVIYNDQKVCASEKPPKDLGYIYFYQRVASgggshhhhhh",null,"p28BIOH-LIC","gctggaggttcaggtATGGCGGAGCTGAGTGAGGAG","AGTAGCGcgcCCCACAGAGGATGGAGCCATC","TGTGGGgcgCGCTACTTCGATGGCAGTG","atgaccacttccaccGCTGGCCACTCTCTGGTAGAAG","DH5-Alpha","ploppnau","LIC-Infusion","Y",null,"2019-03-06",null,null,"PAGE19-00043","A6 -2 it is 100% so use as replacment"]
[null,"TOC023","A07","TOC023A07","USP05",null,null,"AU25-C3","USP05_1-835_bio_W209A",1,835,"MAELSEEALLSVLPTIRVPKAGDRVHKDECAFSFDTPESEGGLYICMNTFLGFGKQYVERHFNKTGQRVYLHLRRTRRPKEEDPATGTGDPPRKKPTRLAIGVEGGFDLSEEKFELDEDVKIVILPDYLEIARDGLGGLPDIVRDRVTSAVEALLSADSASRKQEVQAWDGEVRQVSKHAFSLKQLDNPARIPPCGWKCSKCDMRENLaLNLTDGSILCGRRYFDGSGGNNHAVEHYRETGYPLAVKLGTITPDGADVYSYDEDDMVLDPSLAEHLSHFGIDMLKMQKTDKTMTELEIDMNQRIGEWELIQESGVPLKPLFGPGYTGIRNLGNSCYLNSVVQVLFSIPDFQRKYVDKLEKIFQNAPTDPTQDFSTQVAKLGHGLLSGEYSKPVPESGDGERVPEQKEVQDGIAPRMFKALIGKGHPEFSTNRQQDAQEFFLHLINMVERNCRSSENPNEVFRFLVEEKIKCLATEKVKYTQRVDYIMQLPVPMDAALNKEELLEYEEKKRQAEEEKMALPELVRAQVPFSSCLEAYGAPEQVDDFWSTALQAKSVAVKTTRFASFPDYLVIQIKKFTFGLDWVPKKLDVSIEMPEELDISQLRGTGLQPGEEELPDIAPPLVTPDEPKAPMLDESVIIQLVEMGFPMDACRKAVYYTGNSGAEAAMNWVMSHMDDPDFANPLILPGSSGPGSTSAAADPPPEDCVTTIVSMGFSRDQALKALRATNNSLERAVDWIFSHIDDLDAEAAMDISEGRSAADSISESVPVGPKVRDGPGKYQLFAFISHMGTSTMCGHYVCHIKKEGRWVIYNDQKVCASEKPPKDLGYIYFYQRVAS",835,"ATGGCGGAGCTGAGTGAGGAGGCGCTGCTGTCAGTATTACCGACGATCCGGGTCCCTAAGGCTGGAGACCGGGTCCACAAAGACGAGTGCGCCTTCTCCTTCGACACGCCGGAGTCTGAGGGGGGCCTCTACATCTGTATGAACACGTTTCTGGGCTTTGGGAAACAGTATGTGGAGAGACATTTCAATAAGACCGGCCAGCGAGTCTACTTGCACCTCCGGCGGACCCGGCGCCCGAAAGAGGAGGACCCTGCTACAGGCACTGGAGACCCACCCCGGAAGAAGCCCACGCGGCTGGCTATTGGTGTTGAAGGCGGATTTGACCTTAGCGAGGAGAAGTTTGAATTAGACGAGGATGTGAAGATTGTCATTTTGCCAGATTACCTGGAGATTGCCCGGGATGGACTGGGGGGACTGCCTGACATTGTCAGAGATCGGGTGACCAGTGCAGTGGAGGCCCTACTGTCGGCCGACTCAGCCTCCCGCAAGCAGGAGGTGCAGGCATGGGATGGGGAAGTACGGCAGGTGTCTAAGCATGCCTTCAGCCTCAAGCAGTTGGACAACCCTGCTCGAATCCCTCCCTGTGGCTGGAAGTGCTCCAAGTGTGACATGAGAGAGAACCTGgcgCTCAACCTGACTGATGGCTCCATCCTCTGTGGGCGACGCTACTTCGATGGCAGTGGGGGCAACAACCACGCTGTGGAGCACTACCGAGAGACAGGCTACCCGTTAGCTGTCAAGCTGGGCACCATCACCCCTGATGGAGCTGACGTGTACTCATATGATGAGGATGACATGGTCCTGGACCCCAGCCTGGCTGAGCACCTGTCCCACTTCGGCATCGACATGCTGAAGATGCAGAAGACAGACAAGACGATGACTGAGTTGGAGATAGACATGAACCAGCGGATTGGTGAATGGGAGCTGATCCAGGAGTCAGGTGTGCCACTCAAGCCCCTGTTTGGGCCTGGCTACACAGGCATCCGGAACCTGGGTAACAGCTGCTACCTCAACTCTGTGGTCCAGGTGCTCTTCAGCATCCCTGACTTCCAGAGGAAGTATGTGGATAAGCTGGAGAAGATCTTCCAGAATGCCCCGACGGACCCTACCCAGGATTTCAGCACCCAGGTGGCCAAGCTGGGCCATGGCCTTCTCTCCGGGGAGTATTCCAAGCCAGTACCGGAGTCGGGCGATGGGGAGCGGGTGCCAGAACAGAAGGAAGTTCAAGATGGCATTGCCCCTCGGATGTTCAAGGCCCTCATCGGCAAGGGCCACCCTGAATTCTCCACCAACCGGCAGCAGGATGCCCAGGAGTTCTTCCTTCACCTTATCAACATGGTGGAGAGGAATTGCCGGAGCTCTGAAAATCCTAATGAAGTGTTCCGCTTCTTGGTGGAGGAAAAGATCAAGTGCCTGGCCACAGAGAAGGTGAAGTACACCCAGCGAGTTGACTACATCATGCAGCTGCCTGTGCCCATGGATGCAGCCCTTAACAAAGAGGAGCTTCTGGAGTACGAGGAGAAGAAGCGGCAAGCCGAAGAGGAGAAGATGGCACTGCCAGAACTGGTTCGGGCCCAGGTGCCCTTCAGCTCTTGCCTGGAGGCCTACGGGGCCCCTGAGCAGGTCGATGACTTCTGGAGCACGGCCCTGCAGGCCAAGTCAGTAGCTGTCAAGACCACACGATTTGCCTCATTCCCTGACTACCTGGTCATCCAGATCAAGAAGTTCACCTTCGGCTTAGACTGGGTGCCCAAGAAACTGGATGTGTCCATCGAGATGCCAGAGGAGCTCGACATCTCCCAGTTGAGGGGCACAGGGCTGCAGCCCGGAGAGGAGGAGCTGCCAGACATTGCCCCACCCCTGGTCACTCCGGATGAGCCCAAAGCGCCCATGCTGGATGAATCAGTCATCATCCAGCTGGTGGAGATGGGATTCCCTATGGACGCCTGCCGCAAAGCTGTCTACTACACGGGCAACAGCGGGGCTGAGGCCGCCATGAACTGGGTCATGTCACACATGGATGATCCAGATTTTGCAAACCCCCTCATCCTGCCTGGCTCTAGTGGGCCGGGCTCCACAAGCGCAGCAGCCGACCCCCCTCCTGAGGACTGTGTGACCACCATTGTCTCCATGGGCTTCTCCCGGGACCAGGCCTTGAAAGCGCTGCGGGCCACGAACAATAGTTTAGAACGGGCTGTGGACTGGATCTTCAGTCACATTGACGACCTGGATGCTGAAGCTGCCATGGACATCTCAGAGGGCCGCTCAGCTGCCGACTCCATCTCTGAGTCTGTGCCAGTGGGACCTAAAGTCCGGGATGGTCCTGGAAAGTATCAGCTCTTTGCCTTCATTAGTCACATGGGCACCTCTACCATGTGTGGTCACTACGTCTGCCACATCAAGAAAGAAGGCAGATGGGTGATCTACAATGACCAGAAAGTGTGTGCCTCCGAGAAGCCGCCCAAGGACCTGGGCTACATCTACTTCTACCAGAGAGTGGCCAGC",2505,"no","msglndifeaqkiewhegsaggsgMAELSEEALLSVLPTIRVPKAGDRVHKDECAFSFDTPESEGGLYICMNTFLGFGKQYVERHFNKTGQRVYLHLRRTRRPKEEDPATGTGDPPRKKPTRLAIGVEGGFDLSEEKFELDEDVKIVILPDYLEIARDGLGGLPDIVRDRVTSAVEALLSADSASRKQEVQAWDGEVRQVSKHAFSLKQLDNPARIPPCGWKCSKCDMRENLaLNLTDGSILCGRRYFDGSGGNNHAVEHYRETGYPLAVKLGTITPDGADVYSYDEDDMVLDPSLAEHLSHFGIDMLKMQKTDKTMTELEIDMNQRIGEWELIQESGVPLKPLFGPGYTGIRNLGNSCYLNSVVQVLFSIPDFQRKYVDKLEKIFQNAPTDPTQDFSTQVAKLGHGLLSGEYSKPVPESGDGERVPEQKEVQDGIAPRMFKALIGKGHPEFSTNRQQDAQEFFLHLINMVERNCRSSENPNEVFRFLVEEKIKCLATEKVKYTQRVDYIMQLPVPMDAALNKEELLEYEEKKRQAEEEKMALPELVRAQVPFSSCLEAYGAPEQVDDFWSTALQAKSVAVKTTRFASFPDYLVIQIKKFTFGLDWVPKKLDVSIEMPEELDISQLRGTGLQPGEEELPDIAPPLVTPDEPKAPMLDESVIIQLVEMGFPMDACRKAVYYTGNSGAEAAMNWVMSHMDDPDFANPLILPGSSGPGSTSAAADPPPEDCVTTIVSMGFSRDQALKALRATNNSLERAVDWIFSHIDDLDAEAAMDISEGRSAADSISESVPVGPKVRDGPGKYQLFAFISHMGTSTMCGHYVCHIKKEGRWVIYNDQKVCASEKPPKDLGYIYFYQRVASgggshhhhhh",null,"p28BIOH-LIC","gctggaggttcaggtATGGCGGAGCTGAGTGAGGAG","GGTTGAGcgcCAGGTTCTCTCTCATGTCAC","GAACCTGgcgCTCAACCTGACTGATGGCTC","atgaccacttccaccGCTGGCCACTCTCTGGTAGAAG","DH5-Alpha","ploppnau","LIC-Infusion","Y",null,"2019-03-06",null,null,"PAGE19-00043","A7-11 is 100%"]
[null,"TOC023","A08","TOC023A08","USP05",null,null,"AU25-C3","USP05_1-835_bio_Y259A",1,835,"MAELSEEALLSVLPTIRVPKAGDRVHKDECAFSFDTPESEGGLYICMNTFLGFGKQYVERHFNKTGQRVYLHLRRTRRPKEEDPATGTGDPPRKKPTRLAIGVEGGFDLSEEKFELDEDVKIVILPDYLEIARDGLGGLPDIVRDRVTSAVEALLSADSASRKQEVQAWDGEVRQVSKHAFSLKQLDNPARIPPCGWKCSKCDMRENLWLNLTDGSILCGRRYFDGSGGNNHAVEHYRETGYPLAVKLGTITPDGADVaSYDEDDMVLDPSLAEHLSHFGIDMLKMQKTDKTMTELEIDMNQRIGEWELIQESGVPLKPLFGPGYTGIRNLGNSCYLNSVVQVLFSIPDFQRKYVDKLEKIFQNAPTDPTQDFSTQVAKLGHGLLSGEYSKPVPESGDGERVPEQKEVQDGIAPRMFKALIGKGHPEFSTNRQQDAQEFFLHLINMVERNCRSSENPNEVFRFLVEEKIKCLATEKVKYTQRVDYIMQLPVPMDAALNKEELLEYEEKKRQAEEEKMALPELVRAQVPFSSCLEAYGAPEQVDDFWSTALQAKSVAVKTTRFASFPDYLVIQIKKFTFGLDWVPKKLDVSIEMPEELDISQLRGTGLQPGEEELPDIAPPLVTPDEPKAPMLDESVIIQLVEMGFPMDACRKAVYYTGNSGAEAAMNWVMSHMDDPDFANPLILPGSSGPGSTSAAADPPPEDCVTTIVSMGFSRDQALKALRATNNSLERAVDWIFSHIDDLDAEAAMDISEGRSAADSISESVPVGPKVRDGPGKYQLFAFISHMGTSTMCGHYVCHIKKEGRWVIYNDQKVCASEKPPKDLGYIYFYQRVAS",835,"ATGGCGGAGCTGAGTGAGGAGGCGCTGCTGTCAGTATTACCGACGATCCGGGTCCCTAAGGCTGGAGACCGGGTCCACAAAGACGAGTGCGCCTTCTCCTTCGACACGCCGGAGTCTGAGGGGGGCCTCTACATCTGTATGAACACGTTTCTGGGCTTTGGGAAACAGTATGTGGAGAGACATTTCAATAAGACCGGCCAGCGAGTCTACTTGCACCTCCGGCGGACCCGGCGCCCGAAAGAGGAGGACCCTGCTACAGGCACTGGAGACCCACCCCGGAAGAAGCCCACGCGGCTGGCTATTGGTGTTGAAGGCGGATTTGACCTTAGCGAGGAGAAGTTTGAATTAGACGAGGATGTGAAGATTGTCATTTTGCCAGATTACCTGGAGATTGCCCGGGATGGACTGGGGGGACTGCCTGACATTGTCAGAGATCGGGTGACCAGTGCAGTGGAGGCCCTACTGTCGGCCGACTCAGCCTCCCGCAAGCAGGAGGTGCAGGCATGGGATGGGGAAGTACGGCAGGTGTCTAAGCATGCCTTCAGCCTCAAGCAGTTGGACAACCCTGCTCGAATCCCTCCCTGTGGCTGGAAGTGCTCCAAGTGTGACATGAGAGAGAACCTGTGGCTCAACCTGACTGATGGCTCCATCCTCTGTGGGCGACGCTACTTCGATGGCAGTGGGGGCAACAACCACGCTGTGGAGCACTACCGAGAGACAGGCTACCCGTTAGCTGTCAAGCTGGGCACCATCACCCCTGATGGAGCTGACGTGgcgTCATATGATGAGGATGACATGGTCCTGGACCCCAGCCTGGCTGAGCACCTGTCCCACTTCGGCATCGACATGCTGAAGATGCAGAAGACAGACAAGACGATGACTGAGTTGGAGATAGACATGAACCAGCGGATTGGTGAATGGGAGCTGATCCAGGAGTCAGGTGTGCCACTCAAGCCCCTGTTTGGGCCTGGCTACACAGGCATCCGGAACCTGGGTAACAGCTGCTACCTCAACTCTGTGGTCCAGGTGCTCTTCAGCATCCCTGACTTCCAGAGGAAGTATGTGGATAAGCTGGAGAAGATCTTCCAGAATGCCCCGACGGACCCTACCCAGGATTTCAGCACCCAGGTGGCCAAGCTGGGCCATGGCCTTCTCTCCGGGGAGTATTCCAAGCCAGTACCGGAGTCGGGCGATGGGGAGCGGGTGCCAGAACAGAAGGAAGTTCAAGATGGCATTGCCCCTCGGATGTTCAAGGCCCTCATCGGCAAGGGCCACCCTGAATTCTCCACCAACCGGCAGCAGGATGCCCAGGAGTTCTTCCTTCACCTTATCAACATGGTGGAGAGGAATTGCCGGAGCTCTGAAAATCCTAATGAAGTGTTCCGCTTCTTGGTGGAGGAAAAGATCAAGTGCCTGGCCACAGAGAAGGTGAAGTACACCCAGCGAGTTGACTACATCATGCAGCTGCCTGTGCCCATGGATGCAGCCCTTAACAAAGAGGAGCTTCTGGAGTACGAGGAGAAGAAGCGGCAAGCCGAAGAGGAGAAGATGGCACTGCCAGAACTGGTTCGGGCCCAGGTGCCCTTCAGCTCTTGCCTGGAGGCCTACGGGGCCCCTGAGCAGGTCGATGACTTCTGGAGCACGGCCCTGCAGGCCAAGTCAGTAGCTGTCAAGACCACACGATTTGCCTCATTCCCTGACTACCTGGTCATCCAGATCAAGAAGTTCACCTTCGGCTTAGACTGGGTGCCCAAGAAACTGGATGTGTCCATCGAGATGCCAGAGGAGCTCGACATCTCCCAGTTGAGGGGCACAGGGCTGCAGCCCGGAGAGGAGGAGCTGCCAGACATTGCCCCACCCCTGGTCACTCCGGATGAGCCCAAAGCGCCCATGCTGGATGAATCAGTCATCATCCAGCTGGTGGAGATGGGATTCCCTATGGACGCCTGCCGCAAAGCTGTCTACTACACGGGCAACAGCGGGGCTGAGGCCGCCATGAACTGGGTCATGTCACACATGGATGATCCAGATTTTGCAAACCCCCTCATCCTGCCTGGCTCTAGTGGGCCGGGCTCCACAAGCGCAGCAGCCGACCCCCCTCCTGAGGACTGTGTGACCACCATTGTCTCCATGGGCTTCTCCCGGGACCAGGCCTTGAAAGCGCTGCGGGCCACGAACAATAGTTTAGAACGGGCTGTGGACTGGATCTTCAGTCACATTGACGACCTGGATGCTGAAGCTGCCATGGACATCTCAGAGGGCCGCTCAGCTGCCGACTCCATCTCTGAGTCTGTGCCAGTGGGACCTAAAGTCCGGGATGGTCCTGGAAAGTATCAGCTCTTTGCCTTCATTAGTCACATGGGCACCTCTACCATGTGTGGTCACTACGTCTGCCACATCAAGAAAGAAGGCAGATGGGTGATCTACAATGACCAGAAAGTGTGTGCCTCCGAGAAGCCGCCCAAGGACCTGGGCTACATCTACTTCTACCAGAGAGTGGCCAGC",2505,"no","msglndifeaqkiewhegsaggsgMAELSEEALLSVLPTIRVPKAGDRVHKDECAFSFDTPESEGGLYICMNTFLGFGKQYVERHFNKTGQRVYLHLRRTRRPKEEDPATGTGDPPRKKPTRLAIGVEGGFDLSEEKFELDEDVKIVILPDYLEIARDGLGGLPDIVRDRVTSAVEALLSADSASRKQEVQAWDGEVRQVSKHAFSLKQLDNPARIPPCGWKCSKCDMRENLWLNLTDGSILCGRRYFDGSGGNNHAVEHYRETGYPLAVKLGTITPDGADVaSYDEDDMVLDPSLAEHLSHFGIDMLKMQKTDKTMTELEIDMNQRIGEWELIQESGVPLKPLFGPGYTGIRNLGNSCYLNSVVQVLFSIPDFQRKYVDKLEKIFQNAPTDPTQDFSTQVAKLGHGLLSGEYSKPVPESGDGERVPEQKEVQDGIAPRMFKALIGKGHPEFSTNRQQDAQEFFLHLINMVERNCRSSENPNEVFRFLVEEKIKCLATEKVKYTQRVDYIMQLPVPMDAALNKEELLEYEEKKRQAEEEKMALPELVRAQVPFSSCLEAYGAPEQVDDFWSTALQAKSVAVKTTRFASFPDYLVIQIKKFTFGLDWVPKKLDVSIEMPEELDISQLRGTGLQPGEEELPDIAPPLVTPDEPKAPMLDESVIIQLVEMGFPMDACRKAVYYTGNSGAEAAMNWVMSHMDDPDFANPLILPGSSGPGSTSAAADPPPEDCVTTIVSMGFSRDQALKALRATNNSLERAVDWIFSHIDDLDAEAAMDISEGRSAADSISESVPVGPKVRDGPGKYQLFAFISHMGTSTMCGHYVCHIKKEGRWVIYNDQKVCASEKPPKDLGYIYFYQRVASgggshhhhhh",null,"p28BIOH-LIC","gctggaggttcaggtATGGCGGAGCTGAGTGAGGAG","CATATGAcgcCACGTCAGCTCCATCAGGGGTG","TGACGTGgcgTCATATGATGAGGATGACATG","atgaccacttccaccGCTGGCCACTCTCTGGTAGAAG","DH5-Alpha","ploppnau","LIC-Infusion","Y",null,"2019-03-06",null,null,"PAGE19-00043","OK.  1 silent mutation.  And term result not clear"]
[null,"TOC023","A09","TOC023A09","USP05",null,null,"AU25-C3","USP05_1-835__bio_D264A",1,835,"MAELSEEALLSVLPTIRVPKAGDRVHKDECAFSFDTPESEGGLYICMNTFLGFGKQYVERHFNKTGQRVYLHLRRTRRPKEEDPATGTGDPPRKKPTRLAIGVEGGFDLSEEKFELDEDVKIVILPDYLEIARDGLGGLPDIVRDRVTSAVEALLSADSASRKQEVQAWDGEVRQVSKHAFSLKQLDNPARIPPCGWKCSKCDMRENLWLNLTDGSILCGRRYFDGSGGNNHAVEHYRETGYPLAVKLGTITPDGADVYSYDEaDMVLDPSLAEHLSHFGIDMLKMQKTDKTMTELEIDMNQRIGEWELIQESGVPLKPLFGPGYTGIRNLGNSCYLNSVVQVLFSIPDFQRKYVDKLEKIFQNAPTDPTQDFSTQVAKLGHGLLSGEYSKPVPESGDGERVPEQKEVQDGIAPRMFKALIGKGHPEFSTNRQQDAQEFFLHLINMVERNCRSSENPNEVFRFLVEEKIKCLATEKVKYTQRVDYIMQLPVPMDAALNKEELLEYEEKKRQAEEEKMALPELVRAQVPFSSCLEAYGAPEQVDDFWSTALQAKSVAVKTTRFASFPDYLVIQIKKFTFGLDWVPKKLDVSIEMPEELDISQLRGTGLQPGEEELPDIAPPLVTPDEPKAPMLDESVIIQLVEMGFPMDACRKAVYYTGNSGAEAAMNWVMSHMDDPDFANPLILPGSSGPGSTSAAADPPPEDCVTTIVSMGFSRDQALKALRATNNSLERAVDWIFSHIDDLDAEAAMDISEGRSAADSISESVPVGPKVRDGPGKYQLFAFISHMGTSTMCGHYVCHIKKEGRWVIYNDQKVCASEKPPKDLGYIYFYQRVAS",835,"ATGGCGGAGCTGAGTGAGGAGGCGCTGCTGTCAGTATTACCGACGATCCGGGTCCCTAAGGCTGGAGACCGGGTCCACAAAGACGAGTGCGCCTTCTCCTTCGACACGCCGGAGTCTGAGGGGGGCCTCTACATCTGTATGAACACGTTTCTGGGCTTTGGGAAACAGTATGTGGAGAGACATTTCAATAAGACCGGCCAGCGAGTCTACTTGCACCTCCGGCGGACCCGGCGCCCGAAAGAGGAGGACCCTGCTACAGGCACTGGAGACCCACCCCGGAAGAAGCCCACGCGGCTGGCTATTGGTGTTGAAGGCGGATTTGACCTTAGCGAGGAGAAGTTTGAATTAGACGAGGATGTGAAGATTGTCATTTTGCCAGATTACCTGGAGATTGCCCGGGATGGACTGGGGGGACTGCCTGACATTGTCAGAGATCGGGTGACCAGTGCAGTGGAGGCCCTACTGTCGGCCGACTCAGCCTCCCGCAAGCAGGAGGTGCAGGCATGGGATGGGGAAGTACGGCAGGTGTCTAAGCATGCCTTCAGCCTCAAGCAGTTGGACAACCCTGCTCGAATCCCTCCCTGTGGCTGGAAGTGCTCCAAGTGTGACATGAGAGAGAACCTGTGGCTCAACCTGACTGATGGCTCCATCCTCTGTGGGCGACGCTACTTCGATGGCAGTGGGGGCAACAACCACGCTGTGGAGCACTACCGAGAGACAGGCTACCCGTTAGCTGTCAAGCTGGGCACCATCACCCCTGATGGAGCTGACGTGTACTCATATGATGAGgcgGACATGGTCCTGGACCCCAGCCTGGCTGAGCACCTGTCCCACTTCGGCATCGACATGCTGAAGATGCAGAAGACAGACAAGACGATGACTGAGTTGGAGATAGACATGAACCAGCGGATTGGTGAATGGGAGCTGATCCAGGAGTCAGGTGTGCCACTCAAGCCCCTGTTTGGGCCTGGCTACACAGGCATCCGGAACCTGGGTAACAGCTGCTACCTCAACTCTGTGGTCCAGGTGCTCTTCAGCATCCCTGACTTCCAGAGGAAGTATGTGGATAAGCTGGAGAAGATCTTCCAGAATGCCCCGACGGACCCTACCCAGGATTTCAGCACCCAGGTGGCCAAGCTGGGCCATGGCCTTCTCTCCGGGGAGTATTCCAAGCCAGTACCGGAGTCGGGCGATGGGGAGCGGGTGCCAGAACAGAAGGAAGTTCAAGATGGCATTGCCCCTCGGATGTTCAAGGCCCTCATCGGCAAGGGCCACCCTGAATTCTCCACCAACCGGCAGCAGGATGCCCAGGAGTTCTTCCTTCACCTTATCAACATGGTGGAGAGGAATTGCCGGAGCTCTGAAAATCCTAATGAAGTGTTCCGCTTCTTGGTGGAGGAAAAGATCAAGTGCCTGGCCACAGAGAAGGTGAAGTACACCCAGCGAGTTGACTACATCATGCAGCTGCCTGTGCCCATGGATGCAGCCCTTAACAAAGAGGAGCTTCTGGAGTACGAGGAGAAGAAGCGGCAAGCCGAAGAGGAGAAGATGGCACTGCCAGAACTGGTTCGGGCCCAGGTGCCCTTCAGCTCTTGCCTGGAGGCCTACGGGGCCCCTGAGCAGGTCGATGACTTCTGGAGCACGGCCCTGCAGGCCAAGTCAGTAGCTGTCAAGACCACACGATTTGCCTCATTCCCTGACTACCTGGTCATCCAGATCAAGAAGTTCACCTTCGGCTTAGACTGGGTGCCCAAGAAACTGGATGTGTCCATCGAGATGCCAGAGGAGCTCGACATCTCCCAGTTGAGGGGCACAGGGCTGCAGCCCGGAGAGGAGGAGCTGCCAGACATTGCCCCACCCCTGGTCACTCCGGATGAGCCCAAAGCGCCCATGCTGGATGAATCAGTCATCATCCAGCTGGTGGAGATGGGATTCCCTATGGACGCCTGCCGCAAAGCTGTCTACTACACGGGCAACAGCGGGGCTGAGGCCGCCATGAACTGGGTCATGTCACACATGGATGATCCAGATTTTGCAAACCCCCTCATCCTGCCTGGCTCTAGTGGGCCGGGCTCCACAAGCGCAGCAGCCGACCCCCCTCCTGAGGACTGTGTGACCACCATTGTCTCCATGGGCTTCTCCCGGGACCAGGCCTTGAAAGCGCTGCGGGCCACGAACAATAGTTTAGAACGGGCTGTGGACTGGATCTTCAGTCACATTGACGACCTGGATGCTGAAGCTGCCATGGACATCTCAGAGGGCCGCTCAGCTGCCGACTCCATCTCTGAGTCTGTGCCAGTGGGACCTAAAGTCCGGGATGGTCCTGGAAAGTATCAGCTCTTTGCCTTCATTAGTCACATGGGCACCTCTACCATGTGTGGTCACTACGTCTGCCACATCAAGAAAGAAGGCAGATGGGTGATCTACAATGACCAGAAAGTGTGTGCCTCCGAGAAGCCGCCCAAGGACCTGGGCTACATCTACTTCTACCAGAGAGTGGCCAGC",2505,"no","msglndifeaqkiewhegsaggsgMAELSEEALLSVLPTIRVPKAGDRVHKDECAFSFDTPESEGGLYICMNTFLGFGKQYVERHFNKTGQRVYLHLRRTRRPKEEDPATGTGDPPRKKPTRLAIGVEGGFDLSEEKFELDEDVKIVILPDYLEIARDGLGGLPDIVRDRVTSAVEALLSADSASRKQEVQAWDGEVRQVSKHAFSLKQLDNPARIPPCGWKCSKCDMRENLWLNLTDGSILCGRRYFDGSGGNNHAVEHYRETGYPLAVKLGTITPDGADVYSYDEaDMVLDPSLAEHLSHFGIDMLKMQKTDKTMTELEIDMNQRIGEWELIQESGVPLKPLFGPGYTGIRNLGNSCYLNSVVQVLFSIPDFQRKYVDKLEKIFQNAPTDPTQDFSTQVAKLGHGLLSGEYSKPVPESGDGERVPEQKEVQDGIAPRMFKALIGKGHPEFSTNRQQDAQEFFLHLINMVERNCRSSENPNEVFRFLVEEKIKCLATEKVKYTQRVDYIMQLPVPMDAALNKEELLEYEEKKRQAEEEKMALPELVRAQVPFSSCLEAYGAPEQVDDFWSTALQAKSVAVKTTRFASFPDYLVIQIKKFTFGLDWVPKKLDVSIEMPEELDISQLRGTGLQPGEEELPDIAPPLVTPDEPKAPMLDESVIIQLVEMGFPMDACRKAVYYTGNSGAEAAMNWVMSHMDDPDFANPLILPGSSGPGSTSAAADPPPEDCVTTIVSMGFSRDQALKALRATNNSLERAVDWIFSHIDDLDAEAAMDISEGRSAADSISESVPVGPKVRDGPGKYQLFAFISHMGTSTMCGHYVCHIKKEGRWVIYNDQKVCASEKPPKDLGYIYFYQRVASgggshhhhhh",null,"p28BIOH-LIC","gctggaggttcaggtATGGCGGAGCTGAGTGAGGAG","CCATGTCcgcCTCATCATATGAGTACACG","TGATGAGgcgGACATGGTCCTGGACCCCAG","atgaccacttccaccGCTGGCCACTCTCTGGTAGAAG","DH5-Alpha","ploppnau","LIC-Infusion","Y",null,"2019-03-06",null,null,"PAGE19-00043","A09 is 100%"]
[null,"TOC023","A10","TOC023A10","USP05",null,null,"AU25-C3","USP05_1-835_bio_Y261F",1,835,"MAELSEEALLSVLPTIRVPKAGDRVHKDECAFSFDTPESEGGLYICMNTFLGFGKQYVERHFNKTGQRVYLHLRRTRRPKEEDPATGTGDPPRKKPTRLAIGVEGGFDLSEEKFELDEDVKIVILPDYLEIARDGLGGLPDIVRDRVTSAVEALLSADSASRKQEVQAWDGEVRQVSKHAFSLKQLDNPARIPPCGWKCSKCDMRENLWLNLTDGSILCGRRYFDGSGGNNHAVEHYRETGYPLAVKLGTITPDGADVYSfDEDDMVLDPSLAEHLSHFGIDMLKMQKTDKTMTELEIDMNQRIGEWELIQESGVPLKPLFGPGYTGIRNLGNSCYLNSVVQVLFSIPDFQRKYVDKLEKIFQNAPTDPTQDFSTQVAKLGHGLLSGEYSKPVPESGDGERVPEQKEVQDGIAPRMFKALIGKGHPEFSTNRQQDAQEFFLHLINMVERNCRSSENPNEVFRFLVEEKIKCLATEKVKYTQRVDYIMQLPVPMDAALNKEELLEYEEKKRQAEEEKMALPELVRAQVPFSSCLEAYGAPEQVDDFWSTALQAKSVAVKTTRFASFPDYLVIQIKKFTFGLDWVPKKLDVSIEMPEELDISQLRGTGLQPGEEELPDIAPPLVTPDEPKAPMLDESVIIQLVEMGFPMDACRKAVYYTGNSGAEAAMNWVMSHMDDPDFANPLILPGSSGPGSTSAAADPPPEDCVTTIVSMGFSRDQALKALRATNNSLERAVDWIFSHIDDLDAEAAMDISEGRSAADSISESVPVGPKVRDGPGKYQLFAFISHMGTSTMCGHYVCHIKKEGRWVIYNDQKVCASEKPPKDLGYIYFYQRVAS",835,"ATGGCGGAGCTGAGTGAGGAGGCGCTGCTGTCAGTATTACCGACGATCCGGGTCCCTAAGGCTGGAGACCGGGTCCACAAAGACGAGTGCGCCTTCTCCTTCGACACGCCGGAGTCTGAGGGGGGCCTCTACATCTGTATGAACACGTTTCTGGGCTTTGGGAAACAGTATGTGGAGAGACATTTCAATAAGACCGGCCAGCGAGTCTACTTGCACCTCCGGCGGACCCGGCGCCCGAAAGAGGAGGACCCTGCTACAGGCACTGGAGACCCACCCCGGAAGAAGCCCACGCGGCTGGCTATTGGTGTTGAAGGCGGATTTGACCTTAGCGAGGAGAAGTTTGAATTAGACGAGGATGTGAAGATTGTCATTTTGCCAGATTACCTGGAGATTGCCCGGGATGGACTGGGGGGACTGCCTGACATTGTCAGAGATCGGGTGACCAGTGCAGTGGAGGCCCTACTGTCGGCCGACTCAGCCTCCCGCAAGCAGGAGGTGCAGGCATGGGATGGGGAAGTACGGCAGGTGTCTAAGCATGCCTTCAGCCTCAAGCAGTTGGACAACCCTGCTCGAATCCCTCCCTGTGGCTGGAAGTGCTCCAAGTGTGACATGAGAGAGAACCTGTGGCTCAACCTGACTGATGGCTCCATCCTCTGTGGGCGACGCTACTTCGATGGCAGTGGGGGCAACAACCACGCTGTGGAGCACTACCGAGAGACAGGCTACCCGTTAGCTGTCAAGCTGGGCACCATCACCCCTGATGGAGCTGACGTGTACTCAtttGATGAGGATGACATGGTCCTGGACCCCAGCCTGGCTGAGCACCTGTCCCACTTCGGCATCGACATGCTGAAGATGCAGAAGACAGACAAGACGATGACTGAGTTGGAGATAGACATGAACCAGCGGATTGGTGAATGGGAGCTGATCCAGGAGTCAGGTGTGCCACTCAAGCCCCTGTTTGGGCCTGGCTACACAGGCATCCGGAACCTGGGTAACAGCTGCTACCTCAACTCTGTGGTCCAGGTGCTCTTCAGCATCCCTGACTTCCAGAGGAAGTATGTGGATAAGCTGGAGAAGATCTTCCAGAATGCCCCGACGGACCCTACCCAGGATTTCAGCACCCAGGTGGCCAAGCTGGGCCATGGCCTTCTCTCCGGGGAGTATTCCAAGCCAGTACCGGAGTCGGGCGATGGGGAGCGGGTGCCAGAACAGAAGGAAGTTCAAGATGGCATTGCCCCTCGGATGTTCAAGGCCCTCATCGGCAAGGGCCACCCTGAATTCTCCACCAACCGGCAGCAGGATGCCCAGGAGTTCTTCCTTCACCTTATCAACATGGTGGAGAGGAATTGCCGGAGCTCTGAAAATCCTAATGAAGTGTTCCGCTTCTTGGTGGAGGAAAAGATCAAGTGCCTGGCCACAGAGAAGGTGAAGTACACCCAGCGAGTTGACTACATCATGCAGCTGCCTGTGCCCATGGATGCAGCCCTTAACAAAGAGGAGCTTCTGGAGTACGAGGAGAAGAAGCGGCAAGCCGAAGAGGAGAAGATGGCACTGCCAGAACTGGTTCGGGCCCAGGTGCCCTTCAGCTCTTGCCTGGAGGCCTACGGGGCCCCTGAGCAGGTCGATGACTTCTGGAGCACGGCCCTGCAGGCCAAGTCAGTAGCTGTCAAGACCACACGATTTGCCTCATTCCCTGACTACCTGGTCATCCAGATCAAGAAGTTCACCTTCGGCTTAGACTGGGTGCCCAAGAAACTGGATGTGTCCATCGAGATGCCAGAGGAGCTCGACATCTCCCAGTTGAGGGGCACAGGGCTGCAGCCCGGAGAGGAGGAGCTGCCAGACATTGCCCCACCCCTGGTCACTCCGGATGAGCCCAAAGCGCCCATGCTGGATGAATCAGTCATCATCCAGCTGGTGGAGATGGGATTCCCTATGGACGCCTGCCGCAAAGCTGTCTACTACACGGGCAACAGCGGGGCTGAGGCCGCCATGAACTGGGTCATGTCACACATGGATGATCCAGATTTTGCAAACCCCCTCATCCTGCCTGGCTCTAGTGGGCCGGGCTCCACAAGCGCAGCAGCCGACCCCCCTCCTGAGGACTGTGTGACCACCATTGTCTCCATGGGCTTCTCCCGGGACCAGGCCTTGAAAGCGCTGCGGGCCACGAACAATAGTTTAGAACGGGCTGTGGACTGGATCTTCAGTCACATTGACGACCTGGATGCTGAAGCTGCCATGGACATCTCAGAGGGCCGCTCAGCTGCCGACTCCATCTCTGAGTCTGTGCCAGTGGGACCTAAAGTCCGGGATGGTCCTGGAAAGTATCAGCTCTTTGCCTTCATTAGTCACATGGGCACCTCTACCATGTGTGGTCACTACGTCTGCCACATCAAGAAAGAAGGCAGATGGGTGATCTACAATGACCAGAAAGTGTGTGCCTCCGAGAAGCCGCCCAAGGACCTGGGCTACATCTACTTCTACCAGAGAGTGGCCAGC",2505,"no","msglndifeaqkiewhegsaggsgMAELSEEALLSVLPTIRVPKAGDRVHKDECAFSFDTPESEGGLYICMNTFLGFGKQYVERHFNKTGQRVYLHLRRTRRPKEEDPATGTGDPPRKKPTRLAIGVEGGFDLSEEKFELDEDVKIVILPDYLEIARDGLGGLPDIVRDRVTSAVEALLSADSASRKQEVQAWDGEVRQVSKHAFSLKQLDNPARIPPCGWKCSKCDMRENLWLNLTDGSILCGRRYFDGSGGNNHAVEHYRETGYPLAVKLGTITPDGADVYSfDEDDMVLDPSLAEHLSHFGIDMLKMQKTDKTMTELEIDMNQRIGEWELIQESGVPLKPLFGPGYTGIRNLGNSCYLNSVVQVLFSIPDFQRKYVDKLEKIFQNAPTDPTQDFSTQVAKLGHGLLSGEYSKPVPESGDGERVPEQKEVQDGIAPRMFKALIGKGHPEFSTNRQQDAQEFFLHLINMVERNCRSSENPNEVFRFLVEEKIKCLATEKVKYTQRVDYIMQLPVPMDAALNKEELLEYEEKKRQAEEEKMALPELVRAQVPFSSCLEAYGAPEQVDDFWSTALQAKSVAVKTTRFASFPDYLVIQIKKFTFGLDWVPKKLDVSIEMPEELDISQLRGTGLQPGEEELPDIAPPLVTPDEPKAPMLDESVIIQLVEMGFPMDACRKAVYYTGNSGAEAAMNWVMSHMDDPDFANPLILPGSSGPGSTSAAADPPPEDCVTTIVSMGFSRDQALKALRATNNSLERAVDWIFSHIDDLDAEAAMDISEGRSAADSISESVPVGPKVRDGPGKYQLFAFISHMGTSTMCGHYVCHIKKEGRWVIYNDQKVCASEKPPKDLGYIYFYQRVASgggshhhhhh",null,"p28BIOH-LIC","gctggaggttcaggtATGGCGGAGCTGAGTGAGGAG","TCCTCATCaaaTGAGTACACGTCAGCTCCATC","GTACTCAtttGATGAGGATGACATGGTCCT","atgaccacttccaccGCTGGCCACTCTCTGGTAGAAG","DH5-Alpha","ploppnau","LIC-Infusion","Y",null,"2019-03-06",null,null,"PAGE19-00043","A10 is 100%"]
[null,"TOC023","A11","TOC023A11","USP05",null,null,"AU25-C3","USP05_1-835_bio_R221A_Y261F_W209A",1,835,"MAELSEEALLSVLPTIRVPKAGDRVHKDECAFSFDTPESEGGLYICMNTFLGFGKQYVERHFNKTGQRVYLHLRRTRRPKEEDPATGTGDPPRKKPTRLAIGVEGGFDLSEEKFELDEDVKIVILPDYLEIARDGLGGLPDIVRDRVTSAVEALLSADSASRKQEVQAWDGEVRQVSKHAFSLKQLDNPARIPPCGWKCSKCDMRENLaLNLTDGSILCGaRYFDGSGGNNHAVEHYRETGYPLAVKLGTITPDGADVYSfDEDDMVLDPSLAEHLSHFGIDMLKMQKTDKTMTELEIDMNQRIGEWELIQESGVPLKPLFGPGYTGIRNLGNSCYLNSVVQVLFSIPDFQRKYVDKLEKIFQNAPTDPTQDFSTQVAKLGHGLLSGEYSKPVPESGDGERVPEQKEVQDGIAPRMFKALIGKGHPEFSTNRQQDAQEFFLHLINMVERNCRSSENPNEVFRFLVEEKIKCLATEKVKYTQRVDYIMQLPVPMDAALNKEELLEYEEKKRQAEEEKMALPELVRAQVPFSSCLEAYGAPEQVDDFWSTALQAKSVAVKTTRFASFPDYLVIQIKKFTFGLDWVPKKLDVSIEMPEELDISQLRGTGLQPGEEELPDIAPPLVTPDEPKAPMLDESVIIQLVEMGFPMDACRKAVYYTGNSGAEAAMNWVMSHMDDPDFANPLILPGSSGPGSTSAAADPPPEDCVTTIVSMGFSRDQALKALRATNNSLERAVDWIFSHIDDLDAEAAMDISEGRSAADSISESVPVGPKVRDGPGKYQLFAFISHMGTSTMCGHYVCHIKKEGRWVIYNDQKVCASEKPPKDLGYIYFYQRVAS",835,"ATGGCGGAGCTGAGTGAGGAGGCGCTGCTGTCAGTATTACCGACGATCCGGGTCCCTAAGGCTGGAGACCGGGTCCACAAAGACGAGTGCGCCTTCTCCTTCGACACGCCGGAGTCTGAGGGGGGCCTCTACATCTGTATGAACACGTTTCTGGGCTTTGGGAAACAGTATGTGGAGAGACATTTCAATAAGACCGGCCAGCGAGTCTACTTGCACCTCCGGCGGACCCGGCGCCCGAAAGAGGAGGACCCTGCTACAGGCACTGGAGACCCACCCCGGAAGAAGCCCACGCGGCTGGCTATTGGTGTTGAAGGCGGATTTGACCTTAGCGAGGAGAAGTTTGAATTAGACGAGGATGTGAAGATTGTCATTTTGCCAGATTACCTGGAGATTGCCCGGGATGGACTGGGGGGACTGCCTGACATTGTCAGAGATCGGGTGACCAGTGCAGTGGAGGCCCTACTGTCGGCCGACTCAGCCTCCCGCAAGCAGGAGGTGCAGGCATGGGATGGGGAAGTACGGCAGGTGTCTAAGCATGCCTTCAGCCTCAAGCAGTTGGACAACCCTGCTCGAATCCCTCCCTGTGGCTGGAAGTGCTCCAAGTGTGACATGAGAGAGAACCTGgcgCTCAACCTGACTGATGGCTCCATCCTCTGTGGGgcgCGCTACTTCGATGGCAGTGGGGGCAACAACCACGCTGTGGAGCACTACCGAGAGACAGGCTACCCGTTAGCTGTCAAGCTGGGCACCATCACCCCTGATGGAGCTGACGTGTACTCAtttGATGAGGATGACATGGTCCTGGACCCCAGCCTGGCTGAGCACCTGTCCCACTTCGGCATCGACATGCTGAAGATGCAGAAGACAGACAAGACGATGACTGAGTTGGAGATAGACATGAACCAGCGGATTGGTGAATGGGAGCTGATCCAGGAGTCAGGTGTGCCACTCAAGCCCCTGTTTGGGCCTGGCTACACAGGCATCCGGAACCTGGGTAACAGCTGCTACCTCAACTCTGTGGTCCAGGTGCTCTTCAGCATCCCTGACTTCCAGAGGAAGTATGTGGATAAGCTGGAGAAGATCTTCCAGAATGCCCCGACGGACCCTACCCAGGATTTCAGCACCCAGGTGGCCAAGCTGGGCCATGGCCTTCTCTCCGGGGAGTATTCCAAGCCAGTACCGGAGTCGGGCGATGGGGAGCGGGTGCCAGAACAGAAGGAAGTTCAAGATGGCATTGCCCCTCGGATGTTCAAGGCCCTCATCGGCAAGGGCCACCCTGAATTCTCCACCAACCGGCAGCAGGATGCCCAGGAGTTCTTCCTTCACCTTATCAACATGGTGGAGAGGAATTGCCGGAGCTCTGAAAATCCTAATGAAGTGTTCCGCTTCTTGGTGGAGGAAAAGATCAAGTGCCTGGCCACAGAGAAGGTGAAGTACACCCAGCGAGTTGACTACATCATGCAGCTGCCTGTGCCCATGGATGCAGCCCTTAACAAAGAGGAGCTTCTGGAGTACGAGGAGAAGAAGCGGCAAGCCGAAGAGGAGAAGATGGCACTGCCAGAACTGGTTCGGGCCCAGGTGCCCTTCAGCTCTTGCCTGGAGGCCTACGGGGCCCCTGAGCAGGTCGATGACTTCTGGAGCACGGCCCTGCAGGCCAAGTCAGTAGCTGTCAAGACCACACGATTTGCCTCATTCCCTGACTACCTGGTCATCCAGATCAAGAAGTTCACCTTCGGCTTAGACTGGGTGCCCAAGAAACTGGATGTGTCCATCGAGATGCCAGAGGAGCTCGACATCTCCCAGTTGAGGGGCACAGGGCTGCAGCCCGGAGAGGAGGAGCTGCCAGACATTGCCCCACCCCTGGTCACTCCGGATGAGCCCAAAGCGCCCATGCTGGATGAATCAGTCATCATCCAGCTGGTGGAGATGGGATTCCCTATGGACGCCTGCCGCAAAGCTGTCTACTACACGGGCAACAGCGGGGCTGAGGCCGCCATGAACTGGGTCATGTCACACATGGATGATCCAGATTTTGCAAACCCCCTCATCCTGCCTGGCTCTAGTGGGCCGGGCTCCACAAGCGCAGCAGCCGACCCCCCTCCTGAGGACTGTGTGACCACCATTGTCTCCATGGGCTTCTCCCGGGACCAGGCCTTGAAAGCGCTGCGGGCCACGAACAATAGTTTAGAACGGGCTGTGGACTGGATCTTCAGTCACATTGACGACCTGGATGCTGAAGCTGCCATGGACATCTCAGAGGGCCGCTCAGCTGCCGACTCCATCTCTGAGTCTGTGCCAGTGGGACCTAAAGTCCGGGATGGTCCTGGAAAGTATCAGCTCTTTGCCTTCATTAGTCACATGGGCACCTCTACCATGTGTGGTCACTACGTCTGCCACATCAAGAAAGAAGGCAGATGGGTGATCTACAATGACCAGAAAGTGTGTGCCTCCGAGAAGCCGCCCAAGGACCTGGGCTACATCTACTTCTACCAGAGAGTGGCCAGC",2505,"no","msglndifeaqkiewhegsaggsgMAELSEEALLSVLPTIRVPKAGDRVHKDECAFSFDTPESEGGLYICMNTFLGFGKQYVERHFNKTGQRVYLHLRRTRRPKEEDPATGTGDPPRKKPTRLAIGVEGGFDLSEEKFELDEDVKIVILPDYLEIARDGLGGLPDIVRDRVTSAVEALLSADSASRKQEVQAWDGEVRQVSKHAFSLKQLDNPARIPPCGWKCSKCDMRENLaLNLTDGSILCGaRYFDGSGGNNHAVEHYRETGYPLAVKLGTITPDGADVYSfDEDDMVLDPSLAEHLSHFGIDMLKMQKTDKTMTELEIDMNQRIGEWELIQESGVPLKPLFGPGYTGIRNLGNSCYLNSVVQVLFSIPDFQRKYVDKLEKIFQNAPTDPTQDFSTQVAKLGHGLLSGEYSKPVPESGDGERVPEQKEVQDGIAPRMFKALIGKGHPEFSTNRQQDAQEFFLHLINMVERNCRSSENPNEVFRFLVEEKIKCLATEKVKYTQRVDYIMQLPVPMDAALNKEELLEYEEKKRQAEEEKMALPELVRAQVPFSSCLEAYGAPEQVDDFWSTALQAKSVAVKTTRFASFPDYLVIQIKKFTFGLDWVPKKLDVSIEMPEELDISQLRGTGLQPGEEELPDIAPPLVTPDEPKAPMLDESVIIQLVEMGFPMDACRKAVYYTGNSGAEAAMNWVMSHMDDPDFANPLILPGSSGPGSTSAAADPPPEDCVTTIVSMGFSRDQALKALRATNNSLERAVDWIFSHIDDLDAEAAMDISEGRSAADSISESVPVGPKVRDGPGKYQLFAFISHMGTSTMCGHYVCHIKKEGRWVIYNDQKVCASEKPPKDLGYIYFYQRVASgggshhhhhh",null,"p28BIOH-LIC","gctggaggttcaggtATGGCGGAGCTGAGTGAGGAG","AGTAGCGcgcCCCACAGAGGATGGAGCCATC","TGTGGGgcgCGCTACTTCGATGGCAGTG","atgaccacttccaccGCTGGCCACTCTCTGGTAGAAG","DH5-Alpha","ploppnau","LIC-Infusion","Y",null,"2019-03-06",null,null,"PAGE19-00043","A11 is 100%"]
[null,"TOC023","A12","TOC023A12","USP05",null,null,"AU25-C3","USP05_171-290_bio_C195S",171,290,"GEVRQVSKHAFSLKQLDNPARIPPSGWKCSKCDMRENLWLNLTDGSILCGRRYFDGSGGNNHAVEHYRETGYPLAVKLGTITPDGADVYSYDEDDMVLDPSLAEHLSHFGIDMLKMQKTD",120,"GGGGAAGTACGGCAGGTGTCTAAGCATGCCTTCAGCCTCAAGCAGTTGGACAACCCTGCTCGAATCCCTCCCtctGGCTGGAAGTGCTCCAAGTGTGACATGAGAGAGAACCTGTGGCTCAACCTGACTGATGGCTCCATCCTCTGTGGGCGACGCTACTTCGATGGCAGTGGGGGCAACAACCACGCTGTGGAGCACTACCGAGAGACAGGCTACCCGTTAGCTGTCAAGCTGGGCACCATCACCCCTGATGGAGCTGACGTGTACTCATATGATGAGGATGACATGGTCCTGGACCCCAGCCTGGCTGAGCACCTGTCCCACTTCGGCATCGACATGCTGAAGATGCAGAAGACAGAC",360,"no","msglndifeaqkiewhegsaggsgGEVRQVSKHAFSLKQLDNPARIPPSGWKCSKCDMRENLWLNLTDGSILCGRRYFDGSGGNNHAVEHYRETGYPLAVKLGTITPDGADVYSYDEDDMVLDPSLAEHLSHFGIDMLKMQKTDgggshhhhhh",null,"p28BIOH-LIC","gctggaggttcaggtGGGGAAGTACGGCAGGTGTC","TCCAGCCagaGGGAGGGATTCGAGCAGGG","CCCTCCCtctGGCTGGAAGTGCTCCAAGTG","atgaccacttccaccGTCTGTCTTCTGCATCTTCAG","DH5-Alpha","ploppnau","LIC-Infusion","Y",null,"2019-03-06",null,null,"PAGE19-00043","A12 is 100%"]
[null,"TOC023","B01","TOC023B01","USP05",null,null,"AU25-C3","USP05_171-290_bio_R221A",171,290,"GEVRQVSKHAFSLKQLDNPARIPPCGWKCSKCDMRENLWLNLTDGSILCGARYFDGSGGNNHAVEHYRETGYPLAVKLGTITPDGADVYSYDEDDMVLDPSLAEHLSHFGIDMLKMQKTD",120,"GGGGAAGTACGGCAGGTGTCTAAGCATGCCTTCAGCCTCAAGCAGTTGGACAACCCTGCTCGAATCCCTCCCTGTGGCTGGAAGTGCTCCAAGTGTGACATGAGAGAGAACCTGTGGCTCAACCTGACTGATGGCTCCATCCTCTGTGGGgcgCGCTACTTCGATGGCAGTGGGGGCAACAACCACGCTGTGGAGCACTACCGAGAGACAGGCTACCCGTTAGCTGTCAAGCTGGGCACCATCACCCCTGATGGAGCTGACGTGTACTCATATGATGAGGATGACATGGTCCTGGACCCCAGCCTGGCTGAGCACCTGTCCCACTTCGGCATCGACATGCTGAAGATGCAGAAGACAGAC",360,"no","msglndifeaqkiewhegsaggsgGEVRQVSKHAFSLKQLDNPARIPPCGWKCSKCDMRENLWLNLTDGSILCGARYFDGSGGNNHAVEHYRETGYPLAVKLGTITPDGADVYSYDEDDMVLDPSLAEHLSHFGIDMLKMQKTDgggshhhhhh",null,"p28BIOH-LIC","gctggaggttcaggtGGGGAAGTACGGCAGGTGTC","atgaccacttccaccGTCTGTCTTCTGCATCTTCAG",null,null,"DH5-Alpha","ploppnau","LIC-Infusion","Y",null,"2019-03-06",null,null,"PAGE19-00043","B1 is 100%"]
[null,"TOC023","B02","TOC023B02","USP05",null,null,"AU25-C3","USP05_171-290_bio_W209A",171,290,"GEVRQVSKHAFSLKQLDNPARIPPCGWKCSKCDMRENLALNLTDGSILCGRRYFDGSGGNNHAVEHYRETGYPLAVKLGTITPDGADVYSYDEDDMVLDPSLAEHLSHFGIDMLKMQKTD",120,"GGGGAAGTACGGCAGGTGTCTAAGCATGCCTTCAGCCTCAAGCAGTTGGACAACCCTGCTCGAATCCCTCCCTGTGGCTGGAAGTGCTCCAAGTGTGACATGAGAGAGAACCTGgcgCTCAACCTGACTGATGGCTCCATCCTCTGTGGGCGACGCTACTTCGATGGCAGTGGGGGCAACAACCACGCTGTGGAGCACTACCGAGAGACAGGCTACCCGTTAGCTGTCAAGCTGGGCACCATCACCCCTGATGGAGCTGACGTGTACTCATATGATGAGGATGACATGGTCCTGGACCCCAGCCTGGCTGAGCACCTGTCCCACTTCGGCATCGACATGCTGAAGATGCAGAAGACAGAC",360,"no","msglndifeaqkiewhegsaggsgGEVRQVSKHAFSLKQLDNPARIPPCGWKCSKCDMRENLALNLTDGSILCGRRYFDGSGGNNHAVEHYRETGYPLAVKLGTITPDGADVYSYDEDDMVLDPSLAEHLSHFGIDMLKMQKTDgggshhhhhh",null,"p28BIOH-LIC","gctggaggttcaggtGGGGAAGTACGGCAGGTGTC","atgaccacttccaccGTCTGTCTTCTGCATCTTCAG",null,null,"DH5-Alpha","ploppnau","LIC-Infusion","Y",null,"2019-03-06",null,null,"PAGE19-00043","B2 is 100%"]
[null,"TOC023","B03","TOC023B03","USP05",null,null,"AU25-C3","USP05_171-290_bio_Y259A",171,290,"GEVRQVSKHAFSLKQLDNPARIPPCGWKCSKCDMRENLWLNLTDGSILCGRRYFDGSGGNNHAVEHYRETGYPLAVKLGTITPDGADVASYDEDDMVLDPSLAEHLSHFGIDMLKMQKTD",120,"GGGGAAGTACGGCAGGTGTCTAAGCATGCCTTCAGCCTCAAGCAGTTGGACAACCCTGCTCGAATCCCTCCCTGTGGCTGGAAGTGCTCCAAGTGTGACATGAGAGAGAACCTGTGGCTCAACCTGACTGATGGCTCCATCCTCTGTGGGCGACGCTACTTCGATGGCAGTGGGGGCAACAACCACGCTGTGGAGCACTACCGAGAGACAGGCTACCCGTTAGCTGTCAAGCTGGGCACCATCACCCCTGATGGAGCTGACGTGgcgTCATATGATGAGGATGACATGGTCCTGGACCCCAGCCTGGCTGAGCACCTGTCCCACTTCGGCATCGACATGCTGAAGATGCAGAAGACAGAC",360,"no","msglndifeaqkiewhegsaggsgGEVRQVSKHAFSLKQLDNPARIPPCGWKCSKCDMRENLWLNLTDGSILCGRRYFDGSGGNNHAVEHYRETGYPLAVKLGTITPDGADVASYDEDDMVLDPSLAEHLSHFGIDMLKMQKTDgggshhhhhh",null,"p28BIOH-LIC","gctggaggttcaggtGGGGAAGTACGGCAGGTGTC","atgaccacttccaccGTCTGTCTTCTGCATCTTCAG",null,null,"DH5-Alpha","ploppnau","LIC-Infusion","Y",null,"2019-03-06",null,null,"PAGE19-00043","B3 is 100%"]
[null,"TOC023","B04","TOC023B04","USP05",null,null,"AU25-C3","USP05_171-290_bio_D264A",171,290,"GEVRQVSKHAFSLKQLDNPARIPPCGWKCSKCDMRENLWLNLTDGSILCGRRYFDGSGGNNHAVEHYRETGYPLAVKLGTITPDGADVYSYDEADMVLDPSLAEHLSHFGIDMLKMQKTD",120,"GGGGAAGTACGGCAGGTGTCTAAGCATGCCTTCAGCCTCAAGCAGTTGGACAACCCTGCTCGAATCCCTCCCTGTGGCTGGAAGTGCTCCAAGTGTGACATGAGAGAGAACCTGTGGCTCAACCTGACTGATGGCTCCATCCTCTGTGGGCGACGCTACTTCGATGGCAGTGGGGGCAACAACCACGCTGTGGAGCACTACCGAGAGACAGGCTACCCGTTAGCTGTCAAGCTGGGCACCATCACCCCTGATGGAGCTGACGTGTACTCATATGATGAGgcgGACATGGTCCTGGACCCCAGCCTGGCTGAGCACCTGTCCCACTTCGGCATCGACATGCTGAAGATGCAGAAGACAGAC",360,"no","msglndifeaqkiewhegsaggsgGEVRQVSKHAFSLKQLDNPARIPPCGWKCSKCDMRENLWLNLTDGSILCGRRYFDGSGGNNHAVEHYRETGYPLAVKLGTITPDGADVYSYDEADMVLDPSLAEHLSHFGIDMLKMQKTDgggshhhhhh",null,"p28BIOH-LIC","gctggaggttcaggtGGGGAAGTACGGCAGGTGTC","atgaccacttccaccGTCTGTCTTCTGCATCTTCAG",null,null,"DH5-Alpha","ploppnau","LIC-Infusion","Y",null,"2019-03-06",null,null,"PAGE19-00043","B4 is 100%"]
[null,"TOC023","B05","TOC023B05","USP05",null,null,"AU25-C3","USP05_171-290_bio_Y261F",171,290,"GEVRQVSKHAFSLKQLDNPARIPPCGWKCSKCDMRENLWLNLTDGSILCGRRYFDGSGGNNHAVEHYRETGYPLAVKLGTITPDGADVYSFDEDDMVLDPSLAEHLSHFGIDMLKMQKTD",120,"GGGGAAGTACGGCAGGTGTCTAAGCATGCCTTCAGCCTCAAGCAGTTGGACAACCCTGCTCGAATCCCTCCCTGTGGCTGGAAGTGCTCCAAGTGTGACATGAGAGAGAACCTGTGGCTCAACCTGACTGATGGCTCCATCCTCTGTGGGCGACGCTACTTCGATGGCAGTGGGGGCAACAACCACGCTGTGGAGCACTACCGAGAGACAGGCTACCCGTTAGCTGTCAAGCTGGGCACCATCACCCCTGATGGAGCTGACGTGTACTCAtttGATGAGGATGACATGGTCCTGGACCCCAGCCTGGCTGAGCACCTGTCCCACTTCGGCATCGACATGCTGAAGATGCAGAAGACAGAC",360,"no","msglndifeaqkiewhegsaggsgGEVRQVSKHAFSLKQLDNPARIPPCGWKCSKCDMRENLWLNLTDGSILCGRRYFDGSGGNNHAVEHYRETGYPLAVKLGTITPDGADVYSFDEDDMVLDPSLAEHLSHFGIDMLKMQKTDgggshhhhhh",null,"p28BIOH-LIC","gctggaggttcaggtGGGGAAGTACGGCAGGTGTC","atgaccacttccaccGTCTGTCTTCTGCATCTTCAG",null,null,"DH5-Alpha","ploppnau","LIC-Infusion","Y",null,"2019-03-06",null,null,"PAGE19-00043","B5 is 100%"]
[null,"TOC023","B06","TOC023B06","USP05",null,null,"AU25-C3","USP05_171-290_bio_R221A_Y261F_W209A",171,290,"GEVRQVSKHAFSLKQLDNPARIPPCGWKCSKCDMRENLALNLTDGSILCGARYFDGSGGNNHAVEHYRETGYPLAVKLGTITPDGADVYSFDEDDMVLDPSLAEHLSHFGIDMLKMQKTD",120,"GGGGAAGTACGGCAGGTGTCTAAGCATGCCTTCAGCCTCAAGCAGTTGGACAACCCTGCTCGAATCCCTCCCTGTGGCTGGAAGTGCTCCAAGTGTGACATGAGAGAGAACCTGgcgCTCAACCTGACTGATGGCTCCATCCTCTGTGGGgcgCGCTACTTCGATGGCAGTGGGGGCAACAACCACGCTGTGGAGCACTACCGAGAGACAGGCTACCCGTTAGCTGTCAAGCTGGGCACCATCACCCCTGATGGAGCTGACGTGTACTCAtttGATGAGGATGACATGGTCCTGGACCCCAGCCTGGCTGAGCACCTGTCCCACTTCGGCATCGACATGCTGAAGATGCAGAAGACAGAC",360,"no","msglndifeaqkiewhegsaggsgGEVRQVSKHAFSLKQLDNPARIPPCGWKCSKCDMRENLALNLTDGSILCGARYFDGSGGNNHAVEHYRETGYPLAVKLGTITPDGADVYSFDEDDMVLDPSLAEHLSHFGIDMLKMQKTDgggshhhhhh",null,"p28BIOH-LIC","gctggaggttcaggtGGGGAAGTACGGCAGGTGTC","AGTAGCGcgcCCCACAGAGGATGGAGCCATC","TGTGGGgcgCGCTACTTCGATGGCAGTG","atgaccacttccaccGTCTGTCTTCTGCATCTTCAG","DH5-Alpha","ploppnau","LIC-Infusion","Y",null,"2019-03-06",null,null,"PAGE19-00043","B6 replacement is 100%"]
[null,"TOC023","B07","TOC023B07","USP33",null,null,"AT9-B7","USP33_37-125",37,125,"NHCPHLDSVGEITKEDLIQKSLGTCQDCKVQGPNLWACLENRCSYVGCGESQVDHSTIHSQETKHYLTVNLTTLRVWCYACSKEVFLDR",89,"AATCATTGTCCACATTTGGATTCAGTTGGTGAAATAACAAAAGAAGATTTGATACAAAAATCCCTTGGTACTTGTCAGGATTGTAAAGTCCAAGGACCAAATCTTTGGGCATGTCTGGAGAATAGATGTTCATATGTTGGCTGTGGTGAATCACAAGTAGATCACAGCACCATACATTCTCAGGAGACAAAGCATTATCTAACTGTGAACCTTACCACTCTTCGAGTATGGTGTTATGCTTGCAGCAAAGAAGTATTTTTGGATAGG",267,"yes","mhhhhhhssgrenlyfqgNHCPHLDSVGEITKEDLIQKSLGTCQDCKVQGPNLWACLENRCSYVGCGESQVDHSTIHSQETKHYLTVNLTTLRVWCYACSKEVFLDR",null,"pET28-MHL","ttgtatttccagggcAATCATTGTCCACATTTGGATTC","caagcttcgtcatcaCCTATCCAAAAATACTTCTTTGC",null,null,"DH5-Alpha","ploppnau","LIC-Infusion","Y",null,"2019-03-06",null,null,"PAGE19-00043","B07 is 100%"]
[null,"TOC023","B08","TOC023B08","USP33",null,null,"AT9-B7","USP33_38-125",38,125,"HCPHLDSVGEITKEDLIQKSLGTCQDCKVQGPNLWACLENRCSYVGCGESQVDHSTIHSQETKHYLTVNLTTLRVWCYACSKEVFLDR",88,"CATTGTCCACATTTGGATTCAGTTGGTGAAATAACAAAAGAAGATTTGATACAAAAATCCCTTGGTACTTGTCAGGATTGTAAAGTCCAAGGACCAAATCTTTGGGCATGTCTGGAGAATAGATGTTCATATGTTGGCTGTGGTGAATCACAAGTAGATCACAGCACCATACATTCTCAGGAGACAAAGCATTATCTAACTGTGAACCTTACCACTCTTCGAGTATGGTGTTATGCTTGCAGCAAAGAAGTATTTTTGGATAGG",264,"yes","mhhhhhhssgrenlyfqgHCPHLDSVGEITKEDLIQKSLGTCQDCKVQGPNLWACLENRCSYVGCGESQVDHSTIHSQETKHYLTVNLTTLRVWCYACSKEVFLDR",null,"pET28-MHL","ttgtatttccagggcCATTGTCCACATTTGGATTCAGTTG","caagcttcgtcatcaCCTATCCAAAAATACTTCTTTGC",null,null,"DH5-Alpha","ploppnau","LIC-Infusion","Y",null,"2019-03-06",null,null,"PAGE19-00043","B08 is 100%"]
[null,"TOC023","B09","TOC023B09","USP44",null,null,"AT25-A4","USP44_5-88",5,88,"DTCKHVGQLQLAQDHSSLNPQKWHCVDCNTTESIWACLSCSHVACGRYIEEHALKHFQESSHPVALEVNEMYVFCYLCDDYVLN",84,"GATACGTGCAAACATGTTGGGCAGCTGCAGCTTGCTCAAGACCATTCCAGCCTCAACCCTCAGAAATGGCACTGTGTGGACTGCAACACGACCGAGTCCATTTGGGCTTGCCTTAGCTGCTCCCATGTTGCCTGTGGAAGATATATTGAAGAGCATGCACTCAAGCACTTTCAAGAAAGCAGTCATCCTGTTGCATTGGAGGTGAATGAGATGTACGTTTTTTGTTACCTTTGTGATGATTATGTTCTGAAT",252,"yes","mhhhhhhssgrenlyfqgDTCKHVGQLQLAQDHSSLNPQKWHCVDCNTTESIWACLSCSHVACGRYIEEHALKHFQESSHPVALEVNEMYVFCYLCDDYVLN",null,"pET28-MHL","ttgtatttccagggcGATACGTGCAAACATGTTGGG","caagcttcgtcatcaATTCAGAACATAATCATCACAAAG",null,null,"DH5-Alpha","ploppnau","LIC-Infusion","Y",null,"2019-03-06",null,null,"PAGE19-00043","B9-25 is 100%"]
[null,"TOC023","B10","TOC023B10","USP44",null,null,"AT25-A4","USP44_5-90",5,90,"DTCKHVGQLQLAQDHSSLNPQKWHCVDCNTTESIWACLSCSHVACGRYIEEHALKHFQESSHPVALEVNEMYVFCYLCDDYVLNDN",86,"GATACGTGCAAACATGTTGGGCAGCTGCAGCTTGCTCAAGACCATTCCAGCCTCAACCCTCAGAAATGGCACTGTGTGGACTGCAACACGACCGAGTCCATTTGGGCTTGCCTTAGCTGCTCCCATGTTGCCTGTGGAAGATATATTGAAGAGCATGCACTCAAGCACTTTCAAGAAAGCAGTCATCCTGTTGCATTGGAGGTGAATGAGATGTACGTTTTTTGTTACCTTTGTGATGATTATGTTCTGAATGATAAC",258,"yes","mhhhhhhssgrenlyfqgDTCKHVGQLQLAQDHSSLNPQKWHCVDCNTTESIWACLSCSHVACGRYIEEHALKHFQESSHPVALEVNEMYVFCYLCDDYVLNDN",null,"pET28-MHL","ttgtatttccagggcGATACGTGCAAACATGTTGGG","caagcttcgtcatcaGTTATCATTCAGAACATAATCATC",null,null,"DH5-Alpha","ploppnau","LIC-Infusion","Y",null,"2019-03-06",null,null,"PAGE19-00043","B10 is100%"]
[null,"TOC023","B11","TOC023B11","USP49",null,null,"AU68-E10","USP49_2-85",2,85,"DRCKHVGRLRLAQDHSILNPQKWCCLECATTESVWACLKCSHVACGRYIEDHALKHFEETGHPLAMEVRDLYVFCYLCKDYVLN",84,"GATAGATGCAAACATGTAGGGCGGTTACGGCTCGCCCAGGACCACTCCATCCTGAACCCTCAGAAGTGGTGCTGCTTAGAGTGTGCCACCACCGAGTCCGTGTGGGCCTGCCTCAAGTGCTCCCACGTGGCCTGCGGCCGCTATATTGAGGACCACGCCCTGAAACACTTTGAGGAGACGGGACACCCGCTAGCCATGGAAGTCCGGGATCTCTACGTGTTCTGTTACCTGTGCAAGGACTACGTGCTCAAT",252,"yes","mhhhhhhssgrenlyfqgDRCKHVGRLRLAQDHSILNPQKWCCLECATTESVWACLKCSHVACGRYIEDHALKHFEETGHPLAMEVRDLYVFCYLCKDYVLN",null,"pET28-MHL","ttgtatttccagggcGATAGATGCAAACATGTAGG","caagcttcgtcatcaATTGAGCACGTAGTCCTTGC",null,null,"DH5-Alpha","ploppnau","LIC-Infusion","Y",null,"2019-03-06",null,null,"PAGE19-00043","B11-41 is 100%"]
[null,"TOC023","B12","TOC023B12","USP49",null,null,"AU68-E10","USP49_2-87",2,87,"DRCKHVGRLRLAQDHSILNPQKWCCLECATTESVWACLKCSHVACGRYIEDHALKHFEETGHPLAMEVRDLYVFCYLCKDYVLNDN",86,"GATAGATGCAAACATGTAGGGCGGTTACGGCTCGCCCAGGACCACTCCATCCTGAACCCTCAGAAGTGGTGCTGCTTAGAGTGTGCCACCACCGAGTCCGTGTGGGCCTGCCTCAAGTGCTCCCACGTGGCCTGCGGCCGCTATATTGAGGACCACGCCCTGAAACACTTTGAGGAGACGGGACACCCGCTAGCCATGGAAGTCCGGGATCTCTACGTGTTCTGTTACCTGTGCAAGGACTACGTGCTCAATGATAAC",258,"yes","mhhhhhhssgrenlyfqgDRCKHVGRLRLAQDHSILNPQKWCCLECATTESVWACLKCSHVACGRYIEDHALKHFEETGHPLAMEVRDLYVFCYLCKDYVLNDN",null,"pET28-MHL","ttgtatttccagggcGATAGATGCAAACATGTAGG","caagcttcgtcatcaGTTATCATTGAGCACGTAGTC",null,null,"DH5-Alpha","ploppnau","LIC-Infusion","Y",null,"2019-03-06",null,null,"PAGE19-00043","B12-50 is 100%"]
[null,"TOC023","C01","TOC023C01","USP05",null,null,"AU25-C3","USP05_1-835_bio_M711E",1,835,"MAELSEEALLSVLPTIRVPKAGDRVHKDECAFSFDTPESEGGLYICMNTFLGFGKQYVERHFNKTGQRVYLHLRRTRRPKEEDPATGTGDPPRKKPTRLAIGVEGGFDLSEEKFELDEDVKIVILPDYLEIARDGLGGLPDIVRDRVTSAVEALLSADSASRKQEVQAWDGEVRQVSKHAFSLKQLDNPARIPPCGWKCSKCDMRENLWLNLTDGSILCGRRYFDGSGGNNHAVEHYRETGYPLAVKLGTITPDGADVYSYDEDDMVLDPSLAEHLSHFGIDMLKMQKTDKTMTELEIDMNQRIGEWELIQESGVPLKPLFGPGYTGIRNLGNSCYLNSVVQVLFSIPDFQRKYVDKLEKIFQNAPTDPTQDFSTQVAKLGHGLLSGEYSKPVPESGDGERVPEQKEVQDGIAPRMFKALIGKGHPEFSTNRQQDAQEFFLHLINMVERNCRSSENPNEVFRFLVEEKIKCLATEKVKYTQRVDYIMQLPVPMDAALNKEELLEYEEKKRQAEEEKMALPELVRAQVPFSSCLEAYGAPEQVDDFWSTALQAKSVAVKTTRFASFPDYLVIQIKKFTFGLDWVPKKLDVSIEMPEELDISQLRGTGLQPGEEELPDIAPPLVTPDEPKAPMLDESVIIQLVEMGFPMDACRKAVYYTGNSGAEAAMNWVMSHMDDPDFANPLILPGSSGPGSTSAAADPPPEDCVTTIVSEGFSRDQALKALRATNNSLERAVDWIFSHIDDLDAEAAMDISEGRSAADSISESVPVGPKVRDGPGKYQLFAFISHMGTSTMCGHYVCHIKKEGRWVIYNDQKVCASEKPPKDLGYIYFYQRVAS",835,"ATGGCGGAGCTGAGTGAGGAGGCGCTGCTGTCAGTATTACCGACGATCCGGGTCCCTAAGGCTGGAGACCGGGTCCACAAAGACGAGTGCGCCTTCTCCTTCGACACGCCGGAGTCTGAGGGGGGCCTCTACATCTGTATGAACACGTTTCTGGGCTTTGGGAAACAGTATGTGGAGAGACATTTCAATAAGACCGGCCAGCGAGTCTACTTGCACCTCCGGCGGACCCGGCGCCCGAAAGAGGAGGACCCTGCTACAGGCACTGGAGACCCACCCCGGAAGAAGCCCACGCGGCTGGCTATTGGTGTTGAAGGCGGATTTGACCTTAGCGAGGAGAAGTTTGAATTAGACGAGGATGTGAAGATTGTCATTTTGCCAGATTACCTGGAGATTGCCCGGGATGGACTGGGGGGACTGCCTGACATTGTCAGAGATCGGGTGACCAGTGCAGTGGAGGCCCTACTGTCGGCCGACTCAGCCTCCCGCAAGCAGGAGGTGCAGGCATGGGATGGGGAAGTACGGCAGGTGTCTAAGCATGCCTTCAGCCTCAAGCAGTTGGACAACCCTGCTCGAATCCCTCCCTGTGGCTGGAAGTGCTCCAAGTGTGACATGAGAGAGAACCTGTGGCTCAACCTGACTGATGGCTCCATCCTCTGTGGGCGACGCTACTTCGATGGCAGTGGGGGCAACAACCACGCTGTGGAGCACTACCGAGAGACAGGCTACCCGTTAGCTGTCAAGCTGGGCACCATCACCCCTGATGGAGCTGACGTGTACTCATATGATGAGGATGACATGGTCCTGGACCCCAGCCTGGCTGAGCACCTGTCCCACTTCGGCATCGACATGCTGAAGATGCAGAAGACAGACAAGACGATGACTGAGTTGGAGATAGACATGAACCAGCGGATTGGTGAATGGGAGCTGATCCAGGAGTCAGGTGTGCCACTCAAGCCCCTGTTTGGGCCTGGCTACACAGGCATCCGGAACCTGGGTAACAGCTGCTACCTCAACTCTGTGGTCCAGGTGCTCTTCAGCATCCCTGACTTCCAGAGGAAGTATGTGGATAAGCTGGAGAAGATCTTCCAGAATGCCCCGACGGACCCTACCCAGGATTTCAGCACCCAGGTGGCCAAGCTGGGCCATGGCCTTCTCTCCGGGGAGTATTCCAAGCCAGTACCGGAGTCGGGCGATGGGGAGCGGGTGCCAGAACAGAAGGAAGTTCAAGATGGCATTGCCCCTCGGATGTTCAAGGCCCTCATCGGCAAGGGCCACCCTGAATTCTCCACCAACCGGCAGCAGGATGCCCAGGAGTTCTTCCTTCACCTTATCAACATGGTGGAGAGGAATTGCCGGAGCTCTGAAAATCCTAATGAAGTGTTCCGCTTCTTGGTGGAGGAAAAGATCAAGTGCCTGGCCACAGAGAAGGTGAAGTACACCCAGCGAGTTGACTACATCATGCAGCTGCCTGTGCCCATGGATGCAGCCCTTAACAAAGAGGAGCTTCTGGAGTACGAGGAGAAGAAGCGGCAAGCCGAAGAGGAGAAGATGGCACTGCCAGAACTGGTTCGGGCCCAGGTGCCCTTCAGCTCTTGCCTGGAGGCCTACGGGGCCCCTGAGCAGGTCGATGACTTCTGGAGCACGGCCCTGCAGGCCAAGTCAGTAGCTGTCAAGACCACACGATTTGCCTCATTCCCTGACTACCTGGTCATCCAGATCAAGAAGTTCACCTTCGGCTTAGACTGGGTGCCCAAGAAACTGGATGTGTCCATCGAGATGCCAGAGGAGCTCGACATCTCCCAGTTGAGGGGCACAGGGCTGCAGCCCGGAGAGGAGGAGCTGCCAGACATTGCCCCACCCCTGGTCACTCCGGATGAGCCCAAAGCGCCCATGCTGGATGAATCAGTCATCATCCAGCTGGTGGAGATGGGATTCCCTATGGACGCCTGCCGCAAAGCTGTCTACTACACGGGCAACAGCGGGGCTGAGGCCGCCATGAACTGGGTCATGTCACACATGGATGATCCAGATTTTGCAAACCCCCTCATCCTGCCTGGCTCTAGTGGGCCGGGCTCCACAAGCGCAGCAGCCGACCCCCCTCCTGAGGACTGTGTGACCACCATTGTCTCCgaaGGCTTCTCCCGGGACCAGGCCTTGAAAGCGCTGCGGGCCACGAACAATAGTTTAGAACGGGCTGTGGACTGGATCTTCAGTCACATTGACGACCTGGATGCTGAAGCTGCCATGGACATCTCAGAGGGCCGCTCAGCTGCCGACTCCATCTCTGAGTCTGTGCCAGTGGGACCTAAAGTCCGGGATGGTCCTGGAAAGTATCAGCTCTTTGCCTTCATTAGTCACATGGGCACCTCTACCATGTGTGGTCACTACGTCTGCCACATCAAGAAAGAAGGCAGATGGGTGATCTACAATGACCAGAAAGTGTGTGCCTCCGAGAAGCCGCCCAAGGACCTGGGCTACATCTACTTCTACCAGAGAGTGGCCAGC",2505,"no","msglndifeaqkiewhegsaggsgMAELSEEALLSVLPTIRVPKAGDRVHKDECAFSFDTPESEGGLYICMNTFLGFGKQYVERHFNKTGQRVYLHLRRTRRPKEEDPATGTGDPPRKKPTRLAIGVEGGFDLSEEKFELDEDVKIVILPDYLEIARDGLGGLPDIVRDRVTSAVEALLSADSASRKQEVQAWDGEVRQVSKHAFSLKQLDNPARIPPCGWKCSKCDMRENLWLNLTDGSILCGRRYFDGSGGNNHAVEHYRETGYPLAVKLGTITPDGADVYSYDEDDMVLDPSLAEHLSHFGIDMLKMQKTDKTMTELEIDMNQRIGEWELIQESGVPLKPLFGPGYTGIRNLGNSCYLNSVVQVLFSIPDFQRKYVDKLEKIFQNAPTDPTQDFSTQVAKLGHGLLSGEYSKPVPESGDGERVPEQKEVQDGIAPRMFKALIGKGHPEFSTNRQQDAQEFFLHLINMVERNCRSSENPNEVFRFLVEEKIKCLATEKVKYTQRVDYIMQLPVPMDAALNKEELLEYEEKKRQAEEEKMALPELVRAQVPFSSCLEAYGAPEQVDDFWSTALQAKSVAVKTTRFASFPDYLVIQIKKFTFGLDWVPKKLDVSIEMPEELDISQLRGTGLQPGEEELPDIAPPLVTPDEPKAPMLDESVIIQLVEMGFPMDACRKAVYYTGNSGAEAAMNWVMSHMDDPDFANPLILPGSSGPGSTSAAADPPPEDCVTTIVSEGFSRDQALKALRATNNSLERAVDWIFSHIDDLDAEAAMDISEGRSAADSISESVPVGPKVRDGPGKYQLFAFISHMGTSTMCGHYVCHIKKEGRWVIYNDQKVCASEKPPKDLGYIYFYQRVASgggshhhhhh",null,"p28BIOH-LIC","gctggaggttcaggtATGGCGGAGCTGAGTGAGGAG","AGAAGCCttcGGAGACAATGGTGGTCACAC","TGTCTCCgaaGGCTTCTCCCGGGACCAGG","atgaccacttccaccGCTGGCCACTCTCTGGTAGAAG","DH5-Alpha","ploppnau","LIC-Infusion","Y",null,"2019-03-06",null,null,"PAGE19-00043","C1 is 100% "]

{"sheet":"response","index":2,"n_rows":26,"n_cols":4,"rows_kept":26,"cut":false,"hidden":false,"merged":[]}
["Row","Pkey/Uploaded","Error","Message"]
[3,243617,null,"Template.0.id=BC004889; "]
[4,243618,null,"Template.0.id=BC004889; "]
[5,243619,null,"Template.0.id=BC004889; "]
[6,243620,null,"Template.0.id=BC004889; "]
[7,243621,null,"Template.0.id=BC004889; "]
[8,243622,null,"Template.0.id=BC004889; "]
[9,243623,null,"Template.0.id=BC004889; "]
[10,243624,null,"Template.0.id=BC004889; "]
[11,243625,null,"Template.0.id=BC004889; ClonePrimer.0.forward_primer=TGATGAGgcgGACATGGTCCTGGACCCCAG; ClonePrimer.0.reverse_primer=atgaccacttccaccGCTGGCCACTCTCTGGTAGAAG; ClonePrimer.1.forward_primer=gctggaggttcaggtATGGCGGAGCTGAGTGAGGAG; ClonePrimer.1.reverse_primer=CCATGTCcgcCTCATCATATGAGTACACG; "]
[12,243626,null,"Template.0.id=BC004889; "]
[13,243627,null,"Template.0.id=BC004889; "]
[14,243628,null,"Template.0.id=BC004889; "]
[15,243629,null,"Template.0.id=BC004889; "]
[16,243630,null,"Template.0.id=BC004889; "]
[17,243631,null,"Template.0.id=BC004889; "]
[18,243632,null,"Template.0.id=BC004889; "]
[19,243633,null,"Template.0.id=BC004889; "]
[20,243634,null,"Template.0.id=BC004889; "]
[21,243635,null,"Template.0.id=BC016663; "]
[22,243636,null,"Template.0.id=BC016663; "]
[23,243637,null,"Template.0.id=BC030704; "]
[24,243638,null,"Template.0.id=BC030704; "]
[25,243639,null,"Template.0.id=BC014176; "]
[26,243640,null,"Template.0.id=BC014176; "]
[27,243641,null,"Template.0.id=BC004889; "]

{"sheet":"debug","index":3,"n_rows":2,"n_cols":1,"rows_kept":2,"cut":false,"hidden":false,"merged":[]}
[]
["<?xml version=\"1.0\"?>\n<data><cloning><row>3</row><error></error><dbdata></dbdata><Template.0.id>BC004889</Template.0.id><Construct.0.aa_start_update></Construct.0.aa_start_update><Construct.0.aa_end_update></Construct.0.aa_end_update><Construct.0.validated></Construct.0.validated><pkey>243617</pkey><sampleid>USP05:TOC023-A01:C243617</sampleid></cloning><cloning><row>4</row><error></error><dbdata></dbdata><Template.0.id>BC004889</Template.0.id><Construct.0.aa_start_update></Construct.0.aa_start_update><Construct.0.aa_end_update></Construct.0.aa_end_update><Construct.0.validated></Construct.0.validated><pkey>243618</pkey><sampleid>USP05:TOC023-A02:C243618</sampleid></cloning><cloning><row>5</row><error></error><dbdata></dbdata><Template.0.id>BC004889</Template.0.id><Construct.0.aa_start_update></Construct.0.aa_start_update><Construct.0.aa_end_update></Construct.0.aa_end_update><Construct.0.validated></Construct.0.validated><pkey>243619</pkey><sampleid>USP05:TOC023-A03:C243619</sampleid></cloning><cloning><row>6</row><error></error><dbdata></dbdata><Template.0.id>BC004889</Template.0.id><Construct.0.aa_start_update></Construct.0.aa_start_update><Construct.0.aa_end_update></Construct.0.aa_end_update><Construct.0.validated></Construct.0.validated><pkey>243620</pkey><sampleid>USP05:TOC023-A04:C243620</sampleid></cloning><cloning><row>7</row><error></error><dbdata></dbdata><Template.0.id>BC004889</Template.0.id><Construct.0.aa_start_update></Construct.0.aa_start_update><Construct.0.aa_end_update></Construct.0.aa_end_update><Construct.0.validated></Construct.0.validated><pkey>243621</pkey><sampleid>USP05:TOC023-A05:C243621</sampleid></cloning><cloning><row>8</row><error></error><dbdata></dbdata><Template.0.id>BC004889</Template.0.id><Construct.0.aa_start_update></Construct.0.aa_start_update><Construct.0.aa_end_update></Construct.0.aa_end_update><Construct.0.validated></Construct.0.validated><pkey>243622</pkey><sampleid>USP05:TOC023-A06:C243622</sampleid></cloning><cloning><row>9</row><error></error><dbdata></dbdata><Template.0.id>BC004889</Template.0.id><Construct.0.aa_start_update></Construct.0.aa_start_update><Construct.0.aa_end_update></Construct.0.aa_end_update><Construct.0.validated></Construct.0.validated><pkey>243623</pkey><sampleid>USP05:TOC023-A07:C243623</sampleid></cloning><cloning><row>10</row><error></error><dbdata></dbdata><Template.0.id>BC004889</Template.0.id><Construct.0.aa_start_update></Construct.0.aa_start_update><Construct.0.aa_end_update></Construct.0.aa_end_update><Construct.0.validated></Construct.0.validated><pkey>243624</pkey><sampleid>USP05:TOC023-A08:C243624</sampleid></cloning><cloning><row>11</row><error></error><dbdata></dbdata><Template.0.id>BC004889</Template.0.id><Construct.0.aa_start_update></Construct.0.aa_start_update><Construct.0.aa_end_update></Construct.0.aa_end_update><Construct.0.validated></Construct.0.validated><ClonePrimer.0.forward_primer>TGATGAGgcgGACATGGTCCTGGACCCCAG</ClonePrimer.0.forward_primer><ClonePrimer.0.reverse_primer>atgaccacttccaccGCTGGCCACTCTCTGGTAGAAG</ClonePrimer.0.reverse_primer><ClonePrimer.1.forward_primer>gctggaggttcaggtATGGCGGAGCTGAGTGAGGAG</ClonePrimer.1.forward_primer><ClonePrimer.1.reverse_primer>CCATGTCcgcCTCATCATATGAGTACACG</ClonePrimer.1.reverse_primer><pkey>243625</pkey><sampleid>USP05:TOC023-A09:C243625</sampleid></cloning><cloning><row>12</row><error></error><dbdata></dbdata><Template.0.id>BC004889</Template.0.id><Construct.0.aa_start_update></Construct.0.aa_start_update><Construct.0.aa_end_update></Construct.0.aa_end_update><Construct.0.validated></Construct.0.validated><pkey>243626</pkey><sampleid>USP05:TOC023-A10:C243626</sampleid></cloning><cloning><row>13</row><error></error><dbdata></dbdata><Template.0.id>BC004889</Template.0.id><Construct.0.aa_start_update></Construct.0.aa_start_update><Construct.0.aa_end_update></Construct.0.aa_end_update><Construct.0.validated></Construct.0.validated><pkey>243627</pkey><sampleid>USP05:TOC023-A11:C243627</sampleid></cloning><cloning><row>14</row><error></error><dbdata></dbdata><Template.0.id>BC004889</Template.0.id><Construct.0.aa_start_update></Construct.0.aa_start_update><Construct.0.aa_end_update></Construct.0.aa_end_update><Construct.0.validated></Construct.0.validated><pkey>243628</pkey><sampleid>USP05:TOC023-A12:C243628</sampleid></cloning><cloning><row>15</row><error></error><dbdata></dbdata><Template.0.id>BC004889</Template.0.id><Construct.0.aa_start_update></Construct.0.aa_start_update><Construct.0.aa_end_update></Construct.0.aa_end_update><Construct.0.validated></Construct.0.validated><pkey>243629</pkey><sampleid>USP05:TOC023-B01:C243629</sampleid></cloning><cloning><row>16</row><error></error><dbdata></dbdata><Template.0.id>BC004889</Template.0.id><Construct.0.aa_start_update></Construct.0.aa_start_update><Construct.0.aa_end_update></Construct.0.aa_end_update><Construct.0.validated></Construct.0.validated><pkey>243630</pkey><sampleid>USP05:TOC023-B02:C243630</sampleid></cloning><cloning><row>17</row><error></error><dbdata></dbdata><Template.0.id>BC004889</Template.0.id><Construct.0.aa_start_update></Construct.0.aa_start_update><Construct.0.aa_end_update></Construct.0.aa_end_update><Construct.0.validated></Construct.0.validated><pkey>243631</pkey><sampleid>USP05:TOC023-B03:C243631</sampleid></cloning><cloning><row>18</row><error></error><dbdata></dbdata><Template.0.id>BC004889</Template.0.id><Construct.0.aa_start_update></Construct.0.aa_start_update><Construct.0.aa_end_update></Construct.0.aa_end_update><Construct.0.validated></Construct.0.validated><pkey>243632</pkey><sampleid>USP05:TOC023-B04:C243632</sampleid></cloning><cloning><row>19</row><error></error><dbdata></dbdata><Template.0.id>BC004889</Template.0.id><Construct.0.aa_start_update></Construct.0.aa_start_update><Construct.0.aa_end_update></Construct.0.aa_end_update><Construct.0.validated></Construct.0.validated><pkey>243633</pkey><sampleid>USP05:TOC023-B05:C243633</sampleid></cloning><cloning><row>20</row><error></error><dbdata></dbdata><Template.0.id>BC004889</Template.0.id><Construct.0.aa_start_update></Construct.0.aa_start_update><Construct.0.aa_end_update></Construct.0.aa_end_update><Construct.0.validated></Construct.0.validated><pkey>243634</pkey><sampleid>USP05:TOC023-B06:C243634</sampleid></cloning><cloning><row>21</row><error></error><dbdata></dbdata><Template.0.id>BC016663</Template.0.id><Construct.0.aa_start_update></Construct.0.aa_start_update><Construct.0.aa_end_update></Construct.0.aa_end_update><Construct.0.validated></Construct.0.validated><pkey>243635</pkey><sampleid>USP33:TOC023-B07:C243635</sampleid></cloning><cloning><row>22</row><error></error><dbdata></dbdata><Template.0.id>BC016663</Template.0.id><Construct.0.aa_start_update></Construct.0.aa_start_update><Construct.0.aa_end_update></Construct.0.aa_end_update><Construct.0.validated></Construct.0.validated><pkey>243636</pkey><sampleid>USP33:TOC023-B08:C243636</sampleid></cloning><cloning><row>23</row><error></error><dbdata></dbdata><Template.0.id>BC030704</Template.0.id><Construct.0.aa_start_update></Construct.0.aa_start_update><Construct.0.aa_end_update></Construct.0.aa_end_update><Construct.0.validated></Construct.0.validated><pkey>243637</pkey><sampleid>USP44:TOC023-B09:C243637</sampleid></cloning><cloning><row>24</row><error></error><dbdata></dbdata><Template.0.id>BC030704</Template.0.id><Construct.0.aa_start_update></Construct.0.aa_start_update><Construct.0.aa_end_update></Construct.0.aa_end_update><Construct.0.validated></Construct.0.validated><pkey>243638</pkey><sampleid>USP44:TOC023-B10:C243638</sampleid></cloning><cloning><row>25</row><error></error><dbdata></dbdata><Template.0.id>BC014176</Template.0.id><Construct.0.aa_start_update></Construct.0.aa_start_update><Construct.0.aa_end_update></Construct.0.aa_end_update><Construct.0.validated></Construct.0.validated><pkey>243639</pkey><sampleid>USP49:TOC023-B11:C243639</sampleid></cloning><cloning><row>26</row><error></error><dbdata></dbdata><Template.0.id>BC014176</Template.0.id><Construct.0.aa_start_update></Construct.0.aa_start_update><Construct.0.aa_end_update></Construct.0.aa_end_update><Construct.0.validated></Construct.0.validated><pkey>243640</pkey><sampleid>USP49:TOC023-B12:C243640</sampleid></cloning><cloning><row>27</row><error></error><dbdata></dbdata><Template.0.id>BC004889</Template.0.id><Construct.0.aa_start_update></Construct.0.aa_start_update><Construct.0.aa_end_update></Construct.0.aa_end_update><Construct.0.validated></Construct.0.validated><pkey>243641</pkey><sampleid>USP05:TOC023-C01:C243641</sampleid></cloning><cloning><row>0</row><username>ploppnau</username><sessionid>a7885b6f2737972b4c57de4bb4ca2a1c</sessionid><expiretime>2019-03-06 09:49:18</expiretime></cloning></data>\n<!-- 26.7416s -->"]

{"sheet":"validList","index":4,"n_rows":140,"n_cols":4,"rows_kept":140,"cut":false,"hidden":false,"merged":[]}
["extraColumnHeader","CloneVector.id","CloneMethod.id","Hostcell.id"]
["Domain.0.id","C-BirA-Flag","Cre-loxP","BDFusionBlue"]
["Template.0.id","DefaultID","DefaultID","BL21 (DE3)pLysS"]
["Template.0.location","FG12","GATEWAY","BL21 Magic"]
["Template.0.Antibiotic.id","MultiBacFusion","LIC-Infusion","BL21 Rosetta Gami"]
[null,"N-Flag-BirA","LIC-T4 DNA Pol","BL21(DE3)-CodonPlus-RIL-pACYC LamP"]
[null,"PIEx Bac-3","QuikChange","BL21(DE3)-T1R"]
[null,"PTBY2-C","Restriction Enzymes","BL21(DE3)-T1R-pACYC LamP"]
[null,"TOPO vector",null,"BL21(DE3)-T1R-pRARE2"]
[null,"p11",null,"BL21(DE3)-V1R-pACYC LamP"]
[null,"p15TV-L",null,"BL21(DE3)-V1R-pRARE2"]
[null,"p21a-LIC",null,"BL21(DE3)-V2R"]
[null,"p28BIOH-LIC",null,"BL21(DE3)-V2R-BirA"]
[null,"p28BIOHTEV-LIC-1",null,"BL21(DE3)-V2R-pACYC LamP"]
[null,"p6HISMAL-MHL",null,"BL21(DE3)-V2R-pBirAcm"]
[null,"pAB-LIC",null,"BL21(DE3)-V2R-pG-KJE8"]
[null,"pACE Bac1",null,"BL21(DE3)-V2R-pRARE2"]
[null,"pACYC duet",null,"BL21(DE3)-V3R-pACYC LamP"]
[null,"pACYC-DUET1-second frame",null,"BL21(DE3)-V3R-pRARE2"]
[null,"pACYC-GST",null,"BL21(DE3)-pRARE2"]
[null,"pACYC-LIC notag",null,"BL21(DE3)star"]
[null,"pACYC-LICplus",null,"BL21-CodonPlus-RIL"]
[null,"pBacMam2-DiEx-LIC",null,"BL21-CodonPlus-RIL-V1R"]
[null,"pBacPAK8",null,"BL21-CodonPlus-RP"]
[null,"pCD33-CH",null,"BL21-DE3"]
[null,"pCDF-Duet-1-LIC1",null,"BL21-Gold-(DE3)"]
[null,"pCDF-NcoIXhoI",null,"BL21-R3"]
[null,"pCDNA-HFT",null,"BL21-R3-pRARE2"]
[null,"pCDNA3.1plusKpn1EcoR1",null,"BL21-Rosetta"]
[null,"pCW-FAB2-LIC",null,"BL21-Rosetta 2"]
[null,"pCW-FAB2HIS-LIC",null,"BL21-Rosetta oxford"]
[null,"pCW-FABAVI-LIC",null,"BW23474"]
[null,"pCW-IPV2-LIC",null,"C41"]
[null,"pCW-IgG-LIC",null,"C43"]
[null,"pCW-LIC",null,"DH10B"]
[null,"pEGFP-N1",null,"DH5-Alpha"]
[null,"pER-NH",null,"DefaultID"]
[null,"pESUMO-LIC",null,"EXPI293F"]
[null,"pET duet",null,"HEK293F"]
[null,"pET-MBP-1",null,"HIGH5"]
[null,"pET15-MHL",null,"SF9"]
[null,"pET15NUC-MHL",null,"XL-10-Gold"]
[null,"pET15SUMO-MHL",null,"XL-Blue"]
[null,"pET15TRX-MHL"]
[null,"pET22b"]
[null,"pET28-CFP-YFP"]
[null,"pET28-Cub"]
[null,"pET28-FLAG"]
[null,"pET28-MHL"]
[null,"pET28-MHL BICISTRONIC"]
[null,"pET28-MKH8SUMO"]
[null,"pET28-SBP"]
[null,"pET28-SBP-TEV"]
[null,"pET28-SacB-AP"]
[null,"pET28GST-LIC"]
[null,"pET28GSTlinker-LIC"]
[null,"pET28a"]
[null,"pET28a-LIC"]
[null,"pET28a-LIC notag"]
[null,"pET28a-LIC-C not Cleavable"]
[null,"pET28a-LIC-CHis"]
[null,"pET32a-LIC"]
[null,"pET41a"]
[null,"pETDuet-1-LIC1"]
[null,"pFB-CT10HF-LIC"]
[null,"pFB-LIC-Bse"]
[null,"pFB-Mam-CT10HF-LIC"]
[null,"pFB-Nflag-LIC"]
[null,"pFBD-BirA"]
[null,"pFBD-LIC1"]
[null,"pFBDM"]
[null,"pFBIP-C"]
[null,"pFBIP-N"]
[null,"pFBOH-GST"]
[null,"pFBOH-LIC"]
[null,"pFBOH-LIC notag"]
[null,"pFBOH-LIC-CHis"]
[null,"pFBOH-MHL"]
[null,"pFBOH-SBP-TEV-LIC"]
[null,"pFBOH-SUMOstar"]
[null,"pFBOH-SUMOstar-TEV"]
[null,"pFBOH-avi-TEV-LIC"]
[null,"pFGP64-C"]
[null,"pFGP64-N"]
[null,"pFHMSP-LIC-C"]
[null,"pFHMSP-LIC-C-No Tag"]
[null,"pFHMSP-LIC-N"]
[null,"pFHMSPN-SBP-TEV-LIC"]
[null,"pFHMSPN-avi-TEV-LIC"]
[null,"pFN21A"]
[null,"pFSTREP-C"]
[null,"pFSTREP-N"]
[null,"pFTRYP-C"]
[null,"pFTRYP-EK-C"]
[null,"pFTRYP-EK-N"]
[null,"pFTRYP-N"]
[null,"pFastBac HTA"]
[null,"pFastBac-Dual"]
[null,"pFastBac1"]
[null,"pGEX-4T-1"]
[null,"pGEX-MHL"]
[null,"pHIS2"]
[null,"pHP153_display"]
[null,"pHP153_expression"]
[null,"pIDC"]
[null,"pIDK"]
[null,"pIDS"]
[null,"pJB861"]
[null,"pKL"]
[null,"pKL-NT6H-LIC"]
[null,"pKL-p10"]
[null,"pKL-polh"]
[null,"pMAL-MHL"]
[null,"pMAL-p2e"]
[null,"pNH-TrxT"]
[null,"pNIC-Bio3"]
[null,"pNIC-CH"]
[null,"pNIC-CTHF"]
[null,"pNIC-NHT-CF"]
[null,"pNIC28-10His"]
[null,"pNIC28-Bsa4"]
[null,"pNICBio2"]
[null,"pRSFduet"]
[null,"pSPL"]
[null,"pSPL-NT6H-LIC"]
[null,"pSPL-p10"]
[null,"pSPL-polh"]
[null,"pTH6838-nGST"]
[null,"pTH7069-cGST"]
[null,"pTRC-LIC"]
[null,"pTXB1"]
[null,"pTYB2"]
[null,"pTrcHis"]
[null,"pUCDM"]
[null,"pUCDM-CTF-LIC"]
[null,"pUCDM-NT6H-LIC"]
[null,"pUCDM-polh"]
[null,"pcDNA3"]
[null,"pcDNA3.1pBamHIEcoRI"]
[null,"pcMX-V2"]

{"sheet":"NOTES","index":5,"n_rows":31,"n_cols":1,"rows_kept":31,"cut":false,"hidden":false,"merged":[]}
[]
["UPDATES:"]
["2012-04-17 version 2.3"]
["1. added new option \"validate construct DNA sequence against template sequence\" in Upload Data "]
[]
["2012-07-17 version 2.4"]
["1. Option \"validate construct DNA sequence against template sequence\" is removed from Upload Data "]
["2. A new column \"construct 100% match template sequence?\" is added to upload mutated construct. "]
["3. 2 columns \"domain pkey\" \"domain ID\" are removed"]
["4. Permission to update existing clone records is given to record's original uploader, user specified in \"cloner\" column, and cloning group members (currently Yanjun, Maria)."]
[]
["2012-07-24 version 2.4"]
["fixed a bug in upload form"]
[]
["2012-08-23 version 2.5"]
["Option \"validate construct sequence against template\" is added to \"Validate Data\" popup form."]
[]
["2012-10-22 version 2.6"]
[" Fixed a bug so that creating new plate batch can be activated in Windows 7 default browser."]
[]
["2013-11-22 version 2.7"]
["\"Cloned AA Sequence\" is changed from optional column to mandatory cloumn"]
[]
["2014-02-06 version 3.0"]
["Some special characters (e.g. \"&\",\"<\" or \">\") can be downloaded now"]
[]
["2015-01-09 version 3.1"]
["Discontinue using RefEdit control in popup windows"]
[]
["06/11/2017 version 4.0"]
["ShellExecute is compatible with Office 2010 64-bit on Windows 64-bit"]

{"sheet":"session","index":6,"n_rows":1,"n_cols":3,"rows_kept":1,"cut":false,"hidden":true,"merged":[]}
["ploppnau","a7885b6f2737972b4c57de4bb4ca2a1c","2019-03-06T09:49:18"]

{"sheet":"param","index":7,"n_rows":1,"n_cols":2,"rows_kept":1,"cut":false,"hidden":true,"merged":[]}
["FULL_BASE_URL","http://polymorph2.sgc.utoronto.ca/"]

{"sheet":"Sheet1","index":8,"n_rows":7,"n_cols":3,"rows_kept":7,"cut":false,"hidden":false,"merged":[]}
["AU25-C3","10-C4"]
["AT9-B7","20-A4"]
["AT25-A4","20-A9"]
["AU68-E10","23-B8"]
["AT35-C5","02-D5"]
["AT49-C6","48-B9","42-H3"]
["AT38-G12","42-H4"]

{"sheet":"Sheet2","index":9,"n_rows":44,"n_cols":3,"rows_kept":44,"cut":false,"hidden":false,"merged":[]}
["A01","AU25-C3"]
["A02","AU25-C3"]
["A03","A02"]
["A04","C01"]
["A05","A02 for A.  "]
["A06","AU25-C3"]
["A07","AU25-C3"]
["A08","AU25-C3"]
["A09","AU25-C3"]
["A10","AU25-C3"]
["A11","A7 for A.  "]
["A12","AU25-C3"]
["B01","A06"]
["B02","A07"]
["B03","A08"]
["B04","A09"]
["B05","A10"]
["B06","A7 for A."]
["B07","AT9-B7"]
["B08","AT9-B7"]
["B09","AT25-A4"]
["B10","AT25-A4"]
["B11","AU68-E10"]
["B12","AU68-E10"]
["C01","AU25-C3"]
["C02","AT35-C5"]
["C03","AT49-C6"]
["C04","AT49-C6"]
["C05","AT38-G12"]
["C06","AT38-G12"]
["C07","AU25-C3"]
["C08","AU25-C3","A02"]
["C09","A02","A03"]
["C10","C01","A04"]
["C11","C01 for B ","A05"]
["C12","AU25-C3","A06"]
["D01","AU25-C3","A07"]
["D02","AU25-C3","A08"]
["D03","AU25-C3","A09"]
["D04","AU25-C3","A10"]
["D05","A10 for B","A11"]
["D06","AU25-C3","A12"]
["D07","A10 for B","B06"]
["D08","AU25-C3","C01"]

{"sheet":"Sheet3","index":10,"n_rows":32,"n_cols":2,"rows_kept":32,"cut":false,"hidden":false,"merged":[]}
["TOC023A1","A01 is 100%"]
["TOC023A2","A02 is 100%"]
["TOC023A3"]
["TOC023A4"]
["TOC023A5"]
["TOC023A6"]
["TOC023A7","A07.  point mutation"]
["TOC023A8"]
["TOC023A9","A09 is 100%"]
["TOC023A10","A10 is 100%"]
["TOC023A11"]
["TOC023A12","A12 is 100%"]
["TOC023B01"]
["TOC023B02"]
["TOC023B03"]
["TOC023B04"]
["TOC023B05"]
["TOC023B06"]
["TOC023B07","B07 is 100%"]
["TOC023B08","B08 is 100%"]
["TOC023B09"]
["TOC023B10","B10 is100%"]
["TOC023B11"]
["TOC023B12"]
["TOC023C01","C1 is 100% "]
["C02","100% this I can store at MVC012A11"]
["C03"]
["C04"]
["MVC012C05","called C5 in sequencing. 100% Correct"]
["MVC012C06","Called C6 in sequencing 100% correct"]
["MVC012C07","not checked.  It is a repeat of SDC construct"]
["C08","PBC017C05.  1 silent mutation.  Store it"]